Workbook

Sheet Orçamento
A1: ORÇAMENTO PROJETO DE RECUPERAÇÃO - BARRAGEM PARANÃ
A2: ítem | B2: Base | C2: Código | D2: Descrição | E2: Und | F2: Qtd | G2: Custo Unitário (R$) | H2: Custo Total (R$) | I2: Preço Unitário (R$) | J2: Preço Total (R$)
A3: 1 | D3: Serviços Preliminares e Administração Local | H3: =SUBTOTAL(9,H4:H15) -> 772771.0818 | J3: =SUBTOTAL(9,J4:J15) -> 961743.6
A4: 1.1.1 | B4: COMPOS. | C4: 0.001 | D4: Mobilizaçãos de Equipamentos e Pessoal | E4: un. | F4: 1 | G4: =Composições!G14 -> 45458.25 | H4: =G4*F4 -> 45458.25 | I4: =ROUND(G4*(1+BDI!$C$17),2) -> 56575.3 | J4: =I4*F4 -> 56575.3 | L4: =SUM(J4:J8) -> 944809.8
A5: 1.1.2 | B5: COMPOS. | C5: 0.002 | D5: Desmobilização de Equipamentos e Pessoal | E5: un. | F5: 1 | G5: =Composições!G39 -> 45458.25 | H5: =G5*F5 -> 45458.25 | I5: =ROUND(G5*(1+BDI!$C$17),2) -> 56575.3 | J5: =I5*F5 -> 56575.3
A6: 1.1.3 | B6: COMPOS. | C6: 0.003 | D6: Placa de obra | E6: un. | F6: 1 | G6: =Composições!G76 -> 324.4358 | H6: =G6*F6 -> 324.4358 | I6: =ROUND(G6*(1+BDI!$C$17),2) -> 403.78 | J6: =I6*F6 -> 403.78
A7: 1.1.4 | B7: COMPOS. | C7: 0.004 | D7: Administração Local e Manutenção do Canteiro | E7: mês | F7: 12 | G7: =Composições!G103 -> 45626.058 | H7: =F7*G7 -> 547512.696 | I7: =ROUND(G7*(1+BDI!$C$17),2) -> 56784.14 | J7: 681409.68
A8: 1.1.5 | B8: COMPOS. | C8: 0.005 | D8: Instalação de Canteiro de Obra | E8: un. | F8: 1 | G8: =Composições!G133 -> 120401.05 | H8: =F8*G8 -> 120401.05 | I8: =ROUND(G8*(1+BDI!$C$17),2) -> 149845.74 | J8: 149845.74
A10: 1.3 | D10: Acessos | H10: =SUBTOTAL(9,H11:H14) -> 13616.4 | J10: =SUBTOTAL(9,J11:J14) -> 16933.8
A11: 1.3.1 | B11: SICRO | C11: 5502986 | D11: Expurgo | E11: m³ | F11: =2000*3*0.25 -> 1500 | G11: 1.78 | H11: =G11*F11 -> 2670 | I11: =ROUND(G11*(1+BDI!$C$17),2) -> 2.22 | J11: =I11*F11 -> 3330 | L11: =SUM(J11:J14) -> 16933.8
A12: 1.3.2 | B12: SICRO | C12: 4011209 | D12: Regularização do Subleito | E12: m² | F12: =2000*3 -> 6000 | G12: 0.67 | H12: =G12*F12 -> 4020 | I12: =ROUND(G12*(1+BDI!$C$17),2) -> 0.83 | J12: =I12*F12 -> 4980
A13: 1.3.3 | B13: SICRO | C13: 4015612 | D13: Revestimento Primário de Acesso | E13: m³ | F13: =F12*0.15 -> 900 | G13: 6.81 | H13: =G13*F13 -> 6129 | I13: =ROUND(G13*(1+BDI!$C$17),2) -> 8.48 | J13: =I13*F13 -> 7632
A14: 1.3.4 | B14: SICRO | C14: 4915611 | D14: Recomposição de revestimento primário | E14: m³ | F14: =F13*20% -> 180 | G14: 4.43 | H14: =G14*F14 -> 797.4 | I14: =ROUND(G14*(1+BDI!$C$17),2) -> 5.51 | J14: =I14*F14 -> 991.8
A16: 2 | D16: Vertedouro Complementar | H16: =SUBTOTAL(9,H17:H33) -> 207985.6121 | J16: =SUBTOTAL(9,J17:J33) -> 258984.8209
A17: 2.1 | D17: Canal de Aproximação | H17: =SUBTOTAL(9,H18:H21) -> 120224.95 | J17: =SUBTOTAL(9,J18:J21) -> 149714.625 | L17: =SUM(J18:J20) -> 149714.625
A18: 2.1.1 | B18: SICRO | C18: 5502139 | D18: Escavação Comum | E18: m³ | F18: 27100 | G18: 3.55 | H18: =G18*F18 -> 96205 | I18: =ROUND(G18*(1+BDI!$C$17),2) -> 4.42 | J18: =I18*F18 -> 119782
A19: 2.1.2 | B19: SICRO | C19: 2003864 | D19: Esgotamento de água com bomba submersa | E19: h | F19: 122 | G19: 10.85 | H19: =G19*F19 -> 1323.7 | I19: =ROUND(G19*(1+BDI!$C$17),2) -> 13.5 | J19: =I19*F19 -> 1647
A20: 2.1.3 | B20: SICRO | C20: 4413942 | D20: Espalhamento de solo em bota fora | E20: m³ | F20: =F18*50%*1.25 -> 16937.5 | G20: 1.34 | H20: =G20*F20 -> 22696.25 | I20: =ROUND(G20*(1+BDI!$C$17),2) -> 1.67 | J20: =I20*F20 -> 28285.625
A22: 2.2 | D22: Canal de Restituição | H22: =SUBTOTAL(9,H23:H26) -> 8421.489375 | J22: =SUBTOTAL(9,J23:J26) -> 10487.17489
A23: 2.2.1 | B23: SICRO | C23: 5502139 | D23: Escavaçao Comum | E23: m³ | F23: =1898.21 -> 1898.21 | G23: =G18 -> 3.55 | H23: =G23*F23 -> 6738.6455 | I23: =ROUND(G23*(1+BDI!$C$17),2) -> 4.42 | J23: =I23*F23 -> 8390.0882 | L23: =SUM(J23:J25) -> 10487.17489
A24: 2.2.2 | B24: SICRO | C24: 2003864 | D24: Esgotamento de água com bomba submersa | E24: h | F24: 8.58 | G24: =G19 -> 10.85 | H24: =G24*F24 -> 93.093 | I24: =ROUND(G24*(1+BDI!$C$17),2) -> 13.5 | J24: =I24*F24 -> 115.83
A25: 2.2.3 | B25: SICRO | C25: 4413942 | D25: Espalhamento de solo em bota fora | E25: m³ | F25: =F23*50%*1.25 -> 1186.38125 | G25: 1.34 | H25: =G25*F25 -> 1589.750875 | I25: =ROUND(G25*(1+BDI!$C$17),2) -> 1.67 | J25: =I25*F25 -> 1981.256687
A27: 2.3 | D27: Dique de Proteção | H27: =SUBTOTAL(9,H28:H33) -> 79339.17271 | J27: =SUBTOTAL(9,J28:J33) -> 98783.021
A28: 2.3.1 | B28: SICRO | C28: 5502139 | D28: Escavação comum | E28: m³ | F28: 11318.65 | G28: =G23 -> 3.55 | H28: =G28*F28 -> 40181.2075 | I28: =ROUND(G28*(1+BDI!$C$17),2) -> 4.42 | J28: =I28*F28 -> 50028.433 | L28: =SUM(J28:J32) -> 98783.021
A29: 2.3.2 | B29: SICRO | C29: 5502978 | D29: Aterro Compactado | E29: m³ | F29: 6766.82 | G29: 2.99 | H29: =G29*F29 -> 20232.7918 | I29: =ROUND(G29*(1+BDI!$C$17),2) -> 3.72 | J29: =I29*F29 -> 25172.5704
A30: 2.3.3 | B30: SICRO | C30: 5502986 | D30: Expurgo | E30: m³ | F30: =F31*10% -> 372.1751 | G30: =G11 -> 1.78 | H30: =G30*F30 -> 662.471678 | I30: =ROUND(G30*(1+BDI!$C$17),2) -> 2.22 | J30: =I30*F30 -> 826.228722
A31: 2.3.4 | B31: SICRO | C31: 4016008 | D31: Escavação de jazida | E31: m³ | F31: =(F29/2)*1.1 -> 3721.751 | G31: 2.36 | H31: =G31*F31 -> 8783.33236 | I31: =ROUND(G31*(1+BDI!$C$17),2) -> 2.94 | J31: =I31*F31 -> 10941.94794
A32: 2.3.5 | B32: SICRO | C32: 4413942 | D32: Espalhamento de solo em bota fora | E32: m³ | F32: =F28*50%*1.25 -> 7074.15625 | G32: =G20 -> 1.34 | H32: =G32*F32 -> 9479.369375 | I32: =ROUND(G32*(1+BDI!$C$17),2) -> 1.67 | J32: =I32*F32 -> 11813.84094
A34: 3 | D34: Vertedouro Soleira Livre | H34: =SUBTOTAL(9,H35:H61) -> 453392.2866 | J34: =SUBTOTAL(9,J35:J61) -> 564258.9391
A35: 3.1 | D35: Reparo na calha e sistema de drenagem | H35: =SUBTOTAL(9,H36:H45) -> 28831.23164 | J35: =SUBTOTAL(9,J36:J45) -> 35880.72907 | L35: =+SUM(J36:J44) -> 35880.72907
A36: 3.1.1 | B36: SICRO | C36: 1600990 | D36: Demolição de concreto armado | E36: m³ | F36: =16*1.3*0.25+55.95*1.3*0.25 -> 23.38375 | G36: 392.17 | H36: =G36*F36 -> 9170.405237 | I36: =ROUND(G36*(1+BDI!$C$17),2) -> 488.08 | J36: =I36*F36 -> 11413.1407
A37: 3.1.2 | B37: SICRO | C37: 3806402 | D37: Limpeza em superfície de concreto | E37: m² | F37: =(16+57.25)*2*0.25 -> 36.625 | G37: 2.66 | H37: 97.4225 | I37: =ROUND(G37*(1+BDI!$C$17),2) -> 3.31 | J37: 121.22875
A38: 3.1.3 | B38: SICRO | C38: 3108007 | D38: Forma em Compensado Plastificado e=10mm | E38: m² | F38: =1.3*0.5*8 -> 5.2 | G38: 111.51 | H38: =G38*F38 -> 579.852 | I38: =ROUND(G38*(1+BDI!$C$17),2) -> 138.78 | J38: =I38*F38 -> 721.656
A39: 3.1.4 | B39: SICRO | C39: 407819 | D39: Armação em Aço CA-50 | E39: kg | F39: 477 | G39: 9.21 | H39: 4393.17 | I39: =ROUND(G39*(1+BDI!$C$17),2) -> 11.46 | J39: 5466.42
A40: 3.1.5 | B40: SICRO | C40: 1116263 | D40: Concreto Fck 25 Mpa | E40: m³ | F40: =F36 -> 23.38375 | G40: 243.98 | H40: 5705.167325 | I40: =ROUND(G40*(1+BDI!$C$17),2) -> 303.65 | J40: 7100.475687
A41: 3.1.6 | B41: SICRO | C41: 1107860 | D41: Bombeamento de Concreto | E41: m³ | F41: =F40 -> 23.38375 | G41: 28.93 | H41: 676.4918875 | I41: =ROUND(G41*(1+BDI!$C$17),2) -> 36 | J41: 841.815
A42: 3.1.7 | B42: SICRO | C42: 1100657 | D42: Adensamento de Concreto | E42: m³ | F42: =F41 -> 23.38375 | G42: 2.45 | H42: =G42*F42 -> 57.2901875 | I42: =ROUND(G42*(1+BDI!$C$17),2) -> 3.05 | J42: =I42*F42 -> 71.3204375
A43: 3.1.8 | B43: COMPOS. | C43: 0.006 | D43: Veda Juntas O-22 | E43: m | F43: 16 | G43: =Composições!G155 -> 90.0625 | H43: 1441 | I43: =ROUND(G43*(1+BDI!$C$17),2) -> 112.09 | J43: 1793.44
A44: 3.1.9 | B44: SICRO | C44: 2003578 | D44: Drenagem Interna | E44: m | F44: =16+57.25 -> 73.25 | G44: 91.61 | H44: 6710.4325 | I44: =ROUND(G44*(1+BDI!$C$17),2) -> 114.01 | J44: 8351.2325
A46: 3.2 | D46: Proteção Gabião | H46: =SUBTOTAL(9,H47:H51) -> 398418.01 | J46: =SUBTOTAL(9,J47:J51) -> 495841.88 | L46: =SUM(J47:J50) -> 495841.88
A47: 3.2.1 | B47: SICRO | C47: 3108007 | D47: Forma em Compensado Plastificado e=10mm | E47: m² | F47: =9*0.2*60 -> 108 | G47: 111.51 | H47: 12043.08 | I47: =ROUND(G47*(1+BDI!$C$17),2) -> 138.78 | J47: 14988.24
A48: 3.2.2 | B48: SICRO | C48: 1106109 | D48: Concreto fck = 20 Mpa | E48: m³ | F48: 1541 | G48: 219.35 | H48: 338018.35 | I48: =ROUND(G48*(1+BDI!$C$17),2) -> 272.99 | J48: 420677.59
A49: 3.2.3 | B49: SICRO | C49: 1107860 | D49: Bombeamento | E49: m³ | F49: =F48 -> 1541 | G49: 28.93 | H49: =G49*F49 -> 44581.13 | I49: =ROUND(G49*(1+BDI!$C$17),2) -> 36 | J49: =I49*F49 -> 55476
A50: 3.2.4 | B50: SICRO | C50: 1100657 | D50: Adensamento de Concreto | E50: m³ | F50: =F49 -> 1541 | G50: 2.45 | H50: =G50*F50 -> 3775.45 | I50: =ROUND(G50*(1+BDI!$C$17),2) -> 3.05 | J50: =I50*F50 -> 4700.05
A52: 3.3 | D52: Reparos estruturas de concreto | H52: =SUBTOTAL(9,H53:H61) -> 26143.045 | J52: =SUBTOTAL(9,J53:J61) -> 32536.33 | L52: =SUM(J53:J60) -> 32536.33
A53: 3.3.1 | B53: SICRO | C53: 3806413 | D53: Apicoamento | E53: m² | F53: 50 | G53: 9.21 | H53: =G53*F53 -> 460.5 | I53: =ROUND(G53*(1+BDI!$C$17),2) -> 11.46 | J53: =I53*F53 -> 573
A54: 3.3.2 | B54: SICRO | C54: 3806402 | D54: Limpeza em superfície de concreto | E54: m² | F54: =F53 -> 50 | G54: 2.66 | H54: 133 | I54: =ROUND(G54*(1+BDI!$C$17),2) -> 3.31 | J54: 165.5
A55: 3.3.3 | B55: COMPOS. | C55: 0.006 | D55: Veda Juntas O-22 | E55: m | F55: 30 | G55: =Composições!G155 -> 90.0625 | H55: 2701.875 | I55: =ROUND(G55*(1+BDI!$C$17),2) -> 112.09 | J55: 3362.7
A56: 3.3.4 | B56: SICRO | C56: 2407972 | D56: Adesivo estrutural à base de resina epóxi | E56: kg | F56: =F54*0.8 -> 40 | G56: 55.17 | H56: 2206.8 | I56: =ROUND(G56*(1+BDI!$C$17),2) -> 68.66 | J56: 2746.4
A57: 3.3.5 | B57: SICRO | C57: 1108060 | D57: Argamassa polimérica com microssílica | E57: m³ | F57: 3 | G57: 382.96 | H57: 1148.88 | I57: =ROUND(G57*(1+BDI!$C$17),2) -> 476.61 | J57: 1429.83
A58: 3.3.6 | B58: SICRO | C58: 1109667 | D58: Argamassa Dry Pack | E58: m³ | F58: 3 | G58: 364.36 | H58: 1093.08 | I58: =ROUND(G58*(1+BDI!$C$17),2) -> 453.47 | J58: 1360.41
A59: 3.3.7 | B59: SICRO | C59: 1108056 | D59: Microconcreto autoadensável | E59: m³ | F59: 9 | G59: 1823.22 | H59: 16408.98 | I59: =ROUND(G59*(1+BDI!$C$17),2) -> 2269.1 | J59: 20421.9
A60: 3.3.8 | B60: SICRO | C60: 3806415 | D60: Demolição controlada | E60: m³ | F60: 3 | G60: 663.31 | H60: 1989.93 | I60: =ROUND(G60*(1+BDI!$C$17),2) -> 825.53 | J60: 2476.59
A62: 4 | D62: Barragem de Terra | H62: =SUBTOTAL(9,H63:H115) -> 3030938.323 | J62: =SUBTOTAL(9,J63:J115) -> 3772419.794
A63: 4.1 | D63: Montante | H63: =SUBTOTAL(9,H64:H78) -> 1710065.457 | J63: =SUBTOTAL(9,J64:J78) -> 2128275.823 | L63: =SUM(J64:J77) -> 2128275.823
A64: 4.2.1 | B64: SICRO | C64: 5502985 | D64: Limpeza da camada vegetal | E64: m² | F64: 16840 | G64: 0.31 | H64: =G64*F64 -> 5220.4 | I64: =ROUND(G64*(1+BDI!$C$17),2) -> 0.39 | J64: =I64*F64 -> 6567.6
A65: 4.2.2 | B65: SINAPI | C65: 98527 | D65: Remoção de raízes e cupinzeiros | E65: und | F65: =ROUNDUP(F64/500,0) -> 34 | G65: 133.78 | H65: =G65*F65 -> 4548.52 | I65: =ROUND(G65*(1+BDI!$C$17),2) -> 166.5 | J65: =I65*F65 -> 5661
A66: 4.2.3 | B66: SICRO | C66: 4915625 | D66: Recomposição em Solo Cimento | E66: m³ | F66: =F65*1+F64*0.1 -> 1718 | G66: 27.05 | H66: =G66*F66 -> 46471.9 | I66: =ROUND(G66*(1+BDI!$C$17),2) -> 33.67 | J66: =I66*F66 -> 57845.06
A67: 4.2.5 | B67: SICRO | C67: 4805754 | D67: Compactação Manual | E67: m³ | F67: =F66 -> 1718 | G67: 4.93 | H67: =G67*F67 -> 8469.74 | I67: =ROUND(G67*(1+BDI!$C$17),2) -> 6.14 | J67: =I67*F67 -> 10548.52
A68: 4.2.6 | B68: SICRO | C68: 4805757 | D68: Escavação mecânica de vala | E68: m³ | F68: 2058 | G68: 3.95 | H68: =G68*F68 -> 8129.1 | I68: =ROUND(G68*(1+BDI!$C$17),2) -> 4.92 | J68: =I68*F68 -> 10125.36
A69: 4.2.7 | B69: SICRO | C69: 2004505 | D69: Reaterro e compactação em vala | E69: m³ | F69: 704 | G69: 17.11 | H69: =G69*F69 -> 12045.44 | I69: =ROUND(G69*(1+BDI!$C$17),2) -> 21.29 | J69: =I69*F69 -> 14988.16
A70: 4.2.8 | B70: SICRO | C70: 2003867 | D70: Aplicação de geotextil | E70: m² | F70: 14765 | G70: 14.11 | H70: 208334.15 | I70: =ROUND(G70*(1+BDI!$C$17),2) -> 17.56 | J70: 259273.4
A71: 4.2.9 | B71: SICRO | C71: 407820 | D71: Armação em aço CA-60 | E71: kg | F71: =0.55*0.109*3*F70 -> 2655.48525 | G71: 9.17 | H71: =G71*F71 -> 24350.79974 | I71: =ROUND(G71*(1+BDI!$C$17),2) -> 11.41 | J71: =I71*F71 -> 30299.0867
A72: 4.2.10 | B72: SICRO | C72: 1516303 | D72: Geocélula de PEAD | E72: m² | F72: =F70 -> 14765 | G72: 36.41 | H72: 537593.65 | I72: =ROUND(G72*(1+BDI!$C$17),2) -> 45.31 | J72: 669002.15
A73: 4.2.11 | B73: SICRO | C73: 2008091 | D73: Tubo PVC de ancoragem | E73: m | F73: 1759 | G73: 78.08 | H73: 137342.72 | I73: =ROUND(G73*(1+BDI!$C$17),2) -> 97.17 | J73: 170922.03
A74: 4.2.12 | B74: SICRO | C74: 1106109 | D74: Concreto fck = 20 Mpa | E74: m³ | F74: =932.3+422+PI()*(0.075^2)*F73+F72*0.075 -> 2492.759096 | G74: 219.85 | H74: =G74*F74 -> 548033.0872 | I74: =ROUND(G74*(1+BDI!$C$17),2) -> 273.62 | J74: =I74*F74 -> 682068.7438
A75: 4.2.13 | B75: SICRO | C75: 1107860 | D75: Bombeamento | E75: m³ | F75: =F74 -> 2492.759096 | G75: 28.93 | H75: =G75*F75 -> 72115.52064 | I75: =ROUND(G75*(1+BDI!$C$17),2) -> 36 | J75: =I75*F75 -> 89739.32745
A76: 4.2.14 | B76: SICRO | C76: 1100657 | D76: Adensamento de Concreto | E76: m³ | F76: =F75 -> 2492.759096 | G76: 2.45 | H76: =G76*F76 -> 6107.259785 | I76: =ROUND(G76*(1+BDI!$C$17),2) -> 3.05 | J76: =I76*F76 -> 7602.915242
A77: 4.2.15 | B77: SICRO | C77: 1505877 | D77: Enrocamento de Proteção | E77: m³ | F77: 1029 | G77: 88.73 | H77: =G77*F77 -> 91303.17 | I77: =ROUND(G77*(1+BDI!$C$17),2) -> 110.43 | J77: =I77*F77 -> 113632.47
A79: 4.3 | D79: Crista | H79: =SUBTOTAL(9,H80:H90) -> 324432.0771 | J79: =SUBTOTAL(9,J80:J90) -> 403810.929 | L79: =SUM(J80:J89) -> 403810.929
A80: 4.3.1 | B80: SICRO | C80: 5502985 | D80: Limpeza da camada vegetal | E80: m² | F80: 7032 | G80: 0.31 | H80: =G80*F80 -> 2179.92 | I80: =ROUND(G80*(1+BDI!$C$17),2) -> 0.39 | J80: =I80*F80 -> 2742.48
A81: 4.3.2 | B81: SINAPI | C81: 98527 | D81: Remoção de raízes e cupinzeiros | E81: und | F81: =ROUNDUP(F80/500,0) -> 15 | G81: 133.78 | H81: 2006.7 | I81: =ROUND(G81*(1+BDI!$C$17),2) -> 166.5 | J81: 2497.5
A82: 4.3.3 | B82: SICRO | C82: 4915625 | D82: Recomposição em Solo Cimento | E82: m³ | F82: =F81*1 -> 15 | G82: 27.05 | H82: 405.75 | I82: =ROUND(G82*(1+BDI!$C$17),2) -> 33.67 | J82: 505.05
A83: 4.3.5 | B83: SICRO | C83: 4805754 | D83: Compactação Manual | E83: m³ | F83: =F82 -> 15 | G83: 4.93 | H83: 73.95 | I83: =ROUND(G83*(1+BDI!$C$17),2) -> 6.14 | J83: 92.1
A84: 4.3.6 | B84: SICRO | C84: 903845 | D84: Bica Corrida | E84: m³ | F84: 1029 | G84: 73.98 | H84: 76125.42 | I84: =ROUND(G84*(1+BDI!$C$17),2) -> 92.07 | J84: 94740.03
A85: 4.3.7 | B85: SICRO | C85: 2003939 | D85: Meio fio de concreto | E85: m | F85: 1759 | G85: 45.06 | H85: 79260.54 | I85: =ROUND(G85*(1+BDI!$C$17),2) -> 56.08 | J85: 98644.72
A86: 4.3.8 | B86: SICRO | C86: 3713826 | D86: Barreira simples tipo New Jersey | E86: m | F86: 1759 | G86: 46.72 | H86: 82180.48 | I86: =ROUND(G86*(1+BDI!$C$17),2) -> 58.15 | J86: 102285.85
A87: 4.3.9 | B87: SICRO | C87: 1106109 | D87: Concreto fck = 20 Mpa | E87: m³ | F87: =F86*0.1917 -> 337.2003 | G87: 219.85 | H87: 74133.48596 | I87: =ROUND(G87*(1+BDI!$C$17),2) -> 273.62 | J87: 92264.74609
A88: 4.3.10 | B88: SICRO | C88: 1106051 | D88: Lançamento livre de concreto | E88: m³ | F88: =F87 -> 337.2003 | G88: 21.47 | H88: 7239.690441 | I88: =ROUND(G88*(1+BDI!$C$17),2) -> 26.72 | J88: 9009.992016
A89: 4.3.11 | B89: SICRO | C89: 1100657 | D89: Adensamento de Concreto | E89: m³ | F89: =F88 -> 337.2003 | G89: 2.45 | H89: =G89*F89 -> 826.140735 | I89: =ROUND(G89*(1+BDI!$C$17),2) -> 3.05 | J89: =I89*F89 -> 1028.460915
A91: 4.4 | D91: Jusante | H91: =SUBTOTAL(9,H92:H104) -> 813278.4487 | J91: =SUBTOTAL(9,J92:J104) -> 1012375.762 | L91: =SUM(J92:J103) -> 1012375.762
A92: 4.4.1 | B92: SICRO | C92: 5502985 | D92: Limpeza da camada vegetal | E92: m² | F92: 65800 | G92: 0.31 | H92: =G92*F92 -> 20398 | I92: =ROUND(G92*(1+BDI!$C$17),2) -> 0.39 | J92: =I92*F92 -> 25662
A93: 4.4.2 | B93: SINAPI | C93: 98527 | D93: Remoção de raízes e cupinzeiros | E93: und | F93: =ROUNDUP(F92/500,0) -> 132 | G93: 133.78 | H93: 17658.96 | I93: =ROUND(G93*(1+BDI!$C$17),2) -> 166.5 | J93: 21978
A94: 4.4.3 | B94: SICRO | C94: 4915774 | D94: Recomposição de erosão | E94: m³ | F94: =F93+F92*0.1 -> 6712 | G94: 11.95 | H94: 80208.4 | I94: =ROUND(G94*(1+BDI!$C$17),2) -> 14.87 | J94: 99807.44
A95: 4.4.4 | B95: SICRO | C95: 4805757 | D95: Escavação mecânica de vala | E95: m³ | F95: =515+461 -> 976 | G95: 3.95 | H95: 3855.2 | I95: =ROUND(G95*(1+BDI!$C$17),2) -> 4.92 | J95: 4801.92
A96: 4.4.5 | B96: SICRO | C96: 1106109 | D96: Concreto fck = 20 Mpa | E96: m³ | F96: =5759*0.075 -> 431.925 | G96: 219.85 | H96: 94958.71125 | I96: =ROUND(G96*(1+BDI!$C$17),2) -> 273.62 | J96: 118183.3185
A97: 4.4.6 | B97: SICRO | C97: 1107860 | D97: Bombeamento | E97: m³ | F97: =F96 -> 431.925 | G97: 28.93 | H97: 12495.59025 | I97: =ROUND(G97*(1+BDI!$C$17),2) -> 36 | J97: 15549.3
A98: 4.4.7 | B98: SICRO | C98: 1100657 | D98: Adensamento de Concreto | E98: m³ | F98: =F97 -> 431.925 | G98: 2.45 | H98: 1058.21625 | I98: =ROUND(G98*(1+BDI!$C$17),2) -> 3.05 | J98: 1317.37125
A99: 4.4.8 | B99: SICRO | C99: 4915625 | D99: Recomposição em Solo Cimento | E99: m³ | F99: =35818*0.075 -> 2686.35 | G99: 27.05 | H99: 72665.7675 | I99: =ROUND(G99*(1+BDI!$C$17),2) -> 33.67 | J99: 90449.4045
A100: 4.4.10 | B100: SICRO | C100: 4805754 | D100: Compactação Manual | E100: m³ | F100: =F99 -> 2686.35 | G100: 4.93 | H100: 13243.7055 | I100: =ROUND(G100*(1+BDI!$C$17),2) -> 6.14 | J100: 16494.189
A101: 4.4.11 | B101: SICRO | C101: 2003850 | D101: Lastro de Brita | E101: m³ | F101: =1759*0.075 -> 131.925 | G101: 81.76 | H101: =G101*F101 -> 10786.188 | I101: =ROUND(G101*(1+BDI!$C$17),2) -> 101.75 | J101: =I101*F101 -> 13423.36875
A102: 4.4.12 | B102: SICRO | C102: 2003947 | D102: Meio fio de concreto | E102: m | F102: 1759 | G102: 14.13 | H102: =G102*F102 -> 24854.67 | I102: =ROUND(G102*(1+BDI!$C$17),2) -> 17.59 | J102: =I102*F102 -> 30940.81
A103: 4.4.13 | B103: SICRO | C103: 4915673 | D103: Revestimento vegetal com grama em mudas (superficies inclinadas) | E103: m² | F103: 43336 | G103: 10.64 | H103: =G103*F103 -> 461095.04 | I103: =ROUND(G103*(1+BDI!$C$17),2) -> 13.24 | J103: =I103*F103 -> 573768.64
A105: 4.5 | D105: Drenagem Superficial | H105: =SUBTOTAL(9,H106:H115) -> 183162.34 | J105: =SUBTOTAL(9,J106:J115) -> 227957.28 | L105: =SUM(J106:J114) -> 227957.28
A106: 4.5.1 | B106: SICRO | C106: 4915711 | D106: Limpeza de Descida d'água | E106: m | F106: 482 | G106: 1.06 | H106: =G106*F106 -> 510.92 | I106: =ROUND(G106*(1+BDI!$C$17),2) -> 1.32 | J106: =I106*F106 -> 636.24
A107: 4.5.2 | B107: SICRO | C107: 2003353 | D107: Valeta trapezoidal de concreto | E107: m | F107: 1848 | G107: 38.68 | H107: =G107*F107 -> 71480.64 | I107: =ROUND(G107*(1+BDI!$C$17),2) -> 48.14 | J107: =I107*F107 -> 88962.72
A108: 4.5.3 | B108: SICRO | C108: 2003477 | D108: Caixa Coletora | E108: und | F108: 18 | G108: 2665.19 | H108: 47973.42 | I108: =ROUND(G108*(1+BDI!$C$17),2) -> 3316.98 | J108: 59705.64
A109: 4.5.4 | B109: SICRO | C109: 804021 | D109: BSTC 600mm | E109: m | F109: 24 | G109: 227.47 | H109: 5459.28 | I109: =ROUND(G109*(1+BDI!$C$17),2) -> 283.1 | J109: 6794.4
A110: 4.5.5 | B110: SICRO | C110: 804037 | D110: Corpo BSTC 1000mm | E110: m | F110: 20 | G110: 531.45 | H110: =G110*F110 -> 10629 | I110: =ROUND(G110*(1+BDI!$C$17),2) -> 661.42 | J110: =I110*F110 -> 13228.4
A111: 4.5.6 | B111: SICRO | C111: 804393 | D111: Boca BSTC 1000mm | E111: und | F111: 2 | G111: 1836.7 | H111: =G111*F111 -> 3673.4 | I111: =ROUND(G111*(1+BDI!$C$17),2) -> 2285.87 | J111: =I111*F111 -> 4571.74
A112: 4.5.7 | B112: SICRO | C112: 804189 | D112: Corpo BDTC 1000mm | E112: m | F112: 20 | G112: 1023.62 | H112: =G112*F112 -> 20472.4 | I112: =ROUND(G112*(1+BDI!$C$17),2) -> 1273.95 | J112: =I112*F112 -> 25479
A113: 4.5.8 | B113: SICRO | C113: 804417 | D113: Boca BDTC 1000mm | E113: und | F113: 2 | G113: 2554.09 | H113: =G113*F113 -> 5108.18 | I113: =ROUND(G113*(1+BDI!$C$17),2) -> 3178.71 | J113: =I113*F113 -> 6357.42
A114: 4.5.9 | B114: SICRO | C114: 2003453 | D114: Dissipador de Energia | E114: und | F114: 18 | G114: 991.95 | H114: 17855.1 | I114: =ROUND(G114*(1+BDI!$C$17),2) -> 1234.54 | J114: 22221.72
A116: 5 | D116: Momento de Transporte | H116: =SUBTOTAL(9,H117:H124) -> 978774.0839 | J116: =SUBTOTAL(9,J117:J124) -> 1218700.031
A117: 5.1 | B117: SICRO | C117: 5914329 | D117: Transporte com caminhão basculante de 6 m³ | E117: txkm | F117: =SUMIF('Transporte - memória'!$C$2:$C$84,Orçamento!C117,'Transporte - memória'!$K$2:$K$84) -> 429.709375 | G117: 0.6 | H117: =G117*F117 -> 257.825625 | I117: =ROUND(G117*(1+BDI!$C$17),2) -> 0.75 | J117: =I117*F117 -> 322.2820313 | L117: =SUM(J117:J123) -> 1218700.031
A118: 5.2 | B118: SICRO | C118: 5914365 | D118: Transporte de cimento a granel com caminhão silo 30 m³ | E118: txkm | F118: =SUMIF('Transporte - memória'!$C$2:$C$84,Orçamento!C118,'Transporte - memória'!$K$2:$K$84) -> 212313.3141 | G118: 0.41 | H118: 87048.45877 | I118: =ROUND(G118*(1+BDI!$C$17),2) -> 0.51 | J118: 108279.7902
A119: 5.3 | B119: SICRO | C119: 5914374 | D119: Transporte com caminhão basculante de 10 m³ | E119: txkm | F119: =SUMIF('Transporte - memória'!$C$3:$C$49,Orçamento!C119,'Transporte - memória'!$K$3:$K$49) -> 1620483.799 | G119: 0.49 | H119: 794037.0615 | I119: =ROUND(G119*(1+BDI!$C$17),2) -> 0.61 | J119: 988495.1174
A120: 5.4 | B120: SICRO | C120: 5914464 | D120: Transporte com caminhão carroceria de 15 t | E120: txkm | F120: =SUMIF('Transporte - memória'!$C$2:$C$84,Orçamento!C120,'Transporte - memória'!$K$2:$K$84) -> 5909.215077 | G120: 0.49 | H120: 2895.515388 | I120: =ROUND(G120*(1+BDI!$C$17),2) -> 0.61 | J120: 3604.621197
A121: 5.5 | B121: SICRO | C121: 5915323 | D121: Transporte com caminhão carroceria de 5 t | E121: txkm | F121: =SUMIF('Transporte - memória'!$C$2:$C$84,Orçamento!C121,'Transporte - memória'!$K$2:$K$84) -> 85474.64835 | G121: 0.84 | H121: 71798.70461 | I121: =ROUND(G121*(1+BDI!$C$17),2) -> 1.05 | J121: 89748.38077
A122: 5.6 | B122: SICRO | C122: 5914554 | D122: Transporte com caminhão betoneira | E122: txkm | F122: =SUMIF('Transporte - memória'!$C$2:$C$84,Orçamento!C122,'Transporte - memória'!$K$2:$K$84) -> 1164.1113 | G122: 0.43 | H122: 500.567859 | I122: =ROUND(G122*(1+BDI!$C$17),2) -> 0.54 | J122: 628.620102
A123: 5.7 | B123: SICRO | C123: 5914599 | D123: Transporte com caminhão carroceria com guindauto de 20 t.m | E123: txkm | F123: =SUMIF('Transporte - memória'!$C$2:$C$84,Orçamento!C123,'Transporte - memória'!$K$2:$K$84) -> 17371.836 | G123: 1.28 | H123: 22235.95008 | I123: =ROUND(G123*(1+BDI!$C$17),2) -> 1.59 | J123: 27621.21924
G126: TOTAL | H126: =SUBTOTAL(9,H3:H125) -> 5443861.388 | J126: =SUBTOTAL(9,J3:J125) -> 6776107.185 | L126: =SUM(L4:L117) -> 6776107.185

Sheet Eventograma (hidden)
A1: ORÇAMENTO PROJETO DE RECUPERAÇÃO - BARRAGEM PARANÃ | G1: BDI | H1: =126.023944549464%-1 -> 0.2602394455 | I1: 2020-04-01 | J1: 2020-05-01 | K1: 2020-06-01 | L1: 2020-07-01 | M1: 2020-08-01 | N1: 2020-09-01 | O1: 2020-10-01 | P1: 2020-11-01 | Q1: 2020-12-01 | R1: 2021-01-01 | S1: 2021-02-01 | T1: 2021-03-01 | U1: 2021-04-01 | V1: 2021-05-01
A2: ítem | B2: Base | C2: Código | D2: Descrição | E2: Und | F2: Qtd | H2: M1 | I2: M2 | J2: M3 | K2: M4 | L2: M5 | M2: M6 | N2: M7 | O2: M8 | P2: M9 | Q2: M10 | R2: M11 | S2: M12 | T2: M13 | U2: M14 | V2: M15
A3: 1 | D3: Serviços Preliminares | H3: 0 | I3: 0 | J3: 0 | K3: 0 | L3: 0 | M3: 0 | N3: 0 | O3: 0 | P3: 0 | Q3: 0 | R3: 0 | S3: 0 | T3: 0 | U3: 0 | V3: 0
A4: 1.1 | D4: Mobilizações e Desmobilizações | H4: 0 | I4: 0 | J4: 0 | K4: 0 | L4: 0 | M4: 0 | N4: 0 | O4: 0 | P4: 0 | Q4: 0 | R4: 0 | S4: 0 | T4: 0 | U4: 0 | V4: 0
A5: 1.1.1 | B5: =VLOOKUP($A5,Orçamento!$A$3:$J$126,2,FALSE) -> COMPOS. | C5: =VLOOKUP($A5,Orçamento!$A$3:$J$126,3,FALSE) -> 0.001 | D5: =VLOOKUP($A5,Orçamento!$A$3:$J$126,4,FALSE) -> Mobilizaçãos de Equipamentos e Pessoal | E5: =VLOOKUP($A5,Orçamento!$A$3:$J$126,5,FALSE) -> un. | F5: =VLOOKUP($A5,Orçamento!$A$3:$J$126,6,FALSE) -> 1 | H5: 1 | I5: 0 | J5: 0 | K5: 0 | L5: 0 | M5: 0 | N5: 0 | O5: 0 | P5: 0 | Q5: 0 | R5: 0 | S5: 0 | T5: 0 | U5: 0 | V5: 0 | X5: =F5-SUM(H5:V5) -> 0
A6: 1.1.2 | B6: =VLOOKUP($A6,Orçamento!$A$3:$J$126,2,FALSE) -> COMPOS. | C6: =VLOOKUP($A6,Orçamento!$A$3:$J$126,3,FALSE) -> 0.002 | D6: =VLOOKUP($A6,Orçamento!$A$3:$J$126,4,FALSE) -> Desmobilização de Equipamentos e Pessoal | E6: =VLOOKUP($A6,Orçamento!$A$3:$J$126,5,FALSE) -> un. | F6: =VLOOKUP($A6,Orçamento!$A$3:$J$126,6,FALSE) -> 1 | H6: 0 | I6: 0 | J6: 0 | K6: 0 | L6: 0 | M6: 0 | N6: 0 | O6: 0 | P6: 0 | Q6: 0 | R6: 0 | S6: 0 | T6: 0 | U6: 0 | V6: 1 | X6: 0
F7: =Orçamento!#REF! -> 
A8: 1.2 | D8: Estruturas de Canteiro | F8: =Orçamento!#REF! ->  | H8: 0 | I8: 0 | J8: 0 | K8: 0 | L8: 0 | M8: 0 | N8: 0 | O8: 0 | P8: 0 | Q8: 0 | R8: 0 | S8: 0 | T8: 0 | U8: 0 | V8: 0
A9: 1.2.1 | B9: =VLOOKUP($A9,Orçamento!$A$3:$J$126,2,FALSE) ->  | C9: =VLOOKUP($A9,Orçamento!$A$3:$J$126,3,FALSE) ->  | D9: =VLOOKUP($A9,Orçamento!$A$3:$J$126,4,FALSE) ->  | E9: =VLOOKUP($A9,Orçamento!$A$3:$J$126,5,FALSE) ->  | F9: =VLOOKUP($A9,Orçamento!$A$3:$J$126,6,FALSE) ->  | H9: 280.61 | I9: 0 | J9: 0 | K9: 0 | L9: 0 | M9: 0 | N9: 0 | O9: 0 | P9: 0 | Q9: 0 | R9: 0 | S9: 0 | T9: 0 | U9: 0 | V9: 0
A10: 1.2.2 | B10: =VLOOKUP($A10,Orçamento!$A$3:$J$126,2,FALSE) ->  | C10: =VLOOKUP($A10,Orçamento!$A$3:$J$126,3,FALSE) ->  | D10: =VLOOKUP($A10,Orçamento!$A$3:$J$126,4,FALSE) ->  | E10: =VLOOKUP($A10,Orçamento!$A$3:$J$126,5,FALSE) ->  | F10: =VLOOKUP($A10,Orçamento!$A$3:$J$126,6,FALSE) ->  | H10: 1122.42 | I10: 0 | J10: 0 | K10: 0 | L10: 0 | M10: 0 | N10: 0 | O10: 0 | P10: 0 | Q10: 0 | R10: 0 | S10: 0 | T10: 0 | U10: 0 | V10: 0
A11: 1.2.3 | B11: =VLOOKUP($A11,Orçamento!$A$3:$J$126,2,FALSE) ->  | C11: =VLOOKUP($A11,Orçamento!$A$3:$J$126,3,FALSE) ->  | D11: =VLOOKUP($A11,Orçamento!$A$3:$J$126,4,FALSE) ->  | E11: =VLOOKUP($A11,Orçamento!$A$3:$J$126,5,FALSE) ->  | F11: =VLOOKUP($A11,Orçamento!$A$3:$J$126,6,FALSE) ->  | H11: 112.24 | I11: 0 | J11: 0 | K11: 0 | L11: 0 | M11: 0 | N11: 0 | O11: 0 | P11: 0 | Q11: 0 | R11: 0 | S11: 0 | T11: 0 | U11: 0 | V11: 0
A12: 1.2.4 | B12: =VLOOKUP($A12,Orçamento!$A$3:$J$126,2,FALSE) ->  | C12: =VLOOKUP($A12,Orçamento!$A$3:$J$126,3,FALSE) ->  | D12: =VLOOKUP($A12,Orçamento!$A$3:$J$126,4,FALSE) ->  | E12: =VLOOKUP($A12,Orçamento!$A$3:$J$126,5,FALSE) ->  | F12: =VLOOKUP($A12,Orçamento!$A$3:$J$126,6,FALSE) ->  | H12: 0 | I12: 59.26 | J12: 0 | K12: 0 | L12: 0 | M12: 0 | N12: 0 | O12: 0 | P12: 0 | Q12: 0 | R12: 0 | S12: 0 | T12: 0 | U12: 0 | V12: 0
A13: 1.2.5 | B13: =VLOOKUP($A13,Orçamento!$A$3:$J$126,2,FALSE) ->  | C13: =VLOOKUP($A13,Orçamento!$A$3:$J$126,3,FALSE) ->  | D13: =VLOOKUP($A13,Orçamento!$A$3:$J$126,4,FALSE) ->  | E13: =VLOOKUP($A13,Orçamento!$A$3:$J$126,5,FALSE) ->  | F13: =VLOOKUP($A13,Orçamento!$A$3:$J$126,6,FALSE) ->  | H13: 0 | I13: 0 | J13: 89.89 | K13: 0 | L13: 0 | M13: 0 | N13: 0 | O13: 0 | P13: 0 | Q13: 0 | R13: 0 | S13: 0 | T13: 0 | U13: 0 | V13: 0
A14: 1.2.6 | B14: =VLOOKUP($A14,Orçamento!$A$3:$J$126,2,FALSE) ->  | C14: =VLOOKUP($A14,Orçamento!$A$3:$J$126,3,FALSE) ->  | D14: =VLOOKUP($A14,Orçamento!$A$3:$J$126,4,FALSE) ->  | E14: =VLOOKUP($A14,Orçamento!$A$3:$J$126,5,FALSE) ->  | F14: =VLOOKUP($A14,Orçamento!$A$3:$J$126,6,FALSE) ->  | H14: 0 | I14: 0 | J14: 84.79 | K14: 0 | L14: 0 | M14: 0 | N14: 0 | O14: 0 | P14: 0 | Q14: 0 | R14: 0 | S14: 0 | T14: 0 | U14: 0 | V14: 0
A15: 1.2.7 | B15: =VLOOKUP($A15,Orçamento!$A$3:$J$126,2,FALSE) ->  | C15: =VLOOKUP($A15,Orçamento!$A$3:$J$126,3,FALSE) ->  | D15: =VLOOKUP($A15,Orçamento!$A$3:$J$126,4,FALSE) ->  | E15: =VLOOKUP($A15,Orçamento!$A$3:$J$126,5,FALSE) ->  | F15: =VLOOKUP($A15,Orçamento!$A$3:$J$126,6,FALSE) ->  | H15: 0 | I15: 88.65 | J15: 0 | K15: 0 | L15: 0 | M15: 0 | N15: 0 | O15: 0 | P15: 0 | Q15: 0 | R15: 0 | S15: 0 | T15: 0 | U15: 0 | V15: 0
A16: 1.2.8 | B16: =VLOOKUP($A16,Orçamento!$A$3:$J$126,2,FALSE) ->  | C16: =VLOOKUP($A16,Orçamento!$A$3:$J$126,3,FALSE) ->  | D16: =VLOOKUP($A16,Orçamento!$A$3:$J$126,4,FALSE) ->  | E16: =VLOOKUP($A16,Orçamento!$A$3:$J$126,5,FALSE) ->  | F16: =VLOOKUP($A16,Orçamento!$A$3:$J$126,6,FALSE) ->  | H16: 0 | I16: 54.81 | J16: 54.81 | K16: 0 | L16: 0 | M16: 0 | N16: 0 | O16: 0 | P16: 0 | Q16: 0 | R16: 0 | S16: 0 | T16: 0 | U16: 0 | V16: 0
A17: 1.2.9 | B17: =VLOOKUP($A17,Orçamento!$A$3:$J$126,2,FALSE) ->  | C17: =VLOOKUP($A17,Orçamento!$A$3:$J$126,3,FALSE) ->  | D17: =VLOOKUP($A17,Orçamento!$A$3:$J$126,4,FALSE) ->  | E17: =VLOOKUP($A17,Orçamento!$A$3:$J$126,5,FALSE) ->  | F17: =VLOOKUP($A17,Orçamento!$A$3:$J$126,6,FALSE) ->  | H17: 0 | I17: 31.455 | J17: 31.455 | K17: 0 | L17: 0 | M17: 0 | N17: 0 | O17: 0 | P17: 0 | Q17: 0 | R17: 0 | S17: 0 | T17: 0 | U17: 0 | V17: 0
A18: 1.2.10 | B18: =VLOOKUP($A18,Orçamento!$A$3:$J$126,2,FALSE) ->  | C18: =VLOOKUP($A18,Orçamento!$A$3:$J$126,3,FALSE) ->  | D18: =VLOOKUP($A18,Orçamento!$A$3:$J$126,4,FALSE) ->  | E18: =VLOOKUP($A18,Orçamento!$A$3:$J$126,5,FALSE) ->  | F18: =VLOOKUP($A18,Orçamento!$A$3:$J$126,6,FALSE) ->  | H18: 0 | I18: 0 | J18: 18.1 | K18: 0 | L18: 0 | M18: 0 | N18: 0 | O18: 0 | P18: 0 | Q18: 0 | R18: 0 | S18: 0 | T18: 0 | U18: 0 | V18: 0
A19: 1.2.11 | B19: =VLOOKUP($A19,Orçamento!$A$3:$J$126,2,FALSE) ->  | C19: =VLOOKUP($A19,Orçamento!$A$3:$J$126,3,FALSE) ->  | D19: =VLOOKUP($A19,Orçamento!$A$3:$J$126,4,FALSE) ->  | E19: =VLOOKUP($A19,Orçamento!$A$3:$J$126,5,FALSE) ->  | F19: =VLOOKUP($A19,Orçamento!$A$3:$J$126,6,FALSE) ->  | H19: 0 | I19: 0 | J19: 14.86 | K19: 0 | L19: 0 | M19: 0 | N19: 0 | O19: 0 | P19: 0 | Q19: 0 | R19: 0 | S19: 0 | T19: 0 | U19: 0 | V19: 0
A20: 1.2.12 | B20: =VLOOKUP($A20,Orçamento!$A$3:$J$126,2,FALSE) ->  | C20: =VLOOKUP($A20,Orçamento!$A$3:$J$126,3,FALSE) ->  | D20: =VLOOKUP($A20,Orçamento!$A$3:$J$126,4,FALSE) ->  | E20: =VLOOKUP($A20,Orçamento!$A$3:$J$126,5,FALSE) ->  | F20: =VLOOKUP($A20,Orçamento!$A$3:$J$126,6,FALSE) ->  | H20: 0 | I20: 0 | J20: 1 | K20: 0 | L20: 0 | M20: 0 | N20: 0 | O20: 0 | P20: 0 | Q20: 0 | R20: 0 | S20: 0 | T20: 0 | U20: 0 | V20: 0
A21: 1.2.13 | B21: =VLOOKUP($A21,Orçamento!$A$3:$J$126,2,FALSE) ->  | C21: =VLOOKUP($A21,Orçamento!$A$3:$J$126,3,FALSE) ->  | D21: =VLOOKUP($A21,Orçamento!$A$3:$J$126,4,FALSE) ->  | E21: =VLOOKUP($A21,Orçamento!$A$3:$J$126,5,FALSE) ->  | F21: =VLOOKUP($A21,Orçamento!$A$3:$J$126,6,FALSE) ->  | H21: 0 | I21: 0 | J21: 11.17 | K21: 0 | L21: 0 | M21: 0 | N21: 0 | O21: 0 | P21: 0 | Q21: 0 | R21: 0 | S21: 0 | T21: 0 | U21: 0 | V21: 0
A22: 1.2.14 | B22: =VLOOKUP($A22,Orçamento!$A$3:$J$126,2,FALSE) ->  | C22: =VLOOKUP($A22,Orçamento!$A$3:$J$126,3,FALSE) ->  | D22: =VLOOKUP($A22,Orçamento!$A$3:$J$126,4,FALSE) ->  | E22: =VLOOKUP($A22,Orçamento!$A$3:$J$126,5,FALSE) ->  | F22: =VLOOKUP($A22,Orçamento!$A$3:$J$126,6,FALSE) ->  | H22: 0 | I22: 6.1 | J22: 0 | K22: 0 | L22: 0 | M22: 0 | N22: 0 | O22: 0 | P22: 0 | Q22: 0 | R22: 0 | S22: 0 | T22: 0 | U22: 0 | V22: 0
A23: 1.2.15 | B23: =VLOOKUP($A23,Orçamento!$A$3:$J$126,2,FALSE) ->  | C23: =VLOOKUP($A23,Orçamento!$A$3:$J$126,3,FALSE) ->  | D23: =VLOOKUP($A23,Orçamento!$A$3:$J$126,4,FALSE) ->  | E23: =VLOOKUP($A23,Orçamento!$A$3:$J$126,5,FALSE) ->  | F23: =VLOOKUP($A23,Orçamento!$A$3:$J$126,6,FALSE) ->  | H23: 1 | I23: 0 | J23: 0 | K23: 0 | L23: 0 | M23: 0 | N23: 0 | O23: 0 | P23: 0 | Q23: 0 | R23: 0 | S23: 0 | T23: 0 | U23: 0 | V23: 0
A24: 1.2.16 | B24: =VLOOKUP($A24,Orçamento!$A$3:$J$126,2,FALSE) ->  | C24: =VLOOKUP($A24,Orçamento!$A$3:$J$126,3,FALSE) ->  | D24: =VLOOKUP($A24,Orçamento!$A$3:$J$126,4,FALSE) ->  | E24: =VLOOKUP($A24,Orçamento!$A$3:$J$126,5,FALSE) ->  | F24: =VLOOKUP($A24,Orçamento!$A$3:$J$126,6,FALSE) ->  | H24: 0 | I24: 1 | J24: 0 | K24: 0 | L24: 0 | M24: 0 | N24: 0 | O24: 0 | P24: 0 | Q24: 0 | R24: 0 | S24: 0 | T24: 0 | U24: 0 | V24: 0
A25: 1.2.17 | B25: =VLOOKUP($A25,Orçamento!$A$3:$J$126,2,FALSE) ->  | C25: =VLOOKUP($A25,Orçamento!$A$3:$J$126,3,FALSE) ->  | D25: =VLOOKUP($A25,Orçamento!$A$3:$J$126,4,FALSE) ->  | E25: =VLOOKUP($A25,Orçamento!$A$3:$J$126,5,FALSE) ->  | F25: =VLOOKUP($A25,Orçamento!$A$3:$J$126,6,FALSE) ->  | H25: 0 | I25: 1 | J25: 0 | K25: 0 | L25: 0 | M25: 0 | N25: 0 | O25: 0 | P25: 0 | Q25: 0 | R25: 0 | S25: 0 | T25: 0 | U25: 0 | V25: 0
A26: 1.2.18 | B26: =VLOOKUP($A26,Orçamento!$A$3:$J$126,2,FALSE) ->  | C26: =VLOOKUP($A26,Orçamento!$A$3:$J$126,3,FALSE) ->  | D26: =VLOOKUP($A26,Orçamento!$A$3:$J$126,4,FALSE) ->  | E26: =VLOOKUP($A26,Orçamento!$A$3:$J$126,5,FALSE) ->  | F26: =VLOOKUP($A26,Orçamento!$A$3:$J$126,6,FALSE) ->  | H26: 0 | I26: 1 | J26: 1 | K26: 1 | L26: 1 | M26: 1 | N26: 1 | O26: 1 | P26: 1 | Q26: 1 | R26: 1 | S26: 1 | T26: 1 | U26: 1 | V26: 1
A27: 1.2.19 | B27: =VLOOKUP($A27,Orçamento!$A$3:$J$126,2,FALSE) ->  | C27: =VLOOKUP($A27,Orçamento!$A$3:$J$126,3,FALSE) ->  | D27: =VLOOKUP($A27,Orçamento!$A$3:$J$126,4,FALSE) ->  | E27: =VLOOKUP($A27,Orçamento!$A$3:$J$126,5,FALSE) ->  | F27: =VLOOKUP($A27,Orçamento!$A$3:$J$126,6,FALSE) ->  | H27: 0 | I27: 0 | J27: 0 | K27: 0 | L27: 0 | M27: 0 | N27: 0 | O27: 0 | P27: 0 | Q27: 0 | R27: 0 | S27: 0 | T27: 0 | U27: 0 | V27: =F27 -> 
A28: 1.2.20 | B28: =VLOOKUP($A28,Orçamento!$A$3:$J$126,2,FALSE) ->  | C28: =VLOOKUP($A28,Orçamento!$A$3:$J$126,3,FALSE) ->  | D28: =VLOOKUP($A28,Orçamento!$A$3:$J$126,4,FALSE) ->  | E28: =VLOOKUP($A28,Orçamento!$A$3:$J$126,5,FALSE) ->  | F28: =VLOOKUP($A28,Orçamento!$A$3:$J$126,6,FALSE) ->  | H28: 0 | I28: 0 | J28: 0 | K28: 0 | L28: 0 | M28: 0 | N28: 0 | O28: 0 | P28: 0 | Q28: 0 | R28: 0 | S28: 0 | T28: 0 | U28: 0 | V28: =F28 -> 
A29: 1.2.21 | B29: =VLOOKUP($A29,Orçamento!$A$3:$J$126,2,FALSE) ->  | C29: =VLOOKUP($A29,Orçamento!$A$3:$J$126,3,FALSE) ->  | D29: =VLOOKUP($A29,Orçamento!$A$3:$J$126,4,FALSE) ->  | E29: =VLOOKUP($A29,Orçamento!$A$3:$J$126,5,FALSE) ->  | F29: =VLOOKUP($A29,Orçamento!$A$3:$J$126,6,FALSE) ->  | H29: 0 | I29: 0 | J29: 0.5 | K29: 0.5 | L29: 0 | M29: 0 | N29: 0 | O29: 0 | P29: 0 | Q29: 0 | R29: 0 | S29: 0 | T29: 0 | U29: 0 | V29: 0
A30: 1.2.22 | B30: =VLOOKUP($A30,Orçamento!$A$3:$J$126,2,FALSE) ->  | C30: =VLOOKUP($A30,Orçamento!$A$3:$J$126,3,FALSE) ->  | D30: =VLOOKUP($A30,Orçamento!$A$3:$J$126,4,FALSE) ->  | E30: =VLOOKUP($A30,Orçamento!$A$3:$J$126,5,FALSE) ->  | F30: =VLOOKUP($A30,Orçamento!$A$3:$J$126,6,FALSE) ->  | H30: 2.88 | I30: 0 | J30: 0 | K30: 0 | L30: 0 | M30: 0 | N30: 0 | O30: 0 | P30: 0 | Q30: 0 | R30: 0 | S30: 0 | T30: 0 | U30: 0 | V30: 0
F31: =Orçamento!#REF! -> 
A32: 1.3 | D32: Acessos | F32: =Orçamento!F10 -> 0 | H32: 0 | I32: 0 | J32: 0 | K32: 0 | L32: 0 | M32: 0 | N32: 0 | O32: 0 | P32: 0 | Q32: 0 | R32: 0 | S32: 0 | T32: 0 | U32: 0 | V32: 0 | X32: 0
A33: 1.3.1 | B33: =VLOOKUP($A33,Orçamento!$A$3:$J$126,2,FALSE) -> SICRO | C33: =VLOOKUP($A33,Orçamento!$A$3:$J$126,3,FALSE) -> 5502986 | D33: =VLOOKUP($A33,Orçamento!$A$3:$J$126,4,FALSE) -> Expurgo | E33: =VLOOKUP($A33,Orçamento!$A$3:$J$126,5,FALSE) -> m³ | F33: =VLOOKUP($A33,Orçamento!$A$3:$J$126,6,FALSE) -> 1500 | H33: 0 | I33: 1500 | J33: 0 | K33: 0 | L33: 0 | M33: 0 | N33: 0 | O33: 0 | P33: 0 | Q33: 0 | R33: 0 | S33: 0 | T33: 0 | U33: 0 | V33: 0 | X33: 0
A34: 1.3.2 | B34: =VLOOKUP($A34,Orçamento!$A$3:$J$126,2,FALSE) -> SICRO | C34: =VLOOKUP($A34,Orçamento!$A$3:$J$126,3,FALSE) -> 4011209 | D34: =VLOOKUP($A34,Orçamento!$A$3:$J$126,4,FALSE) -> Regularização do Subleito | E34: =VLOOKUP($A34,Orçamento!$A$3:$J$126,5,FALSE) -> m² | F34: =VLOOKUP($A34,Orçamento!$A$3:$J$126,6,FALSE) -> 6000 | H34: 0 | I34: 6000 | J34: 0 | K34: 0 | L34: 0 | M34: 0 | N34: 0 | O34: 0 | P34: 0 | Q34: 0 | R34: 0 | S34: 0 | T34: 0 | U34: 0 | V34: 0 | X34: 0
A35: 1.3.3 | B35: =VLOOKUP($A35,Orçamento!$A$3:$J$126,2,FALSE) -> SICRO | C35: =VLOOKUP($A35,Orçamento!$A$3:$J$126,3,FALSE) -> 4015612 | D35: =VLOOKUP($A35,Orçamento!$A$3:$J$126,4,FALSE) -> Revestimento Primário de Acesso | E35: =VLOOKUP($A35,Orçamento!$A$3:$J$126,5,FALSE) -> m³ | F35: =VLOOKUP($A35,Orçamento!$A$3:$J$126,6,FALSE) -> 900 | H35: 0 | J35: 900 | K35: 0 | L35: 0 | M35: 0 | N35: 0 | O35: 0 | P35: 0 | Q35: 0 | R35: 0 | S35: 0 | T35: 0 | U35: 0 | V35: 0 | X35: 0
A36: 1.3.4 | B36: =VLOOKUP($A36,Orçamento!$A$3:$J$126,2,FALSE) -> SICRO | C36: =VLOOKUP($A36,Orçamento!$A$3:$J$126,3,FALSE) -> 4915611 | D36: =VLOOKUP($A36,Orçamento!$A$3:$J$126,4,FALSE) -> Recomposição de revestimento primário | E36: =VLOOKUP($A36,Orçamento!$A$3:$J$126,5,FALSE) -> m³ | F36: =VLOOKUP($A36,Orçamento!$A$3:$J$126,6,FALSE) -> 180 | H36: 0 | I36: 0 | J36: 0 | K36: 0 | L36: 0 | M36: 0 | N36: 0 | O36: 180 | P36: 0 | Q36: 0 | R36: 0 | S36: 0 | T36: 0 | U36: 0 | V36: 0 | X36: 0
F37: =Orçamento!#REF! -> 
A38: 1.4 | D38: Recuperação de Áreas | F38: =Orçamento!#REF! ->  | H38: 0 | I38: 0 | J38: 0 | K38: 0 | L38: 0 | M38: 0 | N38: 0 | O38: 0 | P38: 0 | Q38: 0 | R38: 0 | S38: 0 | T38: 0 | U38: 0
A39: 1.4.1 | B39: =VLOOKUP($A39,Orçamento!$A$3:$J$126,2,FALSE) ->  | C39: =VLOOKUP($A39,Orçamento!$A$3:$J$126,3,FALSE) ->  | D39: =VLOOKUP($A39,Orçamento!$A$3:$J$126,4,FALSE) ->  | E39: =VLOOKUP($A39,Orçamento!$A$3:$J$126,5,FALSE) ->  | F39: =VLOOKUP($A39,Orçamento!$A$3:$J$126,6,FALSE) ->  | H39: 0 | I39: 0 | J39: 0 | K39: 0 | L39: 0 | M39: 0 | N39: 0 | O39: 0 | P39: 0 | Q39: 0 | R39: 0 | S39: 0 | T39: 0 | U39: 0 | V39: =F39 -> 
A40: 1.4.2 | B40: =VLOOKUP($A40,Orçamento!$A$3:$J$126,2,FALSE) ->  | C40: =VLOOKUP($A40,Orçamento!$A$3:$J$126,3,FALSE) ->  | D40: =VLOOKUP($A40,Orçamento!$A$3:$J$126,4,FALSE) ->  | E40: =VLOOKUP($A40,Orçamento!$A$3:$J$126,5,FALSE) ->  | F40: =VLOOKUP($A40,Orçamento!$A$3:$J$126,6,FALSE) ->  | H40: 0 | I40: 0 | J40: 0 | K40: 0 | L40: 0 | M40: 0 | N40: 0 | O40: 0 | P40: 0 | Q40: 0 | R40: 0 | S40: 0 | T40: 0 | U40: 0 | V40: =F40 -> 
A41: 1.4.3 | B41: =VLOOKUP($A41,Orçamento!$A$3:$J$126,2,FALSE) ->  | C41: =VLOOKUP($A41,Orçamento!$A$3:$J$126,3,FALSE) ->  | D41: =VLOOKUP($A41,Orçamento!$A$3:$J$126,4,FALSE) ->  | E41: =VLOOKUP($A41,Orçamento!$A$3:$J$126,5,FALSE) ->  | F41: =VLOOKUP($A41,Orçamento!$A$3:$J$126,6,FALSE) ->  | H41: 0 | I41: 0 | J41: 0 | K41: 0 | L41: 0 | M41: 0 | N41: 0 | O41: 0 | P41: 0 | Q41: 0 | R41: 0 | S41: 0 | T41: 0 | U41: 0 | V41: =F41 -> 
F42: =Orçamento!F15 -> 0 | X42: 0
A43: 2 | D43: Vertedouro Complementar | F43: =Orçamento!F16 -> 0 | H43: 0 | I43: 0 | J43: 0 | K43: 0 | L43: 0 | M43: 0 | N43: 0 | O43: 0 | P43: 0 | Q43: 0 | R43: 0 | S43: 0 | T43: 0 | U43: 0 | V43: 0 | X43: 0
A44: 2.1 | D44: Canal de Aproximação | F44: =Orçamento!F17 -> 0 | H44: 0 | I44: 0 | J44: 0 | K44: 0 | L44: 0 | M44: 0 | N44: 0 | O44: 0 | P44: 0 | Q44: 0 | R44: 0 | S44: 0 | T44: 0 | U44: 0 | V44: 0 | X44: 0
A45: 2.1.1 | B45: =VLOOKUP($A45,Orçamento!$A$3:$J$126,2,FALSE) -> SICRO | C45: =VLOOKUP($A45,Orçamento!$A$3:$J$126,3,FALSE) -> 5502139 | D45: =VLOOKUP($A45,Orçamento!$A$3:$J$126,4,FALSE) -> Escavação Comum | E45: =VLOOKUP($A45,Orçamento!$A$3:$J$126,5,FALSE) -> m³ | F45: =VLOOKUP($A45,Orçamento!$A$3:$J$126,6,FALSE) -> 27100 | H45: 0 | I45: 0 | J45: 0 | K45: 1150.628571 | L45: 1150.628571 | M45: 2525.028571 | N45: 1837.828571 | O45: 1150.628571 | P45: 1150.628571 | Q45: 18134.62857 | R45: 0 | S45: 0 | T45: 0 | U45: 0 | V45: 0 | X45: 0
A46: 2.1.2 | B46: =VLOOKUP($A46,Orçamento!$A$3:$J$126,2,FALSE) -> SICRO | C46: =VLOOKUP($A46,Orçamento!$A$3:$J$126,3,FALSE) -> 2003864 | D46: =VLOOKUP($A46,Orçamento!$A$3:$J$126,4,FALSE) -> Esgotamento de água com bomba submersa | E46: =VLOOKUP($A46,Orçamento!$A$3:$J$126,5,FALSE) -> h | F46: =VLOOKUP($A46,Orçamento!$A$3:$J$126,6,FALSE) -> 122 | H46: 0 | I46: 0 | J46: 0 | K46: =122/7 -> 17.42857143 | L46: 17.42857143 | M46: 17.42857143 | N46: 17.42857143 | O46: 17.42857143 | P46: 17.42857143 | Q46: 17.42857143 | R46: 0 | S46: 0 | T46: 0 | U46: 0 | V46: 0 | X46: 0
A47: 2.1.3 | B47: =VLOOKUP($A47,Orçamento!$A$3:$J$126,2,FALSE) -> SICRO | C47: =VLOOKUP($A47,Orçamento!$A$3:$J$126,3,FALSE) -> 4413942 | D47: =VLOOKUP($A47,Orçamento!$A$3:$J$126,4,FALSE) -> Espalhamento de solo em bota fora | E47: =VLOOKUP($A47,Orçamento!$A$3:$J$126,5,FALSE) -> m³ | F47: =VLOOKUP($A47,Orçamento!$A$3:$J$126,6,FALSE) -> 16937.5 | K47: =F47/7 -> 2419.642857 | L47: =K47 -> 2419.642857 | M47: 2419.642857 | N47: 2419.642857 | O47: 2419.642857 | P47: 2419.642857 | Q47: 2419.642857 | X47: 0
F48: =Orçamento!F21 -> 0 | X48: 0
A49: 2.2 | D49: Canal de Restituição | F49: =Orçamento!F22 -> 0 | H49: 0 | I49: 0 | J49: 0 | K49: 0 | L49: 0 | M49: 0 | N49: 0 | O49: 0 | P49: 0 | Q49: 0 | R49: 0 | S49: 0 | T49: 0 | U49: 0 | V49: 0 | X49: 0
A50: 2.2.1 | B50: =VLOOKUP($A50,Orçamento!$A$3:$J$126,2,FALSE) -> SICRO | C50: =VLOOKUP($A50,Orçamento!$A$3:$J$126,3,FALSE) -> 5502139 | D50: =VLOOKUP($A50,Orçamento!$A$3:$J$126,4,FALSE) -> Escavaçao Comum | E50: =VLOOKUP($A50,Orçamento!$A$3:$J$126,5,FALSE) -> m³ | F50: =VLOOKUP($A50,Orçamento!$A$3:$J$126,6,FALSE) -> 1898.21 | H50: 0 | I50: 0 | J50: 0 | K50: 0 | L50: 0 | M50: 0 | N50: 0 | O50: 0 | P50: 1898.21 | Q50: 0 | R50: 0 | S50: 0 | T50: 0 | U50: 0 | V50: 0 | X50: 0
A51: 2.2.2 | B51: =VLOOKUP($A51,Orçamento!$A$3:$J$126,2,FALSE) -> SICRO | C51: =VLOOKUP($A51,Orçamento!$A$3:$J$126,3,FALSE) -> 2003864 | D51: =VLOOKUP($A51,Orçamento!$A$3:$J$126,4,FALSE) -> Esgotamento de água com bomba submersa | E51: =VLOOKUP($A51,Orçamento!$A$3:$J$126,5,FALSE) -> h | F51: =VLOOKUP($A51,Orçamento!$A$3:$J$126,6,FALSE) -> 8.58 | H51: 0 | I51: 0 | J51: 0 | K51: 0 | L51: 0 | M51: 0 | N51: 0 | O51: 0 | P51: =F51 -> 8.58 | Q51: 0 | R51: 0 | S51: 0 | T51: 0 | U51: 0 | V51: 0 | X51: 0
A52: 2.2.3 | B52: =VLOOKUP($A52,Orçamento!$A$3:$J$126,2,FALSE) -> SICRO | C52: =VLOOKUP($A52,Orçamento!$A$3:$J$126,3,FALSE) -> 4413942 | D52: =VLOOKUP($A52,Orçamento!$A$3:$J$126,4,FALSE) -> Espalhamento de solo em bota fora | E52: =VLOOKUP($A52,Orçamento!$A$3:$J$126,5,FALSE) -> m³ | F52: =VLOOKUP($A52,Orçamento!$A$3:$J$126,6,FALSE) -> 1186.38125 | P52: =F52 -> 1186.38125 | X52: 0
F53: =Orçamento!F26 -> 0 | X53: 0
A54: 2.3 | D54: Dique de Proteção | F54: =Orçamento!F27 -> 0 | H54: 0 | I54: 0 | J54: 0 | K54: 0 | L54: 0 | M54: 0 | N54: 0 | O54: 0 | P54: 0 | Q54: 0 | R54: 0 | S54: 0 | T54: 0 | U54: 0 | V54: 0 | X54: 0
A55: 2.3.1 | B55: =VLOOKUP($A55,Orçamento!$A$3:$J$126,2,FALSE) -> SICRO | C55: =VLOOKUP($A55,Orçamento!$A$3:$J$126,3,FALSE) -> 5502139 | D55: =VLOOKUP($A55,Orçamento!$A$3:$J$126,4,FALSE) -> Escavação comum | E55: =VLOOKUP($A55,Orçamento!$A$3:$J$126,5,FALSE) -> m³ | F55: =VLOOKUP($A55,Orçamento!$A$3:$J$126,6,FALSE) -> 11318.65 | H55: 0 | I55: 0 | J55: 0 | K55: 0 | L55: 0 | M55: 0 | N55: 0 | O55: 0 | P55: 11318.65 | Q55: 0 | R55: 0 | S55: 0 | T55: 0 | U55: 0 | V55: 0 | X55: 0
A56: 2.3.2 | B56: =VLOOKUP($A56,Orçamento!$A$3:$J$126,2,FALSE) -> SICRO | C56: =VLOOKUP($A56,Orçamento!$A$3:$J$126,3,FALSE) -> 5502978 | D56: =VLOOKUP($A56,Orçamento!$A$3:$J$126,4,FALSE) -> Aterro Compactado | E56: =VLOOKUP($A56,Orçamento!$A$3:$J$126,5,FALSE) -> m³ | F56: =VLOOKUP($A56,Orçamento!$A$3:$J$126,6,FALSE) -> 6766.82 | H56: 0 | I56: 0 | J56: 0 | K56: 0 | L56: 0 | M56: 0 | N56: 0 | O56: 0 | P56: 0 | Q56: 0 | R56: 6766.82 | S56: 0 | T56: 0 | U56: 0 | V56: 0 | X56: 0
A57: 2.3.3 | B57: =VLOOKUP($A57,Orçamento!$A$3:$J$126,2,FALSE) -> SICRO | C57: =VLOOKUP($A57,Orçamento!$A$3:$J$126,3,FALSE) -> 5502986 | D57: =VLOOKUP($A57,Orçamento!$A$3:$J$126,4,FALSE) -> Expurgo | E57: =VLOOKUP($A57,Orçamento!$A$3:$J$126,5,FALSE) -> m³ | F57: =VLOOKUP($A57,Orçamento!$A$3:$J$126,6,FALSE) -> 372.1751 | H57: 0 | I57: 0 | J57: 0 | K57: 0 | L57: 0 | M57: 0 | N57: 0 | O57: 0 | P57: 0 | Q57: =F57 -> 372.1751 | R57: 0 | S57: 0 | T57: 0 | U57: 0 | V57: 0 | X57: 0
A58: 2.3.4 | B58: =VLOOKUP($A58,Orçamento!$A$3:$J$126,2,FALSE) -> SICRO | C58: =VLOOKUP($A58,Orçamento!$A$3:$J$126,3,FALSE) -> 4016008 | D58: =VLOOKUP($A58,Orçamento!$A$3:$J$126,4,FALSE) -> Escavação de jazida | E58: =VLOOKUP($A58,Orçamento!$A$3:$J$126,5,FALSE) -> m³ | F58: =VLOOKUP($A58,Orçamento!$A$3:$J$126,6,FALSE) -> 3721.751 | H58: 0 | I58: 0 | J58: 0 | K58: 0 | L58: 0 | M58: 0 | N58: 0 | O58: 0 | P58: 0 | Q58: 0 | R58: =F58 -> 3721.751 | S58: 0 | T58: 0 | U58: 0 | V58: 0 | X58: 0
A59: 2.3.5 | B59: =VLOOKUP($A59,Orçamento!$A$3:$J$126,2,FALSE) -> SICRO | C59: =VLOOKUP($A59,Orçamento!$A$3:$J$126,3,FALSE) -> 4413942 | D59: =VLOOKUP($A59,Orçamento!$A$3:$J$126,4,FALSE) -> Espalhamento de solo em bota fora | E59: =VLOOKUP($A59,Orçamento!$A$3:$J$126,5,FALSE) -> m³ | F59: =VLOOKUP($A59,Orçamento!$A$3:$J$126,6,FALSE) -> 7074.15625 | P59: =F59 -> 7074.15625 | X59: 0
F60: =Orçamento!F33 -> 0 | X60: 0
A61: 3 | D61: Vertedouro Soleira Livre | F61: =Orçamento!F34 -> 0 | H61: 0 | I61: 0 | J61: 0 | K61: 0 | L61: 0 | M61: 0 | N61: 0 | O61: 0 | P61: 0 | Q61: 0 | R61: 0 | S61: 0 | T61: 0 | U61: 0 | V61: 0 | X61: 0
A62: 3.1 | D62: Reparo na calha e sistema de drenagem | F62: =Orçamento!F35 -> 0 | H62: 0 | I62: 0 | J62: 0 | K62: 0 | L62: 0 | M62: 0 | N62: 0 | O62: 0 | P62: 0 | Q62: 0 | R62: 0 | S62: 0 | T62: 0 | U62: 0 | V62: 0 | X62: 0
A63: 3.1.1 | B63: =VLOOKUP($A63,Orçamento!$A$3:$J$126,2,FALSE) -> SICRO | C63: =VLOOKUP($A63,Orçamento!$A$3:$J$126,3,FALSE) -> 1600990 | D63: =VLOOKUP($A63,Orçamento!$A$3:$J$126,4,FALSE) -> Demolição de concreto armado | E63: =VLOOKUP($A63,Orçamento!$A$3:$J$126,5,FALSE) -> m³ | F63: =VLOOKUP($A63,Orçamento!$A$3:$J$126,6,FALSE) -> 23.38375 | H63: 0 | I63: 0 | J63: 0 | K63: 0 | L63: 0 | M63: 0 | N63: 0 | O63: 7.794583333 | P63: 7.794583333 | Q63: 7.794583333 | R63: 0 | S63: 0 | T63: 0 | U63: 0 | V63: 0 | X63: 0
A64: 3.1.2 | B64: =VLOOKUP($A64,Orçamento!$A$3:$J$126,2,FALSE) -> SICRO | C64: =VLOOKUP($A64,Orçamento!$A$3:$J$126,3,FALSE) -> 3806402 | D64: =VLOOKUP($A64,Orçamento!$A$3:$J$126,4,FALSE) -> Limpeza em superfície de concreto | E64: =VLOOKUP($A64,Orçamento!$A$3:$J$126,5,FALSE) -> m² | F64: =VLOOKUP($A64,Orçamento!$A$3:$J$126,6,FALSE) -> 36.625 | H64: 0 | I64: 0 | J64: 0 | K64: 0 | L64: 0 | M64: 0 | N64: 0 | O64: 12.20833333 | P64: 12.20833333 | Q64: 12.20833333 | R64: 0 | S64: 0 | T64: 0 | U64: 0 | V64: 0 | X64: 0
A65: 3.1.3 | B65: =VLOOKUP($A65,Orçamento!$A$3:$J$126,2,FALSE) -> SICRO | C65: =VLOOKUP($A65,Orçamento!$A$3:$J$126,3,FALSE) -> 3108007 | D65: =VLOOKUP($A65,Orçamento!$A$3:$J$126,4,FALSE) -> Forma em Compensado Plastificado e=10mm | E65: =VLOOKUP($A65,Orçamento!$A$3:$J$126,5,FALSE) -> m² | F65: =VLOOKUP($A65,Orçamento!$A$3:$J$126,6,FALSE) -> 5.2 | H65: 0 | I65: 0 | J65: 0 | K65: 0 | L65: 0 | M65: 0 | N65: 0 | O65: 1.733333333 | P65: 1.733333333 | Q65: 1.733333333 | R65: 0 | S65: 0 | T65: 0 | U65: 0 | V65: 0 | X65: 0
A66: 3.1.4 | B66: =VLOOKUP($A66,Orçamento!$A$3:$J$126,2,FALSE) -> SICRO | C66: =VLOOKUP($A66,Orçamento!$A$3:$J$126,3,FALSE) -> 407819 | D66: =VLOOKUP($A66,Orçamento!$A$3:$J$126,4,FALSE) -> Armação em Aço CA-50 | E66: =VLOOKUP($A66,Orçamento!$A$3:$J$126,5,FALSE) -> kg | F66: =VLOOKUP($A66,Orçamento!$A$3:$J$126,6,FALSE) -> 477 | H66: 0 | I66: 0 | J66: 0 | K66: 0 | L66: 0 | M66: 0 | N66: 0 | O66: 159 | P66: 159 | Q66: 159 | R66: 0 | S66: 0 | T66: 0 | U66: 0 | V66: 0 | X66: 0
A67: 3.1.5 | B67: =VLOOKUP($A67,Orçamento!$A$3:$J$126,2,FALSE) -> SICRO | C67: =VLOOKUP($A67,Orçamento!$A$3:$J$126,3,FALSE) -> 1116263 | D67: =VLOOKUP($A67,Orçamento!$A$3:$J$126,4,FALSE) -> Concreto Fck 25 Mpa | E67: =VLOOKUP($A67,Orçamento!$A$3:$J$126,5,FALSE) -> m³ | F67: =VLOOKUP($A67,Orçamento!$A$3:$J$126,6,FALSE) -> 23.38375 | H67: 0 | I67: 0 | J67: 0 | K67: 0 | L67: 0 | M67: 0 | N67: 0 | O67: 7.794583333 | P67: 7.794583333 | Q67: 7.794583333 | R67: 0 | S67: 0 | T67: 0 | U67: 0 | V67: 0 | X67: 0
A68: 3.1.6 | B68: =VLOOKUP($A68,Orçamento!$A$3:$J$126,2,FALSE) -> SICRO | C68: =VLOOKUP($A68,Orçamento!$A$3:$J$126,3,FALSE) -> 1107860 | D68: =VLOOKUP($A68,Orçamento!$A$3:$J$126,4,FALSE) -> Bombeamento de Concreto | E68: =VLOOKUP($A68,Orçamento!$A$3:$J$126,5,FALSE) -> m³ | F68: =VLOOKUP($A68,Orçamento!$A$3:$J$126,6,FALSE) -> 23.38375 | H68: 0 | I68: 0 | J68: 0 | K68: 0 | L68: 0 | M68: 0 | N68: 0 | O68: 7.794583333 | P68: 7.794583333 | Q68: 7.794583333 | R68: 0 | S68: 0 | T68: 0 | U68: 0 | V68: 0 | X68: 0
A69: 3.1.7 | B69: =VLOOKUP($A69,Orçamento!$A$3:$J$126,2,FALSE) -> SICRO | C69: =VLOOKUP($A69,Orçamento!$A$3:$J$126,3,FALSE) -> 1100657 | D69: =VLOOKUP($A69,Orçamento!$A$3:$J$126,4,FALSE) -> Adensamento de Concreto | E69: =VLOOKUP($A69,Orçamento!$A$3:$J$126,5,FALSE) -> m³ | F69: =VLOOKUP($A69,Orçamento!$A$3:$J$126,6,FALSE) -> 23.38375 | H69: 0 | I69: 0 | J69: 0 | K69: 0 | L69: 0 | M69: 0 | N69: 0 | O69: =F69/3 -> 7.794583333 | P69: =O69 -> 7.794583333 | Q69: 7.794583333 | R69: 0 | S69: 0 | T69: 0 | U69: 0 | V69: 0 | X69: 0
A70: 3.1.8 | B70: =VLOOKUP($A70,Orçamento!$A$3:$J$126,2,FALSE) -> COMPOS. | C70: =VLOOKUP($A70,Orçamento!$A$3:$J$126,3,FALSE) -> 0.006 | D70: =VLOOKUP($A70,Orçamento!$A$3:$J$126,4,FALSE) -> Veda Juntas O-22 | E70: =VLOOKUP($A70,Orçamento!$A$3:$J$126,5,FALSE) -> m | F70: =VLOOKUP($A70,Orçamento!$A$3:$J$126,6,FALSE) -> 16 | H70: 0 | I70: 0 | J70: 0 | K70: 0 | L70: 0 | M70: 0 | N70: 0 | O70: =F70/3 -> 5.333333333 | P70: 5.333333333 | Q70: 5.333333333 | R70: 0 | S70: 0 | T70: 0 | U70: 0 | V70: 0 | X70: 0
A71: 3.1.9 | B71: =VLOOKUP($A71,Orçamento!$A$3:$J$126,2,FALSE) -> SICRO | C71: =VLOOKUP($A71,Orçamento!$A$3:$J$126,3,FALSE) -> 2003578 | D71: =VLOOKUP($A71,Orçamento!$A$3:$J$126,4,FALSE) -> Drenagem Interna | E71: =VLOOKUP($A71,Orçamento!$A$3:$J$126,5,FALSE) -> m | F71: =VLOOKUP($A71,Orçamento!$A$3:$J$126,6,FALSE) -> 73.25 | H71: 0 | I71: 0 | J71: 0 | K71: 0 | L71: 0 | M71: 0 | N71: 0 | O71: =F71/3 -> 24.41666667 | P71: 24.41666667 | Q71: 24.41666667 | R71: 0 | S71: 0 | T71: 0 | U71: 0 | V71: 0
F72: =Orçamento!F45 -> 0 | H72: 0 | I72: 0 | J72: 0 | K72: 0 | L72: 0 | M72: 0 | N72: 0 | X72: =F72-SUM(H72:V72) -> 0
A73: 3.2 | D73: Proteção Gabião | F73: =Orçamento!F46 -> 0 | H73: 0 | I73: 0 | J73: 0 | K73: 0 | L73: 0 | M73: 0 | N73: 0 | O73: 0 | P73: 0 | Q73: 0 | R73: 0 | S73: 0 | T73: 0 | U73: 0 | V73: 0 | X73: 0
A74: 3.2.1 | B74: =VLOOKUP($A74,Orçamento!$A$3:$J$126,2,FALSE) -> SICRO | C74: =VLOOKUP($A74,Orçamento!$A$3:$J$126,3,FALSE) -> 3108007 | D74: =VLOOKUP($A74,Orçamento!$A$3:$J$126,4,FALSE) -> Forma em Compensado Plastificado e=10mm | E74: =VLOOKUP($A74,Orçamento!$A$3:$J$126,5,FALSE) -> m² | F74: =VLOOKUP($A74,Orçamento!$A$3:$J$126,6,FALSE) -> 108 | H74: 0 | I74: 0 | J74: 0 | K74: 0 | L74: 0 | M74: 0 | N74: 0 | O74: 0 | P74: 0 | Q74: 0 | R74: 36 | S74: 36 | T74: 36 | U74: 0 | V74: 0 | X74: 0
A75: 3.2.2 | B75: =VLOOKUP($A75,Orçamento!$A$3:$J$126,2,FALSE) -> SICRO | C75: =VLOOKUP($A75,Orçamento!$A$3:$J$126,3,FALSE) -> 1106109 | D75: =VLOOKUP($A75,Orçamento!$A$3:$J$126,4,FALSE) -> Concreto fck = 20 Mpa | E75: =VLOOKUP($A75,Orçamento!$A$3:$J$126,5,FALSE) -> m³ | F75: =VLOOKUP($A75,Orçamento!$A$3:$J$126,6,FALSE) -> 1541 | H75: 0 | I75: 0 | J75: 0 | K75: 0 | L75: 0 | M75: 0 | N75: 0 | O75: 0 | P75: 0 | Q75: 0 | R75: 513.6666667 | S75: 513.6666667 | T75: 513.6666667 | U75: 0 | V75: 0 | X75: 0
A76: 3.2.3 | B76: =VLOOKUP($A76,Orçamento!$A$3:$J$126,2,FALSE) -> SICRO | C76: =VLOOKUP($A76,Orçamento!$A$3:$J$126,3,FALSE) -> 1107860 | D76: =VLOOKUP($A76,Orçamento!$A$3:$J$126,4,FALSE) -> Bombeamento | E76: =VLOOKUP($A76,Orçamento!$A$3:$J$126,5,FALSE) -> m³ | F76: =VLOOKUP($A76,Orçamento!$A$3:$J$126,6,FALSE) -> 1541 | H76: 0 | I76: 0 | J76: 0 | K76: 0 | L76: 0 | M76: 0 | N76: 0 | O76: 0 | P76: 0 | Q76: 0 | R76: 513.6666667 | S76: 513.6666667 | T76: 513.6666667 | U76: 0 | V76: 0 | X76: 0
A77: 3.2.4 | B77: =VLOOKUP($A77,Orçamento!$A$3:$J$126,2,FALSE) -> SICRO | C77: =VLOOKUP($A77,Orçamento!$A$3:$J$126,3,FALSE) -> 1100657 | D77: =VLOOKUP($A77,Orçamento!$A$3:$J$126,4,FALSE) -> Adensamento de Concreto | E77: =VLOOKUP($A77,Orçamento!$A$3:$J$126,5,FALSE) -> m³ | F77: =VLOOKUP($A77,Orçamento!$A$3:$J$126,6,FALSE) -> 1541 | H77: 0 | I77: 0 | J77: 0 | K77: 0 | L77: 0 | M77: 0 | N77: 0 | O77: 0 | P77: 0 | Q77: 0 | R77: =R76 -> 513.6666667 | S77: =S76 -> 513.6666667 | T77: =T76 -> 513.6666667 | U77: 0 | V77: 0
F78: =Orçamento!F51 -> 0 | X78: 0
A79: 3.3 | D79: Reparos estruturas de concreto | F79: =Orçamento!F52 -> 0 | H79: 0 | I79: 0 | J79: 0 | K79: 0 | L79: 0 | M79: 0 | N79: 0 | O79: 0 | P79: 0 | Q79: 0 | R79: 0 | S79: 0 | T79: 0 | U79: 0 | V79: 0 | X79: 0
A80: 3.3.1 | B80: =VLOOKUP($A80,Orçamento!$A$3:$J$126,2,FALSE) -> SICRO | C80: =VLOOKUP($A80,Orçamento!$A$3:$J$126,3,FALSE) -> 3806413 | D80: =VLOOKUP($A80,Orçamento!$A$3:$J$126,4,FALSE) -> Apicoamento | E80: =VLOOKUP($A80,Orçamento!$A$3:$J$126,5,FALSE) -> m² | F80: =VLOOKUP($A80,Orçamento!$A$3:$J$126,6,FALSE) -> 50 | H80: 0 | I80: 0 | J80: 0 | K80: 7.142857143 | L80: 7.142857143 | M80: 7.142857143 | N80: 7.142857143 | O80: 7.142857143 | P80: 7.142857143 | Q80: 7.142857143 | R80: 0 | S80: 0 | T80: 0 | U80: 0 | V80: 0 | X80: 0
A81: 3.3.2 | B81: =VLOOKUP($A81,Orçamento!$A$3:$J$126,2,FALSE) -> SICRO | C81: =VLOOKUP($A81,Orçamento!$A$3:$J$126,3,FALSE) -> 3806402 | D81: =VLOOKUP($A81,Orçamento!$A$3:$J$126,4,FALSE) -> Limpeza em superfície de concreto | E81: =VLOOKUP($A81,Orçamento!$A$3:$J$126,5,FALSE) -> m² | F81: =VLOOKUP($A81,Orçamento!$A$3:$J$126,6,FALSE) -> 50 | H81: 0 | I81: 0 | J81: 0 | K81: 7.142857143 | L81: 7.142857143 | M81: 7.142857143 | N81: 7.142857143 | O81: 7.142857143 | P81: 7.142857143 | Q81: 7.142857143 | R81: 0 | S81: 0 | T81: 0 | U81: 0 | V81: 0 | X81: 0
A82: 3.3.3 | B82: =VLOOKUP($A82,Orçamento!$A$3:$J$126,2,FALSE) -> COMPOS. | C82: =VLOOKUP($A82,Orçamento!$A$3:$J$126,3,FALSE) -> 0.006 | D82: =VLOOKUP($A82,Orçamento!$A$3:$J$126,4,FALSE) -> Veda Juntas O-22 | E82: =VLOOKUP($A82,Orçamento!$A$3:$J$126,5,FALSE) -> m | F82: =VLOOKUP($A82,Orçamento!$A$3:$J$126,6,FALSE) -> 30 | H82: 0 | I82: 0 | J82: 0 | K82: 4.285714286 | L82: 4.285714286 | M82: 4.285714286 | N82: 4.285714286 | O82: 4.285714286 | P82: 4.285714286 | Q82: 4.285714286 | R82: 0 | S82: 0 | T82: 0 | U82: 0 | V82: 0 | X82: 0
A83: 3.3.4 | B83: =VLOOKUP($A83,Orçamento!$A$3:$J$126,2,FALSE) -> SICRO | C83: =VLOOKUP($A83,Orçamento!$A$3:$J$126,3,FALSE) -> 2407972 | D83: =VLOOKUP($A83,Orçamento!$A$3:$J$126,4,FALSE) -> Adesivo estrutural à base de resina epóxi | E83: =VLOOKUP($A83,Orçamento!$A$3:$J$126,5,FALSE) -> kg | F83: =VLOOKUP($A83,Orçamento!$A$3:$J$126,6,FALSE) -> 40 | H83: 0 | I83: 0 | J83: 0 | K83: 5.714285714 | L83: 5.714285714 | M83: 5.714285714 | N83: 5.714285714 | O83: 5.714285714 | P83: 5.714285714 | Q83: 5.714285714 | R83: 0 | S83: 0 | T83: 0 | U83: 0 | V83: 0 | X83: 0
A84: 3.3.5 | B84: =VLOOKUP($A84,Orçamento!$A$3:$J$126,2,FALSE) -> SICRO | C84: =VLOOKUP($A84,Orçamento!$A$3:$J$126,3,FALSE) -> 1108060 | D84: =VLOOKUP($A84,Orçamento!$A$3:$J$126,4,FALSE) -> Argamassa polimérica com microssílica | E84: =VLOOKUP($A84,Orçamento!$A$3:$J$126,5,FALSE) -> m³ | F84: =VLOOKUP($A84,Orçamento!$A$3:$J$126,6,FALSE) -> 3 | H84: 0 | I84: 0 | J84: 0 | K84: 0.4285714286 | L84: 0.4285714286 | M84: 0.4285714286 | N84: 0.4285714286 | O84: 0.4285714286 | P84: 0.4285714286 | Q84: 0.4285714286 | R84: 0 | S84: 0 | T84: 0 | U84: 0 | V84: 0 | X84: 0
A85: 3.3.6 | B85: =VLOOKUP($A85,Orçamento!$A$3:$J$126,2,FALSE) -> SICRO | C85: =VLOOKUP($A85,Orçamento!$A$3:$J$126,3,FALSE) -> 1109667 | D85: =VLOOKUP($A85,Orçamento!$A$3:$J$126,4,FALSE) -> Argamassa Dry Pack | E85: =VLOOKUP($A85,Orçamento!$A$3:$J$126,5,FALSE) -> m³ | F85: =VLOOKUP($A85,Orçamento!$A$3:$J$126,6,FALSE) -> 3 | H85: 0 | I85: 0 | J85: 0 | K85: 0.4285714286 | L85: 0.4285714286 | M85: 0.4285714286 | N85: 0.4285714286 | O85: 0.4285714286 | P85: 0.4285714286 | Q85: 0.4285714286 | R85: 0 | S85: 0 | T85: 0 | U85: 0 | V85: 0 | X85: 0
A86: 3.3.7 | B86: =VLOOKUP($A86,Orçamento!$A$3:$J$126,2,FALSE) -> SICRO | C86: =VLOOKUP($A86,Orçamento!$A$3:$J$126,3,FALSE) -> 1108056 | D86: =VLOOKUP($A86,Orçamento!$A$3:$J$126,4,FALSE) -> Microconcreto autoadensável | E86: =VLOOKUP($A86,Orçamento!$A$3:$J$126,5,FALSE) -> m³ | F86: =VLOOKUP($A86,Orçamento!$A$3:$J$126,6,FALSE) -> 9 | H86: 0 | I86: 0 | J86: 0 | K86: 1.285714286 | L86: 1.285714286 | M86: 1.285714286 | N86: 1.285714286 | O86: 1.285714286 | P86: 1.285714286 | Q86: 1.285714286 | R86: 0 | S86: 0 | T86: 0 | U86: 0 | V86: 0 | X86: 0
A87: 3.3.8 | B87: =VLOOKUP($A87,Orçamento!$A$3:$J$126,2,FALSE) -> SICRO | C87: =VLOOKUP($A87,Orçamento!$A$3:$J$126,3,FALSE) -> 3806415 | D87: =VLOOKUP($A87,Orçamento!$A$3:$J$126,4,FALSE) -> Demolição controlada | E87: =VLOOKUP($A87,Orçamento!$A$3:$J$126,5,FALSE) -> m³ | F87: =VLOOKUP($A87,Orçamento!$A$3:$J$126,6,FALSE) -> 3 | H87: 0 | I87: 0 | J87: 0 | K87: 0.4285714286 | L87: 0.4285714286 | M87: 0.4285714286 | N87: 0.4285714286 | O87: 0.4285714286 | P87: 0.4285714286 | Q87: 0.4285714286 | R87: 0 | S87: 0 | T87: 0 | U87: 0 | V87: 0 | X87: 0
F88: =Orçamento!F61 -> 0 | X88: 0
A89: 4 | D89: Barragem de Terra | F89: =Orçamento!F62 -> 0 | H89: 0 | I89: 0 | J89: 0 | K89: 0 | L89: 0 | M89: 0 | N89: 0 | O89: 0 | P89: 0 | Q89: 0 | R89: 0 | S89: 0 | T89: 0 | U89: 0 | V89: 0 | X89: 0
A90: 4.1 | D90: Instrumentação | F90: =Orçamento!#REF! ->  | H90: 0 | I90: 0 | J90: 0 | K90: 0 | L90: 0 | M90: 0 | N90: 0 | O90: 0 | P90: 0 | Q90: 0 | R90: 0 | S90: 0 | T90: 0 | U90: 0 | V90: 0
A91: 4.1.1 | B91: =VLOOKUP($A91,Orçamento!$A$3:$J$126,2,FALSE) ->  | C91: =VLOOKUP($A91,Orçamento!$A$3:$J$126,3,FALSE) ->  | D91: =VLOOKUP($A91,Orçamento!$A$3:$J$126,4,FALSE) ->  | E91: =VLOOKUP($A91,Orçamento!$A$3:$J$126,5,FALSE) ->  | F91: =VLOOKUP($A91,Orçamento!$A$3:$J$126,6,FALSE) ->  | H91: 0 | I91: 0 | J91: 0 | K91: 0 | L91: 0 | M91: 0 | N91: 0 | O91: 0 | P91: 0 | Q91: 0 | R91: 3 | S91: 3 | T91: 0 | U91: 0 | V91: 0
A92: 4.1.2 | B92: =VLOOKUP($A92,Orçamento!$A$3:$J$126,2,FALSE) ->  | C92: =VLOOKUP($A92,Orçamento!$A$3:$J$126,3,FALSE) ->  | D92: =VLOOKUP($A92,Orçamento!$A$3:$J$126,4,FALSE) ->  | E92: =VLOOKUP($A92,Orçamento!$A$3:$J$126,5,FALSE) ->  | F92: =VLOOKUP($A92,Orçamento!$A$3:$J$126,6,FALSE) ->  | H92: 0 | I92: 0 | J92: 0 | K92: 0 | L92: 0 | M92: 0 | N92: 0 | O92: 0 | P92: 0 | Q92: 0 | R92: 0 | S92: 5 | T92: 5 | U92: 5 | V92: 5
A93: 4.1.3 | B93: =VLOOKUP($A93,Orçamento!$A$3:$J$126,2,FALSE) ->  | C93: =VLOOKUP($A93,Orçamento!$A$3:$J$126,3,FALSE) ->  | D93: =VLOOKUP($A93,Orçamento!$A$3:$J$126,4,FALSE) ->  | E93: =VLOOKUP($A93,Orçamento!$A$3:$J$126,5,FALSE) ->  | F93: =VLOOKUP($A93,Orçamento!$A$3:$J$126,6,FALSE) ->  | H93: 0 | I93: 0 | J93: 0 | K93: 0 | L93: 0 | M93: 0 | N93: 0 | O93: 2 | P93: 1 | Q93: 1 | R93: 1 | S93: 1 | T93: 1 | U93: 2 | V93: 0
A94: 4.1.4 | B94: =VLOOKUP($A94,Orçamento!$A$3:$J$126,2,FALSE) ->  | C94: =VLOOKUP($A94,Orçamento!$A$3:$J$126,3,FALSE) ->  | D94: =VLOOKUP($A94,Orçamento!$A$3:$J$126,4,FALSE) ->  | E94: =VLOOKUP($A94,Orçamento!$A$3:$J$126,5,FALSE) ->  | F94: =VLOOKUP($A94,Orçamento!$A$3:$J$126,6,FALSE) ->  | H94: 0 | I94: 0 | J94: 0 | K94: 0 | L94: 0 | M94: 0 | N94: 1 | O94: 1 | P94: 1 | Q94: 1 | R94: 1 | S94: 0 | T94: 0 | U94: 0 | V94: 0
F95: =Orçamento!#REF! -> 
A96: 4.2 | D96: Montante | F96: =Orçamento!F63 -> 0 | H96: 0 | I96: 0 | J96: 0 | K96: 0 | L96: 0 | M96: 0 | N96: 0 | O96: 0 | P96: 0 | Q96: 0 | R96: 0 | S96: 0 | T96: 0 | U96: 0 | V96: 0 | X96: 0
A97: 4.2.1 | B97: =VLOOKUP($A97,Orçamento!$A$3:$J$126,2,FALSE) -> SICRO | C97: =VLOOKUP($A97,Orçamento!$A$3:$J$126,3,FALSE) -> 5502985 | D97: =VLOOKUP($A97,Orçamento!$A$3:$J$126,4,FALSE) -> Limpeza da camada vegetal | E97: =VLOOKUP($A97,Orçamento!$A$3:$J$126,5,FALSE) -> m² | F97: =VLOOKUP($A97,Orçamento!$A$3:$J$126,6,FALSE) -> 16840 | H97: 0 | I97: 0 | J97: 0 | K97: 11226.66667 | L97: 5613.333333 | M97: 0 | N97: 0 | O97: 0 | P97: 0 | Q97: 0 | R97: 0 | S97: 0 | T97: 0 | U97: 0 | V97: 0 | X97: 0
A98: 4.2.2 | B98: =VLOOKUP($A98,Orçamento!$A$3:$J$126,2,FALSE) -> SINAPI | C98: =VLOOKUP($A98,Orçamento!$A$3:$J$126,3,FALSE) -> 98527 | D98: =VLOOKUP($A98,Orçamento!$A$3:$J$126,4,FALSE) -> Remoção de raízes e cupinzeiros | E98: =VLOOKUP($A98,Orçamento!$A$3:$J$126,5,FALSE) -> und | F98: =VLOOKUP($A98,Orçamento!$A$3:$J$126,6,FALSE) -> 34 | H98: 0 | I98: 0 | J98: 0 | K98: 0 | L98: 34 | M98: 0 | N98: 0 | O98: 0 | P98: 0 | Q98: 0 | R98: 0 | S98: 0 | T98: 0 | U98: 0 | V98: 0 | X98: 0
A99: 4.2.3 | B99: =VLOOKUP($A99,Orçamento!$A$3:$J$126,2,FALSE) -> SICRO | C99: =VLOOKUP($A99,Orçamento!$A$3:$J$126,3,FALSE) -> 4915625 | D99: =VLOOKUP($A99,Orçamento!$A$3:$J$126,4,FALSE) -> Recomposição em Solo Cimento | E99: =VLOOKUP($A99,Orçamento!$A$3:$J$126,5,FALSE) -> m³ | F99: =VLOOKUP($A99,Orçamento!$A$3:$J$126,6,FALSE) -> 1718 | H99: 0 | I99: 0 | J99: 0 | K99: 0 | L99: 0 | M99: 1145.333333 | N99: 572.6666667 | O99: 0 | P99: 0 | Q99: 0 | R99: 0 | S99: 0 | T99: 0 | U99: 0 | V99: 0 | X99: 0
A100: 4.2.4 | B100: =VLOOKUP($A100,Orçamento!$A$3:$J$126,2,FALSE) ->  | C100: =VLOOKUP($A100,Orçamento!$A$3:$J$126,3,FALSE) ->  | D100: =VLOOKUP($A100,Orçamento!$A$3:$J$126,4,FALSE) ->  | E100: =VLOOKUP($A100,Orçamento!$A$3:$J$126,5,FALSE) ->  | F100: =VLOOKUP($A100,Orçamento!$A$3:$J$126,6,FALSE) ->  | H100: 0 | I100: 0 | J100: 0 | K100: 0 | L100: 0 | M100: =F100*0.67 ->  | N100: =F100-M100 ->  | O100: 0 | P100: 0 | Q100: 0 | R100: 0 | S100: 0 | T100: 0 | U100: 0 | V100: 0
A101: 4.2.5 | B101: =VLOOKUP($A101,Orçamento!$A$3:$J$126,2,FALSE) -> SICRO | C101: =VLOOKUP($A101,Orçamento!$A$3:$J$126,3,FALSE) -> 4805754 | D101: =VLOOKUP($A101,Orçamento!$A$3:$J$126,4,FALSE) -> Compactação Manual | E101: =VLOOKUP($A101,Orçamento!$A$3:$J$126,5,FALSE) -> m³ | F101: =VLOOKUP($A101,Orçamento!$A$3:$J$126,6,FALSE) -> 1718 | H101: 0 | I101: 0 | J101: 0 | K101: 0 | L101: 0 | M101: 1145.333333 | N101: 572.6666667 | O101: 0 | P101: 0 | Q101: 0 | R101: 0 | S101: 0 | T101: 0 | U101: 0 | V101: 0 | X101: 0
A102: 4.2.6 | B102: =VLOOKUP($A102,Orçamento!$A$3:$J$126,2,FALSE) -> SICRO | C102: =VLOOKUP($A102,Orçamento!$A$3:$J$126,3,FALSE) -> 4805757 | D102: =VLOOKUP($A102,Orçamento!$A$3:$J$126,4,FALSE) -> Escavação mecânica de vala | E102: =VLOOKUP($A102,Orçamento!$A$3:$J$126,5,FALSE) -> m³ | F102: =VLOOKUP($A102,Orçamento!$A$3:$J$126,6,FALSE) -> 2058 | H102: 0 | I102: 0 | J102: 0 | K102: 0 | L102: 0 | M102: 1372 | N102: 686 | O102: 0 | P102: 0 | Q102: 0 | R102: 0 | S102: 0 | T102: 0 | U102: 0 | V102: 0 | X102: 0
A103: 4.2.7 | B103: =VLOOKUP($A103,Orçamento!$A$3:$J$126,2,FALSE) -> SICRO | C103: =VLOOKUP($A103,Orçamento!$A$3:$J$126,3,FALSE) -> 2004505 | D103: =VLOOKUP($A103,Orçamento!$A$3:$J$126,4,FALSE) -> Reaterro e compactação em vala | E103: =VLOOKUP($A103,Orçamento!$A$3:$J$126,5,FALSE) -> m³ | F103: =VLOOKUP($A103,Orçamento!$A$3:$J$126,6,FALSE) -> 704 | H103: 0 | I103: 0 | J103: 0 | K103: 0 | L103: 0 | M103: 0 | N103: 0 | O103: 176 | P103: 176 | Q103: 176 | R103: 176 | S103: 0 | T103: 0 | U103: 0 | V103: 0 | X103: 0
A104: 4.2.8 | B104: =VLOOKUP($A104,Orçamento!$A$3:$J$126,2,FALSE) -> SICRO | C104: =VLOOKUP($A104,Orçamento!$A$3:$J$126,3,FALSE) -> 2003867 | D104: =VLOOKUP($A104,Orçamento!$A$3:$J$126,4,FALSE) -> Aplicação de geotextil | E104: =VLOOKUP($A104,Orçamento!$A$3:$J$126,5,FALSE) -> m² | F104: =VLOOKUP($A104,Orçamento!$A$3:$J$126,6,FALSE) -> 14765 | H104: 0 | I104: 0 | J104: 0 | K104: 0 | L104: 0 | M104: 3691.25 | N104: 3691.25 | O104: 3691.25 | P104: 3691.25 | Q104: 0 | R104: 0 | S104: 0 | T104: 0 | U104: 0 | V104: 0 | X104: 0
A105: 4.2.9 | B105: =VLOOKUP($A105,Orçamento!$A$3:$J$126,2,FALSE) -> SICRO | C105: =VLOOKUP($A105,Orçamento!$A$3:$J$126,3,FALSE) -> 407820 | D105: =VLOOKUP($A105,Orçamento!$A$3:$J$126,4,FALSE) -> Armação em aço CA-60 | E105: =VLOOKUP($A105,Orçamento!$A$3:$J$126,5,FALSE) -> kg | F105: =VLOOKUP($A105,Orçamento!$A$3:$J$126,6,FALSE) -> 2655.48525 | H105: 0 | I105: 0 | J105: 0 | K105: 0 | L105: 0 | M105: 663.8713125 | N105: 663.8713125 | O105: 663.8713125 | P105: 663.8713125 | Q105: 0 | R105: 0 | S105: 0 | T105: 0 | U105: 0 | V105: 0 | X105: 0
A106: 4.2.10 | B106: =VLOOKUP($A106,Orçamento!$A$3:$J$126,2,FALSE) -> SICRO | C106: =VLOOKUP($A106,Orçamento!$A$3:$J$126,3,FALSE) -> 1516303 | D106: =VLOOKUP($A106,Orçamento!$A$3:$J$126,4,FALSE) -> Geocélula de PEAD | E106: =VLOOKUP($A106,Orçamento!$A$3:$J$126,5,FALSE) -> m² | F106: =VLOOKUP($A106,Orçamento!$A$3:$J$126,6,FALSE) -> 14765 | H106: 0 | I106: 0 | J106: 0 | K106: 0 | L106: 0 | M106: 0 | N106: 3691.25 | O106: 3691.25 | P106: 3691.25 | Q106: 3691.25 | R106: 0 | S106: 0 | T106: 0 | U106: 0 | V106: 0 | X106: 0
A107: 4.2.11 | B107: =VLOOKUP($A107,Orçamento!$A$3:$J$126,2,FALSE) -> SICRO | C107: =VLOOKUP($A107,Orçamento!$A$3:$J$126,3,FALSE) -> 2008091 | D107: =VLOOKUP($A107,Orçamento!$A$3:$J$126,4,FALSE) -> Tubo PVC de ancoragem | E107: =VLOOKUP($A107,Orçamento!$A$3:$J$126,5,FALSE) -> m | F107: =VLOOKUP($A107,Orçamento!$A$3:$J$126,6,FALSE) -> 1759 | H107: 0 | I107: 0 | J107: 0 | K107: 0 | L107: 0 | M107: 0 | N107: 439.75 | O107: 439.75 | P107: 439.75 | Q107: 439.75 | R107: 0 | S107: 0 | T107: 0 | U107: 0 | V107: 0 | X107: 0
A108: 4.2.12 | B108: =VLOOKUP($A108,Orçamento!$A$3:$J$126,2,FALSE) -> SICRO | C108: =VLOOKUP($A108,Orçamento!$A$3:$J$126,3,FALSE) -> 1106109 | D108: =VLOOKUP($A108,Orçamento!$A$3:$J$126,4,FALSE) -> Concreto fck = 20 Mpa | E108: =VLOOKUP($A108,Orçamento!$A$3:$J$126,5,FALSE) -> m³ | F108: =VLOOKUP($A108,Orçamento!$A$3:$J$126,6,FALSE) -> 2492.759096 | H108: 0 | I108: 0 | J108: 0 | K108: 0 | L108: 0 | M108: 0 | N108: 623.189774 | O108: 623.189774 | P108: 623.189774 | Q108: 623.189774 | R108: 0 | S108: 0 | T108: 0 | U108: 0 | V108: 0 | X108: 0
A109: 4.2.13 | B109: =VLOOKUP($A109,Orçamento!$A$3:$J$126,2,FALSE) -> SICRO | C109: =VLOOKUP($A109,Orçamento!$A$3:$J$126,3,FALSE) -> 1107860 | D109: =VLOOKUP($A109,Orçamento!$A$3:$J$126,4,FALSE) -> Bombeamento | E109: =VLOOKUP($A109,Orçamento!$A$3:$J$126,5,FALSE) -> m³ | F109: =VLOOKUP($A109,Orçamento!$A$3:$J$126,6,FALSE) -> 2492.759096 | H109: 0 | I109: 0 | J109: 0 | K109: 0 | L109: 0 | M109: 0 | N109: 623.189774 | O109: 623.189774 | P109: 623.189774 | Q109: 623.189774 | R109: 0 | S109: 0 | T109: 0 | U109: 0 | V109: 0 | X109: 0
A110: 4.2.14 | B110: =VLOOKUP($A110,Orçamento!$A$3:$J$126,2,FALSE) -> SICRO | C110: =VLOOKUP($A110,Orçamento!$A$3:$J$126,3,FALSE) -> 1100657 | D110: =VLOOKUP($A110,Orçamento!$A$3:$J$126,4,FALSE) -> Adensamento de Concreto | E110: =VLOOKUP($A110,Orçamento!$A$3:$J$126,5,FALSE) -> m³ | F110: =VLOOKUP($A110,Orçamento!$A$3:$J$126,6,FALSE) -> 2492.759096 | H110: 0 | I110: 0 | J110: 0 | K110: 0 | L110: 0 | M110: 0 | N110: 623.189774 | O110: 623.189774 | P110: 623.189774 | Q110: 623.189774 | R110: 0 | S110: 0 | T110: 0 | U110: 0 | V110: 0 | X110: 0
A111: 4.2.15 | B111: =VLOOKUP($A111,Orçamento!$A$3:$J$126,2,FALSE) -> SICRO | C111: =VLOOKUP($A111,Orçamento!$A$3:$J$126,3,FALSE) -> 1505877 | D111: =VLOOKUP($A111,Orçamento!$A$3:$J$126,4,FALSE) -> Enrocamento de Proteção | E111: =VLOOKUP($A111,Orçamento!$A$3:$J$126,5,FALSE) -> m³ | F111: =VLOOKUP($A111,Orçamento!$A$3:$J$126,6,FALSE) -> 1029 | N111: =F111/4 -> 257.25 | O111: =N111 -> 257.25 | P111: =O111 -> 257.25 | Q111: =P111 -> 257.25
F112: =Orçamento!F78 -> 0 | X112: 0
A113: 4.3 | D113: Crista | F113: =Orçamento!F79 -> 0 | H113: 0 | I113: 0 | J113: 0 | K113: 0 | L113: 0 | M113: 0 | N113: 0 | O113: 0 | P113: 0 | Q113: 0 | R113: 0 | S113: 0 | T113: 0 | U113: 0 | V113: 0 | X113: 0
A114: 4.3.1 | B114: =VLOOKUP($A114,Orçamento!$A$3:$J$126,2,FALSE) -> SICRO | C114: =VLOOKUP($A114,Orçamento!$A$3:$J$126,3,FALSE) -> 5502985 | D114: =VLOOKUP($A114,Orçamento!$A$3:$J$126,4,FALSE) -> Limpeza da camada vegetal | E114: =VLOOKUP($A114,Orçamento!$A$3:$J$126,5,FALSE) -> m² | F114: =VLOOKUP($A114,Orçamento!$A$3:$J$126,6,FALSE) -> 7032 | H114: 0 | I114: 0 | J114: 7032 | K114: 0 | L114: 0 | M114: 0 | N114: 0 | O114: 0 | P114: 0 | Q114: 0 | R114: 0 | S114: 0 | T114: 0 | U114: 0 | V114: 0 | X114: 0
A115: 4.3.2 | B115: =VLOOKUP($A115,Orçamento!$A$3:$J$126,2,FALSE) -> SINAPI | C115: =VLOOKUP($A115,Orçamento!$A$3:$J$126,3,FALSE) -> 98527 | D115: =VLOOKUP($A115,Orçamento!$A$3:$J$126,4,FALSE) -> Remoção de raízes e cupinzeiros | E115: =VLOOKUP($A115,Orçamento!$A$3:$J$126,5,FALSE) -> und | F115: =VLOOKUP($A115,Orçamento!$A$3:$J$126,6,FALSE) -> 15 | H115: 0 | I115: 0 | J115: 15 | K115: 0 | L115: 0 | M115: 0 | N115: 0 | O115: 0 | P115: 0 | Q115: 0 | R115: 0 | S115: 0 | T115: 0 | U115: 0 | V115: 0 | X115: 0
A116: 4.3.3 | B116: =VLOOKUP($A116,Orçamento!$A$3:$J$126,2,FALSE) -> SICRO | C116: =VLOOKUP($A116,Orçamento!$A$3:$J$126,3,FALSE) -> 4915625 | D116: =VLOOKUP($A116,Orçamento!$A$3:$J$126,4,FALSE) -> Recomposição em Solo Cimento | E116: =VLOOKUP($A116,Orçamento!$A$3:$J$126,5,FALSE) -> m³ | F116: =VLOOKUP($A116,Orçamento!$A$3:$J$126,6,FALSE) -> 15 | H116: 0 | I116: 0 | J116: 15 | K116: 0 | L116: 0 | M116: 0 | N116: 0 | O116: 0 | P116: 0 | Q116: 0 | R116: 0 | S116: 0 | T116: 0 | U116: 0 | V116: 0 | X116: 0
A117: 4.3.4 | B117: =VLOOKUP($A117,Orçamento!$A$3:$J$126,2,FALSE) ->  | C117: =VLOOKUP($A117,Orçamento!$A$3:$J$126,3,FALSE) ->  | D117: =VLOOKUP($A117,Orçamento!$A$3:$J$126,4,FALSE) ->  | E117: =VLOOKUP($A117,Orçamento!$A$3:$J$126,5,FALSE) ->  | F117: =VLOOKUP($A117,Orçamento!$A$3:$J$126,6,FALSE) ->  | H117: 0 | I117: 0 | J117: =F117 ->  | K117: 0 | L117: 0 | M117: 0 | N117: 0 | O117: 0 | P117: 0 | Q117: 0 | R117: 0 | S117: 0 | T117: 0 | U117: 0 | V117: 0
A118: 4.3.5 | B118: =VLOOKUP($A118,Orçamento!$A$3:$J$126,2,FALSE) -> SICRO | C118: =VLOOKUP($A118,Orçamento!$A$3:$J$126,3,FALSE) -> 4805754 | D118: =VLOOKUP($A118,Orçamento!$A$3:$J$126,4,FALSE) -> Compactação Manual | E118: =VLOOKUP($A118,Orçamento!$A$3:$J$126,5,FALSE) -> m³ | F118: =VLOOKUP($A118,Orçamento!$A$3:$J$126,6,FALSE) -> 15 | H118: 0 | I118: 0 | J118: 15 | K118: 0 | L118: 0 | M118: 0 | N118: 0 | O118: 0 | P118: 0 | Q118: 0 | R118: 0 | S118: 0 | T118: 0 | U118: 0 | V118: 0 | X118: 0
A119: 4.3.6 | B119: =VLOOKUP($A119,Orçamento!$A$3:$J$126,2,FALSE) -> SICRO | C119: =VLOOKUP($A119,Orçamento!$A$3:$J$126,3,FALSE) -> 903845 | D119: =VLOOKUP($A119,Orçamento!$A$3:$J$126,4,FALSE) -> Bica Corrida | E119: =VLOOKUP($A119,Orçamento!$A$3:$J$126,5,FALSE) -> m³ | F119: =VLOOKUP($A119,Orçamento!$A$3:$J$126,6,FALSE) -> 1029 | H119: 0 | I119: 0 | J119: 0 | K119: 0 | L119: 0 | M119: 0 | N119: 128.625 | O119: 128.625 | P119: 128.625 | Q119: 128.625 | R119: 128.625 | S119: 128.625 | T119: 128.625 | U119: 128.625 | V119: 0 | X119: 0
A120: 4.3.7 | B120: =VLOOKUP($A120,Orçamento!$A$3:$J$126,2,FALSE) -> SICRO | C120: =VLOOKUP($A120,Orçamento!$A$3:$J$126,3,FALSE) -> 2003939 | D120: =VLOOKUP($A120,Orçamento!$A$3:$J$126,4,FALSE) -> Meio fio de concreto | E120: =VLOOKUP($A120,Orçamento!$A$3:$J$126,5,FALSE) -> m | F120: =VLOOKUP($A120,Orçamento!$A$3:$J$126,6,FALSE) -> 1759 | H120: 0 | I120: 0 | J120: 0 | K120: 0 | L120: 0 | M120: 0 | N120: 219.875 | O120: 219.875 | P120: 219.875 | Q120: 219.875 | R120: 219.875 | S120: 219.875 | T120: 219.875 | U120: 219.875 | V120: 0 | X120: 0
A121: 4.3.8 | B121: =VLOOKUP($A121,Orçamento!$A$3:$J$126,2,FALSE) -> SICRO | C121: =VLOOKUP($A121,Orçamento!$A$3:$J$126,3,FALSE) -> 3713826 | D121: =VLOOKUP($A121,Orçamento!$A$3:$J$126,4,FALSE) -> Barreira simples tipo New Jersey | E121: =VLOOKUP($A121,Orçamento!$A$3:$J$126,5,FALSE) -> m | F121: =VLOOKUP($A121,Orçamento!$A$3:$J$126,6,FALSE) -> 1759 | H121: 0 | I121: 0 | J121: 0 | K121: 0 | L121: 0 | M121: 0 | N121: 219.875 | O121: 219.875 | P121: 219.875 | Q121: 219.875 | R121: 219.875 | S121: 219.875 | T121: 219.875 | U121: 219.875 | V121: 0 | X121: 0
A122: 4.3.9 | B122: =VLOOKUP($A122,Orçamento!$A$3:$J$126,2,FALSE) -> SICRO | C122: =VLOOKUP($A122,Orçamento!$A$3:$J$126,3,FALSE) -> 1106109 | D122: =VLOOKUP($A122,Orçamento!$A$3:$J$126,4,FALSE) -> Concreto fck = 20 Mpa | E122: =VLOOKUP($A122,Orçamento!$A$3:$J$126,5,FALSE) -> m³ | F122: =VLOOKUP($A122,Orçamento!$A$3:$J$126,6,FALSE) -> 337.2003 | H122: 0 | I122: 0 | J122: 0 | K122: 0 | L122: 0 | M122: 0 | N122: 42.1500375 | O122: 42.1500375 | P122: 42.1500375 | Q122: 42.1500375 | R122: 42.1500375 | S122: 42.1500375 | T122: 42.1500375 | U122: 42.1500375 | V122: 0 | X122: 0
A123: 4.3.10 | B123: =VLOOKUP($A123,Orçamento!$A$3:$J$126,2,FALSE) -> SICRO | C123: =VLOOKUP($A123,Orçamento!$A$3:$J$126,3,FALSE) -> 1106051 | D123: =VLOOKUP($A123,Orçamento!$A$3:$J$126,4,FALSE) -> Lançamento livre de concreto | E123: =VLOOKUP($A123,Orçamento!$A$3:$J$126,5,FALSE) -> m³ | F123: =VLOOKUP($A123,Orçamento!$A$3:$J$126,6,FALSE) -> 337.2003 | H123: 0 | I123: 0 | J123: 0 | K123: 0 | L123: 0 | M123: 0 | N123: 42.1500375 | O123: 42.1500375 | P123: 42.1500375 | Q123: 42.1500375 | R123: 42.1500375 | S123: 42.1500375 | T123: 42.1500375 | U123: 42.1500375 | V123: 0 | X123: 0
A124: 4.3.11 | B124: =VLOOKUP($A124,Orçamento!$A$3:$J$126,2,FALSE) -> SICRO | C124: =VLOOKUP($A124,Orçamento!$A$3:$J$126,3,FALSE) -> 1100657 | D124: =VLOOKUP($A124,Orçamento!$A$3:$J$126,4,FALSE) -> Adensamento de Concreto | E124: =VLOOKUP($A124,Orçamento!$A$3:$J$126,5,FALSE) -> m³ | F124: =VLOOKUP($A124,Orçamento!$A$3:$J$126,6,FALSE) -> 337.2003 | H124: 0 | I124: 0 | J124: 0 | K124: 0 | L124: 0 | M124: 0 | N124: =N123 -> 42.1500375 | O124: =O123 -> 42.1500375 | P124: 42.1500375 | Q124: 42.1500375 | R124: 42.1500375 | S124: 42.1500375 | T124: 42.1500375 | U124: 42.1500375 | V124: 0
F125: =Orçamento!F90 -> 0 | X125: 0
A126: 4.4 | D126: Jusante | F126: =Orçamento!F91 -> 0 | H126: 0 | I126: 0 | J126: 0 | K126: 0 | L126: 0 | M126: 0 | N126: 0 | O126: 0 | P126: 0 | Q126: 0 | R126: 0 | S126: 0 | T126: 0 | U126: 0 | V126: 0 | X126: 0
A127: 4.4.1 | B127: =VLOOKUP($A127,Orçamento!$A$3:$J$126,2,FALSE) -> SICRO | C127: =VLOOKUP($A127,Orçamento!$A$3:$J$126,3,FALSE) -> 5502985 | D127: =VLOOKUP($A127,Orçamento!$A$3:$J$126,4,FALSE) -> Limpeza da camada vegetal | E127: =VLOOKUP($A127,Orçamento!$A$3:$J$126,5,FALSE) -> m² | F127: =VLOOKUP($A127,Orçamento!$A$3:$J$126,6,FALSE) -> 65800 | H127: 0 | I127: 0 | J127: 9400 | K127: 9400 | L127: 9400 | M127: 9400 | N127: 9400 | O127: 9400 | P127: 9400 | Q127: 0 | R127: 0 | S127: 0 | T127: 0 | U127: 0 | V127: 0 | X127: 0
A128: 4.4.2 | B128: =VLOOKUP($A128,Orçamento!$A$3:$J$126,2,FALSE) -> SINAPI | C128: =VLOOKUP($A128,Orçamento!$A$3:$J$126,3,FALSE) -> 98527 | D128: =VLOOKUP($A128,Orçamento!$A$3:$J$126,4,FALSE) -> Remoção de raízes e cupinzeiros | E128: =VLOOKUP($A128,Orçamento!$A$3:$J$126,5,FALSE) -> und | F128: =VLOOKUP($A128,Orçamento!$A$3:$J$126,6,FALSE) -> 132 | H128: 0 | I128: 0 | J128: 19 | K128: 19 | L128: 19 | M128: 19 | N128: 19 | O128: 19 | P128: 18 | Q128: 0 | R128: 0 | S128: 0 | T128: 0 | U128: 0 | V128: 0 | X128: 0
A129: 4.4.3 | B129: =VLOOKUP($A129,Orçamento!$A$3:$J$126,2,FALSE) -> SICRO | C129: =VLOOKUP($A129,Orçamento!$A$3:$J$126,3,FALSE) -> 4915774 | D129: =VLOOKUP($A129,Orçamento!$A$3:$J$126,4,FALSE) -> Recomposição de erosão | E129: =VLOOKUP($A129,Orçamento!$A$3:$J$126,5,FALSE) -> m³ | F129: =VLOOKUP($A129,Orçamento!$A$3:$J$126,6,FALSE) -> 6712 | H129: 0 | I129: 0 | J129: 0 | K129: 958.8571429 | L129: 958.8571429 | M129: 958.8571429 | N129: 958.8571429 | O129: 958.8571429 | P129: 958.8571429 | Q129: 958.8571429 | R129: 0 | S129: 0 | T129: 0 | U129: 0 | V129: 0 | X129: 0
A130: 4.4.4 | B130: =VLOOKUP($A130,Orçamento!$A$3:$J$126,2,FALSE) -> SICRO | C130: =VLOOKUP($A130,Orçamento!$A$3:$J$126,3,FALSE) -> 4805757 | D130: =VLOOKUP($A130,Orçamento!$A$3:$J$126,4,FALSE) -> Escavação mecânica de vala | E130: =VLOOKUP($A130,Orçamento!$A$3:$J$126,5,FALSE) -> m³ | F130: =VLOOKUP($A130,Orçamento!$A$3:$J$126,6,FALSE) -> 976 | H130: 0 | I130: 0 | J130: 139.4285714 | K130: 139.4285714 | L130: 139.4285714 | M130: 139.4285714 | N130: 139.4285714 | O130: 139.4285714 | P130: 139.4285714 | Q130: 0 | R130: 0 | S130: 0 | T130: 0 | U130: 0 | V130: 0 | X130: 0
A131: 4.4.5 | B131: =VLOOKUP($A131,Orçamento!$A$3:$J$126,2,FALSE) -> SICRO | C131: =VLOOKUP($A131,Orçamento!$A$3:$J$126,3,FALSE) -> 1106109 | D131: =VLOOKUP($A131,Orçamento!$A$3:$J$126,4,FALSE) -> Concreto fck = 20 Mpa | E131: =VLOOKUP($A131,Orçamento!$A$3:$J$126,5,FALSE) -> m³ | F131: =VLOOKUP($A131,Orçamento!$A$3:$J$126,6,FALSE) -> 431.925 | H131: 0 | I131: 0 | J131: 0 | K131: 4333.6 | L131: 4333.6 | M131: 4333.6 | N131: 4333.6 | O131: 4333.6 | P131: 4333.6 | Q131: 4333.6 | R131: 4333.6 | S131: 4333.6 | T131: 4333.6 | U131: 0 | V131: 0 | X131: -42904.075
A132: 4.4.6 | B132: =VLOOKUP($A132,Orçamento!$A$3:$J$126,2,FALSE) -> SICRO | C132: =VLOOKUP($A132,Orçamento!$A$3:$J$126,3,FALSE) -> 1107860 | D132: =VLOOKUP($A132,Orçamento!$A$3:$J$126,4,FALSE) -> Bombeamento | E132: =VLOOKUP($A132,Orçamento!$A$3:$J$126,5,FALSE) -> m³ | F132: =VLOOKUP($A132,Orçamento!$A$3:$J$126,6,FALSE) -> 431.925 | H132: 0 | I132: 0 | J132: 0 | K132: 779.39796 | L132: 779.39796 | M132: 779.39796 | N132: 779.39796 | O132: 779.39796 | P132: 779.39796 | Q132: 779.39796 | R132: 779.39796 | S132: 779.39796 | T132: 779.39796 | U132: 0 | V132: 0 | X132: -7362.0546
A133: 4.4.7 | B133: =VLOOKUP($A133,Orçamento!$A$3:$J$126,2,FALSE) -> SICRO | C133: =VLOOKUP($A133,Orçamento!$A$3:$J$126,3,FALSE) -> 1100657 | D133: =VLOOKUP($A133,Orçamento!$A$3:$J$126,4,FALSE) -> Adensamento de Concreto | E133: =VLOOKUP($A133,Orçamento!$A$3:$J$126,5,FALSE) -> m³ | F133: =VLOOKUP($A133,Orçamento!$A$3:$J$126,6,FALSE) -> 431.925 | H133: 0 | I133: 0 | J133: 0 | K133: 0 | L133: 4333.6 | M133: 4333.6 | N133: 4333.6 | O133: 4333.6 | P133: 4333.6 | Q133: 4333.6 | R133: 4333.6 | S133: 4333.6 | T133: 4333.6 | U133: 4333.6 | V133: 0 | X133: -42904.075
A134: 4.4.8 | B134: =VLOOKUP($A134,Orçamento!$A$3:$J$126,2,FALSE) -> SICRO | C134: =VLOOKUP($A134,Orçamento!$A$3:$J$126,3,FALSE) -> 4915625 | D134: =VLOOKUP($A134,Orçamento!$A$3:$J$126,4,FALSE) -> Recomposição em Solo Cimento | E134: =VLOOKUP($A134,Orçamento!$A$3:$J$126,5,FALSE) -> m³ | F134: =VLOOKUP($A134,Orçamento!$A$3:$J$126,6,FALSE) -> 2686.35 | H134: 0 | I134: 0 | J134: 0 | K134: 0 | L134: 43.1925 | M134: 43.1925 | N134: 43.1925 | O134: 43.1925 | P134: 43.1925 | Q134: 43.1925 | R134: 43.1925 | S134: 43.1925 | T134: 43.1925 | U134: 43.1925 | V134: 0 | X134: 2254.425
A135: 4.4.9 | B135: =VLOOKUP($A135,Orçamento!$A$3:$J$126,2,FALSE) ->  | C135: =VLOOKUP($A135,Orçamento!$A$3:$J$126,3,FALSE) ->  | D135: =VLOOKUP($A135,Orçamento!$A$3:$J$126,4,FALSE) ->  | E135: =VLOOKUP($A135,Orçamento!$A$3:$J$126,5,FALSE) ->  | F135: =VLOOKUP($A135,Orçamento!$A$3:$J$126,6,FALSE) ->  | H135: 0 | I135: 0 | J135: 0 | K135: 0 | L135: 43.1925 | M135: 43.1925 | N135: 43.1925 | O135: 43.1925 | P135: 43.1925 | Q135: 43.1925 | R135: 43.1925 | S135: 43.1925 | T135: 43.1925 | U135: 43.1925 | V135: 0
A136: 4.4.10 | B136: =VLOOKUP($A136,Orçamento!$A$3:$J$126,2,FALSE) -> SICRO | C136: =VLOOKUP($A136,Orçamento!$A$3:$J$126,3,FALSE) -> 4805754 | D136: =VLOOKUP($A136,Orçamento!$A$3:$J$126,4,FALSE) -> Compactação Manual | E136: =VLOOKUP($A136,Orçamento!$A$3:$J$126,5,FALSE) -> m³ | F136: =VLOOKUP($A136,Orçamento!$A$3:$J$126,6,FALSE) -> 2686.35 | H136: 0 | I136: 0 | J136: 0 | K136: 0 | L136: =F136/10 -> 268.635 | M136: =L136 -> 268.635 | N136: 268.635 | O136: 268.635 | P136: 268.635 | Q136: 268.635 | R136: 268.635 | S136: 268.635 | T136: 268.635 | U136: 268.635 | V136: 0 | X136: 0
A137: 4.4.11 | B137: =VLOOKUP($A137,Orçamento!$A$3:$J$126,2,FALSE) -> SICRO | C137: =VLOOKUP($A137,Orçamento!$A$3:$J$126,3,FALSE) -> 2003850 | D137: =VLOOKUP($A137,Orçamento!$A$3:$J$126,4,FALSE) -> Lastro de Brita | E137: =VLOOKUP($A137,Orçamento!$A$3:$J$126,5,FALSE) -> m³ | F137: =VLOOKUP($A137,Orçamento!$A$3:$J$126,6,FALSE) -> 131.925 | H137: 0 | I137: 0 | J137: 0 | K137: 0 | L137: 13.1925 | M137: =L137 -> 13.1925 | N137: 13.1925 | O137: 13.1925 | P137: 13.1925 | Q137: 13.1925 | R137: 13.1925 | S137: 13.1925 | T137: 13.1925 | U137: 13.1925 | V137: 0 | X137: 0
A138: 4.4.12 | B138: =VLOOKUP($A138,Orçamento!$A$3:$J$126,2,FALSE) -> SICRO | C138: =VLOOKUP($A138,Orçamento!$A$3:$J$126,3,FALSE) -> 2003947 | D138: =VLOOKUP($A138,Orçamento!$A$3:$J$126,4,FALSE) -> Meio fio de concreto | E138: =VLOOKUP($A138,Orçamento!$A$3:$J$126,5,FALSE) -> m | F138: =VLOOKUP($A138,Orçamento!$A$3:$J$126,6,FALSE) -> 1759 | H138: 0 | I138: 0 | J138: 0 | K138: 0 | L138: 175.9 | M138: =L138 -> 175.9 | N138: 175.9 | O138: 175.9 | P138: 175.9 | Q138: 175.9 | R138: 175.9 | S138: 175.9 | T138: 175.9 | U138: 175.9 | V138: 0 | X138: 0
A139: 4.4.13 | B139: =VLOOKUP($A139,Orçamento!$A$3:$J$126,2,FALSE) -> SICRO | C139: =VLOOKUP($A139,Orçamento!$A$3:$J$126,3,FALSE) -> 4915673 | D139: =VLOOKUP($A139,Orçamento!$A$3:$J$126,4,FALSE) -> Revestimento vegetal com grama em mudas (superficies inclinadas) | E139: =VLOOKUP($A139,Orçamento!$A$3:$J$126,5,FALSE) -> m² | F139: =VLOOKUP($A139,Orçamento!$A$3:$J$126,6,FALSE) -> 43336 | H139: 0 | I139: 0 | J139: 0 | K139: 0 | L139: 4333.6 | M139: =L139 -> 4333.6 | N139: 4333.6 | O139: 4333.6 | P139: 4333.6 | Q139: 4333.6 | R139: 4333.6 | S139: 4333.6 | T139: 4333.6 | U139: 4333.6 | V139: 0 | X139: =F139-SUM(H139:V139) -> 0
A140: 4.4.14 | B140: =VLOOKUP($A140,Orçamento!$A$3:$J$126,2,FALSE) ->  | C140: =VLOOKUP($A140,Orçamento!$A$3:$J$126,3,FALSE) ->  | D140: =VLOOKUP($A140,Orçamento!$A$3:$J$126,4,FALSE) ->  | E140: =VLOOKUP($A140,Orçamento!$A$3:$J$126,5,FALSE) ->  | F140: =VLOOKUP($A140,Orçamento!$A$3:$J$126,6,FALSE) ->  | H140: 0 | I140: 0 | J140: 0 | K140: 0 | M140: =L140 ->  | V140: 0
A141: 4.4.15 | B141: =VLOOKUP($A141,Orçamento!$A$3:$J$126,2,FALSE) ->  | C141: =VLOOKUP($A141,Orçamento!$A$3:$J$126,3,FALSE) ->  | D141: =VLOOKUP($A141,Orçamento!$A$3:$J$126,4,FALSE) ->  | E141: =VLOOKUP($A141,Orçamento!$A$3:$J$126,5,FALSE) ->  | F141: =VLOOKUP($A141,Orçamento!$A$3:$J$126,6,FALSE) ->  | M141: =L141 -> 
F142: =Orçamento!F104 -> 0 | X142: 0
A143: 4.5 | D143: Drenagem Superficial | F143: =Orçamento!F105 -> 0 | H143: 0 | I143: 0 | J143: 0 | K143: 0 | L143: 0 | M143: 0 | N143: 0 | O143: 0 | P143: 0 | Q143: 0 | R143: 0 | S143: 0 | T143: 0 | U143: 0 | V143: 0 | X143: 0
A144: 4.5.1 | B144: =VLOOKUP($A144,Orçamento!$A$3:$J$126,2,FALSE) -> SICRO | C144: =VLOOKUP($A144,Orçamento!$A$3:$J$126,3,FALSE) -> 4915711 | D144: =VLOOKUP($A144,Orçamento!$A$3:$J$126,4,FALSE) -> Limpeza de Descida d'água | E144: =VLOOKUP($A144,Orçamento!$A$3:$J$126,5,FALSE) -> m | F144: =VLOOKUP($A144,Orçamento!$A$3:$J$126,6,FALSE) -> 482 | H144: 0 | I144: 0 | J144: 0 | K144: 0 | L144: 0 | M144: 0 | N144: 0 | O144: 60.25 | P144: 60.25 | Q144: 60.25 | R144: 60.25 | S144: 60.25 | T144: 60.25 | U144: 60.25 | V144: 60.25 | X144: 0
A145: 4.5.2 | B145: =VLOOKUP($A145,Orçamento!$A$3:$J$126,2,FALSE) -> SICRO | C145: =VLOOKUP($A145,Orçamento!$A$3:$J$126,3,FALSE) -> 2003353 | D145: =VLOOKUP($A145,Orçamento!$A$3:$J$126,4,FALSE) -> Valeta trapezoidal de concreto | E145: =VLOOKUP($A145,Orçamento!$A$3:$J$126,5,FALSE) -> m | F145: =VLOOKUP($A145,Orçamento!$A$3:$J$126,6,FALSE) -> 1848 | H145: 0 | I145: 0 | J145: 0 | K145: 0 | L145: 0 | M145: 0 | N145: 0 | O145: 231 | P145: 231 | Q145: 231 | R145: 231 | S145: 231 | T145: 231 | U145: 231 | V145: 231 | X145: 0
A146: 4.5.3 | B146: =VLOOKUP($A146,Orçamento!$A$3:$J$126,2,FALSE) -> SICRO | C146: =VLOOKUP($A146,Orçamento!$A$3:$J$126,3,FALSE) -> 2003477 | D146: =VLOOKUP($A146,Orçamento!$A$3:$J$126,4,FALSE) -> Caixa Coletora | E146: =VLOOKUP($A146,Orçamento!$A$3:$J$126,5,FALSE) -> und | F146: =VLOOKUP($A146,Orçamento!$A$3:$J$126,6,FALSE) -> 18 | H146: 0 | I146: 0 | J146: 0 | K146: 0 | L146: 0 | M146: 0 | N146: 0 | O146: 0 | P146: 0 | Q146: 3 | R146: 3 | S146: 3 | T146: 3 | U146: 3 | V146: 3 | X146: 0
A147: 4.5.4 | B147: =VLOOKUP($A147,Orçamento!$A$3:$J$126,2,FALSE) -> SICRO | C147: =VLOOKUP($A147,Orçamento!$A$3:$J$126,3,FALSE) -> 804021 | D147: =VLOOKUP($A147,Orçamento!$A$3:$J$126,4,FALSE) -> BSTC 600mm | E147: =VLOOKUP($A147,Orçamento!$A$3:$J$126,5,FALSE) -> m | F147: =VLOOKUP($A147,Orçamento!$A$3:$J$126,6,FALSE) -> 24 | H147: 0 | I147: 0 | J147: 0 | K147: 0 | L147: 0 | M147: 0 | N147: 0 | O147: 0 | P147: 0 | Q147: 4 | R147: 4 | S147: 4 | T147: 4 | U147: 4 | V147: 4 | X147: 0
A148: 4.5.5 | B148: =VLOOKUP($A148,Orçamento!$A$3:$J$126,2,FALSE) -> SICRO | C148: =VLOOKUP($A148,Orçamento!$A$3:$J$126,3,FALSE) -> 804037 | D148: =VLOOKUP($A148,Orçamento!$A$3:$J$126,4,FALSE) -> Corpo BSTC 1000mm | E148: =VLOOKUP($A148,Orçamento!$A$3:$J$126,5,FALSE) -> m | F148: =VLOOKUP($A148,Orçamento!$A$3:$J$126,6,FALSE) -> 20 | R148: 5 | S148: 5 | T148: 5 | U148: 5 | X148: 0
A149: 4.5.6 | B149: =VLOOKUP($A149,Orçamento!$A$3:$J$126,2,FALSE) -> SICRO | C149: =VLOOKUP($A149,Orçamento!$A$3:$J$126,3,FALSE) -> 804393 | D149: =VLOOKUP($A149,Orçamento!$A$3:$J$126,4,FALSE) -> Boca BSTC 1000mm | E149: =VLOOKUP($A149,Orçamento!$A$3:$J$126,5,FALSE) -> und | F149: =VLOOKUP($A149,Orçamento!$A$3:$J$126,6,FALSE) -> 2 | R149: 1 | U149: 1 | X149: 0
A150: 4.5.7 | B150: =VLOOKUP($A150,Orçamento!$A$3:$J$126,2,FALSE) -> SICRO | C150: =VLOOKUP($A150,Orçamento!$A$3:$J$126,3,FALSE) -> 804189 | D150: =VLOOKUP($A150,Orçamento!$A$3:$J$126,4,FALSE) -> Corpo BDTC 1000mm | E150: =VLOOKUP($A150,Orçamento!$A$3:$J$126,5,FALSE) -> m | F150: =VLOOKUP($A150,Orçamento!$A$3:$J$126,6,FALSE) -> 20 | R150: 5 | S150: 5 | T150: 5 | U150: 5 | X150: 0
A151: 4.5.8 | B151: =VLOOKUP($A151,Orçamento!$A$3:$J$126,2,FALSE) -> SICRO | C151: =VLOOKUP($A151,Orçamento!$A$3:$J$126,3,FALSE) -> 804417 | D151: =VLOOKUP($A151,Orçamento!$A$3:$J$126,4,FALSE) -> Boca BDTC 1000mm | E151: =VLOOKUP($A151,Orçamento!$A$3:$J$126,5,FALSE) -> und | F151: =VLOOKUP($A151,Orçamento!$A$3:$J$126,6,FALSE) -> 2 | R151: 1 | U151: 1 | X151: 0
A152: 4.5.9 | B152: =VLOOKUP($A152,Orçamento!$A$3:$J$126,2,FALSE) -> SICRO | C152: =VLOOKUP($A152,Orçamento!$A$3:$J$126,3,FALSE) -> 2003453 | D152: =VLOOKUP($A152,Orçamento!$A$3:$J$126,4,FALSE) -> Dissipador de Energia | E152: =VLOOKUP($A152,Orçamento!$A$3:$J$126,5,FALSE) -> und | F152: =VLOOKUP($A152,Orçamento!$A$3:$J$126,6,FALSE) -> 18 | H152: 0 | I152: 0 | J152: 0 | K152: 0 | L152: 0 | M152: 0 | N152: 0 | O152: 0 | P152: 0 | Q152: 0 | R152: 0 | S152: 0 | T152: 6 | U152: 6 | V152: 6 | X152: 0
F153: =Orçamento!F115 -> 0 | X153: 0
A154: 5 | D154: Descarregador de Fundo | F154: =Orçamento!#REF! ->  | H154: 0 | I154: 0 | J154: 0 | K154: 0 | L154: 0 | M154: 0 | N154: 0 | O154: 0 | P154: 0 | Q154: 0 | R154: 0 | S154: 0 | T154: 0 | U154: 0 | V154: 0
A155: 5.1 | D155: Bloco de Ancoragem das Válvulas | F155: =Orçamento!#REF! ->  | H155: 0 | I155: 0 | J155: 0 | K155: 0 | L155: 0 | M155: 0 | N155: 0 | O155: 0 | P155: 0 | Q155: 0 | R155: 0 | S155: 0 | T155: 0 | U155: 0 | V155: 0
A156: 5.1.1 | B156: =VLOOKUP($A156,Orçamento!$A$3:$J$126,2,FALSE) ->  | C156: =VLOOKUP($A156,Orçamento!$A$3:$J$126,3,FALSE) ->  | D156: =VLOOKUP($A156,Orçamento!$A$3:$J$126,4,FALSE) ->  | E156: =VLOOKUP($A156,Orçamento!$A$3:$J$126,5,FALSE) ->  | F156: =VLOOKUP($A156,Orçamento!$A$3:$J$126,6,FALSE) ->  | H156: 0 | I156: 0 | J156: 0 | K156: 0 | L156: 45 | M156: 45 | N156: 0 | O156: 0 | P156: 0 | Q156: 0 | R156: 0 | S156: 0 | T156: 0 | U156: 0 | V156: 0
A157: 5.1.2 | B157: =VLOOKUP($A157,Orçamento!$A$3:$J$126,2,FALSE) ->  | C157: =VLOOKUP($A157,Orçamento!$A$3:$J$126,3,FALSE) ->  | D157: =VLOOKUP($A157,Orçamento!$A$3:$J$126,4,FALSE) ->  | E157: =VLOOKUP($A157,Orçamento!$A$3:$J$126,5,FALSE) ->  | F157: =VLOOKUP($A157,Orçamento!$A$3:$J$126,6,FALSE) ->  | H157: 0 | I157: 0 | J157: 0 | K157: 0 | L157: 4.5 | M157: 4.5 | N157: 0 | O157: 0 | P157: 0 | Q157: 0 | R157: 0 | S157: 0 | T157: 0 | U157: 0 | V157: 0
A158: 5.1.3 | B158: =VLOOKUP($A158,Orçamento!$A$3:$J$126,2,FALSE) ->  | C158: =VLOOKUP($A158,Orçamento!$A$3:$J$126,3,FALSE) ->  | D158: =VLOOKUP($A158,Orçamento!$A$3:$J$126,4,FALSE) ->  | E158: =VLOOKUP($A158,Orçamento!$A$3:$J$126,5,FALSE) ->  | F158: =VLOOKUP($A158,Orçamento!$A$3:$J$126,6,FALSE) ->  | H158: 0 | I158: 0 | J158: 0 | K158: 0 | L158: 0 | M158: 6 | N158: 0 | O158: 0 | P158: 0 | Q158: 0 | R158: 0 | S158: 0 | T158: 0 | U158: 0 | V158: 0
A159: 5.1.4 | B159: =VLOOKUP($A159,Orçamento!$A$3:$J$126,2,FALSE) ->  | C159: =VLOOKUP($A159,Orçamento!$A$3:$J$126,3,FALSE) ->  | D159: =VLOOKUP($A159,Orçamento!$A$3:$J$126,4,FALSE) ->  | E159: =VLOOKUP($A159,Orçamento!$A$3:$J$126,5,FALSE) ->  | F159: =VLOOKUP($A159,Orçamento!$A$3:$J$126,6,FALSE) ->  | H159: 0 | I159: 0 | J159: 0 | K159: 0 | L159: 0 | M159: 1 | N159: 0 | O159: 0 | P159: 0 | Q159: 0 | R159: 0 | S159: 0 | T159: 0 | U159: 0 | V159: 0
A160: 5.1.5 | B160: =VLOOKUP($A160,Orçamento!$A$3:$J$126,2,FALSE) ->  | C160: =VLOOKUP($A160,Orçamento!$A$3:$J$126,3,FALSE) ->  | D160: =VLOOKUP($A160,Orçamento!$A$3:$J$126,4,FALSE) ->  | E160: =VLOOKUP($A160,Orçamento!$A$3:$J$126,5,FALSE) ->  | F160: =VLOOKUP($A160,Orçamento!$A$3:$J$126,6,FALSE) ->  | H160: 0 | I160: 0 | J160: 0 | K160: 0 | L160: 0 | M160: 0 | N160: =F160 ->  | O160: 0 | P160: 0 | Q160: 0 | R160: 0 | S160: 0 | T160: 0 | U160: 0 | V160: 0
A161: 5.1.6 | B161: =VLOOKUP($A161,Orçamento!$A$3:$J$126,2,FALSE) ->  | C161: =VLOOKUP($A161,Orçamento!$A$3:$J$126,3,FALSE) ->  | D161: =VLOOKUP($A161,Orçamento!$A$3:$J$126,4,FALSE) ->  | E161: =VLOOKUP($A161,Orçamento!$A$3:$J$126,5,FALSE) ->  | F161: =VLOOKUP($A161,Orçamento!$A$3:$J$126,6,FALSE) ->  | H161: 0 | I161: 0 | J161: 0 | K161: 0 | L161: 0 | M161: 0 | N161: =F161 ->  | O161: 0 | P161: 0 | Q161: 0 | R161: 0 | S161: 0 | T161: 0 | U161: 0 | V161: 0
A162: 5.1.7 | B162: =VLOOKUP($A162,Orçamento!$A$3:$J$126,2,FALSE) ->  | C162: =VLOOKUP($A162,Orçamento!$A$3:$J$126,3,FALSE) ->  | D162: =VLOOKUP($A162,Orçamento!$A$3:$J$126,4,FALSE) ->  | E162: =VLOOKUP($A162,Orçamento!$A$3:$J$126,5,FALSE) ->  | F162: =VLOOKUP($A162,Orçamento!$A$3:$J$126,6,FALSE) ->  | H162: 0 | I162: 0 | J162: 0 | K162: 0 | L162: 0 | M162: 0 | N162: 23.2 | O162: 0 | P162: 0 | Q162: 0 | R162: 0 | S162: 0 | T162: 0 | U162: 0 | V162: 0
A163: 5.1.8 | B163: =VLOOKUP($A163,Orçamento!$A$3:$J$126,2,FALSE) ->  | C163: =VLOOKUP($A163,Orçamento!$A$3:$J$126,3,FALSE) ->  | D163: =VLOOKUP($A163,Orçamento!$A$3:$J$126,4,FALSE) ->  | E163: =VLOOKUP($A163,Orçamento!$A$3:$J$126,5,FALSE) ->  | F163: =VLOOKUP($A163,Orçamento!$A$3:$J$126,6,FALSE) ->  | H163: 0 | I163: 0 | J163: 0 | K163: 0 | L163: 0 | M163: 0 | N163: 24.2 | O163: 0 | P163: 0 | Q163: 0 | R163: 0 | S163: 0 | T163: 0 | U163: 0 | V163: 0
A164: 5.1.9 | B164: =VLOOKUP($A164,Orçamento!$A$3:$J$126,2,FALSE) ->  | C164: =VLOOKUP($A164,Orçamento!$A$3:$J$126,3,FALSE) ->  | D164: =VLOOKUP($A164,Orçamento!$A$3:$J$126,4,FALSE) ->  | E164: =VLOOKUP($A164,Orçamento!$A$3:$J$126,5,FALSE) ->  | F164: =VLOOKUP($A164,Orçamento!$A$3:$J$126,6,FALSE) ->  | H164: 0 | I164: 0 | J164: 0 | K164: 0 | L164: 0 | M164: 0 | N164: 0 | O164: =F164 ->  | P164: 0 | Q164: 0 | R164: 0 | S164: 0 | T164: 0 | U164: 0 | V164: 0
A165: 5.1.10 | B165: =VLOOKUP($A165,Orçamento!$A$3:$J$126,2,FALSE) ->  | C165: =VLOOKUP($A165,Orçamento!$A$3:$J$126,3,FALSE) ->  | D165: =VLOOKUP($A165,Orçamento!$A$3:$J$126,4,FALSE) ->  | E165: =VLOOKUP($A165,Orçamento!$A$3:$J$126,5,FALSE) ->  | F165: =VLOOKUP($A165,Orçamento!$A$3:$J$126,6,FALSE) ->  | H165: 0 | I165: 0 | J165: 0 | K165: 0 | L165: 0 | M165: 0 | N165: 0 | O165: =F165 ->  | P165: 0 | Q165: 0 | R165: 0 | S165: 0 | T165: 0 | U165: 0 | V165: 0
A166: 5.1.11 | B166: =VLOOKUP($A166,Orçamento!$A$3:$J$126,2,FALSE) ->  | C166: =VLOOKUP($A166,Orçamento!$A$3:$J$126,3,FALSE) ->  | D166: =VLOOKUP($A166,Orçamento!$A$3:$J$126,4,FALSE) ->  | E166: =VLOOKUP($A166,Orçamento!$A$3:$J$126,5,FALSE) ->  | F166: =VLOOKUP($A166,Orçamento!$A$3:$J$126,6,FALSE) ->  | O166: =F166 -> 
A168: 5.2 | D168: =Orçamento!#REF! ->  | F168: =Orçamento!#REF! ->  | H168: 0 | I168: 0 | J168: 0 | K168: 0 | L168: 0 | M168: 0 | N168: 0 | O168: 0 | P168: 0 | Q168: 0 | R168: 0 | S168: 0 | T168: 0 | U168: 0 | V168: 0 | X168: =F168-SUM(H168:V168) -> 
A169: 5.2.1 | B169: =VLOOKUP($A169,Orçamento!$A$3:$J$126,2,FALSE) ->  | C169: =VLOOKUP($A169,Orçamento!$A$3:$J$126,3,FALSE) ->  | D169: =VLOOKUP($A169,Orçamento!$A$3:$J$126,4,FALSE) ->  | E169: =VLOOKUP($A169,Orçamento!$A$3:$J$126,5,FALSE) ->  | F169: =VLOOKUP($A169,Orçamento!$A$3:$J$126,6,FALSE) ->  | H169: 0 | I169: 0 | J169: 0 | K169: 0 | L169: 0 | M169: 0 | N169: 0 | O169: 0 | P169: 0 | Q169: 0 | R169: 0 | S169: 1 | T169: 0 | U169: 0 | V169: 0
A170: 5.2.2 | B170: =VLOOKUP($A170,Orçamento!$A$3:$J$126,2,FALSE) ->  | C170: =VLOOKUP($A170,Orçamento!$A$3:$J$126,3,FALSE) ->  | D170: =VLOOKUP($A170,Orçamento!$A$3:$J$126,4,FALSE) ->  | E170: =VLOOKUP($A170,Orçamento!$A$3:$J$126,5,FALSE) ->  | F170: =VLOOKUP($A170,Orçamento!$A$3:$J$126,6,FALSE) ->  | H170: 0 | I170: 0 | J170: 0 | K170: 0 | L170: 0 | M170: 0 | N170: 0 | O170: 0 | P170: 0 | Q170: 0 | R170: 0 | S170: 2 | T170: 0 | U170: 0 | V170: 0
A171: 5.2.3 | B171: =VLOOKUP($A171,Orçamento!$A$3:$J$126,2,FALSE) ->  | C171: =VLOOKUP($A171,Orçamento!$A$3:$J$126,3,FALSE) ->  | D171: =VLOOKUP($A171,Orçamento!$A$3:$J$126,4,FALSE) ->  | E171: =VLOOKUP($A171,Orçamento!$A$3:$J$126,5,FALSE) ->  | F171: =VLOOKUP($A171,Orçamento!$A$3:$J$126,6,FALSE) ->  | H171: 0 | I171: 0 | J171: 0 | K171: 0 | L171: 0 | M171: 0 | N171: 0 | O171: 0 | P171: 0 | Q171: 0 | R171: 0 | S171: 2 | T171: 0 | U171: 0 | V171: 0
A172: 5.2.4 | B172: =VLOOKUP($A172,Orçamento!$A$3:$J$126,2,FALSE) ->  | C172: =VLOOKUP($A172,Orçamento!$A$3:$J$126,3,FALSE) ->  | D172: =VLOOKUP($A172,Orçamento!$A$3:$J$126,4,FALSE) ->  | E172: =VLOOKUP($A172,Orçamento!$A$3:$J$126,5,FALSE) ->  | F172: =VLOOKUP($A172,Orçamento!$A$3:$J$126,6,FALSE) ->  | H172: 0 | I172: 0 | J172: 0 | K172: 0 | L172: 0 | M172: 0 | N172: 0 | O172: 0 | P172: 0 | Q172: 0 | R172: 0 | S172: 2 | T172: 0 | U172: 0 | V172: 0
A173: 5.2.5 | B173: =VLOOKUP($A173,Orçamento!$A$3:$J$126,2,FALSE) ->  | C173: =VLOOKUP($A173,Orçamento!$A$3:$J$126,3,FALSE) ->  | D173: =VLOOKUP($A173,Orçamento!$A$3:$J$126,4,FALSE) ->  | E173: =VLOOKUP($A173,Orçamento!$A$3:$J$126,5,FALSE) ->  | F173: =VLOOKUP($A173,Orçamento!$A$3:$J$126,6,FALSE) ->  | H173: 0 | I173: 0 | J173: 0 | K173: 0 | L173: 0 | M173: 0 | N173: 0 | O173: 0 | P173: 0 | Q173: 0 | R173: 0 | S173: 2 | T173: 0 | U173: 0 | V173: 0
A174: 5.2.6 | B174: =VLOOKUP($A174,Orçamento!$A$3:$J$126,2,FALSE) ->  | C174: =VLOOKUP($A174,Orçamento!$A$3:$J$126,3,FALSE) ->  | D174: =VLOOKUP($A174,Orçamento!$A$3:$J$126,4,FALSE) ->  | E174: =VLOOKUP($A174,Orçamento!$A$3:$J$126,5,FALSE) ->  | F174: =VLOOKUP($A174,Orçamento!$A$3:$J$126,6,FALSE) ->  | H174: 0 | I174: 0 | J174: 0 | K174: 0 | L174: 0 | M174: 0 | N174: 0 | O174: 0 | P174: 0 | Q174: 0 | R174: 0 | S174: 0 | T174: 0 | U174: 1 | V174: 0
A175: 5.2.7 | B175: =VLOOKUP($A175,Orçamento!$A$3:$J$126,2,FALSE) ->  | C175: =VLOOKUP($A175,Orçamento!$A$3:$J$126,3,FALSE) ->  | D175: =VLOOKUP($A175,Orçamento!$A$3:$J$126,4,FALSE) ->  | E175: =VLOOKUP($A175,Orçamento!$A$3:$J$126,5,FALSE) ->  | F175: =VLOOKUP($A175,Orçamento!$A$3:$J$126,6,FALSE) ->  | H175: 0 | I175: 0 | J175: 0 | K175: 0 | L175: 0 | M175: 0 | N175: 0 | O175: 0 | P175: 0 | Q175: 0 | R175: 0 | S175: 0 | T175: 1 | U175: 0 | V175: 0
A176: 5.2.8 | B176: =VLOOKUP($A176,Orçamento!$A$3:$J$126,2,FALSE) ->  | C176: =VLOOKUP($A176,Orçamento!$A$3:$J$126,3,FALSE) ->  | D176: =VLOOKUP($A176,Orçamento!$A$3:$J$126,4,FALSE) ->  | E176: =VLOOKUP($A176,Orçamento!$A$3:$J$126,5,FALSE) ->  | F176: =VLOOKUP($A176,Orçamento!$A$3:$J$126,6,FALSE) ->  | H176: 0 | I176: 0 | J176: 0 | K176: 0 | L176: 0 | M176: 0 | N176: 0 | O176: 0 | P176: 0 | Q176: 0 | R176: 0 | S176: 0 | T176: 1 | U176: 0 | V176: 0
A177: 5.2.9 | B177: =VLOOKUP($A177,Orçamento!$A$3:$J$126,2,FALSE) ->  | C177: =VLOOKUP($A177,Orçamento!$A$3:$J$126,3,FALSE) ->  | D177: =VLOOKUP($A177,Orçamento!$A$3:$J$126,4,FALSE) ->  | E177: =VLOOKUP($A177,Orçamento!$A$3:$J$126,5,FALSE) ->  | F177: =VLOOKUP($A177,Orçamento!$A$3:$J$126,6,FALSE) ->  | H177: 0 | I177: 0 | J177: 0 | K177: 0 | L177: 0 | M177: 0 | N177: 0 | O177: 0 | P177: 0 | Q177: 0 | R177: 0 | S177: 0 | T177: 0 | U177: 1 | V177: 0
A178: 5.2.10 | B178: =VLOOKUP($A178,Orçamento!$A$3:$J$126,2,FALSE) ->  | C178: =VLOOKUP($A178,Orçamento!$A$3:$J$126,3,FALSE) ->  | D178: =VLOOKUP($A178,Orçamento!$A$3:$J$126,4,FALSE) ->  | E178: =VLOOKUP($A178,Orçamento!$A$3:$J$126,5,FALSE) ->  | F178: =VLOOKUP($A178,Orçamento!$A$3:$J$126,6,FALSE) ->  | H178: 0 | I178: 0 | J178: 0 | K178: 0 | L178: 0 | M178: 0 | N178: 0 | O178: 0 | P178: 0 | Q178: 0 | R178: 0 | S178: 0 | T178: 1 | U178: 0 | V178: 0
A179: 5.2.11 | B179: =VLOOKUP($A179,Orçamento!$A$3:$J$126,2,FALSE) ->  | C179: =VLOOKUP($A179,Orçamento!$A$3:$J$126,3,FALSE) ->  | D179: =VLOOKUP($A179,Orçamento!$A$3:$J$126,4,FALSE) ->  | E179: =VLOOKUP($A179,Orçamento!$A$3:$J$126,5,FALSE) ->  | F179: =VLOOKUP($A179,Orçamento!$A$3:$J$126,6,FALSE) ->  | H179: 0 | I179: 0 | J179: 0 | K179: 0 | L179: 0 | M179: 0 | N179: 0 | O179: 0 | P179: 0 | Q179: 0 | R179: 0 | S179: 0 | T179: 2 | U179: 0 | V179: 0
A180: 5.2.12 | B180: =VLOOKUP($A180,Orçamento!$A$3:$J$126,2,FALSE) ->  | C180: =VLOOKUP($A180,Orçamento!$A$3:$J$126,3,FALSE) ->  | D180: =VLOOKUP($A180,Orçamento!$A$3:$J$126,4,FALSE) ->  | E180: =VLOOKUP($A180,Orçamento!$A$3:$J$126,5,FALSE) ->  | F180: =VLOOKUP($A180,Orçamento!$A$3:$J$126,6,FALSE) ->  | H180: 0 | I180: 0 | J180: 0 | K180: 0 | L180: 0 | M180: 0 | N180: 0 | O180: 0 | P180: 0 | Q180: 0 | R180: 0 | S180: 0 | T180: 1 | U180: 0 | V180: 0
A181: 5.2.13 | B181: =VLOOKUP($A181,Orçamento!$A$3:$J$126,2,FALSE) ->  | C181: =VLOOKUP($A181,Orçamento!$A$3:$J$126,3,FALSE) ->  | D181: =VLOOKUP($A181,Orçamento!$A$3:$J$126,4,FALSE) ->  | E181: =VLOOKUP($A181,Orçamento!$A$3:$J$126,5,FALSE) ->  | F181: =VLOOKUP($A181,Orçamento!$A$3:$J$126,6,FALSE) ->  | H181: 0 | I181: 0 | J181: 0 | K181: 0 | L181: 0 | M181: 0 | N181: 0 | O181: 0 | P181: 0 | Q181: 0 | R181: 0 | S181: 0 | T181: 2 | U181: 0 | V181: 0
A182: 5.2.14 | B182: =VLOOKUP($A182,Orçamento!$A$3:$J$126,2,FALSE) ->  | C182: =VLOOKUP($A182,Orçamento!$A$3:$J$126,3,FALSE) ->  | D182: =VLOOKUP($A182,Orçamento!$A$3:$J$126,4,FALSE) ->  | E182: =VLOOKUP($A182,Orçamento!$A$3:$J$126,5,FALSE) ->  | F182: =VLOOKUP($A182,Orçamento!$A$3:$J$126,6,FALSE) ->  | H182: 0 | I182: 0 | J182: 0 | K182: 0 | L182: 0 | M182: 0 | N182: 0 | O182: 0 | P182: 0 | Q182: 0 | R182: 0 | S182: 0 | T182: 0 | U182: 1 | V182: 0
A183: 5.2.15 | B183: =VLOOKUP($A183,Orçamento!$A$3:$J$126,2,FALSE) ->  | C183: =VLOOKUP($A183,Orçamento!$A$3:$J$126,3,FALSE) ->  | D183: =VLOOKUP($A183,Orçamento!$A$3:$J$126,4,FALSE) ->  | E183: =VLOOKUP($A183,Orçamento!$A$3:$J$126,5,FALSE) ->  | F183: =VLOOKUP($A183,Orçamento!$A$3:$J$126,6,FALSE) ->  | H183: 0 | I183: 0 | J183: 0 | K183: 0 | L183: 0 | M183: 0 | N183: 0 | O183: 0 | P183: 0 | Q183: 0 | R183: 0 | S183: 0 | T183: 2 | U183: 0 | V183: 0
F184: =Orçamento!#REF! -> 
A185: 6 | D185: Momento de Transporte | F185: =Orçamento!F116 -> 0 | H185: 0 | I185: 0 | J185: 0 | K185: 0 | L185: 0 | M185: 0 | N185: 0 | O185: 0 | P185: 0 | Q185: 0 | R185: 0 | S185: 0 | T185: 0 | U185: 0 | V185: 0 | X185: 0
A186: 6.1 | B186: =VLOOKUP($A186,Orçamento!$A$3:$J$126,2,FALSE) ->  | C186: =VLOOKUP($A186,Orçamento!$A$3:$J$126,3,FALSE) ->  | D186: =VLOOKUP($A186,Orçamento!$A$3:$J$126,4,FALSE) ->  | E186: =VLOOKUP($A186,Orçamento!$A$3:$J$126,5,FALSE) ->  | F186: =VLOOKUP($A186,Orçamento!$A$3:$J$126,6,FALSE) ->  | H186: 0 | I186: 0 | J186: 0 | K186: 0 | L186: 0 | M186: 0 | N186: 0 | O186: =F186 ->  | P186: 0 | Q186: 0 | R186: 0 | S186: 0 | T186: 0 | U186: 0 | V186: 0
A187: 6.2 | B187: =VLOOKUP($A187,Orçamento!$A$3:$J$126,2,FALSE) ->  | C187: =VLOOKUP($A187,Orçamento!$A$3:$J$126,3,FALSE) ->  | D187: =VLOOKUP($A187,Orçamento!$A$3:$J$126,4,FALSE) ->  | E187: =VLOOKUP($A187,Orçamento!$A$3:$J$126,5,FALSE) ->  | F187: =VLOOKUP($A187,Orçamento!$A$3:$J$126,6,FALSE) ->  | H187: 0 | I187: 0 | J187: 0 | K187: 0 | L187: 2642.531088 | M187: 2703.711411 | N187: 45009.51214 | O187: 43906.38026 | P187: 43906.38026 | Q187: 43906.38026 | R187: 36647.57641 | S187: 36647.57641 | T187: 36647.57641 | U187: 5221.015047 | V187: 0
A188: 6.3 | B188: =VLOOKUP($A188,Orçamento!$A$3:$J$126,2,FALSE) ->  | C188: =VLOOKUP($A188,Orçamento!$A$3:$J$126,3,FALSE) ->  | D188: =VLOOKUP($A188,Orçamento!$A$3:$J$126,4,FALSE) ->  | E188: =VLOOKUP($A188,Orçamento!$A$3:$J$126,5,FALSE) ->  | F188: =VLOOKUP($A188,Orçamento!$A$3:$J$126,6,FALSE) ->  | H188: 9015.68 | I188: 0 | J188: 928.13 | K188: 2334.41 | L188: 2519.375 | M188: 4853.785 | N188: 333081.4938 | O188: 377312.5937 | P188: 377312.5937 | Q188: 377312.5937 | R188: 75348.49125 | S188: 26117.39125 | T188: 26117.39125 | U188: =26117.4232748001+143.802999999606 -> 26261.22627 | V188: 0
A189: 6.4 | B189: =VLOOKUP($A189,Orçamento!$A$3:$J$126,2,FALSE) ->  | C189: =VLOOKUP($A189,Orçamento!$A$3:$J$126,3,FALSE) ->  | D189: =VLOOKUP($A189,Orçamento!$A$3:$J$126,4,FALSE) ->  | E189: =VLOOKUP($A189,Orçamento!$A$3:$J$126,5,FALSE) ->  | F189: =VLOOKUP($A189,Orçamento!$A$3:$J$126,6,FALSE) ->  | H189: 0 | I189: 0 | J189: 0 | K189: 0 | L189: 0 | M189: 0 | N189: 0 | O189: 0 | P189: 0 | Q189: 0 | R189: 0 | S189: 0 | T189: 0 | U189: 0 | V189: 136.2393396
A190: 6.5 | B190: =VLOOKUP($A190,Orçamento!$A$3:$J$126,2,FALSE) ->  | C190: =VLOOKUP($A190,Orçamento!$A$3:$J$126,3,FALSE) ->  | D190: =VLOOKUP($A190,Orçamento!$A$3:$J$126,4,FALSE) ->  | E190: =VLOOKUP($A190,Orçamento!$A$3:$J$126,5,FALSE) ->  | F190: =ROUND(VLOOKUP($A190,Orçamento!$A$3:$J$126,6,FALSE),2) ->  | H190: 0 | I190: 0 | J190: 0 | K190: 0 | L190: 1648.28 | M190: 1648.28 | N190: 3052.25 | O190: 3052.25 | P190: 3052.25 | Q190: 3052.25 | R190: 1648.28 | S190: 1648.28 | T190: 1648.28 | U190: 1792.06 | V190: 0
A191: 6.6 | B191: =VLOOKUP($A191,Orçamento!$A$3:$J$126,2,FALSE) ->  | C191: =VLOOKUP($A191,Orçamento!$A$3:$J$126,3,FALSE) ->  | D191: =VLOOKUP($A191,Orçamento!$A$3:$J$126,4,FALSE) ->  | E191: =VLOOKUP($A191,Orçamento!$A$3:$J$126,5,FALSE) ->  | F191: =VLOOKUP($A191,Orçamento!$A$3:$J$126,6,FALSE) ->  | H191: 0 | I191: 0 | J191: 406.161 | K191: 0 | L191: 7273.937349 | M191: 38286.58615 | N191: 22780.26175 | O191: 7273.937349 | P191: 7273.937349 | Q191: 7273.937349 | R191: 7273.937349 | S191: 7273.937349 | T191: 7273.937349 | U191: 7273.937349 | V191: 29.463525
A192: 6.7 | B192: =VLOOKUP($A192,Orçamento!$A$3:$J$126,2,FALSE) ->  | C192: =VLOOKUP($A192,Orçamento!$A$3:$J$126,3,FALSE) ->  | D192: =VLOOKUP($A192,Orçamento!$A$3:$J$126,4,FALSE) ->  | E192: =VLOOKUP($A192,Orçamento!$A$3:$J$126,5,FALSE) ->  | F192: =VLOOKUP($A192,Orçamento!$A$3:$J$126,6,FALSE) ->  | H192: 0 | I192: 0 | J192: 0 | K192: 0 | L192: 207.324 | M192: 212.124 | N192: 3512.315095 | O192: 3438.369095 | P192: 3438.369095 | Q192: 3438.369095 | R192: 2875.24418 | S192: 2875.24418 | T192: 2875.24418 | U192: 409.6050801 | V192: 0
A193: 6.8 | B193: =VLOOKUP($A193,Orçamento!$A$3:$J$126,2,FALSE) ->  | C193: =VLOOKUP($A193,Orçamento!$A$3:$J$126,3,FALSE) ->  | D193: =VLOOKUP($A193,Orçamento!$A$3:$J$126,4,FALSE) ->  | E193: =VLOOKUP($A193,Orçamento!$A$3:$J$126,5,FALSE) ->  | F193: =VLOOKUP($A193,Orçamento!$A$3:$J$126,6,FALSE) ->  | R193: =F193/4 ->  | S193: =R193 ->  | T193: =S193 ->  | U193: =T193 -> 
F194: =Orçamento!F124 -> 0 | X194: 0
A195: 7 | D195: Administração Local | F195: =Orçamento!#REF! ->  | H195: =SUBTOTAL(9,H196:H198) -> 0 | I195: =SUBTOTAL(9,I196:I198) -> 0 | J195: 0 | K195: 0 | L195: 0 | M195: 0 | N195: 0 | O195: 0 | P195: 0 | Q195: 0 | R195: 0 | S195: 0 | T195: 0 | U195: 0 | V195: 0
A196: 7.1 | D196: Administração Local | E196: vb | F196: =Orçamento!#REF! ->  | H196: =SUBTOTAL(9,'Desembolso-cronograma'!L$3:L$125)/SUBTOTAL(9,'Desembolso-cronograma'!$J$3:$J$125) -> 0.02865740601 | I196: =SUBTOTAL(9,'Desembolso-cronograma'!M$3:M$125)/SUBTOTAL(9,'Desembolso-cronograma'!$J$3:$J$125) -> 0.02152476872 | J196: =SUBTOTAL(9,'Desembolso-cronograma'!N$3:N$125)/SUBTOTAL(9,'Desembolso-cronograma'!$J$3:$J$125) -> 0.01757755905 | K196: =SUBTOTAL(9,'Desembolso-cronograma'!O$3:O$125)/SUBTOTAL(9,'Desembolso-cronograma'!$J$3:$J$125) -> 0.03158750029 | L196: =SUBTOTAL(9,'Desembolso-cronograma'!P$3:P$125)/SUBTOTAL(9,'Desembolso-cronograma'!$J$3:$J$125) -> 0.05056220086 | M196: =SUBTOTAL(9,'Desembolso-cronograma'!Q$3:Q$125)/SUBTOTAL(9,'Desembolso-cronograma'!$J$3:$J$125) -> 0.1252910561 | N196: =SUBTOTAL(9,'Desembolso-cronograma'!R$3:R$125)/SUBTOTAL(9,'Desembolso-cronograma'!$J$3:$J$125) -> 0.1654455996 | O196: =SUBTOTAL(9,'Desembolso-cronograma'!S$3:S$125)/SUBTOTAL(9,'Desembolso-cronograma'!$J$3:$J$125) -> 0.2030953296 | P196: =SUBTOTAL(9,'Desembolso-cronograma'!T$3:T$125)/SUBTOTAL(9,'Desembolso-cronograma'!$J$3:$J$125) -> 0.1839645259 | Q196: =SUBTOTAL(9,'Desembolso-cronograma'!U$3:U$125)/SUBTOTAL(9,'Desembolso-cronograma'!$J$3:$J$125) -> 0.1276721196 | R196: =SUBTOTAL(9,'Desembolso-cronograma'!V$3:V$125)/SUBTOTAL(9,'Desembolso-cronograma'!$J$3:$J$125) -> 0.0278926487 | S196: =SUBTOTAL(9,'Desembolso-cronograma'!W$3:W$125)/SUBTOTAL(9,'Desembolso-cronograma'!$J$3:$J$125) -> 0.01672928673 | T196: =SUBTOTAL(9,'Desembolso-cronograma'!X$3:X$125)/SUBTOTAL(9,'Desembolso-cronograma'!$J$3:$J$125) -> 0 | U196: =SUBTOTAL(9,'Desembolso-cronograma'!Y$3:Y$125)/SUBTOTAL(9,'Desembolso-cronograma'!$J$3:$J$125) -> 0 | V196: =SUBTOTAL(9,'Desembolso-cronograma'!Z$3:Z$125)/SUBTOTAL(9,'Desembolso-cronograma'!$J$3:$J$125) -> 0 | X196: =F196-SUM(H196:V196) -> 
F197: =Orçamento!F125 -> 0
D199: TOTAL
D200: TOTAL ACUMULADO

Sheet Composições
A1: COMPOSIÇÃO ANALÍTICA DE CUSTOS
A2: CÓDIGO: | B2: 0.001 | F2: DATA BASE:
A3: DESCRIÇÃO: | B3: Mobilização | F3: UNIDADE: | G3: und
A4: CÓDIGO | C4: DESCRIÇÃO | D4: UN. | E4: INCIDÊNCIA | F4: CUSTO UNITÁRIO | G4: SUB TOTAL
C5: A - EQUIPAMENTOS | F5: TOTAL | G5: =SUM(G13:G13) -> 0
A7: Sicro | B7: E9134 | C7: Minônibus - 111kW | D7: h | E7: 34 | F7: 126.66 | G7: =E7*F7 -> 4306.44
A8: Sicro | B8: E9571 | C8: Caminhão tanque com capacidade 10.000 l - 188kw | D8: h | E8: 4.2 | F8: 189.89 | G8: =E8*F8 -> 797.538
A9: Sicro | B9: E9600 | C9: Caminhão betoneira com capacidade - 8m³ - 188kW | D9: h | E9: 12.6 | F9: 165.1 | G9: 2080.26
A10: Sicro | B10: E9508 | C10: Caminhão carroceria com capacidade - 9t - 136kW | D10: h | E10: 8.4 | F10: 105.91 | G10: 889.644
A11: Sicro | B11: E9667 | C11: Caminhão basculante com capacidade - 14m³ - 188kW | D11: h | E11: 33.6 | F11: 156.38 | G11: 5254.368
A12: Sicro | B12: 5914640 | C12: Transporte com cavalo mecânico de 30t | D12: Txkm | E12: 107100 | F12: 0.3 | G12: 32130
C14: B - MATERIAIS | F14: TOTAL | G14: =SUM(G7:G12) -> 45458.25
C17: C-MÃO DE OBRA | F17: TOTAL | G17: 0
C20: D-CUSTOS AUXILIARES | F20: TOTAL | G20: 0
F22: TOTAL DO CUSTO | G22: =G5+G14+G17+G20 -> 45458.25
F23: BDI | G23: 0
F24: PREÇO TOTAL | G24: 0
A26: COMPOSIÇÃO ANALÍTICA DE CUSTOS
A27: CÓDIGO: | B27: 0.002 | F27: DATA BASE:
A28: DESCRIÇÃO: | B28: Mobilização | F28: UNIDADE: | G28: und
A29: CÓDIGO | C29: DESCRIÇÃO | D29: UN. | E29: INCIDÊNCIA | F29: CUSTO UNITÁRIO | G29: SUB TOTAL
C30: A - EQUIPAMENTOS | F30: TOTAL | G30: =SUM(G38:G38) -> 0
A32: Sicro | B32: E9134 | C32: Minônibus - 111kW | D32: h | E32: 34 | F32: 126.66 | G32: =E32*F32 -> 4306.44
A33: Sicro | B33: E9571 | C33: Caminhão tanque com capacidade 10.000 l - 188kw | D33: h | E33: 4.2 | F33: 189.89 | G33: =E33*F33 -> 797.538
A34: Sicro | B34: E9600 | C34: Caminhão betoneira com capacidade - 8m³ - 188kW | D34: h | E34: 12.6 | F34: 165.1 | G34: 2080.26
A35: Sicro | B35: E9508 | C35: Caminhão carroceria com capacidade - 9t - 136kW | D35: h | E35: 8.4 | F35: 105.91 | G35: 889.644
A36: Sicro | B36: E9667 | C36: Caminhão basculante com capacidade - 14m³ - 188kW | D36: h | E36: 33.6 | F36: 156.38 | G36: 5254.368
A37: Sicro | B37: 5914640 | C37: Transporte com cavalo mecânico de 30t | D37: Txkm | E37: 107100 | F37: 0.3 | G37: 32130
C39: B - MATERIAIS | F39: TOTAL | G39: =SUM(G32:G37) -> 45458.25
C42: C-MÃO DE OBRA | F42: TOTAL | G42: 0
C45: D-CUSTOS AUXILIARES | F45: TOTAL | G45: 0
F47: TOTAL DO CUSTO | G47: =G30+G39+G42+G45 -> 45458.25
F48: BDI | G48: 0
F49: PREÇO TOTAL | G49: 0
A51: COMPOSIÇÃO ANALÍTICA DE CUSTOS
A52: CÓDIGO: | B52: 0.003 | F52: DATA BASE:
A53: DESCRIÇÃO: | B53: Placa de obras | F53: UNIDADE: | G53: und
A54: CÓDIGO | C54: DESCRIÇÃO | D54: UN. | E54: INCIDÊNCIA | F54: CUSTO UNITÁRIO | G54: SUB TOTAL
C55: A - EQUIPAMENTOS | F55: TOTAL
C58: B - MATERIAIS | F58: TOTAL | G58: =SUM(G60:G64) -> 274.2758
A60: SINAPI | B60: 4417 | C60: Sarrafo de madeira não aparelhada | D60: m | E60: 1 | F60: 4.31 | G60: =E60*F60 -> 4.31
A61: SINAPI | B61: 4491 | C61: Pontalete de madeira nativa não aparelhada | D61: m | E61: 4 | F61: 3.93 | G61: =E61*F61 -> 15.72
A62: SINAPI | B62: 5075 | C62: prego | D62: kg | E62: 0.11 | F62: 11.7 | G62: =E62*F62 -> 1.287
A63: SINAPI | B63: 94962 | C63: concreto magro para lastro | D63: m³ | E63: 0.01 | F63: 295.88 | G63: =E63*F63 -> 2.9588 | L63: 295.88
A64: SINAPI | B64: 4813 | C64: placa de obra | D64: m² | E64: 1 | F64: 250 | G64: =E64*F64 -> 250
C67: C-MÃO DE OBRA | F67: TOTAL | G67: =SUM(G69:G70) -> 50.16
A69: SINAPI | B69: 88262 | C69: capinteiro de formas com engarcos complementares | E69: 1 | F69: 20.66 | G69: =E69*F69 -> 20.66
A70: SINAPI | B70: 88316 | C70: servente com encargos complementares | E70: 2 | F70: 14.75 | G70: =E70*F70 -> 29.5
C72: D-CUSTOS AUXILIARES | F72: TOTAL | G72: 0
G75: =F75*E75 -> 0
F76: TOTAL DO CUSTO | G76: =G55+G58+G67+G72 -> 324.4358
F77: BDI | G77: 0
F78: PREÇO TOTAL | G78: 0
A80: COMPOSIÇÃO ANALÍTICA DE CUSTOS
A81: CÓDIGO: | B81: 0.004 | F81: DATA BASE:
A82: DESCRIÇÃO: | B82: Administração Local e manutenção | F82: UNIDADE: | G82: und
A83: CÓDIGO | C83: DESCRIÇÃO | D83: UN. | E83: INCIDÊNCIA | F83: CUSTO UNITÁRIO | G83: SUB TOTAL
C84: A - EQUIPAMENTOS | F84: TOTAL | G84: =SUM(G86:G87) -> 17646.25
A86: Codevasf (Sede) | C86: Caminhonete | D86: mês | E86: 1 | F86: 5885.33 | G86: =F86*E86 -> 5885.33
A87: Codevasf (Sede) | C87: Van Standard T.B. 2.2 Dies. | D87: mês | E87: 1 | F87: 11760.92 | G87: =F87*E87 -> 11760.92
C89: B - MATERIAIS | F89: TOTAL
C92: C-MÃO DE OBRA | F92: TOTAL | G92: =SUM(G94:G97) -> 27979.808
A94: SINAPI | B94: 93567 | C94: Gerência Técnica (engenheiro civil pleno com engargos complementares) | D94: mês | E94: 1 | F94: 17915.14 | G94: =E94*F94 -> 17915.14
A95: SINAPI | B95: 94296 | C95: Topografia (Topógrafo com encargos complementares) | D95: mês | E95: 0.6 | F95: 3334.98 | G95: =E95*F95 -> 2000.988
A96: SINAPI | B96: 100321 | C96: Técnico em Segurança do Trabalho | D96: mês | E96: 1 | F96: 4849.63 | G96: 4849.63
A97: SINAPI | B97: 100534 | C97: Controle Tecnológico e Manutenção | D97: mês | E97: 1 | F97: 3214.05 | G97: 3214.05
C99: D-CUSTOS AUXILIARES | F99: TOTAL | G99: 0
G102: =F102*E102 -> 0
F103: TOTAL DO CUSTO | G103: =G84+G89+G92+G99 -> 45626.058
F104: BDI | G104: 0
F105: PREÇO TOTAL | G105: 0
A107: COMPOSIÇÃO ANALÍTICA DE CUSTOS
A108: CÓDIGO: | B108: 0.005 | F108: DATA BASE:
A109: DESCRIÇÃO: | B109: Instalação do Canteiro de Obras | F109: UNIDADE: | G109: und
A110: CÓDIGO | C110: DESCRIÇÃO | D110: UN. | E110: INCIDÊNCIA | F110: CUSTO UNITÁRIO | G110: SUB TOTAL
C111: A - EQUIPAMENTOS | F111: TOTAL
C113: B - MATERIAIS | F113: TOTAL | G113: =SUM(G114:G116) -> 0
C117: C-MÃO DE OBRA | F117: TOTAL | G117: =SUM(G118:G118) -> 0
G118: =E118*F118 -> 0
C119: D-CUSTOS AUXILIARES | F119: TOTAL | G119: =SUM(G121:G129) -> 120401.05
A121: SINAPI | B121: 10776 | C121: Escritório (locação de container) | D121: und | E121: 28 | F121: 407.81 | G121: =E121*F121 -> 11418.68 | H121: 522
A122: SINAPI | B122: 93208 | C122: Almoxarifado | D122: m² | E122: 20 | F122: 578.1 | G122: 11562
A123: SINAPI | B123: 93210 | C123: Refeitório | D123: m² | E123: 30 | F123: 399.6 | G123: 11988
A124: SINAPI | B124: 93212 | C124: Banheiros e Vestiários | D124: m² | E124: 15 | F124: 674.14 | G124: 10112.1
A125: SINAPI | B125: 93585 | C125: Guarita | D125: m² | E125: 4 | F125: 790.83 | G125: 3163.32
A126: SINAPI | B126: 93214 | C126: Reservatório Elevado | D126: und | E126: 1 | F126: 3967.23 | G126: 3967.23
A127: SINAPI | B127: 98054 | C127: Tanque Séptico | D127: und | E127: 1 | F127: 2457.04 | G127: 2457.04
A128: SINAPI | B128: 98090 | C128: Filtro Anaeróbio | D128: und | E128: 1 | F128: 6339.72 | G128: 6339.72
A129: COMPOS. | B129: 0.007 | C129: Grupo Gerador 40KVA | D129: mês | E129: 11 | F129: =G175 -> 5399.36 | G129: 59392.96
G132: =F132*E132 -> 0
F133: TOTAL DO CUSTO | G133: =G111+G113+G119 -> 120401.05
F134: BDI | G134: 0
F135: PREÇO TOTAL | G135: 0
A137: COMPOSIÇÃO ANALÍTICA DE CUSTOS
A138: CÓDIGO: | B138: 0.006 | F138: DATA BASE:
A139: DESCRIÇÃO: | B139: Junta de dilatação | F139: UNIDADE: | G139: und
A140: CÓDIGO | C140: DESCRIÇÃO | D140: UN. | E140: INCIDÊNCIA | F140: CUSTO UNITÁRIO | G140: SUB TOTAL
C141: A - EQUIPAMENTOS | F141: TOTAL | G141: =SUM(G143:G143) -> 0
C144: B - MATERIAIS | F144: TOTAL | G144: =SUM(G145:G147) -> 87.85
C146: Junta de dilatação elástica O-22 | D146: m | E146: 1 | F146: 87.85 | G146: =F146*E146 -> 87.85
C148: C-MÃO DE OBRA | F148: TOTAL | G148: =SUM(G149) -> 2.2125
C149: Servente com encargos complementares | D149: h | E149: 0.15 | F149: 14.75 | G149: =F149*E149 -> 2.2125
C151: D-CUSTOS AUXILIARES | F151: TOTAL | G151: =SUM(G153:G154) -> 0
G154: =F154*E154 -> 0
F155: TOTAL DO CUSTO | G155: =G146+G149 -> 90.0625
F156: BDI | G156: 0
F157: PREÇO TOTAL | G157: 0
A159: COMPOSIÇÃO ANALÍTICA DE CUSTOS
A160: CÓDIGO: | B160: 0.007 | F160: DATA BASE:
A161: DESCRIÇÃO: | B161: Grupo Gerador 145/160KVA | F161: UNIDADE: | G161: mês
A162: CÓDIGO | C162: DESCRIÇÃO | D162: UN. | E162: INCIDÊNCIA | F162: CUSTO UNITÁRIO | G162: SUB TOTAL
C163: A - EQUIPAMENTOS | F163: TOTAL | G163: =SUM(G164:G167) -> 5399.36
A164: SICRO | B164: E9763 | C164: Grupo gerador - 40 kVA - Produtivo | D164: h | E164: =22*8 -> 176 | F164: 22.24 | G164: =E164*F164 -> 3914.24
A165: SICRO | B165: E9763 | C165: Grupo gerador - 40 kVA - Improdutivo | D165: h | E165: =22*16+8*24 -> 544 | F165: 2.73 | G165: =E165*F165 -> 1485.12
C168: B - MATERIAIS | F168: TOTAL | G168: =SUM(G169:G170) -> 0
C171: C-MÃO DE OBRA | F171: TOTAL | G171: =SUM(G172:G172) -> 0
G172: =E172*F172 -> 0
C173: D-CUSTOS AUXILIARES | F173: TOTAL | G173: =SUM(G174:G174) -> 0
F175: TOTAL DO CUSTO | G175: =G163+G168+G171+G173 -> 5399.36
F176: BDI | G176: 0
F177: PREÇO TOTAL | G177: 0

Sheet BDI
B2: Detalhamento do BDI
B3: Itens Relativos à Administração da Obra | C3: =SUM(C4:C8) -> 0.061
A4: B | B4: Administração Central | C4: 0.038
A5: C | B5: Despesa Financeira | C5: 0.0094
A6: D | B6: Riscos | C6: 0.01
A7: E | B7: Seguros e Garantias Contratuais | C7: 0.0036
B9: Lucro | C9: =SUM(C10:C11) -> 0.069
A10: F | B10: Margem Bruta | C10: 0.069
B12: Tributos | C12: =SUM(C13:C16) -> 0.0665
A13: G | B13: PIS | C13: 0.0065
A14: H | B14: COFINS | C14: 0.03
A15: I | B15: ISS | C15: 0.03 | D15: Informado pela Secretaria de Finanças de Formosa-GO (ligação telefônica - 09h40 - 04/11/2020).
B16: CPRB | C16: 0
B17: BDI com Tributos | C17: =1/(1-C3-C9-C12)-1 -> 0.2445550716

Sheet Desembolso-cronograma
A1: ORÇAMENTO PROJETO DE RECUPERAÇÃO - BARRAGEM PARANÃ | K1: BDI
A2: ítem | B2: Base | C2: Código | D2: Descrição | E2: Und | F2: Qtd | G2: Custo Unitário (R$) | H2: Custo Total (R$) | I2: Preço Unitário (R$) | J2: Preço Total (R$) | L2: M1 | M2: M2 | N2: M3 | O2: M4 | P2: M5 | Q2: M6 | R2: M7 | S2: M8 | T2: M9 | U2: M10 | V2: M11 | W2: M12 | X2: M13 | Y2: M14 | Z2: M15
A3: 1 | D3: Serviços Preliminares | H3: =SUBTOTAL(9,H4:H16) -> 772771.0818 | J3: =SUBTOTAL(9,J4:J16) -> 961743.6 | L3: =SUBTOTAL(9,L4:L16) -> 188686.09 | M3: 140017.01 | N3: 64416.14 | O3: 56784.14 | P3: 56784.14 | Q3: 56784.14 | R3: 56784.14 | S3: 57775.94 | T3: 56784.14 | U3: 56784.14 | V3: 56784.14 | W3: 113359.44 | X3: 0 | Y3: 0 | Z3: 0
A4: 1.1 | D4: Mobilizações e Desmobilizações | H4: =SUBTOTAL(9,H5:H10) -> 759154.6818 | J4: =SUBTOTAL(9,J5:J10) -> 944809.8 | L4: =SUBTOTAL(9,L5:L10) -> 188686.09 | M4: 131707.01 | N4: 56784.14 | O4: 56784.14 | P4: 56784.14 | Q4: 56784.14 | R4: 56784.14 | S4: 56784.14 | T4: 56784.14 | U4: 56784.14 | V4: 56784.14 | W4: 113359.44 | X4: 0 | Y4: 0 | Z4: 0
A5: 1.1.1 | B5: =VLOOKUP($A5,Orçamento!$A$3:$J$125,2,FALSE) -> COMPOS. | D5: =VLOOKUP($A5,Orçamento!$A$3:$J$125,4,FALSE) -> Mobilizaçãos de Equipamentos e Pessoal | E5: =VLOOKUP($A5,Orçamento!$A$3:$J$125,5,FALSE) -> un. | F5: =VLOOKUP($A5,Orçamento!$A$3:$J$125,6,FALSE) -> 1 | G5: =VLOOKUP($A5,Orçamento!$A$3:$J$125,7,FALSE) -> 45458.25 | H5: =VLOOKUP($A5,Orçamento!$A$3:$J$125,8,FALSE) -> 45458.25 | I5: =VLOOKUP($A5,Orçamento!$A$3:$J$125,9,FALSE) -> 56575.3 | J5: =VLOOKUP($A5,Orçamento!$A$3:$J$125,10,FALSE) -> 56575.3 | L5: =Eventograma!H5*'Desembolso-cronograma'!$I5 -> 56575.3 | M5: =Eventograma!I5*'Desembolso-cronograma'!$I5 -> 0 | N5: =Eventograma!J5*'Desembolso-cronograma'!$I5 -> 0 | O5: =Eventograma!K5*'Desembolso-cronograma'!$I5 -> 0 | P5: =Eventograma!L5*'Desembolso-cronograma'!$I5 -> 0 | Q5: =Eventograma!M5*'Desembolso-cronograma'!$I5 -> 0 | R5: =Eventograma!N5*'Desembolso-cronograma'!$I5 -> 0 | S5: =Eventograma!O5*'Desembolso-cronograma'!$I5 -> 0 | T5: =Eventograma!P5*'Desembolso-cronograma'!$I5 -> 0 | U5: =Eventograma!Q5*'Desembolso-cronograma'!$I5 -> 0 | V5: =Eventograma!R5*'Desembolso-cronograma'!$I5 -> 0 | W5: =Eventograma!S5*'Desembolso-cronograma'!$I5 -> 0 | X5: =Eventograma!T5*'Desembolso-cronograma'!$I5 -> 0 | Y5: =Eventograma!U5*'Desembolso-cronograma'!$I5 -> 0 | Z5: =Eventograma!V5*'Desembolso-cronograma'!$I5 -> 0
A6: 1.1.2 | B6: =VLOOKUP($A6,Orçamento!$A$3:$J$125,2,FALSE) -> COMPOS. | D6: =VLOOKUP($A6,Orçamento!$A$3:$J$125,4,FALSE) -> Desmobilização de Equipamentos e Pessoal | E6: =VLOOKUP($A6,Orçamento!$A$3:$J$125,5,FALSE) -> un. | F6: =VLOOKUP($A6,Orçamento!$A$3:$J$125,6,FALSE) -> 1 | G6: =VLOOKUP($A6,Orçamento!$A$3:$J$125,7,FALSE) -> 45458.25 | H6: =VLOOKUP($A6,Orçamento!$A$3:$J$125,8,FALSE) -> 45458.25 | I6: =VLOOKUP($A6,Orçamento!$A$3:$J$125,9,FALSE) -> 56575.3 | J6: =VLOOKUP($A6,Orçamento!$A$3:$J$125,10,FALSE) -> 56575.3 | L6: =Eventograma!H6*'Desembolso-cronograma'!$I6 -> 0 | M6: =Eventograma!I6*'Desembolso-cronograma'!$I6 -> 0 | N6: =Eventograma!J6*'Desembolso-cronograma'!$I6 -> 0 | O6: =Eventograma!K6*'Desembolso-cronograma'!$I6 -> 0 | P6: =Eventograma!L6*'Desembolso-cronograma'!$I6 -> 0 | Q6: =Eventograma!M6*'Desembolso-cronograma'!$I6 -> 0 | R6: =Eventograma!N6*'Desembolso-cronograma'!$I6 -> 0 | S6: =Eventograma!O6*'Desembolso-cronograma'!$I6 -> 0 | T6: =Eventograma!P6*'Desembolso-cronograma'!$I6 -> 0 | U6: =Eventograma!Q6*'Desembolso-cronograma'!$I6 -> 0 | V6: =Eventograma!R6*'Desembolso-cronograma'!$I6 -> 0 | W6: =Eventograma!V6*'Desembolso-cronograma'!$I6 -> 56575.3 | X6: =Eventograma!T6*'Desembolso-cronograma'!$I6 -> 0 | Y6: =Eventograma!U6*'Desembolso-cronograma'!$I6 -> 0
A7: 1.1.3 | B7: =VLOOKUP($A7,Orçamento!$A$3:$J$125,2,FALSE) -> COMPOS. | D7: Placa de obra | E7: un. | F7: 1 | G7: =VLOOKUP($A7,Orçamento!$A$3:$J$125,7,FALSE) -> 324.4358 | H7: =VLOOKUP($A7,Orçamento!$A$3:$J$125,8,FALSE) -> 324.4358 | I7: =VLOOKUP($A7,Orçamento!$A$3:$J$125,9,FALSE) -> 403.78 | J7: =VLOOKUP($A7,Orçamento!$A$3:$J$125,10,FALSE) -> 403.78 | L7: =J7 -> 403.78
A8: 1.1.4 | B8: =VLOOKUP($A8,Orçamento!$A$3:$J$125,2,FALSE) -> COMPOS. | D8: Administração Local e manutenção | E8: mês | F8: 12 | G8: =VLOOKUP($A8,Orçamento!$A$3:$J$125,7,FALSE) -> 45626.058 | H8: =VLOOKUP($A8,Orçamento!$A$3:$J$125,8,FALSE) -> 547512.696 | I8: =VLOOKUP($A8,Orçamento!$A$3:$J$125,9,FALSE) -> 56784.14 | J8: =VLOOKUP($A8,Orçamento!$A$3:$J$125,10,FALSE) -> 681409.68 | L8: =$J$8/12 -> 56784.14 | M8: =$J$8/12 -> 56784.14 | N8: 56784.14 | O8: 56784.14 | P8: 56784.14 | Q8: 56784.14 | R8: 56784.14 | S8: 56784.14 | T8: 56784.14 | U8: 56784.14 | V8: 56784.14 | W8: 56784.14
A9: 1.1.5 | B9: =VLOOKUP($A9,Orçamento!$A$3:$J$125,2,FALSE) -> COMPOS. | D9: Instalação de Canteiro de Obra | E9: un. | F9: 1 | G9: =VLOOKUP($A9,Orçamento!$A$3:$J$125,7,FALSE) -> 120401.05 | H9: =VLOOKUP($A9,Orçamento!$A$3:$J$125,8,FALSE) -> 120401.05 | I9: =VLOOKUP($A9,Orçamento!$A$3:$J$125,9,FALSE) -> 149845.74 | J9: =VLOOKUP($A9,Orçamento!$A$3:$J$125,10,FALSE) -> 149845.74 | L9: =$J$9/2 -> 74922.87 | M9: =$J$9/2 -> 74922.87
A11: 1.3 | D11: Acessos | F11: =Orçamento!F10 -> 0 | G11: =Orçamento!G10 -> 0 | H11: =SUBTOTAL(9,H12:H15) -> 13616.4 | J11: =SUBTOTAL(9,J12:J15) -> 16933.8 | L11: =SUBTOTAL(9,L12:L16) -> 0 | M11: 8310 | N11: 7632 | O11: 0 | P11: 0 | Q11: 0 | R11: 0 | S11: 991.8 | T11: 0 | U11: 0 | V11: 0 | W11: 0 | X11: 0 | Y11: 0 | Z11: 0
A12: 1.3.1 | B12: =VLOOKUP($A12,Orçamento!$A$3:$J$125,2,FALSE) -> SICRO | C12: =VLOOKUP($A12,Orçamento!$A$3:$J$125,3,FALSE) -> 5502986 | D12: =VLOOKUP($A12,Orçamento!$A$3:$J$125,4,FALSE) -> Expurgo | E12: =VLOOKUP($A12,Orçamento!$A$3:$J$125,5,FALSE) -> m³ | F12: =VLOOKUP($A12,Orçamento!$A$3:$J$125,6,FALSE) -> 1500 | G12: =VLOOKUP($A12,Orçamento!$A$3:$J$125,7,FALSE) -> 1.78 | H12: =VLOOKUP($A12,Orçamento!$A$3:$J$125,8,FALSE) -> 2670 | I12: =VLOOKUP($A12,Orçamento!$A$3:$J$125,9,FALSE) -> 2.22 | J12: =VLOOKUP($A12,Orçamento!$A$3:$J$125,10,FALSE) -> 3330 | L12: =Eventograma!H33*'Desembolso-cronograma'!$I12 -> 0 | M12: =Eventograma!I33*'Desembolso-cronograma'!$I12 -> 3330 | N12: =Eventograma!J33*'Desembolso-cronograma'!$I12 -> 0 | O12: =Eventograma!K33*'Desembolso-cronograma'!$I12 -> 0 | P12: =Eventograma!L33*'Desembolso-cronograma'!$I12 -> 0 | Q12: =Eventograma!M33*'Desembolso-cronograma'!$I12 -> 0 | R12: =Eventograma!N33*'Desembolso-cronograma'!$I12 -> 0 | S12: =Eventograma!O33*'Desembolso-cronograma'!$I12 -> 0 | T12: =Eventograma!P33*'Desembolso-cronograma'!$I12 -> 0 | U12: =Eventograma!Q33*'Desembolso-cronograma'!$I12 -> 0 | V12: =Eventograma!R33*'Desembolso-cronograma'!$I12 -> 0 | W12: =Eventograma!S33*'Desembolso-cronograma'!$I12 -> 0 | X12: =Eventograma!T33*'Desembolso-cronograma'!$I12 -> 0 | Y12: =Eventograma!U33*'Desembolso-cronograma'!$I12 -> 0 | Z12: =Eventograma!V33*'Desembolso-cronograma'!$I12 -> 0
A13: 1.3.2 | B13: =VLOOKUP($A13,Orçamento!$A$3:$J$125,2,FALSE) -> SICRO | C13: =VLOOKUP($A13,Orçamento!$A$3:$J$125,3,FALSE) -> 4011209 | D13: =VLOOKUP($A13,Orçamento!$A$3:$J$125,4,FALSE) -> Regularização do Subleito | E13: =VLOOKUP($A13,Orçamento!$A$3:$J$125,5,FALSE) -> m² | F13: =VLOOKUP($A13,Orçamento!$A$3:$J$125,6,FALSE) -> 6000 | G13: =VLOOKUP($A13,Orçamento!$A$3:$J$125,7,FALSE) -> 0.67 | H13: =VLOOKUP($A13,Orçamento!$A$3:$J$125,8,FALSE) -> 4020 | I13: =VLOOKUP($A13,Orçamento!$A$3:$J$125,9,FALSE) -> 0.83 | J13: =VLOOKUP($A13,Orçamento!$A$3:$J$125,10,FALSE) -> 4980 | L13: =Eventograma!H34*'Desembolso-cronograma'!$I13 -> 0 | M13: =Eventograma!I34*'Desembolso-cronograma'!$I13 -> 4980 | N13: =Eventograma!J34*'Desembolso-cronograma'!$I13 -> 0 | O13: =Eventograma!K34*'Desembolso-cronograma'!$I13 -> 0 | P13: =Eventograma!L34*'Desembolso-cronograma'!$I13 -> 0 | Q13: =Eventograma!M34*'Desembolso-cronograma'!$I13 -> 0 | R13: =Eventograma!N34*'Desembolso-cronograma'!$I13 -> 0 | S13: =Eventograma!O34*'Desembolso-cronograma'!$I13 -> 0 | T13: =Eventograma!P34*'Desembolso-cronograma'!$I13 -> 0 | U13: =Eventograma!Q34*'Desembolso-cronograma'!$I13 -> 0 | V13: =Eventograma!R34*'Desembolso-cronograma'!$I13 -> 0 | W13: =Eventograma!S34*'Desembolso-cronograma'!$I13 -> 0 | X13: =Eventograma!T34*'Desembolso-cronograma'!$I13 -> 0 | Y13: =Eventograma!U34*'Desembolso-cronograma'!$I13 -> 0 | Z13: =Eventograma!V34*'Desembolso-cronograma'!$I13 -> 0
A14: 1.3.3 | B14: =VLOOKUP($A14,Orçamento!$A$3:$J$125,2,FALSE) -> SICRO | C14: =VLOOKUP($A14,Orçamento!$A$3:$J$125,3,FALSE) -> 4015612 | D14: =VLOOKUP($A14,Orçamento!$A$3:$J$125,4,FALSE) -> Revestimento Primário de Acesso | E14: =VLOOKUP($A14,Orçamento!$A$3:$J$125,5,FALSE) -> m³ | F14: =VLOOKUP($A14,Orçamento!$A$3:$J$125,6,FALSE) -> 900 | G14: =VLOOKUP($A14,Orçamento!$A$3:$J$125,7,FALSE) -> 6.81 | H14: =VLOOKUP($A14,Orçamento!$A$3:$J$125,8,FALSE) -> 6129 | I14: =VLOOKUP($A14,Orçamento!$A$3:$J$125,9,FALSE) -> 8.48 | J14: =VLOOKUP($A14,Orçamento!$A$3:$J$125,10,FALSE) -> 7632 | L14: =Eventograma!H35*'Desembolso-cronograma'!$I14 -> 0 | M14: =Eventograma!I35*'Desembolso-cronograma'!$I14 -> 0 | N14: =Eventograma!J35*'Desembolso-cronograma'!$I14 -> 7632 | O14: =Eventograma!K35*'Desembolso-cronograma'!$I14 -> 0 | P14: =Eventograma!L35*'Desembolso-cronograma'!$I14 -> 0 | Q14: =Eventograma!M35*'Desembolso-cronograma'!$I14 -> 0 | R14: =Eventograma!N35*'Desembolso-cronograma'!$I14 -> 0 | S14: =Eventograma!O35*'Desembolso-cronograma'!$I14 -> 0 | T14: =Eventograma!P35*'Desembolso-cronograma'!$I14 -> 0 | U14: =Eventograma!Q35*'Desembolso-cronograma'!$I14 -> 0 | V14: =Eventograma!R35*'Desembolso-cronograma'!$I14 -> 0 | W14: =Eventograma!S35*'Desembolso-cronograma'!$I14 -> 0 | X14: =Eventograma!T35*'Desembolso-cronograma'!$I14 -> 0 | Y14: =Eventograma!U35*'Desembolso-cronograma'!$I14 -> 0 | Z14: =Eventograma!V35*'Desembolso-cronograma'!$I14 -> 0
A15: 1.3.4 | B15: =VLOOKUP($A15,Orçamento!$A$3:$J$125,2,FALSE) -> SICRO | C15: =VLOOKUP($A15,Orçamento!$A$3:$J$125,3,FALSE) -> 4915611 | D15: =VLOOKUP($A15,Orçamento!$A$3:$J$125,4,FALSE) -> Recomposição de revestimento primário | E15: =VLOOKUP($A15,Orçamento!$A$3:$J$125,5,FALSE) -> m³ | F15: =VLOOKUP($A15,Orçamento!$A$3:$J$125,6,FALSE) -> 180 | G15: =VLOOKUP($A15,Orçamento!$A$3:$J$125,7,FALSE) -> 4.43 | H15: =VLOOKUP($A15,Orçamento!$A$3:$J$125,8,FALSE) -> 797.4 | I15: =VLOOKUP($A15,Orçamento!$A$3:$J$125,9,FALSE) -> 5.51 | J15: =VLOOKUP($A15,Orçamento!$A$3:$J$125,10,FALSE) -> 991.8 | L15: =Eventograma!H36*'Desembolso-cronograma'!$I15 -> 0 | M15: =Eventograma!I36*'Desembolso-cronograma'!$I15 -> 0 | N15: =Eventograma!J36*'Desembolso-cronograma'!$I15 -> 0 | O15: =Eventograma!K36*'Desembolso-cronograma'!$I15 -> 0 | P15: =Eventograma!L36*'Desembolso-cronograma'!$I15 -> 0 | Q15: =Eventograma!M36*'Desembolso-cronograma'!$I15 -> 0 | R15: =Eventograma!N36*'Desembolso-cronograma'!$I15 -> 0 | S15: =Eventograma!O36*'Desembolso-cronograma'!$I15 -> 991.8 | T15: =Eventograma!P36*'Desembolso-cronograma'!$I15 -> 0 | U15: =Eventograma!Q36*'Desembolso-cronograma'!$I15 -> 0 | V15: =Eventograma!R36*'Desembolso-cronograma'!$I15 -> 0 | W15: =Eventograma!S36*'Desembolso-cronograma'!$I15 -> 0 | X15: =Eventograma!T36*'Desembolso-cronograma'!$I15 -> 0 | Y15: =Eventograma!U36*'Desembolso-cronograma'!$I15 -> 0 | Z15: =Eventograma!V36*'Desembolso-cronograma'!$I15 -> 0
A17: 2 | D17: Vertedouro Complementar | F17: =Orçamento!F16 -> 0 | G17: =Orçamento!G16 -> 0 | H17: =SUBTOTAL(9,H18:H33) -> 207985.6121 | J17: =SUBTOTAL(9,J18:J34) -> 258984.8209 | L17: =SUBTOTAL(9,L18:L34) -> 0 | M17: =SUBTOTAL(9,M18:M34) -> 0 | N17: 0 | O17: 9361.867571 | P17: 9361.867571 | Q17: 77278.98951 | R17: 13225.52029 | S17: 55963.5608 | T17: 9361.867571 | U17: 84431.14757 | V17: 0 | W17: 0 | X17: 0 | Y17: 0 | Z17: 0
A18: 2.1 | D18: Canal de Aproximação | F18: =Orçamento!F17 -> 0 | G18: =Orçamento!G17 -> 0 | H18: =SUBTOTAL(9,H19:H21) -> 120224.95 | J18: =SUBTOTAL(9,J19:J21) -> 149714.625 | L18: =SUBTOTAL(9,L19:L22) -> 0 | M18: =SUBTOTAL(9,M19:M22) -> 0 | N18: 0 | O18: 9361.867571 | P18: 9361.867571 | Q18: 15436.71557 | R18: 12399.29157 | S18: 9361.867571 | T18: 9361.867571 | U18: 84431.14757 | V18: 0 | W18: 0 | X18: 0 | Y18: 0 | Z18: 0
A19: 2.1.1 | B19: =VLOOKUP($A19,Orçamento!$A$3:$J$125,2,FALSE) -> SICRO | C19: =VLOOKUP($A19,Orçamento!$A$3:$J$125,3,FALSE) -> 5502139 | D19: =VLOOKUP($A19,Orçamento!$A$3:$J$125,4,FALSE) -> Escavação Comum | E19: =VLOOKUP($A19,Orçamento!$A$3:$J$125,5,FALSE) -> m³ | F19: =VLOOKUP($A19,Orçamento!$A$3:$J$125,6,FALSE) -> 27100 | G19: =VLOOKUP($A19,Orçamento!$A$3:$J$125,7,FALSE) -> 3.55 | H19: =VLOOKUP($A19,Orçamento!$A$3:$J$125,8,FALSE) -> 96205 | I19: =VLOOKUP($A19,Orçamento!$A$3:$J$125,9,FALSE) -> 4.42 | J19: =VLOOKUP($A19,Orçamento!$A$3:$J$125,10,FALSE) -> 119782 | L19: =Eventograma!H45*'Desembolso-cronograma'!$I19 -> 0 | M19: =Eventograma!I45*'Desembolso-cronograma'!$I19 -> 0 | N19: =Eventograma!J45*'Desembolso-cronograma'!$I19 -> 0 | O19: =Eventograma!K45*'Desembolso-cronograma'!$I19 -> 5085.778286 | P19: =Eventograma!L45*'Desembolso-cronograma'!$I19 -> 5085.778286 | Q19: =Eventograma!M45*'Desembolso-cronograma'!$I19 -> 11160.62629 | R19: =Eventograma!N45*'Desembolso-cronograma'!$I19 -> 8123.202286 | S19: =Eventograma!O45*'Desembolso-cronograma'!$I19 -> 5085.778286 | T19: =Eventograma!P45*'Desembolso-cronograma'!$I19 -> 5085.778286 | U19: =Eventograma!Q45*'Desembolso-cronograma'!$I19 -> 80155.05829 | V19: =Eventograma!R45*'Desembolso-cronograma'!$I19 -> 0 | W19: =Eventograma!S45*'Desembolso-cronograma'!$I19 -> 0 | X19: =Eventograma!T45*'Desembolso-cronograma'!$I19 -> 0 | Y19: =Eventograma!U45*'Desembolso-cronograma'!$I19 -> 0 | Z19: =Eventograma!V45*'Desembolso-cronograma'!$I19 -> 0
A20: 2.1.2 | B20: =VLOOKUP($A20,Orçamento!$A$3:$J$125,2,FALSE) -> SICRO | C20: =VLOOKUP($A20,Orçamento!$A$3:$J$125,3,FALSE) -> 2003864 | D20: =VLOOKUP($A20,Orçamento!$A$3:$J$125,4,FALSE) -> Esgotamento de água com bomba submersa | E20: =VLOOKUP($A20,Orçamento!$A$3:$J$125,5,FALSE) -> h | F20: =VLOOKUP($A20,Orçamento!$A$3:$J$125,6,FALSE) -> 122 | G20: =VLOOKUP($A20,Orçamento!$A$3:$J$125,7,FALSE) -> 10.85 | H20: =VLOOKUP($A20,Orçamento!$A$3:$J$125,8,FALSE) -> 1323.7 | I20: =VLOOKUP($A20,Orçamento!$A$3:$J$125,9,FALSE) -> 13.5 | J20: =VLOOKUP($A20,Orçamento!$A$3:$J$125,10,FALSE) -> 1647 | L20: =Eventograma!H46*'Desembolso-cronograma'!$I20 -> 0 | M20: =Eventograma!I46*'Desembolso-cronograma'!$I20 -> 0 | N20: =Eventograma!J46*'Desembolso-cronograma'!$I20 -> 0 | O20: =Eventograma!K46*'Desembolso-cronograma'!$I20 -> 235.2857143 | P20: =Eventograma!L46*'Desembolso-cronograma'!$I20 -> 235.2857143 | Q20: =Eventograma!M46*'Desembolso-cronograma'!$I20 -> 235.2857143 | R20: =Eventograma!N46*'Desembolso-cronograma'!$I20 -> 235.2857143 | S20: =Eventograma!O46*'Desembolso-cronograma'!$I20 -> 235.2857143 | T20: =Eventograma!P46*'Desembolso-cronograma'!$I20 -> 235.2857143 | U20: =Eventograma!Q46*'Desembolso-cronograma'!$I20 -> 235.2857143 | V20: =Eventograma!R46*'Desembolso-cronograma'!$I20 -> 0 | W20: =Eventograma!S46*'Desembolso-cronograma'!$I20 -> 0 | X20: =Eventograma!T46*'Desembolso-cronograma'!$I20 -> 0 | Y20: =Eventograma!U46*'Desembolso-cronograma'!$I20 -> 0 | Z20: =Eventograma!V46*'Desembolso-cronograma'!$I20 -> 0
A21: 2.1.3 | B21: =VLOOKUP($A21,Orçamento!$A$3:$J$125,2,FALSE) -> SICRO | C21: =VLOOKUP($A21,Orçamento!$A$3:$J$125,3,FALSE) -> 4413942 | D21: =VLOOKUP($A21,Orçamento!$A$3:$J$125,4,FALSE) -> Espalhamento de solo em bota fora | E21: =VLOOKUP($A21,Orçamento!$A$3:$J$125,5,FALSE) -> m³ | F21: =VLOOKUP($A21,Orçamento!$A$3:$J$125,6,FALSE) -> 16937.5 | G21: =VLOOKUP($A21,Orçamento!$A$3:$J$125,7,FALSE) -> 1.34 | H21: =VLOOKUP($A21,Orçamento!$A$3:$J$125,8,FALSE) -> 22696.25 | I21: =VLOOKUP($A21,Orçamento!$A$3:$J$125,9,FALSE) -> 1.67 | J21: =VLOOKUP($A21,Orçamento!$A$3:$J$125,10,FALSE) -> 28285.625 | L21: =Eventograma!H47*'Desembolso-cronograma'!$I21 -> 0 | M21: =Eventograma!I47*'Desembolso-cronograma'!$I21 -> 0 | N21: =Eventograma!J47*'Desembolso-cronograma'!$I21 -> 0 | O21: =Eventograma!K47*'Desembolso-cronograma'!$I21 -> 4040.803571 | P21: =Eventograma!L47*'Desembolso-cronograma'!$I21 -> 4040.803571 | Q21: =Eventograma!M47*'Desembolso-cronograma'!$I21 -> 4040.803571 | R21: =Eventograma!N47*'Desembolso-cronograma'!$I21 -> 4040.803571 | S21: =Eventograma!O47*'Desembolso-cronograma'!$I21 -> 4040.803571 | T21: =Eventograma!P47*'Desembolso-cronograma'!$I21 -> 4040.803571 | U21: =Eventograma!Q47*'Desembolso-cronograma'!$I21 -> 4040.803571 | V21: =Eventograma!R47*'Desembolso-cronograma'!$I21 -> 0 | W21: =Eventograma!S47*'Desembolso-cronograma'!$I21 -> 0 | X21: =Eventograma!T47*'Desembolso-cronograma'!$I21 -> 0 | Y21: =Eventograma!U47*'Desembolso-cronograma'!$I21 -> 0 | Z21: =Eventograma!V47*'Desembolso-cronograma'!$I21 -> 0
F22: =Orçamento!F21 -> 0 | G22: =Orçamento!G21 -> 0
A23: 2.2 | D23: Canal de Restituição | F23: =Orçamento!F22 -> 0 | G23: =Orçamento!G22 -> 0 | H23: =SUBTOTAL(9,H24:H26) -> 8421.489375 | J23: =SUBTOTAL(9,J24:J26) -> 10487.17489 | L23: =SUBTOTAL(9,L24:L27) -> 0 | M23: =SUBTOTAL(9,M24:M27) -> 0 | N23: 0 | O23: 0 | P23: 0 | Q23: 0 | R23: 0 | S23: =SUBTOTAL(9,S24:S27) -> 10487.17489 | U23: 0 | V23: 0 | W23: 0 | X23: 0 | Y23: 0 | Z23: 0
A24: 2.2.1 | B24: =VLOOKUP($A24,Orçamento!$A$3:$J$125,2,FALSE) -> SICRO | C24: =VLOOKUP($A24,Orçamento!$A$3:$J$125,3,FALSE) -> 5502139 | D24: =VLOOKUP($A24,Orçamento!$A$3:$J$125,4,FALSE) -> Escavaçao Comum | E24: =VLOOKUP($A24,Orçamento!$A$3:$J$125,5,FALSE) -> m³ | F24: =VLOOKUP($A24,Orçamento!$A$3:$J$125,6,FALSE) -> 1898.21 | G24: =VLOOKUP($A24,Orçamento!$A$3:$J$125,7,FALSE) -> 3.55 | H24: =VLOOKUP($A24,Orçamento!$A$3:$J$125,8,FALSE) -> 6738.6455 | I24: =VLOOKUP($A24,Orçamento!$A$3:$J$125,9,FALSE) -> 4.42 | J24: =VLOOKUP($A24,Orçamento!$A$3:$J$125,10,FALSE) -> 8390.0882 | L24: =Eventograma!H50*'Desembolso-cronograma'!$I24 -> 0 | M24: =Eventograma!I50*'Desembolso-cronograma'!$I24 -> 0 | N24: =Eventograma!J50*'Desembolso-cronograma'!$I24 -> 0 | O24: =Eventograma!K50*'Desembolso-cronograma'!$I24 -> 0 | P24: =Eventograma!L50*'Desembolso-cronograma'!$I24 -> 0 | Q24: =Eventograma!M50*'Desembolso-cronograma'!$I24 -> 0 | R24: =Eventograma!N50*'Desembolso-cronograma'!$I24 -> 0 | S24: =Eventograma!P50*'Desembolso-cronograma'!$I24 -> 8390.0882 | U24: =Eventograma!Q50*'Desembolso-cronograma'!$I24 -> 0 | V24: =Eventograma!R50*'Desembolso-cronograma'!$I24 -> 0 | W24: =Eventograma!S50*'Desembolso-cronograma'!$I24 -> 0 | X24: =Eventograma!T50*'Desembolso-cronograma'!$I24 -> 0 | Y24: =Eventograma!U50*'Desembolso-cronograma'!$I24 -> 0 | Z24: =Eventograma!V50*'Desembolso-cronograma'!$I24 -> 0
A25: 2.2.2 | B25: =VLOOKUP($A25,Orçamento!$A$3:$J$125,2,FALSE) -> SICRO | C25: =VLOOKUP($A25,Orçamento!$A$3:$J$125,3,FALSE) -> 2003864 | D25: =VLOOKUP($A25,Orçamento!$A$3:$J$125,4,FALSE) -> Esgotamento de água com bomba submersa | E25: =VLOOKUP($A25,Orçamento!$A$3:$J$125,5,FALSE) -> h | F25: =VLOOKUP($A25,Orçamento!$A$3:$J$125,6,FALSE) -> 8.58 | G25: =VLOOKUP($A25,Orçamento!$A$3:$J$125,7,FALSE) -> 10.85 | H25: =VLOOKUP($A25,Orçamento!$A$3:$J$125,8,FALSE) -> 93.093 | I25: =VLOOKUP($A25,Orçamento!$A$3:$J$125,9,FALSE) -> 13.5 | J25: =VLOOKUP($A25,Orçamento!$A$3:$J$125,10,FALSE) -> 115.83 | L25: =Eventograma!H51*'Desembolso-cronograma'!$I25 -> 0 | M25: =Eventograma!I51*'Desembolso-cronograma'!$I25 -> 0 | N25: =Eventograma!J51*'Desembolso-cronograma'!$I25 -> 0 | O25: =Eventograma!K51*'Desembolso-cronograma'!$I25 -> 0 | P25: =Eventograma!L51*'Desembolso-cronograma'!$I25 -> 0 | Q25: =Eventograma!M51*'Desembolso-cronograma'!$I25 -> 0 | R25: =Eventograma!N51*'Desembolso-cronograma'!$I25 -> 0 | S25: =Eventograma!P51*'Desembolso-cronograma'!$I25 -> 115.83 | U25: =Eventograma!Q51*'Desembolso-cronograma'!$I25 -> 0 | V25: =Eventograma!R51*'Desembolso-cronograma'!$I25 -> 0 | W25: =Eventograma!S51*'Desembolso-cronograma'!$I25 -> 0 | X25: =Eventograma!T51*'Desembolso-cronograma'!$I25 -> 0 | Y25: =Eventograma!U51*'Desembolso-cronograma'!$I25 -> 0 | Z25: =Eventograma!V51*'Desembolso-cronograma'!$I25 -> 0
A26: 2.2.3 | B26: =VLOOKUP($A26,Orçamento!$A$3:$J$125,2,FALSE) -> SICRO | C26: =VLOOKUP($A26,Orçamento!$A$3:$J$125,3,FALSE) -> 4413942 | D26: =VLOOKUP($A26,Orçamento!$A$3:$J$125,4,FALSE) -> Espalhamento de solo em bota fora | E26: =VLOOKUP($A26,Orçamento!$A$3:$J$125,5,FALSE) -> m³ | F26: =VLOOKUP($A26,Orçamento!$A$3:$J$125,6,FALSE) -> 1186.38125 | G26: =VLOOKUP($A26,Orçamento!$A$3:$J$125,7,FALSE) -> 1.34 | H26: =VLOOKUP($A26,Orçamento!$A$3:$J$125,8,FALSE) -> 1589.750875 | I26: =VLOOKUP($A26,Orçamento!$A$3:$J$125,9,FALSE) -> 1.67 | J26: =VLOOKUP($A26,Orçamento!$A$3:$J$125,10,FALSE) -> 1981.256687 | L26: =Eventograma!H52*'Desembolso-cronograma'!$I26 -> 0 | M26: =Eventograma!I52*'Desembolso-cronograma'!$I26 -> 0 | N26: =Eventograma!J52*'Desembolso-cronograma'!$I26 -> 0 | O26: =Eventograma!K52*'Desembolso-cronograma'!$I26 -> 0 | P26: =Eventograma!L52*'Desembolso-cronograma'!$I26 -> 0 | Q26: =Eventograma!M52*'Desembolso-cronograma'!$I26 -> 0 | R26: =Eventograma!N52*'Desembolso-cronograma'!$I26 -> 0 | S26: =Eventograma!P52*'Desembolso-cronograma'!$I26 -> 1981.256687 | U26: =Eventograma!Q52*'Desembolso-cronograma'!$I26 -> 0 | V26: =Eventograma!R52*'Desembolso-cronograma'!$I26 -> 0 | W26: =Eventograma!S52*'Desembolso-cronograma'!$I26 -> 0 | X26: =Eventograma!T52*'Desembolso-cronograma'!$I26 -> 0 | Y26: =Eventograma!U52*'Desembolso-cronograma'!$I26 -> 0 | Z26: =Eventograma!V52*'Desembolso-cronograma'!$I26 -> 0
F27: =Orçamento!F26 -> 0 | G27: =Orçamento!G26 -> 0
A28: 2.3 | D28: Dique de Proteção | F28: =Orçamento!F27 -> 0 | G28: =Orçamento!G27 -> 0 | H28: =SUBTOTAL(9,H29:H33) -> 79339.17271 | J28: =SUBTOTAL(9,J29:J33) -> 98783.021 | L28: =SUBTOTAL(9,L29:L34) -> 0 | M28: =SUBTOTAL(9,M29:M34) -> 0 | N28: 0 | O28: 0 | P28: 0 | Q28: =SUBTOTAL(9,Q29:Q34) -> 61842.27394 | R28: =SUBTOTAL(9,R29:R34) -> 826.228722 | S28: =SUBTOTAL(9,S29:S34) -> 36114.51834 | W28: 0 | X28: 0 | Y28: 0 | Z28: 0
A29: 2.3.1 | B29: =VLOOKUP($A29,Orçamento!$A$3:$J$125,2,FALSE) -> SICRO | C29: =VLOOKUP($A29,Orçamento!$A$3:$J$125,3,FALSE) -> 5502139 | D29: =VLOOKUP($A29,Orçamento!$A$3:$J$125,4,FALSE) -> Escavação comum | E29: =VLOOKUP($A29,Orçamento!$A$3:$J$125,5,FALSE) -> m³ | F29: =VLOOKUP($A29,Orçamento!$A$3:$J$125,6,FALSE) -> 11318.65 | G29: =VLOOKUP($A29,Orçamento!$A$3:$J$125,7,FALSE) -> 3.55 | H29: =VLOOKUP($A29,Orçamento!$A$3:$J$125,8,FALSE) -> 40181.2075 | I29: =VLOOKUP($A29,Orçamento!$A$3:$J$125,9,FALSE) -> 4.42 | J29: =VLOOKUP($A29,Orçamento!$A$3:$J$125,10,FALSE) -> 50028.433 | L29: =Eventograma!H55*'Desembolso-cronograma'!$I29 -> 0 | M29: =Eventograma!I55*'Desembolso-cronograma'!$I29 -> 0 | N29: =Eventograma!J55*'Desembolso-cronograma'!$I29 -> 0 | O29: =Eventograma!K55*'Desembolso-cronograma'!$I29 -> 0 | P29: =Eventograma!L55*'Desembolso-cronograma'!$I29 -> 0 | Q29: =Eventograma!P55*'Desembolso-cronograma'!$I29 -> 50028.433 | R29: =Eventograma!Q55*'Desembolso-cronograma'!$I29 -> 0 | S29: =Eventograma!R55*'Desembolso-cronograma'!$I29 -> 0 | W29: =Eventograma!S55*'Desembolso-cronograma'!$I29 -> 0 | X29: =Eventograma!T55*'Desembolso-cronograma'!$I29 -> 0 | Y29: =Eventograma!U55*'Desembolso-cronograma'!$I29 -> 0 | Z29: =Eventograma!V55*'Desembolso-cronograma'!$I29 -> 0
A30: 2.3.2 | B30: =VLOOKUP($A30,Orçamento!$A$3:$J$125,2,FALSE) -> SICRO | C30: =VLOOKUP($A30,Orçamento!$A$3:$J$125,3,FALSE) -> 5502978 | D30: =VLOOKUP($A30,Orçamento!$A$3:$J$125,4,FALSE) -> Aterro Compactado | E30: =VLOOKUP($A30,Orçamento!$A$3:$J$125,5,FALSE) -> m³ | F30: =VLOOKUP($A30,Orçamento!$A$3:$J$125,6,FALSE) -> 6766.82 | G30: =VLOOKUP($A30,Orçamento!$A$3:$J$125,7,FALSE) -> 2.99 | H30: =VLOOKUP($A30,Orçamento!$A$3:$J$125,8,FALSE) -> 20232.7918 | I30: =VLOOKUP($A30,Orçamento!$A$3:$J$125,9,FALSE) -> 3.72 | J30: =VLOOKUP($A30,Orçamento!$A$3:$J$125,10,FALSE) -> 25172.5704 | L30: =Eventograma!H56*'Desembolso-cronograma'!$I30 -> 0 | M30: =Eventograma!I56*'Desembolso-cronograma'!$I30 -> 0 | N30: =Eventograma!J56*'Desembolso-cronograma'!$I30 -> 0 | O30: =Eventograma!K56*'Desembolso-cronograma'!$I30 -> 0 | P30: =Eventograma!L56*'Desembolso-cronograma'!$I30 -> 0 | Q30: =Eventograma!P56*'Desembolso-cronograma'!$I30 -> 0 | R30: =Eventograma!Q56*'Desembolso-cronograma'!$I30 -> 0 | S30: =Eventograma!R56*'Desembolso-cronograma'!$I30 -> 25172.5704 | W30: =Eventograma!S56*'Desembolso-cronograma'!$I30 -> 0 | X30: =Eventograma!T56*'Desembolso-cronograma'!$I30 -> 0 | Y30: =Eventograma!U56*'Desembolso-cronograma'!$I30 -> 0 | Z30: =Eventograma!V56*'Desembolso-cronograma'!$I30 -> 0
A31: 2.3.3 | B31: =VLOOKUP($A31,Orçamento!$A$3:$J$125,2,FALSE) -> SICRO | C31: =VLOOKUP($A31,Orçamento!$A$3:$J$125,3,FALSE) -> 5502986 | D31: =VLOOKUP($A31,Orçamento!$A$3:$J$125,4,FALSE) -> Expurgo | E31: =VLOOKUP($A31,Orçamento!$A$3:$J$125,5,FALSE) -> m³ | F31: =VLOOKUP($A31,Orçamento!$A$3:$J$125,6,FALSE) -> 372.1751 | G31: =VLOOKUP($A31,Orçamento!$A$3:$J$125,7,FALSE) -> 1.78 | H31: =VLOOKUP($A31,Orçamento!$A$3:$J$125,8,FALSE) -> 662.471678 | I31: =VLOOKUP($A31,Orçamento!$A$3:$J$125,9,FALSE) -> 2.22 | J31: =VLOOKUP($A31,Orçamento!$A$3:$J$125,10,FALSE) -> 826.228722 | L31: =Eventograma!H57*'Desembolso-cronograma'!$I31 -> 0 | M31: =Eventograma!I57*'Desembolso-cronograma'!$I31 -> 0 | N31: =Eventograma!J57*'Desembolso-cronograma'!$I31 -> 0 | O31: =Eventograma!K57*'Desembolso-cronograma'!$I31 -> 0 | P31: =Eventograma!L57*'Desembolso-cronograma'!$I31 -> 0 | Q31: =Eventograma!P57*'Desembolso-cronograma'!$I31 -> 0 | R31: =Eventograma!Q57*'Desembolso-cronograma'!$I31 -> 826.228722 | S31: =Eventograma!R57*'Desembolso-cronograma'!$I31 -> 0 | W31: =Eventograma!S57*'Desembolso-cronograma'!$I31 -> 0 | X31: =Eventograma!T57*'Desembolso-cronograma'!$I31 -> 0 | Y31: =Eventograma!U57*'Desembolso-cronograma'!$I31 -> 0 | Z31: =Eventograma!V57*'Desembolso-cronograma'!$I31 -> 0
A32: 2.3.4 | B32: =VLOOKUP($A32,Orçamento!$A$3:$J$125,2,FALSE) -> SICRO | C32: =VLOOKUP($A32,Orçamento!$A$3:$J$125,3,FALSE) -> 4016008 | D32: =VLOOKUP($A32,Orçamento!$A$3:$J$125,4,FALSE) -> Escavação de jazida | E32: =VLOOKUP($A32,Orçamento!$A$3:$J$125,5,FALSE) -> m³ | F32: =VLOOKUP($A32,Orçamento!$A$3:$J$125,6,FALSE) -> 3721.751 | G32: =VLOOKUP($A32,Orçamento!$A$3:$J$125,7,FALSE) -> 2.36 | H32: =VLOOKUP($A32,Orçamento!$A$3:$J$125,8,FALSE) -> 8783.33236 | I32: =VLOOKUP($A32,Orçamento!$A$3:$J$125,9,FALSE) -> 2.94 | J32: =VLOOKUP($A32,Orçamento!$A$3:$J$125,10,FALSE) -> 10941.94794 | L32: =Eventograma!H58*'Desembolso-cronograma'!$I32 -> 0 | M32: =Eventograma!I58*'Desembolso-cronograma'!$I32 -> 0 | N32: =Eventograma!J58*'Desembolso-cronograma'!$I32 -> 0 | O32: =Eventograma!K58*'Desembolso-cronograma'!$I32 -> 0 | P32: =Eventograma!L58*'Desembolso-cronograma'!$I32 -> 0 | Q32: =Eventograma!P58*'Desembolso-cronograma'!$I32 -> 0 | R32: =Eventograma!Q58*'Desembolso-cronograma'!$I32 -> 0 | S32: =Eventograma!R58*'Desembolso-cronograma'!$I32 -> 10941.94794 | W32: =Eventograma!S58*'Desembolso-cronograma'!$I32 -> 0 | X32: =Eventograma!T58*'Desembolso-cronograma'!$I32 -> 0 | Y32: =Eventograma!U58*'Desembolso-cronograma'!$I32 -> 0 | Z32: =Eventograma!V58*'Desembolso-cronograma'!$I32 -> 0
A33: 2.3.5 | B33: =VLOOKUP($A33,Orçamento!$A$3:$J$125,2,FALSE) -> SICRO | C33: =VLOOKUP($A33,Orçamento!$A$3:$J$125,3,FALSE) -> 4413942 | D33: =VLOOKUP($A33,Orçamento!$A$3:$J$125,4,FALSE) -> Espalhamento de solo em bota fora | E33: =VLOOKUP($A33,Orçamento!$A$3:$J$125,5,FALSE) -> m³ | F33: =VLOOKUP($A33,Orçamento!$A$3:$J$125,6,FALSE) -> 7074.15625 | G33: =VLOOKUP($A33,Orçamento!$A$3:$J$125,7,FALSE) -> 1.34 | H33: =VLOOKUP($A33,Orçamento!$A$3:$J$125,8,FALSE) -> 9479.369375 | I33: =VLOOKUP($A33,Orçamento!$A$3:$J$125,9,FALSE) -> 1.67 | J33: =VLOOKUP($A33,Orçamento!$A$3:$J$125,10,FALSE) -> 11813.84094 | L33: =Eventograma!H59*'Desembolso-cronograma'!$I33 -> 0 | M33: =Eventograma!I59*'Desembolso-cronograma'!$I33 -> 0 | N33: =Eventograma!J59*'Desembolso-cronograma'!$I33 -> 0 | O33: =Eventograma!K59*'Desembolso-cronograma'!$I33 -> 0 | P33: =Eventograma!L59*'Desembolso-cronograma'!$I33 -> 0 | Q33: =Eventograma!P59*'Desembolso-cronograma'!$I33 -> 11813.84094 | R33: =Eventograma!Q59*'Desembolso-cronograma'!$I33 -> 0 | S33: =Eventograma!R59*'Desembolso-cronograma'!$I33 -> 0 | W33: =Eventograma!S59*'Desembolso-cronograma'!$I33 -> 0 | X33: =Eventograma!T59*'Desembolso-cronograma'!$I33 -> 0 | Y33: =Eventograma!U59*'Desembolso-cronograma'!$I33 -> 0 | Z33: =Eventograma!V59*'Desembolso-cronograma'!$I33 -> 0
F34: =Orçamento!F33 -> 0 | G34: =Orçamento!G33 -> 0
A35: 3 | D35: Vertedouro Soleira Livre | F35: =Orçamento!F34 -> 0 | G35: =Orçamento!G34 -> 0 | H35: =SUBTOTAL(9,H36:H61) -> 453392.2866 | J35: =SUBTOTAL(9,J36:J61) -> 564258.9391 | L35: =SUBTOTAL(9,L36:L62) -> 0 | M35: =SUBTOTAL(9,M36:M62) -> 0 | N35: 0 | O35: 4648.047143 | P35: 4648.047143 | Q35: 4648.047143 | R35: 4648.047143 | S35: 181888.9168 | T35: 181888.9168 | U35: 181888.9168 | V35: 0 | W35: 0 | X35: 0 | Y35: 0 | Z35: 0
A36: 3.1 | D36: Reparo na calha e sistema de drenagem | F36: =Orçamento!F35 -> 0 | G36: =Orçamento!G35 -> 0 | H36: =SUBTOTAL(9,H37:H45) -> 28831.23164 | J36: =SUBTOTAL(9,J37:J46) -> 35880.72907 | L36: =SUBTOTAL(9,L37:L46) -> 0 | M36: =SUBTOTAL(9,M37:M46) -> 0 | N36: 0 | O36: 0 | P36: 0 | Q36: 0 | R36: 0 | S36: 11960.24302 | T36: 11960.24302 | U36: 11960.24302 | V36: 0 | W36: 0 | X36: 0 | Y36: 0 | Z36: 0
A37: 3.1.1 | B37: =VLOOKUP($A37,Orçamento!$A$3:$J$125,2,FALSE) -> SICRO | C37: =VLOOKUP($A37,Orçamento!$A$3:$J$125,3,FALSE) -> 1600990 | D37: =VLOOKUP($A37,Orçamento!$A$3:$J$125,4,FALSE) -> Demolição de concreto armado | E37: =VLOOKUP($A37,Orçamento!$A$3:$J$125,5,FALSE) -> m³ | F37: =VLOOKUP($A37,Orçamento!$A$3:$J$125,6,FALSE) -> 23.38375 | G37: =VLOOKUP($A37,Orçamento!$A$3:$J$125,7,FALSE) -> 392.17 | H37: =VLOOKUP($A37,Orçamento!$A$3:$J$125,8,FALSE) -> 9170.405237 | I37: =VLOOKUP($A37,Orçamento!$A$3:$J$125,9,FALSE) -> 488.08 | J37: =VLOOKUP($A37,Orçamento!$A$3:$J$125,10,FALSE) -> 11413.1407 | L37: =Eventograma!H63*'Desembolso-cronograma'!$I37 -> 0 | M37: =Eventograma!I63*'Desembolso-cronograma'!$I37 -> 0 | N37: =Eventograma!J63*'Desembolso-cronograma'!$I37 -> 0 | O37: =Eventograma!K63*'Desembolso-cronograma'!$I37 -> 0 | P37: =Eventograma!L63*'Desembolso-cronograma'!$I37 -> 0 | Q37: =Eventograma!M63*'Desembolso-cronograma'!$I37 -> 0 | R37: =Eventograma!N63*'Desembolso-cronograma'!$I37 -> 0 | S37: =Eventograma!O63*'Desembolso-cronograma'!$I37 -> 3804.380233 | T37: =Eventograma!P63*'Desembolso-cronograma'!$I37 -> 3804.380233 | U37: =Eventograma!Q63*'Desembolso-cronograma'!$I37 -> 3804.380233 | V37: =Eventograma!R63*'Desembolso-cronograma'!$I37 -> 0 | W37: =Eventograma!S63*'Desembolso-cronograma'!$I37 -> 0 | X37: =Eventograma!T63*'Desembolso-cronograma'!$I37 -> 0 | Y37: =Eventograma!U63*'Desembolso-cronograma'!$I37 -> 0 | Z37: =Eventograma!V63*'Desembolso-cronograma'!$I37 -> 0
A38: 3.1.2 | B38: =VLOOKUP($A38,Orçamento!$A$3:$J$125,2,FALSE) -> SICRO | C38: =VLOOKUP($A38,Orçamento!$A$3:$J$125,3,FALSE) -> 3806402 | D38: =VLOOKUP($A38,Orçamento!$A$3:$J$125,4,FALSE) -> Limpeza em superfície de concreto | E38: =VLOOKUP($A38,Orçamento!$A$3:$J$125,5,FALSE) -> m² | F38: =VLOOKUP($A38,Orçamento!$A$3:$J$125,6,FALSE) -> 36.625 | G38: =VLOOKUP($A38,Orçamento!$A$3:$J$125,7,FALSE) -> 2.66 | H38: =VLOOKUP($A38,Orçamento!$A$3:$J$125,8,FALSE) -> 97.4225 | I38: =VLOOKUP($A38,Orçamento!$A$3:$J$125,9,FALSE) -> 3.31 | J38: =VLOOKUP($A38,Orçamento!$A$3:$J$125,10,FALSE) -> 121.22875 | L38: =Eventograma!H64*'Desembolso-cronograma'!$I38 -> 0 | M38: =Eventograma!I64*'Desembolso-cronograma'!$I38 -> 0 | N38: =Eventograma!J64*'Desembolso-cronograma'!$I38 -> 0 | O38: =Eventograma!K64*'Desembolso-cronograma'!$I38 -> 0 | P38: =Eventograma!L64*'Desembolso-cronograma'!$I38 -> 0 | Q38: =Eventograma!M64*'Desembolso-cronograma'!$I38 -> 0 | R38: =Eventograma!N64*'Desembolso-cronograma'!$I38 -> 0 | S38: =Eventograma!O64*'Desembolso-cronograma'!$I38 -> 40.40958333 | T38: =Eventograma!P64*'Desembolso-cronograma'!$I38 -> 40.40958333 | U38: =Eventograma!Q64*'Desembolso-cronograma'!$I38 -> 40.40958333 | V38: =Eventograma!R64*'Desembolso-cronograma'!$I38 -> 0 | W38: =Eventograma!S64*'Desembolso-cronograma'!$I38 -> 0 | X38: =Eventograma!T64*'Desembolso-cronograma'!$I38 -> 0 | Y38: =Eventograma!U64*'Desembolso-cronograma'!$I38 -> 0 | Z38: =Eventograma!V64*'Desembolso-cronograma'!$I38 -> 0
A39: 3.1.3 | B39: =VLOOKUP($A39,Orçamento!$A$3:$J$125,2,FALSE) -> SICRO | C39: =VLOOKUP($A39,Orçamento!$A$3:$J$125,3,FALSE) -> 3108007 | D39: =VLOOKUP($A39,Orçamento!$A$3:$J$125,4,FALSE) -> Forma em Compensado Plastificado e=10mm | E39: =VLOOKUP($A39,Orçamento!$A$3:$J$125,5,FALSE) -> m² | F39: =VLOOKUP($A39,Orçamento!$A$3:$J$125,6,FALSE) -> 5.2 | G39: =VLOOKUP($A39,Orçamento!$A$3:$J$125,7,FALSE) -> 111.51 | H39: =VLOOKUP($A39,Orçamento!$A$3:$J$125,8,FALSE) -> 579.852 | I39: =VLOOKUP($A39,Orçamento!$A$3:$J$125,9,FALSE) -> 138.78 | J39: =VLOOKUP($A39,Orçamento!$A$3:$J$125,10,FALSE) -> 721.656 | L39: =Eventograma!H65*'Desembolso-cronograma'!$I39 -> 0 | M39: =Eventograma!I65*'Desembolso-cronograma'!$I39 -> 0 | N39: =Eventograma!J65*'Desembolso-cronograma'!$I39 -> 0 | O39: =Eventograma!K65*'Desembolso-cronograma'!$I39 -> 0 | P39: =Eventograma!L65*'Desembolso-cronograma'!$I39 -> 0 | Q39: =Eventograma!M65*'Desembolso-cronograma'!$I39 -> 0 | R39: =Eventograma!N65*'Desembolso-cronograma'!$I39 -> 0 | S39: =Eventograma!O65*'Desembolso-cronograma'!$I39 -> 240.552 | T39: =Eventograma!P65*'Desembolso-cronograma'!$I39 -> 240.552 | U39: =Eventograma!Q65*'Desembolso-cronograma'!$I39 -> 240.552 | V39: =Eventograma!R65*'Desembolso-cronograma'!$I39 -> 0 | W39: =Eventograma!S65*'Desembolso-cronograma'!$I39 -> 0 | X39: =Eventograma!T65*'Desembolso-cronograma'!$I39 -> 0 | Y39: =Eventograma!U65*'Desembolso-cronograma'!$I39 -> 0 | Z39: =Eventograma!V65*'Desembolso-cronograma'!$I39 -> 0
A40: 3.1.4 | B40: =VLOOKUP($A40,Orçamento!$A$3:$J$125,2,FALSE) -> SICRO | C40: =VLOOKUP($A40,Orçamento!$A$3:$J$125,3,FALSE) -> 407819 | D40: =VLOOKUP($A40,Orçamento!$A$3:$J$125,4,FALSE) -> Armação em Aço CA-50 | E40: =VLOOKUP($A40,Orçamento!$A$3:$J$125,5,FALSE) -> kg | F40: =VLOOKUP($A40,Orçamento!$A$3:$J$125,6,FALSE) -> 477 | G40: =VLOOKUP($A40,Orçamento!$A$3:$J$125,7,FALSE) -> 9.21 | H40: =VLOOKUP($A40,Orçamento!$A$3:$J$125,8,FALSE) -> 4393.17 | I40: =VLOOKUP($A40,Orçamento!$A$3:$J$125,9,FALSE) -> 11.46 | J40: =VLOOKUP($A40,Orçamento!$A$3:$J$125,10,FALSE) -> 5466.42 | L40: =Eventograma!H66*'Desembolso-cronograma'!$I40 -> 0 | M40: =Eventograma!I66*'Desembolso-cronograma'!$I40 -> 0 | N40: =Eventograma!J66*'Desembolso-cronograma'!$I40 -> 0 | O40: =Eventograma!K66*'Desembolso-cronograma'!$I40 -> 0 | P40: =Eventograma!L66*'Desembolso-cronograma'!$I40 -> 0 | Q40: =Eventograma!M66*'Desembolso-cronograma'!$I40 -> 0 | R40: =Eventograma!N66*'Desembolso-cronograma'!$I40 -> 0 | S40: =Eventograma!O66*'Desembolso-cronograma'!$I40 -> 1822.14 | T40: =Eventograma!P66*'Desembolso-cronograma'!$I40 -> 1822.14 | U40: =Eventograma!Q66*'Desembolso-cronograma'!$I40 -> 1822.14 | V40: =Eventograma!R66*'Desembolso-cronograma'!$I40 -> 0 | W40: =Eventograma!S66*'Desembolso-cronograma'!$I40 -> 0 | X40: =Eventograma!T66*'Desembolso-cronograma'!$I40 -> 0 | Y40: =Eventograma!U66*'Desembolso-cronograma'!$I40 -> 0 | Z40: =Eventograma!V66*'Desembolso-cronograma'!$I40 -> 0
A41: 3.1.5 | B41: =VLOOKUP($A41,Orçamento!$A$3:$J$125,2,FALSE) -> SICRO | C41: =VLOOKUP($A41,Orçamento!$A$3:$J$125,3,FALSE) -> 1116263 | D41: =VLOOKUP($A41,Orçamento!$A$3:$J$125,4,FALSE) -> Concreto Fck 25 Mpa | E41: =VLOOKUP($A41,Orçamento!$A$3:$J$125,5,FALSE) -> m³ | F41: =VLOOKUP($A41,Orçamento!$A$3:$J$125,6,FALSE) -> 23.38375 | G41: =VLOOKUP($A41,Orçamento!$A$3:$J$125,7,FALSE) -> 243.98 | H41: =VLOOKUP($A41,Orçamento!$A$3:$J$125,8,FALSE) -> 5705.167325 | I41: =VLOOKUP($A41,Orçamento!$A$3:$J$125,9,FALSE) -> 303.65 | J41: =VLOOKUP($A41,Orçamento!$A$3:$J$125,10,FALSE) -> 7100.475687 | L41: =Eventograma!H67*'Desembolso-cronograma'!$I41 -> 0 | M41: =Eventograma!I67*'Desembolso-cronograma'!$I41 -> 0 | N41: =Eventograma!J67*'Desembolso-cronograma'!$I41 -> 0 | O41: =Eventograma!K67*'Desembolso-cronograma'!$I41 -> 0 | P41: =Eventograma!L67*'Desembolso-cronograma'!$I41 -> 0 | Q41: =Eventograma!M67*'Desembolso-cronograma'!$I41 -> 0 | R41: =Eventograma!N67*'Desembolso-cronograma'!$I41 -> 0 | S41: =Eventograma!O67*'Desembolso-cronograma'!$I41 -> 2366.825229 | T41: =Eventograma!P67*'Desembolso-cronograma'!$I41 -> 2366.825229 | U41: =Eventograma!Q67*'Desembolso-cronograma'!$I41 -> 2366.825229 | V41: =Eventograma!R67*'Desembolso-cronograma'!$I41 -> 0 | W41: =Eventograma!S67*'Desembolso-cronograma'!$I41 -> 0 | X41: =Eventograma!T67*'Desembolso-cronograma'!$I41 -> 0 | Y41: =Eventograma!U67*'Desembolso-cronograma'!$I41 -> 0 | Z41: =Eventograma!V67*'Desembolso-cronograma'!$I41 -> 0
A42: 3.1.6 | B42: =VLOOKUP($A42,Orçamento!$A$3:$J$125,2,FALSE) -> SICRO | C42: =VLOOKUP($A42,Orçamento!$A$3:$J$125,3,FALSE) -> 1107860 | D42: =VLOOKUP($A42,Orçamento!$A$3:$J$125,4,FALSE) -> Bombeamento de Concreto | E42: =VLOOKUP($A42,Orçamento!$A$3:$J$125,5,FALSE) -> m³ | F42: =VLOOKUP($A42,Orçamento!$A$3:$J$125,6,FALSE) -> 23.38375 | G42: =VLOOKUP($A42,Orçamento!$A$3:$J$125,7,FALSE) -> 28.93 | H42: =VLOOKUP($A42,Orçamento!$A$3:$J$125,8,FALSE) -> 676.4918875 | I42: =VLOOKUP($A42,Orçamento!$A$3:$J$125,9,FALSE) -> 36 | J42: =VLOOKUP($A42,Orçamento!$A$3:$J$125,10,FALSE) -> 841.815 | L42: =Eventograma!H68*'Desembolso-cronograma'!$I42 -> 0 | M42: =Eventograma!I68*'Desembolso-cronograma'!$I42 -> 0 | N42: =Eventograma!J68*'Desembolso-cronograma'!$I42 -> 0 | O42: =Eventograma!K68*'Desembolso-cronograma'!$I42 -> 0 | P42: =Eventograma!L68*'Desembolso-cronograma'!$I42 -> 0 | Q42: =Eventograma!M68*'Desembolso-cronograma'!$I42 -> 0 | R42: =Eventograma!N68*'Desembolso-cronograma'!$I42 -> 0 | S42: =Eventograma!O68*'Desembolso-cronograma'!$I42 -> 280.605 | T42: =Eventograma!P68*'Desembolso-cronograma'!$I42 -> 280.605 | U42: =Eventograma!Q68*'Desembolso-cronograma'!$I42 -> 280.605 | V42: =Eventograma!R68*'Desembolso-cronograma'!$I42 -> 0 | W42: =Eventograma!S68*'Desembolso-cronograma'!$I42 -> 0 | X42: =Eventograma!T68*'Desembolso-cronograma'!$I42 -> 0 | Y42: =Eventograma!U68*'Desembolso-cronograma'!$I42 -> 0 | Z42: =Eventograma!V68*'Desembolso-cronograma'!$I42 -> 0
A43: 3.1.7 | B43: =VLOOKUP($A43,Orçamento!$A$3:$J$125,2,FALSE) -> SICRO | C43: =VLOOKUP($A43,Orçamento!$A$3:$J$125,3,FALSE) -> 1100657 | D43: =VLOOKUP($A43,Orçamento!$A$3:$J$125,4,FALSE) -> Adensamento de Concreto | E43: =VLOOKUP($A43,Orçamento!$A$3:$J$125,5,FALSE) -> m³ | F43: =VLOOKUP($A43,Orçamento!$A$3:$J$125,6,FALSE) -> 23.38375 | G43: =VLOOKUP($A43,Orçamento!$A$3:$J$125,7,FALSE) -> 2.45 | H43: =VLOOKUP($A43,Orçamento!$A$3:$J$125,8,FALSE) -> 57.2901875 | I43: =VLOOKUP($A43,Orçamento!$A$3:$J$125,9,FALSE) -> 3.05 | J43: =VLOOKUP($A43,Orçamento!$A$3:$J$125,10,FALSE) -> 71.3204375 | L43: =Eventograma!H69*'Desembolso-cronograma'!$I43 -> 0 | M43: =Eventograma!I69*'Desembolso-cronograma'!$I43 -> 0 | N43: =Eventograma!J69*'Desembolso-cronograma'!$I43 -> 0 | O43: =Eventograma!K69*'Desembolso-cronograma'!$I43 -> 0 | P43: =Eventograma!L69*'Desembolso-cronograma'!$I43 -> 0 | Q43: =Eventograma!M69*'Desembolso-cronograma'!$I43 -> 0 | R43: =Eventograma!N69*'Desembolso-cronograma'!$I43 -> 0 | S43: =Eventograma!O69*'Desembolso-cronograma'!$I43 -> 23.77347917 | T43: =Eventograma!P69*'Desembolso-cronograma'!$I43 -> 23.77347917 | U43: =Eventograma!Q69*'Desembolso-cronograma'!$I43 -> 23.77347917 | V43: =Eventograma!R69*'Desembolso-cronograma'!$I43 -> 0 | W43: =Eventograma!S69*'Desembolso-cronograma'!$I43 -> 0 | X43: =Eventograma!T69*'Desembolso-cronograma'!$I43 -> 0 | Y43: =Eventograma!U69*'Desembolso-cronograma'!$I43 -> 0 | Z43: =Eventograma!V69*'Desembolso-cronograma'!$I43 -> 0
A44: 3.1.8 | B44: =VLOOKUP($A44,Orçamento!$A$3:$J$125,2,FALSE) -> COMPOS. | C44: =VLOOKUP($A44,Orçamento!$A$3:$J$125,3,FALSE) -> 0.006 | D44: =VLOOKUP($A44,Orçamento!$A$3:$J$125,4,FALSE) -> Veda Juntas O-22 | E44: =VLOOKUP($A44,Orçamento!$A$3:$J$125,5,FALSE) -> m | F44: =VLOOKUP($A44,Orçamento!$A$3:$J$125,6,FALSE) -> 16 | G44: =VLOOKUP($A44,Orçamento!$A$3:$J$125,7,FALSE) -> 90.0625 | H44: =VLOOKUP($A44,Orçamento!$A$3:$J$125,8,FALSE) -> 1441 | I44: =VLOOKUP($A44,Orçamento!$A$3:$J$125,9,FALSE) -> 112.09 | J44: =VLOOKUP($A44,Orçamento!$A$3:$J$125,10,FALSE) -> 1793.44 | L44: =Eventograma!H70*'Desembolso-cronograma'!$I44 -> 0 | M44: =Eventograma!I70*'Desembolso-cronograma'!$I44 -> 0 | N44: =Eventograma!J70*'Desembolso-cronograma'!$I44 -> 0 | O44: =Eventograma!K70*'Desembolso-cronograma'!$I44 -> 0 | P44: =Eventograma!L70*'Desembolso-cronograma'!$I44 -> 0 | Q44: =Eventograma!M70*'Desembolso-cronograma'!$I44 -> 0 | R44: =Eventograma!N70*'Desembolso-cronograma'!$I44 -> 0 | S44: =Eventograma!O70*'Desembolso-cronograma'!$I44 -> 597.8133333 | T44: =Eventograma!P70*'Desembolso-cronograma'!$I44 -> 597.8133333 | U44: =Eventograma!Q70*'Desembolso-cronograma'!$I44 -> 597.8133333 | V44: =Eventograma!R70*'Desembolso-cronograma'!$I44 -> 0 | W44: =Eventograma!S70*'Desembolso-cronograma'!$I44 -> 0 | X44: =Eventograma!T70*'Desembolso-cronograma'!$I44 -> 0 | Y44: =Eventograma!U70*'Desembolso-cronograma'!$I44 -> 0 | Z44: =Eventograma!V70*'Desembolso-cronograma'!$I44 -> 0
A45: 3.1.9 | B45: =VLOOKUP($A45,Orçamento!$A$3:$J$125,2,FALSE) -> SICRO | C45: =VLOOKUP($A45,Orçamento!$A$3:$J$125,3,FALSE) -> 2003578 | D45: =VLOOKUP($A45,Orçamento!$A$3:$J$125,4,FALSE) -> Drenagem Interna | E45: =VLOOKUP($A45,Orçamento!$A$3:$J$125,5,FALSE) -> m | F45: =VLOOKUP($A45,Orçamento!$A$3:$J$125,6,FALSE) -> 73.25 | G45: =VLOOKUP($A45,Orçamento!$A$3:$J$125,7,FALSE) -> 91.61 | H45: =VLOOKUP($A45,Orçamento!$A$3:$J$125,8,FALSE) -> 6710.4325 | I45: =VLOOKUP($A45,Orçamento!$A$3:$J$125,9,FALSE) -> 114.01 | J45: =VLOOKUP($A45,Orçamento!$A$3:$J$125,10,FALSE) -> 8351.2325 | L45: =Eventograma!H71*'Desembolso-cronograma'!$I45 -> 0 | M45: =Eventograma!I71*'Desembolso-cronograma'!$I45 -> 0 | N45: =Eventograma!J71*'Desembolso-cronograma'!$I45 -> 0 | O45: =Eventograma!K71*'Desembolso-cronograma'!$I45 -> 0 | P45: =Eventograma!L71*'Desembolso-cronograma'!$I45 -> 0 | Q45: =Eventograma!M71*'Desembolso-cronograma'!$I45 -> 0 | R45: =Eventograma!N71*'Desembolso-cronograma'!$I45 -> 0 | S45: =Eventograma!O71*'Desembolso-cronograma'!$I45 -> 2783.744167 | T45: =Eventograma!P71*'Desembolso-cronograma'!$I45 -> 2783.744167 | U45: =Eventograma!Q71*'Desembolso-cronograma'!$I45 -> 2783.744167 | V45: =Eventograma!R71*'Desembolso-cronograma'!$I45 -> 0 | W45: =Eventograma!S71*'Desembolso-cronograma'!$I45 -> 0 | X45: =Eventograma!T71*'Desembolso-cronograma'!$I45 -> 0 | Y45: =Eventograma!U71*'Desembolso-cronograma'!$I45 -> 0 | Z45: =Eventograma!V71*'Desembolso-cronograma'!$I45 -> 0
F46: =Orçamento!F45 -> 0 | G46: =Orçamento!G45 -> 0
A47: 3.2 | D47: Proteção Gabião | F47: =Orçamento!F46 -> 0 | G47: =Orçamento!G46 -> 0 | H47: =SUBTOTAL(9,H48:H51) -> 398418.01 | J47: =SUBTOTAL(9,J48:J51) -> 495841.88 | L47: =SUBTOTAL(9,L48:L52) -> 0 | M47: =SUBTOTAL(9,M48:M52) -> 0 | N47: 0 | O47: 0 | P47: 0 | Q47: 0 | R47: 0 | S47: =SUBTOTAL(9,S48:S52) -> 165280.6267 | T47: =SUBTOTAL(9,T48:T52) -> 165280.6267 | U47: =SUBTOTAL(9,U48:U52) -> 165280.6267 | Y47: 0 | Z47: 0
A48: 3.2.1 | B48: =VLOOKUP($A48,Orçamento!$A$3:$J$125,2,FALSE) -> SICRO | C48: =VLOOKUP($A48,Orçamento!$A$3:$J$125,3,FALSE) -> 3108007 | D48: =VLOOKUP($A48,Orçamento!$A$3:$J$125,4,FALSE) -> Forma em Compensado Plastificado e=10mm | E48: =VLOOKUP($A48,Orçamento!$A$3:$J$125,5,FALSE) -> m² | F48: =VLOOKUP($A48,Orçamento!$A$3:$J$125,6,FALSE) -> 108 | G48: =VLOOKUP($A48,Orçamento!$A$3:$J$125,7,FALSE) -> 111.51 | H48: =VLOOKUP($A48,Orçamento!$A$3:$J$125,8,FALSE) -> 12043.08 | I48: =VLOOKUP($A48,Orçamento!$A$3:$J$125,9,FALSE) -> 138.78 | J48: =VLOOKUP($A48,Orçamento!$A$3:$J$125,10,FALSE) -> 14988.24 | L48: =Eventograma!H74*'Desembolso-cronograma'!$I48 -> 0 | M48: =Eventograma!I74*'Desembolso-cronograma'!$I48 -> 0 | N48: =Eventograma!J74*'Desembolso-cronograma'!$I48 -> 0 | O48: =Eventograma!K74*'Desembolso-cronograma'!$I48 -> 0 | P48: =Eventograma!L74*'Desembolso-cronograma'!$I48 -> 0 | Q48: =Eventograma!M74*'Desembolso-cronograma'!$I48 -> 0 | R48: =Eventograma!N74*'Desembolso-cronograma'!$I48 -> 0 | S48: =Eventograma!R74*'Desembolso-cronograma'!$I48 -> 4996.08 | T48: =Eventograma!S74*'Desembolso-cronograma'!$I48 -> 4996.08 | U48: =Eventograma!T74*'Desembolso-cronograma'!$I48 -> 4996.08 | Y48: =Eventograma!U74*'Desembolso-cronograma'!$I48 -> 0 | Z48: =Eventograma!V74*'Desembolso-cronograma'!$I48 -> 0
A49: 3.2.2 | B49: =VLOOKUP($A49,Orçamento!$A$3:$J$125,2,FALSE) -> SICRO | C49: =VLOOKUP($A49,Orçamento!$A$3:$J$125,3,FALSE) -> 1106109 | D49: =VLOOKUP($A49,Orçamento!$A$3:$J$125,4,FALSE) -> Concreto fck = 20 Mpa | E49: =VLOOKUP($A49,Orçamento!$A$3:$J$125,5,FALSE) -> m³ | F49: =VLOOKUP($A49,Orçamento!$A$3:$J$125,6,FALSE) -> 1541 | G49: =VLOOKUP($A49,Orçamento!$A$3:$J$125,7,FALSE) -> 219.35 | H49: =VLOOKUP($A49,Orçamento!$A$3:$J$125,8,FALSE) -> 338018.35 | I49: =VLOOKUP($A49,Orçamento!$A$3:$J$125,9,FALSE) -> 272.99 | J49: =VLOOKUP($A49,Orçamento!$A$3:$J$125,10,FALSE) -> 420677.59 | L49: =Eventograma!H75*'Desembolso-cronograma'!$I49 -> 0 | M49: =Eventograma!I75*'Desembolso-cronograma'!$I49 -> 0 | N49: =Eventograma!J75*'Desembolso-cronograma'!$I49 -> 0 | O49: =Eventograma!K75*'Desembolso-cronograma'!$I49 -> 0 | P49: =Eventograma!L75*'Desembolso-cronograma'!$I49 -> 0 | Q49: =Eventograma!M75*'Desembolso-cronograma'!$I49 -> 0 | R49: =Eventograma!N75*'Desembolso-cronograma'!$I49 -> 0 | S49: =Eventograma!R75*'Desembolso-cronograma'!$I49 -> 140225.8633 | T49: =Eventograma!S75*'Desembolso-cronograma'!$I49 -> 140225.8633 | U49: =Eventograma!T75*'Desembolso-cronograma'!$I49 -> 140225.8633 | Y49: =Eventograma!U75*'Desembolso-cronograma'!$I49 -> 0 | Z49: =Eventograma!V75*'Desembolso-cronograma'!$I49 -> 0
A50: 3.2.3 | B50: =VLOOKUP($A50,Orçamento!$A$3:$J$125,2,FALSE) -> SICRO | C50: =VLOOKUP($A50,Orçamento!$A$3:$J$125,3,FALSE) -> 1107860 | D50: =VLOOKUP($A50,Orçamento!$A$3:$J$125,4,FALSE) -> Bombeamento | E50: =VLOOKUP($A50,Orçamento!$A$3:$J$125,5,FALSE) -> m³ | F50: =VLOOKUP($A50,Orçamento!$A$3:$J$125,6,FALSE) -> 1541 | G50: =VLOOKUP($A50,Orçamento!$A$3:$J$125,7,FALSE) -> 28.93 | H50: =VLOOKUP($A50,Orçamento!$A$3:$J$125,8,FALSE) -> 44581.13 | I50: =VLOOKUP($A50,Orçamento!$A$3:$J$125,9,FALSE) -> 36 | J50: =VLOOKUP($A50,Orçamento!$A$3:$J$125,10,FALSE) -> 55476 | L50: =Eventograma!H76*'Desembolso-cronograma'!$I50 -> 0 | M50: =Eventograma!I76*'Desembolso-cronograma'!$I50 -> 0 | N50: =Eventograma!J76*'Desembolso-cronograma'!$I50 -> 0 | O50: =Eventograma!K76*'Desembolso-cronograma'!$I50 -> 0 | P50: =Eventograma!L76*'Desembolso-cronograma'!$I50 -> 0 | Q50: =Eventograma!M76*'Desembolso-cronograma'!$I50 -> 0 | R50: =Eventograma!N76*'Desembolso-cronograma'!$I50 -> 0 | S50: =Eventograma!R76*'Desembolso-cronograma'!$I50 -> 18492 | T50: =Eventograma!S76*'Desembolso-cronograma'!$I50 -> 18492 | U50: =Eventograma!T76*'Desembolso-cronograma'!$I50 -> 18492 | Y50: =Eventograma!U76*'Desembolso-cronograma'!$I50 -> 0 | Z50: =Eventograma!V76*'Desembolso-cronograma'!$I50 -> 0
A51: 3.2.4 | B51: =VLOOKUP($A51,Orçamento!$A$3:$J$125,2,FALSE) -> SICRO | C51: =VLOOKUP($A51,Orçamento!$A$3:$J$125,3,FALSE) -> 1100657 | D51: =VLOOKUP($A51,Orçamento!$A$3:$J$125,4,FALSE) -> Adensamento de Concreto | E51: =VLOOKUP($A51,Orçamento!$A$3:$J$125,5,FALSE) -> m³ | F51: =VLOOKUP($A51,Orçamento!$A$3:$J$125,6,FALSE) -> 1541 | G51: =VLOOKUP($A51,Orçamento!$A$3:$J$125,7,FALSE) -> 2.45 | H51: =VLOOKUP($A51,Orçamento!$A$3:$J$125,8,FALSE) -> 3775.45 | I51: =VLOOKUP($A51,Orçamento!$A$3:$J$125,9,FALSE) -> 3.05 | J51: =VLOOKUP($A51,Orçamento!$A$3:$J$125,10,FALSE) -> 4700.05 | L51: =Eventograma!H77*'Desembolso-cronograma'!$I51 -> 0 | M51: =Eventograma!I77*'Desembolso-cronograma'!$I51 -> 0 | N51: =Eventograma!J77*'Desembolso-cronograma'!$I51 -> 0 | O51: =Eventograma!K77*'Desembolso-cronograma'!$I51 -> 0 | P51: =Eventograma!L77*'Desembolso-cronograma'!$I51 -> 0 | Q51: =Eventograma!M77*'Desembolso-cronograma'!$I51 -> 0 | R51: =Eventograma!N77*'Desembolso-cronograma'!$I51 -> 0 | S51: =Eventograma!R77*'Desembolso-cronograma'!$I51 -> 1566.683333 | T51: =Eventograma!S77*'Desembolso-cronograma'!$I51 -> 1566.683333 | U51: =Eventograma!T77*'Desembolso-cronograma'!$I51 -> 1566.683333 | Y51: =Eventograma!U77*'Desembolso-cronograma'!$I51 -> 0 | Z51: =Eventograma!V77*'Desembolso-cronograma'!$I51 -> 0
F52: =Orçamento!F51 -> 0 | G52: =Orçamento!G51 -> 0
A53: 3.3 | D53: Reparos estruturas de concreto | F53: =Orçamento!F52 -> 0 | G53: =Orçamento!G52 -> 0 | H53: =SUBTOTAL(9,H54:H62) -> 26143.045 | J53: =SUBTOTAL(9,J54:J62) -> 32536.33 | L53: =SUBTOTAL(9,L54:L62) -> 0 | M53: =SUBTOTAL(9,M54:M62) -> 0 | N53: 0 | O53: 4648.047143 | P53: 4648.047143 | Q53: 4648.047143 | R53: 4648.047143 | S53: 4648.047143 | T53: 4648.047143 | U53: 4648.047143 | V53: 0 | W53: 0 | X53: 0 | Y53: 0 | Z53: 0
A54: 3.3.1 | B54: =VLOOKUP($A54,Orçamento!$A$3:$J$125,2,FALSE) -> SICRO | C54: =VLOOKUP($A54,Orçamento!$A$3:$J$125,3,FALSE) -> 3806413 | D54: =VLOOKUP($A54,Orçamento!$A$3:$J$125,4,FALSE) -> Apicoamento | E54: =VLOOKUP($A54,Orçamento!$A$3:$J$125,5,FALSE) -> m² | F54: =VLOOKUP($A54,Orçamento!$A$3:$J$125,6,FALSE) -> 50 | G54: =VLOOKUP($A54,Orçamento!$A$3:$J$125,7,FALSE) -> 9.21 | H54: =VLOOKUP($A54,Orçamento!$A$3:$J$125,8,FALSE) -> 460.5 | I54: =VLOOKUP($A54,Orçamento!$A$3:$J$125,9,FALSE) -> 11.46 | J54: =VLOOKUP($A54,Orçamento!$A$3:$J$125,10,FALSE) -> 573 | L54: =Eventograma!H80*'Desembolso-cronograma'!$I54 -> 0 | M54: =Eventograma!I80*'Desembolso-cronograma'!$I54 -> 0 | N54: =Eventograma!J80*'Desembolso-cronograma'!$I54 -> 0 | O54: =Eventograma!K80*'Desembolso-cronograma'!$I54 -> 81.85714286 | P54: =Eventograma!L80*'Desembolso-cronograma'!$I54 -> 81.85714286 | Q54: =Eventograma!M80*'Desembolso-cronograma'!$I54 -> 81.85714286 | R54: =Eventograma!N80*'Desembolso-cronograma'!$I54 -> 81.85714286 | S54: =Eventograma!O80*'Desembolso-cronograma'!$I54 -> 81.85714286 | T54: =Eventograma!P80*'Desembolso-cronograma'!$I54 -> 81.85714286 | U54: =Eventograma!Q80*'Desembolso-cronograma'!$I54 -> 81.85714286 | V54: =Eventograma!R80*'Desembolso-cronograma'!$I54 -> 0 | W54: =Eventograma!S80*'Desembolso-cronograma'!$I54 -> 0 | X54: =Eventograma!T80*'Desembolso-cronograma'!$I54 -> 0 | Y54: =Eventograma!U80*'Desembolso-cronograma'!$I54 -> 0 | Z54: =Eventograma!V80*'Desembolso-cronograma'!$I54 -> 0
A55: 3.3.2 | B55: =VLOOKUP($A55,Orçamento!$A$3:$J$125,2,FALSE) -> SICRO | C55: =VLOOKUP($A55,Orçamento!$A$3:$J$125,3,FALSE) -> 3806402 | D55: =VLOOKUP($A55,Orçamento!$A$3:$J$125,4,FALSE) -> Limpeza em superfície de concreto | E55: =VLOOKUP($A55,Orçamento!$A$3:$J$125,5,FALSE) -> m² | F55: =VLOOKUP($A55,Orçamento!$A$3:$J$125,6,FALSE) -> 50 | G55: =VLOOKUP($A55,Orçamento!$A$3:$J$125,7,FALSE) -> 2.66 | H55: =VLOOKUP($A55,Orçamento!$A$3:$J$125,8,FALSE) -> 133 | I55: =VLOOKUP($A55,Orçamento!$A$3:$J$125,9,FALSE) -> 3.31 | J55: =VLOOKUP($A55,Orçamento!$A$3:$J$125,10,FALSE) -> 165.5 | L55: =Eventograma!H81*'Desembolso-cronograma'!$I55 -> 0 | M55: =Eventograma!I81*'Desembolso-cronograma'!$I55 -> 0 | N55: =Eventograma!J81*'Desembolso-cronograma'!$I55 -> 0 | O55: =Eventograma!K81*'Desembolso-cronograma'!$I55 -> 23.64285714 | P55: =Eventograma!L81*'Desembolso-cronograma'!$I55 -> 23.64285714 | Q55: =Eventograma!M81*'Desembolso-cronograma'!$I55 -> 23.64285714 | R55: =Eventograma!N81*'Desembolso-cronograma'!$I55 -> 23.64285714 | S55: =Eventograma!O81*'Desembolso-cronograma'!$I55 -> 23.64285714 | T55: =Eventograma!P81*'Desembolso-cronograma'!$I55 -> 23.64285714 | U55: =Eventograma!Q81*'Desembolso-cronograma'!$I55 -> 23.64285714 | V55: =Eventograma!R81*'Desembolso-cronograma'!$I55 -> 0 | W55: =Eventograma!S81*'Desembolso-cronograma'!$I55 -> 0 | X55: =Eventograma!T81*'Desembolso-cronograma'!$I55 -> 0 | Y55: =Eventograma!U81*'Desembolso-cronograma'!$I55 -> 0 | Z55: =Eventograma!V81*'Desembolso-cronograma'!$I55 -> 0
A56: 3.3.3 | B56: =VLOOKUP($A56,Orçamento!$A$3:$J$125,2,FALSE) -> COMPOS. | C56: =VLOOKUP($A56,Orçamento!$A$3:$J$125,3,FALSE) -> 0.006 | D56: =VLOOKUP($A56,Orçamento!$A$3:$J$125,4,FALSE) -> Veda Juntas O-22 | E56: =VLOOKUP($A56,Orçamento!$A$3:$J$125,5,FALSE) -> m | F56: =VLOOKUP($A56,Orçamento!$A$3:$J$125,6,FALSE) -> 30 | G56: =VLOOKUP($A56,Orçamento!$A$3:$J$125,7,FALSE) -> 90.0625 | H56: =VLOOKUP($A56,Orçamento!$A$3:$J$125,8,FALSE) -> 2701.875 | I56: =VLOOKUP($A56,Orçamento!$A$3:$J$125,9,FALSE) -> 112.09 | J56: =VLOOKUP($A56,Orçamento!$A$3:$J$125,10,FALSE) -> 3362.7 | L56: =Eventograma!H82*'Desembolso-cronograma'!$I56 -> 0 | M56: =Eventograma!I82*'Desembolso-cronograma'!$I56 -> 0 | N56: =Eventograma!J82*'Desembolso-cronograma'!$I56 -> 0 | O56: =Eventograma!K82*'Desembolso-cronograma'!$I56 -> 480.3857143 | P56: =Eventograma!L82*'Desembolso-cronograma'!$I56 -> 480.3857143 | Q56: =Eventograma!M82*'Desembolso-cronograma'!$I56 -> 480.3857143 | R56: =Eventograma!N82*'Desembolso-cronograma'!$I56 -> 480.3857143 | S56: =Eventograma!O82*'Desembolso-cronograma'!$I56 -> 480.3857143 | T56: =Eventograma!P82*'Desembolso-cronograma'!$I56 -> 480.3857143 | U56: =Eventograma!Q82*'Desembolso-cronograma'!$I56 -> 480.3857143 | V56: =Eventograma!R82*'Desembolso-cronograma'!$I56 -> 0 | W56: =Eventograma!S82*'Desembolso-cronograma'!$I56 -> 0 | X56: =Eventograma!T82*'Desembolso-cronograma'!$I56 -> 0 | Y56: =Eventograma!U82*'Desembolso-cronograma'!$I56 -> 0 | Z56: =Eventograma!V82*'Desembolso-cronograma'!$I56 -> 0
A57: 3.3.4 | B57: =VLOOKUP($A57,Orçamento!$A$3:$J$125,2,FALSE) -> SICRO | C57: =VLOOKUP($A57,Orçamento!$A$3:$J$125,3,FALSE) -> 2407972 | D57: =VLOOKUP($A57,Orçamento!$A$3:$J$125,4,FALSE) -> Adesivo estrutural à base de resina epóxi | E57: =VLOOKUP($A57,Orçamento!$A$3:$J$125,5,FALSE) -> kg | F57: =VLOOKUP($A57,Orçamento!$A$3:$J$125,6,FALSE) -> 40 | G57: =VLOOKUP($A57,Orçamento!$A$3:$J$125,7,FALSE) -> 55.17 | H57: =VLOOKUP($A57,Orçamento!$A$3:$J$125,8,FALSE) -> 2206.8 | I57: =VLOOKUP($A57,Orçamento!$A$3:$J$125,9,FALSE) -> 68.66 | J57: =VLOOKUP($A57,Orçamento!$A$3:$J$125,10,FALSE) -> 2746.4 | L57: =Eventograma!H83*'Desembolso-cronograma'!$I57 -> 0 | M57: =Eventograma!I83*'Desembolso-cronograma'!$I57 -> 0 | N57: =Eventograma!J83*'Desembolso-cronograma'!$I57 -> 0 | O57: =Eventograma!K83*'Desembolso-cronograma'!$I57 -> 392.3428571 | P57: =Eventograma!L83*'Desembolso-cronograma'!$I57 -> 392.3428571 | Q57: =Eventograma!M83*'Desembolso-cronograma'!$I57 -> 392.3428571 | R57: =Eventograma!N83*'Desembolso-cronograma'!$I57 -> 392.3428571 | S57: =Eventograma!O83*'Desembolso-cronograma'!$I57 -> 392.3428571 | T57: =Eventograma!P83*'Desembolso-cronograma'!$I57 -> 392.3428571 | U57: =Eventograma!Q83*'Desembolso-cronograma'!$I57 -> 392.3428571 | V57: =Eventograma!R83*'Desembolso-cronograma'!$I57 -> 0 | W57: =Eventograma!S83*'Desembolso-cronograma'!$I57 -> 0 | X57: =Eventograma!T83*'Desembolso-cronograma'!$I57 -> 0 | Y57: =Eventograma!U83*'Desembolso-cronograma'!$I57 -> 0 | Z57: =Eventograma!V83*'Desembolso-cronograma'!$I57 -> 0
A58: 3.3.5 | B58: =VLOOKUP($A58,Orçamento!$A$3:$J$125,2,FALSE) -> SICRO | C58: =VLOOKUP($A58,Orçamento!$A$3:$J$125,3,FALSE) -> 1108060 | D58: =VLOOKUP($A58,Orçamento!$A$3:$J$125,4,FALSE) -> Argamassa polimérica com microssílica | E58: =VLOOKUP($A58,Orçamento!$A$3:$J$125,5,FALSE) -> m³ | F58: =VLOOKUP($A58,Orçamento!$A$3:$J$125,6,FALSE) -> 3 | G58: =VLOOKUP($A58,Orçamento!$A$3:$J$125,7,FALSE) -> 382.96 | H58: =VLOOKUP($A58,Orçamento!$A$3:$J$125,8,FALSE) -> 1148.88 | I58: =VLOOKUP($A58,Orçamento!$A$3:$J$125,9,FALSE) -> 476.61 | J58: =VLOOKUP($A58,Orçamento!$A$3:$J$125,10,FALSE) -> 1429.83 | L58: =Eventograma!H84*'Desembolso-cronograma'!$I58 -> 0 | M58: =Eventograma!I84*'Desembolso-cronograma'!$I58 -> 0 | N58: =Eventograma!J84*'Desembolso-cronograma'!$I58 -> 0 | O58: =Eventograma!K84*'Desembolso-cronograma'!$I58 -> 204.2614286 | P58: =Eventograma!L84*'Desembolso-cronograma'!$I58 -> 204.2614286 | Q58: =Eventograma!M84*'Desembolso-cronograma'!$I58 -> 204.2614286 | R58: =Eventograma!N84*'Desembolso-cronograma'!$I58 -> 204.2614286 | S58: =Eventograma!O84*'Desembolso-cronograma'!$I58 -> 204.2614286 | T58: =Eventograma!P84*'Desembolso-cronograma'!$I58 -> 204.2614286 | U58: =Eventograma!Q84*'Desembolso-cronograma'!$I58 -> 204.2614286 | V58: =Eventograma!R84*'Desembolso-cronograma'!$I58 -> 0 | W58: =Eventograma!S84*'Desembolso-cronograma'!$I58 -> 0 | X58: =Eventograma!T84*'Desembolso-cronograma'!$I58 -> 0 | Y58: =Eventograma!U84*'Desembolso-cronograma'!$I58 -> 0 | Z58: =Eventograma!V84*'Desembolso-cronograma'!$I58 -> 0
A59: 3.3.6 | B59: =VLOOKUP($A59,Orçamento!$A$3:$J$125,2,FALSE) -> SICRO | C59: =VLOOKUP($A59,Orçamento!$A$3:$J$125,3,FALSE) -> 1109667 | D59: =VLOOKUP($A59,Orçamento!$A$3:$J$125,4,FALSE) -> Argamassa Dry Pack | E59: =VLOOKUP($A59,Orçamento!$A$3:$J$125,5,FALSE) -> m³ | F59: =VLOOKUP($A59,Orçamento!$A$3:$J$125,6,FALSE) -> 3 | G59: =VLOOKUP($A59,Orçamento!$A$3:$J$125,7,FALSE) -> 364.36 | H59: =VLOOKUP($A59,Orçamento!$A$3:$J$125,8,FALSE) -> 1093.08 | I59: =VLOOKUP($A59,Orçamento!$A$3:$J$125,9,FALSE) -> 453.47 | J59: =VLOOKUP($A59,Orçamento!$A$3:$J$125,10,FALSE) -> 1360.41 | L59: =Eventograma!H85*'Desembolso-cronograma'!$I59 -> 0 | M59: =Eventograma!I85*'Desembolso-cronograma'!$I59 -> 0 | N59: =Eventograma!J85*'Desembolso-cronograma'!$I59 -> 0 | O59: =Eventograma!K85*'Desembolso-cronograma'!$I59 -> 194.3442857 | P59: =Eventograma!L85*'Desembolso-cronograma'!$I59 -> 194.3442857 | Q59: =Eventograma!M85*'Desembolso-cronograma'!$I59 -> 194.3442857 | R59: =Eventograma!N85*'Desembolso-cronograma'!$I59 -> 194.3442857 | S59: =Eventograma!O85*'Desembolso-cronograma'!$I59 -> 194.3442857 | T59: =Eventograma!P85*'Desembolso-cronograma'!$I59 -> 194.3442857 | U59: =Eventograma!Q85*'Desembolso-cronograma'!$I59 -> 194.3442857 | V59: =Eventograma!R85*'Desembolso-cronograma'!$I59 -> 0 | W59: =Eventograma!S85*'Desembolso-cronograma'!$I59 -> 0 | X59: =Eventograma!T85*'Desembolso-cronograma'!$I59 -> 0 | Y59: =Eventograma!U85*'Desembolso-cronograma'!$I59 -> 0 | Z59: =Eventograma!V85*'Desembolso-cronograma'!$I59 -> 0
A60: 3.3.7 | B60: =VLOOKUP($A60,Orçamento!$A$3:$J$125,2,FALSE) -> SICRO | C60: =VLOOKUP($A60,Orçamento!$A$3:$J$125,3,FALSE) -> 1108056 | D60: =VLOOKUP($A60,Orçamento!$A$3:$J$125,4,FALSE) -> Microconcreto autoadensável | E60: =VLOOKUP($A60,Orçamento!$A$3:$J$125,5,FALSE) -> m³ | F60: =VLOOKUP($A60,Orçamento!$A$3:$J$125,6,FALSE) -> 9 | G60: =VLOOKUP($A60,Orçamento!$A$3:$J$125,7,FALSE) -> 1823.22 | H60: =VLOOKUP($A60,Orçamento!$A$3:$J$125,8,FALSE) -> 16408.98 | I60: =VLOOKUP($A60,Orçamento!$A$3:$J$125,9,FALSE) -> 2269.1 | J60: =VLOOKUP($A60,Orçamento!$A$3:$J$125,10,FALSE) -> 20421.9 | L60: =Eventograma!H86*'Desembolso-cronograma'!$I60 -> 0 | M60: =Eventograma!I86*'Desembolso-cronograma'!$I60 -> 0 | N60: =Eventograma!J86*'Desembolso-cronograma'!$I60 -> 0 | O60: =Eventograma!K86*'Desembolso-cronograma'!$I60 -> 2917.414286 | P60: =Eventograma!L86*'Desembolso-cronograma'!$I60 -> 2917.414286 | Q60: =Eventograma!M86*'Desembolso-cronograma'!$I60 -> 2917.414286 | R60: =Eventograma!N86*'Desembolso-cronograma'!$I60 -> 2917.414286 | S60: =Eventograma!O86*'Desembolso-cronograma'!$I60 -> 2917.414286 | T60: =Eventograma!P86*'Desembolso-cronograma'!$I60 -> 2917.414286 | U60: =Eventograma!Q86*'Desembolso-cronograma'!$I60 -> 2917.414286 | V60: =Eventograma!R86*'Desembolso-cronograma'!$I60 -> 0 | W60: =Eventograma!S86*'Desembolso-cronograma'!$I60 -> 0 | X60: =Eventograma!T86*'Desembolso-cronograma'!$I60 -> 0 | Y60: =Eventograma!U86*'Desembolso-cronograma'!$I60 -> 0 | Z60: =Eventograma!V86*'Desembolso-cronograma'!$I60 -> 0
A61: 3.3.8 | B61: =VLOOKUP($A61,Orçamento!$A$3:$J$125,2,FALSE) -> SICRO | C61: =VLOOKUP($A61,Orçamento!$A$3:$J$125,3,FALSE) -> 3806415 | D61: =VLOOKUP($A61,Orçamento!$A$3:$J$125,4,FALSE) -> Demolição controlada | E61: =VLOOKUP($A61,Orçamento!$A$3:$J$125,5,FALSE) -> m³ | F61: =VLOOKUP($A61,Orçamento!$A$3:$J$125,6,FALSE) -> 3 | G61: =VLOOKUP($A61,Orçamento!$A$3:$J$125,7,FALSE) -> 663.31 | H61: =VLOOKUP($A61,Orçamento!$A$3:$J$125,8,FALSE) -> 1989.93 | I61: =VLOOKUP($A61,Orçamento!$A$3:$J$125,9,FALSE) -> 825.53 | J61: =VLOOKUP($A61,Orçamento!$A$3:$J$125,10,FALSE) -> 2476.59 | L61: =Eventograma!H87*'Desembolso-cronograma'!$I61 -> 0 | M61: =Eventograma!I87*'Desembolso-cronograma'!$I61 -> 0 | N61: =Eventograma!J87*'Desembolso-cronograma'!$I61 -> 0 | O61: =Eventograma!K87*'Desembolso-cronograma'!$I61 -> 353.7985714 | P61: =Eventograma!L87*'Desembolso-cronograma'!$I61 -> 353.7985714 | Q61: =Eventograma!M87*'Desembolso-cronograma'!$I61 -> 353.7985714 | R61: =Eventograma!N87*'Desembolso-cronograma'!$I61 -> 353.7985714 | S61: =Eventograma!O87*'Desembolso-cronograma'!$I61 -> 353.7985714 | T61: =Eventograma!P87*'Desembolso-cronograma'!$I61 -> 353.7985714 | U61: =Eventograma!Q87*'Desembolso-cronograma'!$I61 -> 353.7985714 | V61: =Eventograma!R87*'Desembolso-cronograma'!$I61 -> 0 | W61: =Eventograma!S87*'Desembolso-cronograma'!$I61 -> 0 | X61: =Eventograma!T87*'Desembolso-cronograma'!$I61 -> 0 | Y61: =Eventograma!U87*'Desembolso-cronograma'!$I61 -> 0 | Z61: =Eventograma!V87*'Desembolso-cronograma'!$I61 -> 0
F62: =Orçamento!F61 -> 0 | G62: =Orçamento!G61 -> 0
A63: 4 | D63: Barragem de Terra | F63: =Orçamento!F62 -> 0 | G63: =Orçamento!G62 -> 0 | H63: =SUBTOTAL(9,H64:H116) -> 3030938.323 | J63: =SUBTOTAL(9,J64:J116) -> 3772419.794 | L63: =SUBTOTAL(9,L64:L116) -> 0 | M63: =SUBTOTAL(9,N64:N116) -> 54125.12488 | N63: 140620.7025 | O63: 253727.0542 | P63: 690725.4729 | Q63: 806277.1129 | R63: 813684.3529 | S63: 731967.7516 | T63: 275455.0925 | U63: 0 | W63: 0 | X63: 0 | Y63: 0 | Z63: 0
A64: 4.1 | D64: Montante | F64: =Orçamento!F63 -> 0 | G64: =Orçamento!G63 -> 0 | H64: =SUBTOTAL(9,H65:H78) -> 1710065.457 | J64: =SUBTOTAL(9,J65:J78) -> 2128275.823 | L64: =SUBTOTAL(9,L65:L79) -> 0 | M64: =SUBTOTAL(9,N65:N79) -> 4378.4 | N64: 7850.2 | O64: 124739.0817 | P64: 531808.0108 | Q64: 509382.0708 | R64: 509382.0708 | S64: 436988.9491 | T64: 3747.04 | U64: 0 | W64: 0 | X64: 0 | Y64: 0 | Z64: 0
A65: 4.2.1 | B65: =VLOOKUP($A65,Orçamento!$A$3:$J$125,2,FALSE) -> SICRO | C65: =VLOOKUP($A65,Orçamento!$A$3:$J$125,3,FALSE) -> 5502985 | D65: =VLOOKUP($A65,Orçamento!$A$3:$J$125,4,FALSE) -> Limpeza da camada vegetal | E65: =VLOOKUP($A65,Orçamento!$A$3:$J$125,5,FALSE) -> m² | F65: =VLOOKUP($A65,Orçamento!$A$3:$J$125,6,FALSE) -> 16840 | G65: =VLOOKUP($A65,Orçamento!$A$3:$J$125,7,FALSE) -> 0.31 | H65: =VLOOKUP($A65,Orçamento!$A$3:$J$125,8,FALSE) -> 5220.4 | I65: =VLOOKUP($A65,Orçamento!$A$3:$J$125,9,FALSE) -> 0.39 | J65: =VLOOKUP($A65,Orçamento!$A$3:$J$125,10,FALSE) -> 6567.6 | L65: =Eventograma!H97*'Desembolso-cronograma'!$I65 -> 0 | M65: =Eventograma!J97*'Desembolso-cronograma'!$I65 -> 0 | N65: =Eventograma!K97*'Desembolso-cronograma'!$I65 -> 4378.4 | O65: =Eventograma!L97*'Desembolso-cronograma'!$I65 -> 2189.2 | P65: =Eventograma!M97*'Desembolso-cronograma'!$I65 -> 0 | Q65: =Eventograma!N97*'Desembolso-cronograma'!$I65 -> 0 | R65: =Eventograma!O97*'Desembolso-cronograma'!$I65 -> 0 | S65: =Eventograma!P97*'Desembolso-cronograma'!$I65 -> 0 | T65: =Eventograma!Q97*'Desembolso-cronograma'!$I65 -> 0 | U65: =Eventograma!R97*'Desembolso-cronograma'!$I65 -> 0 | W65: =Eventograma!S97*'Desembolso-cronograma'!$I65 -> 0 | X65: =Eventograma!T97*'Desembolso-cronograma'!$I65 -> 0 | Y65: =Eventograma!U97*'Desembolso-cronograma'!$I65 -> 0 | Z65: =Eventograma!V97*'Desembolso-cronograma'!$I65 -> 0
A66: 4.2.2 | B66: =VLOOKUP($A66,Orçamento!$A$3:$J$125,2,FALSE) -> SINAPI | C66: =VLOOKUP($A66,Orçamento!$A$3:$J$125,3,FALSE) -> 98527 | D66: =VLOOKUP($A66,Orçamento!$A$3:$J$125,4,FALSE) -> Remoção de raízes e cupinzeiros | E66: =VLOOKUP($A66,Orçamento!$A$3:$J$125,5,FALSE) -> und | F66: =VLOOKUP($A66,Orçamento!$A$3:$J$125,6,FALSE) -> 34 | G66: =VLOOKUP($A66,Orçamento!$A$3:$J$125,7,FALSE) -> 133.78 | H66: =VLOOKUP($A66,Orçamento!$A$3:$J$125,8,FALSE) -> 4548.52 | I66: =VLOOKUP($A66,Orçamento!$A$3:$J$125,9,FALSE) -> 166.5 | J66: =VLOOKUP($A66,Orçamento!$A$3:$J$125,10,FALSE) -> 5661 | L66: =Eventograma!H98*'Desembolso-cronograma'!$I66 -> 0 | M66: =Eventograma!J98*'Desembolso-cronograma'!$I66 -> 0 | N66: =Eventograma!K98*'Desembolso-cronograma'!$I66 -> 0 | O66: =Eventograma!L98*'Desembolso-cronograma'!$I66 -> 5661 | P66: =Eventograma!M98*'Desembolso-cronograma'!$I66 -> 0 | Q66: =Eventograma!N98*'Desembolso-cronograma'!$I66 -> 0 | R66: =Eventograma!O98*'Desembolso-cronograma'!$I66 -> 0 | S66: =Eventograma!P98*'Desembolso-cronograma'!$I66 -> 0 | T66: =Eventograma!Q98*'Desembolso-cronograma'!$I66 -> 0 | U66: =Eventograma!R98*'Desembolso-cronograma'!$I66 -> 0 | W66: =Eventograma!S98*'Desembolso-cronograma'!$I66 -> 0 | X66: =Eventograma!T98*'Desembolso-cronograma'!$I66 -> 0 | Y66: =Eventograma!U98*'Desembolso-cronograma'!$I66 -> 0 | Z66: =Eventograma!V98*'Desembolso-cronograma'!$I66 -> 0
A67: 4.2.3 | B67: =VLOOKUP($A67,Orçamento!$A$3:$J$125,2,FALSE) -> SICRO | C67: =VLOOKUP($A67,Orçamento!$A$3:$J$125,3,FALSE) -> 4915625 | D67: =VLOOKUP($A67,Orçamento!$A$3:$J$125,4,FALSE) -> Recomposição em Solo Cimento | E67: =VLOOKUP($A67,Orçamento!$A$3:$J$125,5,FALSE) -> m³ | F67: =VLOOKUP($A67,Orçamento!$A$3:$J$125,6,FALSE) -> 1718 | G67: =VLOOKUP($A67,Orçamento!$A$3:$J$125,7,FALSE) -> 27.05 | H67: =VLOOKUP($A67,Orçamento!$A$3:$J$125,8,FALSE) -> 46471.9 | I67: =VLOOKUP($A67,Orçamento!$A$3:$J$125,9,FALSE) -> 33.67 | J67: =VLOOKUP($A67,Orçamento!$A$3:$J$125,10,FALSE) -> 57845.06 | L67: =Eventograma!H99*'Desembolso-cronograma'!$I67 -> 0 | M67: =Eventograma!J99*'Desembolso-cronograma'!$I67 -> 0 | N67: =Eventograma!K99*'Desembolso-cronograma'!$I67 -> 0 | O67: =Eventograma!L99*'Desembolso-cronograma'!$I67 -> 0 | P67: =Eventograma!M99*'Desembolso-cronograma'!$I67 -> 38563.37333 | Q67: =Eventograma!N99*'Desembolso-cronograma'!$I67 -> 19281.68667 | R67: =Eventograma!O99*'Desembolso-cronograma'!$I67 -> 0 | S67: =Eventograma!P99*'Desembolso-cronograma'!$I67 -> 0 | T67: =Eventograma!Q99*'Desembolso-cronograma'!$I67 -> 0 | U67: =Eventograma!R99*'Desembolso-cronograma'!$I67 -> 0 | W67: =Eventograma!S99*'Desembolso-cronograma'!$I67 -> 0 | X67: =Eventograma!T99*'Desembolso-cronograma'!$I67 -> 0 | Y67: =Eventograma!U99*'Desembolso-cronograma'!$I67 -> 0 | Z67: =Eventograma!V99*'Desembolso-cronograma'!$I67 -> 0
A68: 4.2.5 | B68: =VLOOKUP($A68,Orçamento!$A$3:$J$125,2,FALSE) -> SICRO | C68: =VLOOKUP($A68,Orçamento!$A$3:$J$125,3,FALSE) -> 4805754 | D68: =VLOOKUP($A68,Orçamento!$A$3:$J$125,4,FALSE) -> Compactação Manual | E68: =VLOOKUP($A68,Orçamento!$A$3:$J$125,5,FALSE) -> m³ | F68: =VLOOKUP($A68,Orçamento!$A$3:$J$125,6,FALSE) -> 1718 | G68: =VLOOKUP($A68,Orçamento!$A$3:$J$125,7,FALSE) -> 4.93 | H68: =VLOOKUP($A68,Orçamento!$A$3:$J$125,8,FALSE) -> 8469.74 | I68: =VLOOKUP($A68,Orçamento!$A$3:$J$125,9,FALSE) -> 6.14 | J68: =VLOOKUP($A68,Orçamento!$A$3:$J$125,10,FALSE) -> 10548.52 | L68: =Eventograma!H101*'Desembolso-cronograma'!$I68 -> 0 | M68: =Eventograma!J101*'Desembolso-cronograma'!$I68 -> 0 | N68: =Eventograma!K101*'Desembolso-cronograma'!$I68 -> 0 | O68: =Eventograma!L101*'Desembolso-cronograma'!$I68 -> 0 | P68: =Eventograma!M101*'Desembolso-cronograma'!$I68 -> 7032.346667 | Q68: =Eventograma!N101*'Desembolso-cronograma'!$I68 -> 3516.173333 | R68: =Eventograma!O101*'Desembolso-cronograma'!$I68 -> 0 | S68: =Eventograma!P101*'Desembolso-cronograma'!$I68 -> 0 | T68: =Eventograma!Q101*'Desembolso-cronograma'!$I68 -> 0 | U68: =Eventograma!R101*'Desembolso-cronograma'!$I68 -> 0 | W68: =Eventograma!S101*'Desembolso-cronograma'!$I68 -> 0 | X68: =Eventograma!T101*'Desembolso-cronograma'!$I68 -> 0 | Y68: =Eventograma!U101*'Desembolso-cronograma'!$I68 -> 0 | Z68: =Eventograma!V101*'Desembolso-cronograma'!$I68 -> 0
A69: 4.2.6 | B69: =VLOOKUP($A69,Orçamento!$A$3:$J$125,2,FALSE) -> SICRO | C69: =VLOOKUP($A69,Orçamento!$A$3:$J$125,3,FALSE) -> 4805757 | D69: =VLOOKUP($A69,Orçamento!$A$3:$J$125,4,FALSE) -> Escavação mecânica de vala | E69: =VLOOKUP($A69,Orçamento!$A$3:$J$125,5,FALSE) -> m³ | F69: =VLOOKUP($A69,Orçamento!$A$3:$J$125,6,FALSE) -> 2058 | G69: =VLOOKUP($A69,Orçamento!$A$3:$J$125,7,FALSE) -> 3.95 | H69: =VLOOKUP($A69,Orçamento!$A$3:$J$125,8,FALSE) -> 8129.1 | I69: =VLOOKUP($A69,Orçamento!$A$3:$J$125,9,FALSE) -> 4.92 | J69: =VLOOKUP($A69,Orçamento!$A$3:$J$125,10,FALSE) -> 10125.36 | L69: =Eventograma!H102*'Desembolso-cronograma'!$I69 -> 0 | M69: =Eventograma!J102*'Desembolso-cronograma'!$I69 -> 0 | N69: =Eventograma!K102*'Desembolso-cronograma'!$I69 -> 0 | O69: =Eventograma!L102*'Desembolso-cronograma'!$I69 -> 0 | P69: =Eventograma!M102*'Desembolso-cronograma'!$I69 -> 6750.24 | Q69: =Eventograma!N102*'Desembolso-cronograma'!$I69 -> 3375.12 | R69: =Eventograma!O102*'Desembolso-cronograma'!$I69 -> 0 | S69: =Eventograma!P102*'Desembolso-cronograma'!$I69 -> 0 | T69: =Eventograma!Q102*'Desembolso-cronograma'!$I69 -> 0 | U69: =Eventograma!R102*'Desembolso-cronograma'!$I69 -> 0 | W69: =Eventograma!S102*'Desembolso-cronograma'!$I69 -> 0 | X69: =Eventograma!T102*'Desembolso-cronograma'!$I69 -> 0 | Y69: =Eventograma!U102*'Desembolso-cronograma'!$I69 -> 0 | Z69: =Eventograma!V102*'Desembolso-cronograma'!$I69 -> 0
A70: 4.2.7 | B70: =VLOOKUP($A70,Orçamento!$A$3:$J$125,2,FALSE) -> SICRO | C70: =VLOOKUP($A70,Orçamento!$A$3:$J$125,3,FALSE) -> 2004505 | D70: =VLOOKUP($A70,Orçamento!$A$3:$J$125,4,FALSE) -> Reaterro e compactação em vala | E70: =VLOOKUP($A70,Orçamento!$A$3:$J$125,5,FALSE) -> m³ | F70: =VLOOKUP($A70,Orçamento!$A$3:$J$125,6,FALSE) -> 704 | G70: =VLOOKUP($A70,Orçamento!$A$3:$J$125,7,FALSE) -> 17.11 | H70: =VLOOKUP($A70,Orçamento!$A$3:$J$125,8,FALSE) -> 12045.44 | I70: =VLOOKUP($A70,Orçamento!$A$3:$J$125,9,FALSE) -> 21.29 | J70: =VLOOKUP($A70,Orçamento!$A$3:$J$125,10,FALSE) -> 14988.16 | L70: =Eventograma!H103*'Desembolso-cronograma'!$I70 -> 0 | M70: =Eventograma!J103*'Desembolso-cronograma'!$I70 -> 0 | N70: =Eventograma!K103*'Desembolso-cronograma'!$I70 -> 0 | O70: =Eventograma!L103*'Desembolso-cronograma'!$I70 -> 0 | P70: =Eventograma!M103*'Desembolso-cronograma'!$I70 -> 0 | Q70: =Eventograma!N103*'Desembolso-cronograma'!$I70 -> 0 | R70: =Eventograma!O103*'Desembolso-cronograma'!$I70 -> 3747.04 | S70: =Eventograma!P103*'Desembolso-cronograma'!$I70 -> 3747.04 | T70: =Eventograma!Q103*'Desembolso-cronograma'!$I70 -> 3747.04 | U70: =Eventograma!R103*'Desembolso-cronograma'!$I70 -> 3747.04 | W70: =Eventograma!S103*'Desembolso-cronograma'!$I70 -> 0 | X70: =Eventograma!T103*'Desembolso-cronograma'!$I70 -> 0 | Y70: =Eventograma!U103*'Desembolso-cronograma'!$I70 -> 0 | Z70: =Eventograma!V103*'Desembolso-cronograma'!$I70 -> 0
A71: 4.2.8 | B71: =VLOOKUP($A71,Orçamento!$A$3:$J$125,2,FALSE) -> SICRO | C71: =VLOOKUP($A71,Orçamento!$A$3:$J$125,3,FALSE) -> 2003867 | D71: =VLOOKUP($A71,Orçamento!$A$3:$J$125,4,FALSE) -> Aplicação de geotextil | E71: =VLOOKUP($A71,Orçamento!$A$3:$J$125,5,FALSE) -> m² | F71: =VLOOKUP($A71,Orçamento!$A$3:$J$125,6,FALSE) -> 14765 | G71: =VLOOKUP($A71,Orçamento!$A$3:$J$125,7,FALSE) -> 14.11 | H71: =VLOOKUP($A71,Orçamento!$A$3:$J$125,8,FALSE) -> 208334.15 | I71: =VLOOKUP($A71,Orçamento!$A$3:$J$125,9,FALSE) -> 17.56 | J71: =VLOOKUP($A71,Orçamento!$A$3:$J$125,10,FALSE) -> 259273.4 | L71: =Eventograma!H104*'Desembolso-cronograma'!$I71 -> 0 | M71: =Eventograma!J104*'Desembolso-cronograma'!$I71 -> 0 | N71: =Eventograma!K104*'Desembolso-cronograma'!$I71 -> 0 | O71: =Eventograma!L104*'Desembolso-cronograma'!$I71 -> 0 | P71: =Eventograma!M104*'Desembolso-cronograma'!$I71 -> 64818.35 | Q71: =Eventograma!N104*'Desembolso-cronograma'!$I71 -> 64818.35 | R71: =Eventograma!O104*'Desembolso-cronograma'!$I71 -> 64818.35 | S71: =Eventograma!P104*'Desembolso-cronograma'!$I71 -> 64818.35 | T71: =Eventograma!Q104*'Desembolso-cronograma'!$I71 -> 0 | U71: =Eventograma!R104*'Desembolso-cronograma'!$I71 -> 0 | W71: =Eventograma!S104*'Desembolso-cronograma'!$I71 -> 0 | X71: =Eventograma!T104*'Desembolso-cronograma'!$I71 -> 0 | Y71: =Eventograma!U104*'Desembolso-cronograma'!$I71 -> 0 | Z71: =Eventograma!V104*'Desembolso-cronograma'!$I71 -> 0
A72: 4.2.9 | B72: =VLOOKUP($A72,Orçamento!$A$3:$J$125,2,FALSE) -> SICRO | C72: =VLOOKUP($A72,Orçamento!$A$3:$J$125,3,FALSE) -> 407820 | D72: =VLOOKUP($A72,Orçamento!$A$3:$J$125,4,FALSE) -> Armação em aço CA-60 | E72: =VLOOKUP($A72,Orçamento!$A$3:$J$125,5,FALSE) -> kg | F72: =VLOOKUP($A72,Orçamento!$A$3:$J$125,6,FALSE) -> 2655.48525 | G72: =VLOOKUP($A72,Orçamento!$A$3:$J$125,7,FALSE) -> 9.17 | H72: =VLOOKUP($A72,Orçamento!$A$3:$J$125,8,FALSE) -> 24350.79974 | I72: =VLOOKUP($A72,Orçamento!$A$3:$J$125,9,FALSE) -> 11.41 | J72: =VLOOKUP($A72,Orçamento!$A$3:$J$125,10,FALSE) -> 30299.0867 | L72: =Eventograma!H105*'Desembolso-cronograma'!$I72 -> 0 | M72: =Eventograma!J105*'Desembolso-cronograma'!$I72 -> 0 | N72: =Eventograma!K105*'Desembolso-cronograma'!$I72 -> 0 | O72: =Eventograma!L105*'Desembolso-cronograma'!$I72 -> 0 | P72: =Eventograma!M105*'Desembolso-cronograma'!$I72 -> 7574.771676 | Q72: =Eventograma!N105*'Desembolso-cronograma'!$I72 -> 7574.771676 | R72: =Eventograma!O105*'Desembolso-cronograma'!$I72 -> 7574.771676 | S72: =Eventograma!P105*'Desembolso-cronograma'!$I72 -> 7574.771676 | T72: =Eventograma!Q105*'Desembolso-cronograma'!$I72 -> 0 | U72: =Eventograma!R105*'Desembolso-cronograma'!$I72 -> 0 | W72: =Eventograma!S105*'Desembolso-cronograma'!$I72 -> 0 | X72: =Eventograma!T105*'Desembolso-cronograma'!$I72 -> 0 | Y72: =Eventograma!U105*'Desembolso-cronograma'!$I72 -> 0 | Z72: =Eventograma!V105*'Desembolso-cronograma'!$I72 -> 0
A73: 4.2.10 | B73: =VLOOKUP($A73,Orçamento!$A$3:$J$125,2,FALSE) -> SICRO | C73: =VLOOKUP($A73,Orçamento!$A$3:$J$125,3,FALSE) -> 1516303 | D73: =VLOOKUP($A73,Orçamento!$A$3:$J$125,4,FALSE) -> Geocélula de PEAD | E73: =VLOOKUP($A73,Orçamento!$A$3:$J$125,5,FALSE) -> m² | F73: =VLOOKUP($A73,Orçamento!$A$3:$J$125,6,FALSE) -> 14765 | G73: =VLOOKUP($A73,Orçamento!$A$3:$J$125,7,FALSE) -> 36.41 | H73: =VLOOKUP($A73,Orçamento!$A$3:$J$125,8,FALSE) -> 537593.65 | I73: =VLOOKUP($A73,Orçamento!$A$3:$J$125,9,FALSE) -> 45.31 | J73: =VLOOKUP($A73,Orçamento!$A$3:$J$125,10,FALSE) -> 669002.15 | L73: =Eventograma!H106*'Desembolso-cronograma'!$I73 -> 0 | M73: =Eventograma!J106*'Desembolso-cronograma'!$I73 -> 0 | N73: =Eventograma!K106*'Desembolso-cronograma'!$I73 -> 0 | O73: =Eventograma!L106*'Desembolso-cronograma'!$I73 -> 0 | P73: =Eventograma!M106*'Desembolso-cronograma'!$I73 -> 0 | Q73: =Eventograma!N106*'Desembolso-cronograma'!$I73 -> 167250.5375 | R73: =Eventograma!O106*'Desembolso-cronograma'!$I73 -> 167250.5375 | S73: =Eventograma!P106*'Desembolso-cronograma'!$I73 -> 167250.5375 | T73: =Eventograma!Q106*'Desembolso-cronograma'!$I73 -> 167250.5375 | U73: =Eventograma!R106*'Desembolso-cronograma'!$I73 -> 0 | W73: =Eventograma!S106*'Desembolso-cronograma'!$I73 -> 0 | X73: =Eventograma!T106*'Desembolso-cronograma'!$I73 -> 0 | Y73: =Eventograma!U106*'Desembolso-cronograma'!$I73 -> 0 | Z73: =Eventograma!V106*'Desembolso-cronograma'!$I73 -> 0
A74: 4.2.11 | B74: =VLOOKUP($A74,Orçamento!$A$3:$J$125,2,FALSE) -> SICRO | C74: =VLOOKUP($A74,Orçamento!$A$3:$J$125,3,FALSE) -> 2008091 | D74: =VLOOKUP($A74,Orçamento!$A$3:$J$125,4,FALSE) -> Tubo PVC de ancoragem | E74: =VLOOKUP($A74,Orçamento!$A$3:$J$125,5,FALSE) -> m | F74: =VLOOKUP($A74,Orçamento!$A$3:$J$125,6,FALSE) -> 1759 | G74: =VLOOKUP($A74,Orçamento!$A$3:$J$125,7,FALSE) -> 78.08 | H74: =VLOOKUP($A74,Orçamento!$A$3:$J$125,8,FALSE) -> 137342.72 | I74: =VLOOKUP($A74,Orçamento!$A$3:$J$125,9,FALSE) -> 97.17 | J74: =VLOOKUP($A74,Orçamento!$A$3:$J$125,10,FALSE) -> 170922.03 | L74: =Eventograma!H107*'Desembolso-cronograma'!$I74 -> 0 | M74: =Eventograma!J107*'Desembolso-cronograma'!$I74 -> 0 | N74: =Eventograma!K107*'Desembolso-cronograma'!$I74 -> 0 | O74: =Eventograma!L107*'Desembolso-cronograma'!$I74 -> 0 | P74: =Eventograma!M107*'Desembolso-cronograma'!$I74 -> 0 | Q74: =Eventograma!N107*'Desembolso-cronograma'!$I74 -> 42730.5075 | R74: =Eventograma!O107*'Desembolso-cronograma'!$I74 -> 42730.5075 | S74: =Eventograma!P107*'Desembolso-cronograma'!$I74 -> 42730.5075 | T74: =Eventograma!Q107*'Desembolso-cronograma'!$I74 -> 42730.5075 | U74: =Eventograma!R107*'Desembolso-cronograma'!$I74 -> 0 | W74: =Eventograma!S107*'Desembolso-cronograma'!$I74 -> 0 | X74: =Eventograma!T107*'Desembolso-cronograma'!$I74 -> 0 | Y74: =Eventograma!U107*'Desembolso-cronograma'!$I74 -> 0 | Z74: =Eventograma!V107*'Desembolso-cronograma'!$I74 -> 0
A75: 4.2.12 | B75: =VLOOKUP($A75,Orçamento!$A$3:$J$125,2,FALSE) -> SICRO | C75: =VLOOKUP($A75,Orçamento!$A$3:$J$125,3,FALSE) -> 1106109 | D75: =VLOOKUP($A75,Orçamento!$A$3:$J$125,4,FALSE) -> Concreto fck = 20 Mpa | E75: =VLOOKUP($A75,Orçamento!$A$3:$J$125,5,FALSE) -> m³ | F75: =VLOOKUP($A75,Orçamento!$A$3:$J$125,6,FALSE) -> 2492.759096 | G75: =VLOOKUP($A75,Orçamento!$A$3:$J$125,7,FALSE) -> 219.85 | H75: =VLOOKUP($A75,Orçamento!$A$3:$J$125,8,FALSE) -> 548033.0872 | I75: =VLOOKUP($A75,Orçamento!$A$3:$J$125,9,FALSE) -> 273.62 | J75: =VLOOKUP($A75,Orçamento!$A$3:$J$125,10,FALSE) -> 682068.7438 | L75: =Eventograma!H108*'Desembolso-cronograma'!$I75 -> 0 | M75: =Eventograma!J108*'Desembolso-cronograma'!$I75 -> 0 | N75: =Eventograma!K108*'Desembolso-cronograma'!$I75 -> 0 | O75: =Eventograma!L108*'Desembolso-cronograma'!$I75 -> 0 | P75: =Eventograma!M108*'Desembolso-cronograma'!$I75 -> 0 | Q75: =Eventograma!N108*'Desembolso-cronograma'!$I75 -> 170517.1859 | R75: =Eventograma!O108*'Desembolso-cronograma'!$I75 -> 170517.1859 | S75: =Eventograma!P108*'Desembolso-cronograma'!$I75 -> 170517.1859 | T75: =Eventograma!Q108*'Desembolso-cronograma'!$I75 -> 170517.1859 | U75: =Eventograma!R108*'Desembolso-cronograma'!$I75 -> 0 | W75: =Eventograma!S108*'Desembolso-cronograma'!$I75 -> 0 | X75: =Eventograma!T108*'Desembolso-cronograma'!$I75 -> 0 | Y75: =Eventograma!U108*'Desembolso-cronograma'!$I75 -> 0 | Z75: =Eventograma!V108*'Desembolso-cronograma'!$I75 -> 0
A76: 4.2.13 | B76: =VLOOKUP($A76,Orçamento!$A$3:$J$125,2,FALSE) -> SICRO | C76: =VLOOKUP($A76,Orçamento!$A$3:$J$125,3,FALSE) -> 1107860 | D76: =VLOOKUP($A76,Orçamento!$A$3:$J$125,4,FALSE) -> Bombeamento | E76: =VLOOKUP($A76,Orçamento!$A$3:$J$125,5,FALSE) -> m³ | F76: =VLOOKUP($A76,Orçamento!$A$3:$J$125,6,FALSE) -> 2492.759096 | G76: =VLOOKUP($A76,Orçamento!$A$3:$J$125,7,FALSE) -> 28.93 | H76: =VLOOKUP($A76,Orçamento!$A$3:$J$125,8,FALSE) -> 72115.52064 | I76: =VLOOKUP($A76,Orçamento!$A$3:$J$125,9,FALSE) -> 36 | J76: =VLOOKUP($A76,Orçamento!$A$3:$J$125,10,FALSE) -> 89739.32745 | L76: =Eventograma!H109*'Desembolso-cronograma'!$I76 -> 0 | M76: =Eventograma!J109*'Desembolso-cronograma'!$I76 -> 0 | N76: =Eventograma!K109*'Desembolso-cronograma'!$I76 -> 0 | O76: =Eventograma!L109*'Desembolso-cronograma'!$I76 -> 0 | P76: =Eventograma!M109*'Desembolso-cronograma'!$I76 -> 0 | Q76: =Eventograma!N109*'Desembolso-cronograma'!$I76 -> 22434.83186 | R76: =Eventograma!O109*'Desembolso-cronograma'!$I76 -> 22434.83186 | S76: =Eventograma!P109*'Desembolso-cronograma'!$I76 -> 22434.83186 | T76: =Eventograma!Q109*'Desembolso-cronograma'!$I76 -> 22434.83186 | U76: =Eventograma!R109*'Desembolso-cronograma'!$I76 -> 0 | W76: =Eventograma!S109*'Desembolso-cronograma'!$I76 -> 0 | X76: =Eventograma!T109*'Desembolso-cronograma'!$I76 -> 0 | Y76: =Eventograma!U109*'Desembolso-cronograma'!$I76 -> 0 | Z76: =Eventograma!V109*'Desembolso-cronograma'!$I76 -> 0
A77: 4.2.14 | B77: =VLOOKUP($A77,Orçamento!$A$3:$J$125,2,FALSE) -> SICRO | C77: =VLOOKUP($A77,Orçamento!$A$3:$J$125,3,FALSE) -> 1100657 | D77: =VLOOKUP($A77,Orçamento!$A$3:$J$125,4,FALSE) -> Adensamento de Concreto | E77: =VLOOKUP($A77,Orçamento!$A$3:$J$125,5,FALSE) -> m³ | F77: =VLOOKUP($A77,Orçamento!$A$3:$J$125,6,FALSE) -> 2492.759096 | G77: =VLOOKUP($A77,Orçamento!$A$3:$J$125,7,FALSE) -> 2.45 | H77: =VLOOKUP($A77,Orçamento!$A$3:$J$125,8,FALSE) -> 6107.259785 | I77: =VLOOKUP($A77,Orçamento!$A$3:$J$125,9,FALSE) -> 3.05 | J77: =VLOOKUP($A77,Orçamento!$A$3:$J$125,10,FALSE) -> 7602.915242 | L77: =Eventograma!H110*'Desembolso-cronograma'!$I77 -> 0 | M77: =Eventograma!J110*'Desembolso-cronograma'!$I77 -> 0 | N77: =Eventograma!K110*'Desembolso-cronograma'!$I77 -> 0 | O77: =Eventograma!L110*'Desembolso-cronograma'!$I77 -> 0 | P77: =Eventograma!M110*'Desembolso-cronograma'!$I77 -> 0 | Q77: =Eventograma!N110*'Desembolso-cronograma'!$I77 -> 1900.728811 | R77: =Eventograma!O110*'Desembolso-cronograma'!$I77 -> 1900.728811 | S77: =Eventograma!P110*'Desembolso-cronograma'!$I77 -> 1900.728811 | T77: =Eventograma!Q110*'Desembolso-cronograma'!$I77 -> 1900.728811 | U77: =Eventograma!R110*'Desembolso-cronograma'!$I77 -> 0 | W77: =Eventograma!S110*'Desembolso-cronograma'!$I77 -> 0 | X77: =Eventograma!T110*'Desembolso-cronograma'!$I77 -> 0 | Y77: =Eventograma!U110*'Desembolso-cronograma'!$I77 -> 0 | Z77: =Eventograma!V110*'Desembolso-cronograma'!$I77 -> 0
A78: 4.2.15 | B78: =VLOOKUP($A78,Orçamento!$A$3:$J$125,2,FALSE) -> SICRO | C78: =VLOOKUP($A78,Orçamento!$A$3:$J$125,3,FALSE) -> 1505877 | D78: =VLOOKUP($A78,Orçamento!$A$3:$J$125,4,FALSE) -> Enrocamento de Proteção | E78: =VLOOKUP($A78,Orçamento!$A$3:$J$125,5,FALSE) -> m³ | F78: =VLOOKUP($A78,Orçamento!$A$3:$J$125,6,FALSE) -> 1029 | G78: =VLOOKUP($A78,Orçamento!$A$3:$J$125,7,FALSE) -> 88.73 | H78: =VLOOKUP($A78,Orçamento!$A$3:$J$125,8,FALSE) -> 91303.17 | I78: =VLOOKUP($A78,Orçamento!$A$3:$J$125,9,FALSE) -> 110.43 | J78: =VLOOKUP($A78,Orçamento!$A$3:$J$125,10,FALSE) -> 113632.47 | L78: =Eventograma!H111*'Desembolso-cronograma'!$I78 -> 0 | M78: =Eventograma!J111*'Desembolso-cronograma'!$I78 -> 0 | N78: =Eventograma!K111*'Desembolso-cronograma'!$I78 -> 0 | O78: =Eventograma!L111*'Desembolso-cronograma'!$I78 -> 0 | P78: =Eventograma!M111*'Desembolso-cronograma'!$I78 -> 0 | Q78: =Eventograma!N111*'Desembolso-cronograma'!$I78 -> 28408.1175 | R78: =Eventograma!O111*'Desembolso-cronograma'!$I78 -> 28408.1175 | S78: =Eventograma!P111*'Desembolso-cronograma'!$I78 -> 28408.1175 | T78: =Eventograma!Q111*'Desembolso-cronograma'!$I78 -> 28408.1175 | U78: =Eventograma!R111*'Desembolso-cronograma'!$I78 -> 0 | W78: =Eventograma!S111*'Desembolso-cronograma'!$I78 -> 0 | X78: =Eventograma!T111*'Desembolso-cronograma'!$I78 -> 0 | Y78: =Eventograma!U111*'Desembolso-cronograma'!$I78 -> 0 | Z78: =Eventograma!V111*'Desembolso-cronograma'!$I78 -> 0
F79: =Orçamento!F78 -> 0 | G79: =Orçamento!G78 -> 0
A80: 4.3 | D80: Crista | F80: =Orçamento!F79 -> 0 | G80: =Orçamento!G79 -> 0 | H80: =SUBTOTAL(9,H81:H90) -> 324432.0771 | J80: =SUBTOTAL(9,J81:J90) -> 403810.929 | L80: =SUBTOTAL(9,L81:L91) -> 0 | M80: =SUBTOTAL(9,M81:M91) -> 5837.13 | N80: 49746.72488 | O80: 49746.72488 | P80: 49746.72488 | Q80: 49746.72488 | R80: 49746.72488 | S80: 49746.72488 | T80: 49746.72488 | U80: 49746.72488 | Y80: =SUBTOTAL(9,Y81:Y91) -> 0
A81: 4.3.1 | B81: =VLOOKUP($A81,Orçamento!$A$3:$J$125,2,FALSE) -> SICRO | C81: =VLOOKUP($A81,Orçamento!$A$3:$J$125,3,FALSE) -> 5502985 | D81: =VLOOKUP($A81,Orçamento!$A$3:$J$125,4,FALSE) -> Limpeza da camada vegetal | E81: =VLOOKUP($A81,Orçamento!$A$3:$J$125,5,FALSE) -> m² | F81: =VLOOKUP($A81,Orçamento!$A$3:$J$125,6,FALSE) -> 7032 | G81: =VLOOKUP($A81,Orçamento!$A$3:$J$125,7,FALSE) -> 0.31 | H81: =VLOOKUP($A81,Orçamento!$A$3:$J$125,8,FALSE) -> 2179.92 | I81: =VLOOKUP($A81,Orçamento!$A$3:$J$125,9,FALSE) -> 0.39 | J81: =VLOOKUP($A81,Orçamento!$A$3:$J$125,10,FALSE) -> 2742.48 | L81: =Eventograma!H114*'Desembolso-cronograma'!$I81 -> 0 | M81: =Eventograma!J114*'Desembolso-cronograma'!$I81 -> 2742.48 | N81: =Eventograma!N114*'Desembolso-cronograma'!$I81 -> 0 | O81: =Eventograma!O114*'Desembolso-cronograma'!$I81 -> 0 | P81: =Eventograma!P114*'Desembolso-cronograma'!$I81 -> 0 | Q81: =Eventograma!Q114*'Desembolso-cronograma'!$I81 -> 0 | R81: =Eventograma!R114*'Desembolso-cronograma'!$I81 -> 0 | S81: =Eventograma!S114*'Desembolso-cronograma'!$I81 -> 0 | T81: =Eventograma!T114*'Desembolso-cronograma'!$I81 -> 0 | U81: =Eventograma!U114*'Desembolso-cronograma'!$I81 -> 0 | Y81: =Eventograma!V114*'Desembolso-cronograma'!$I81 -> 0
A82: 4.3.2 | B82: =VLOOKUP($A82,Orçamento!$A$3:$J$125,2,FALSE) -> SINAPI | C82: =VLOOKUP($A82,Orçamento!$A$3:$J$125,3,FALSE) -> 98527 | D82: =VLOOKUP($A82,Orçamento!$A$3:$J$125,4,FALSE) -> Remoção de raízes e cupinzeiros | E82: =VLOOKUP($A82,Orçamento!$A$3:$J$125,5,FALSE) -> und | F82: =VLOOKUP($A82,Orçamento!$A$3:$J$125,6,FALSE) -> 15 | G82: =VLOOKUP($A82,Orçamento!$A$3:$J$125,7,FALSE) -> 133.78 | H82: =VLOOKUP($A82,Orçamento!$A$3:$J$125,8,FALSE) -> 2006.7 | I82: =VLOOKUP($A82,Orçamento!$A$3:$J$125,9,FALSE) -> 166.5 | J82: =VLOOKUP($A82,Orçamento!$A$3:$J$125,10,FALSE) -> 2497.5 | L82: =Eventograma!H115*'Desembolso-cronograma'!$I82 -> 0 | M82: =Eventograma!J115*'Desembolso-cronograma'!$I82 -> 2497.5 | N82: =Eventograma!N115*'Desembolso-cronograma'!$I82 -> 0 | O82: =Eventograma!O115*'Desembolso-cronograma'!$I82 -> 0 | P82: =Eventograma!P115*'Desembolso-cronograma'!$I82 -> 0 | Q82: =Eventograma!Q115*'Desembolso-cronograma'!$I82 -> 0 | R82: =Eventograma!R115*'Desembolso-cronograma'!$I82 -> 0 | S82: =Eventograma!S115*'Desembolso-cronograma'!$I82 -> 0 | T82: =Eventograma!T115*'Desembolso-cronograma'!$I82 -> 0 | U82: =Eventograma!U115*'Desembolso-cronograma'!$I82 -> 0 | Y82: =Eventograma!V115*'Desembolso-cronograma'!$I82 -> 0
A83: 4.3.3 | B83: =VLOOKUP($A83,Orçamento!$A$3:$J$125,2,FALSE) -> SICRO | C83: =VLOOKUP($A83,Orçamento!$A$3:$J$125,3,FALSE) -> 4915625 | D83: =VLOOKUP($A83,Orçamento!$A$3:$J$125,4,FALSE) -> Recomposição em Solo Cimento | E83: =VLOOKUP($A83,Orçamento!$A$3:$J$125,5,FALSE) -> m³ | F83: =VLOOKUP($A83,Orçamento!$A$3:$J$125,6,FALSE) -> 15 | G83: =VLOOKUP($A83,Orçamento!$A$3:$J$125,7,FALSE) -> 27.05 | H83: =VLOOKUP($A83,Orçamento!$A$3:$J$125,8,FALSE) -> 405.75 | I83: =VLOOKUP($A83,Orçamento!$A$3:$J$125,9,FALSE) -> 33.67 | J83: =VLOOKUP($A83,Orçamento!$A$3:$J$125,10,FALSE) -> 505.05 | L83: =Eventograma!H116*'Desembolso-cronograma'!$I83 -> 0 | M83: =Eventograma!J116*'Desembolso-cronograma'!$I83 -> 505.05 | N83: =Eventograma!N116*'Desembolso-cronograma'!$I83 -> 0 | O83: =Eventograma!O116*'Desembolso-cronograma'!$I83 -> 0 | P83: =Eventograma!P116*'Desembolso-cronograma'!$I83 -> 0 | Q83: =Eventograma!Q116*'Desembolso-cronograma'!$I83 -> 0 | R83: =Eventograma!R116*'Desembolso-cronograma'!$I83 -> 0 | S83: =Eventograma!S116*'Desembolso-cronograma'!$I83 -> 0 | T83: =Eventograma!T116*'Desembolso-cronograma'!$I83 -> 0 | U83: =Eventograma!U116*'Desembolso-cronograma'!$I83 -> 0 | Y83: =Eventograma!V116*'Desembolso-cronograma'!$I83 -> 0
A84: 4.3.5 | B84: =VLOOKUP($A84,Orçamento!$A$3:$J$125,2,FALSE) -> SICRO | C84: =VLOOKUP($A84,Orçamento!$A$3:$J$125,3,FALSE) -> 4805754 | D84: =VLOOKUP($A84,Orçamento!$A$3:$J$125,4,FALSE) -> Compactação Manual | E84: =VLOOKUP($A84,Orçamento!$A$3:$J$125,5,FALSE) -> m³ | F84: =VLOOKUP($A84,Orçamento!$A$3:$J$125,6,FALSE) -> 15 | G84: =VLOOKUP($A84,Orçamento!$A$3:$J$125,7,FALSE) -> 4.93 | H84: =VLOOKUP($A84,Orçamento!$A$3:$J$125,8,FALSE) -> 73.95 | I84: =VLOOKUP($A84,Orçamento!$A$3:$J$125,9,FALSE) -> 6.14 | J84: =VLOOKUP($A84,Orçamento!$A$3:$J$125,10,FALSE) -> 92.1 | L84: =Eventograma!H118*'Desembolso-cronograma'!$I84 -> 0 | M84: =Eventograma!J118*'Desembolso-cronograma'!$I84 -> 92.1 | N84: =Eventograma!N118*'Desembolso-cronograma'!$I84 -> 0 | O84: =Eventograma!O118*'Desembolso-cronograma'!$I84 -> 0 | P84: =Eventograma!P118*'Desembolso-cronograma'!$I84 -> 0 | Q84: =Eventograma!Q118*'Desembolso-cronograma'!$I84 -> 0 | R84: =Eventograma!R118*'Desembolso-cronograma'!$I84 -> 0 | S84: =Eventograma!S118*'Desembolso-cronograma'!$I84 -> 0 | T84: =Eventograma!T118*'Desembolso-cronograma'!$I84 -> 0 | U84: =Eventograma!U118*'Desembolso-cronograma'!$I84 -> 0 | Y84: =Eventograma!V118*'Desembolso-cronograma'!$I84 -> 0
A85: 4.3.6 | B85: =VLOOKUP($A85,Orçamento!$A$3:$J$125,2,FALSE) -> SICRO | C85: =VLOOKUP($A85,Orçamento!$A$3:$J$125,3,FALSE) -> 903845 | D85: =VLOOKUP($A85,Orçamento!$A$3:$J$125,4,FALSE) -> Bica Corrida | E85: =VLOOKUP($A85,Orçamento!$A$3:$J$125,5,FALSE) -> m³ | F85: =VLOOKUP($A85,Orçamento!$A$3:$J$125,6,FALSE) -> 1029 | G85: =VLOOKUP($A85,Orçamento!$A$3:$J$125,7,FALSE) -> 73.98 | H85: =VLOOKUP($A85,Orçamento!$A$3:$J$125,8,FALSE) -> 76125.42 | I85: =VLOOKUP($A85,Orçamento!$A$3:$J$125,9,FALSE) -> 92.07 | J85: =VLOOKUP($A85,Orçamento!$A$3:$J$125,10,FALSE) -> 94740.03 | L85: =Eventograma!H119*'Desembolso-cronograma'!$I85 -> 0 | M85: =Eventograma!J119*'Desembolso-cronograma'!$I85 -> 0 | N85: =Eventograma!N119*'Desembolso-cronograma'!$I85 -> 11842.50375 | O85: =Eventograma!O119*'Desembolso-cronograma'!$I85 -> 11842.50375 | P85: =Eventograma!P119*'Desembolso-cronograma'!$I85 -> 11842.50375 | Q85: =Eventograma!Q119*'Desembolso-cronograma'!$I85 -> 11842.50375 | R85: =Eventograma!R119*'Desembolso-cronograma'!$I85 -> 11842.50375 | S85: =Eventograma!S119*'Desembolso-cronograma'!$I85 -> 11842.50375 | T85: =Eventograma!T119*'Desembolso-cronograma'!$I85 -> 11842.50375 | U85: =Eventograma!U119*'Desembolso-cronograma'!$I85 -> 11842.50375 | Y85: =Eventograma!V119*'Desembolso-cronograma'!$I85 -> 0
A86: 4.3.7 | B86: =VLOOKUP($A86,Orçamento!$A$3:$J$125,2,FALSE) -> SICRO | C86: =VLOOKUP($A86,Orçamento!$A$3:$J$125,3,FALSE) -> 2003939 | D86: =VLOOKUP($A86,Orçamento!$A$3:$J$125,4,FALSE) -> Meio fio de concreto | E86: =VLOOKUP($A86,Orçamento!$A$3:$J$125,5,FALSE) -> m | F86: =VLOOKUP($A86,Orçamento!$A$3:$J$125,6,FALSE) -> 1759 | G86: =VLOOKUP($A86,Orçamento!$A$3:$J$125,7,FALSE) -> 45.06 | H86: =VLOOKUP($A86,Orçamento!$A$3:$J$125,8,FALSE) -> 79260.54 | I86: =VLOOKUP($A86,Orçamento!$A$3:$J$125,9,FALSE) -> 56.08 | J86: =VLOOKUP($A86,Orçamento!$A$3:$J$125,10,FALSE) -> 98644.72 | L86: =Eventograma!H120*'Desembolso-cronograma'!$I86 -> 0 | M86: =Eventograma!J120*'Desembolso-cronograma'!$I86 -> 0 | N86: =Eventograma!N120*'Desembolso-cronograma'!$I86 -> 12330.59 | O86: =Eventograma!O120*'Desembolso-cronograma'!$I86 -> 12330.59 | P86: =Eventograma!P120*'Desembolso-cronograma'!$I86 -> 12330.59 | Q86: =Eventograma!Q120*'Desembolso-cronograma'!$I86 -> 12330.59 | R86: =Eventograma!R120*'Desembolso-cronograma'!$I86 -> 12330.59 | S86: =Eventograma!S120*'Desembolso-cronograma'!$I86 -> 12330.59 | T86: =Eventograma!T120*'Desembolso-cronograma'!$I86 -> 12330.59 | U86: =Eventograma!U120*'Desembolso-cronograma'!$I86 -> 12330.59 | Y86: =Eventograma!V120*'Desembolso-cronograma'!$I86 -> 0
A87: 4.3.8 | B87: =VLOOKUP($A87,Orçamento!$A$3:$J$125,2,FALSE) -> SICRO | C87: =VLOOKUP($A87,Orçamento!$A$3:$J$125,3,FALSE) -> 3713826 | D87: =VLOOKUP($A87,Orçamento!$A$3:$J$125,4,FALSE) -> Barreira simples tipo New Jersey | E87: =VLOOKUP($A87,Orçamento!$A$3:$J$125,5,FALSE) -> m | F87: =VLOOKUP($A87,Orçamento!$A$3:$J$125,6,FALSE) -> 1759 | G87: =VLOOKUP($A87,Orçamento!$A$3:$J$125,7,FALSE) -> 46.72 | H87: =VLOOKUP($A87,Orçamento!$A$3:$J$125,8,FALSE) -> 82180.48 | I87: =VLOOKUP($A87,Orçamento!$A$3:$J$125,9,FALSE) -> 58.15 | J87: =VLOOKUP($A87,Orçamento!$A$3:$J$125,10,FALSE) -> 102285.85 | L87: =Eventograma!H121*'Desembolso-cronograma'!$I87 -> 0 | M87: =Eventograma!J121*'Desembolso-cronograma'!$I87 -> 0 | N87: =Eventograma!N121*'Desembolso-cronograma'!$I87 -> 12785.73125 | O87: =Eventograma!O121*'Desembolso-cronograma'!$I87 -> 12785.73125 | P87: =Eventograma!P121*'Desembolso-cronograma'!$I87 -> 12785.73125 | Q87: =Eventograma!Q121*'Desembolso-cronograma'!$I87 -> 12785.73125 | R87: =Eventograma!R121*'Desembolso-cronograma'!$I87 -> 12785.73125 | S87: =Eventograma!S121*'Desembolso-cronograma'!$I87 -> 12785.73125 | T87: =Eventograma!T121*'Desembolso-cronograma'!$I87 -> 12785.73125 | U87: =Eventograma!U121*'Desembolso-cronograma'!$I87 -> 12785.73125 | Y87: =Eventograma!V121*'Desembolso-cronograma'!$I87 -> 0
A88: 4.3.9 | B88: =VLOOKUP($A88,Orçamento!$A$3:$J$125,2,FALSE) -> SICRO | C88: =VLOOKUP($A88,Orçamento!$A$3:$J$125,3,FALSE) -> 1106109 | D88: =VLOOKUP($A88,Orçamento!$A$3:$J$125,4,FALSE) -> Concreto fck = 20 Mpa | E88: =VLOOKUP($A88,Orçamento!$A$3:$J$125,5,FALSE) -> m³ | F88: =VLOOKUP($A88,Orçamento!$A$3:$J$125,6,FALSE) -> 337.2003 | G88: =VLOOKUP($A88,Orçamento!$A$3:$J$125,7,FALSE) -> 219.85 | H88: =VLOOKUP($A88,Orçamento!$A$3:$J$125,8,FALSE) -> 74133.48596 | I88: =VLOOKUP($A88,Orçamento!$A$3:$J$125,9,FALSE) -> 273.62 | J88: =VLOOKUP($A88,Orçamento!$A$3:$J$125,10,FALSE) -> 92264.74609 | L88: =Eventograma!H122*'Desembolso-cronograma'!$I88 -> 0 | M88: =Eventograma!J122*'Desembolso-cronograma'!$I88 -> 0 | N88: =Eventograma!N122*'Desembolso-cronograma'!$I88 -> 11533.09326 | O88: =Eventograma!O122*'Desembolso-cronograma'!$I88 -> 11533.09326 | P88: =Eventograma!P122*'Desembolso-cronograma'!$I88 -> 11533.09326 | Q88: =Eventograma!Q122*'Desembolso-cronograma'!$I88 -> 11533.09326 | R88: =Eventograma!R122*'Desembolso-cronograma'!$I88 -> 11533.09326 | S88: =Eventograma!S122*'Desembolso-cronograma'!$I88 -> 11533.09326 | T88: =Eventograma!T122*'Desembolso-cronograma'!$I88 -> 11533.09326 | U88: =Eventograma!U122*'Desembolso-cronograma'!$I88 -> 11533.09326 | Y88: =Eventograma!V122*'Desembolso-cronograma'!$I88 -> 0
A89: 4.3.10 | B89: =VLOOKUP($A89,Orçamento!$A$3:$J$125,2,FALSE) -> SICRO | C89: =VLOOKUP($A89,Orçamento!$A$3:$J$125,3,FALSE) -> 1106051 | D89: =VLOOKUP($A89,Orçamento!$A$3:$J$125,4,FALSE) -> Lançamento livre de concreto | E89: =VLOOKUP($A89,Orçamento!$A$3:$J$125,5,FALSE) -> m³ | F89: =VLOOKUP($A89,Orçamento!$A$3:$J$125,6,FALSE) -> 337.2003 | G89: =VLOOKUP($A89,Orçamento!$A$3:$J$125,7,FALSE) -> 21.47 | H89: =VLOOKUP($A89,Orçamento!$A$3:$J$125,8,FALSE) -> 7239.690441 | I89: =VLOOKUP($A89,Orçamento!$A$3:$J$125,9,FALSE) -> 26.72 | J89: =VLOOKUP($A89,Orçamento!$A$3:$J$125,10,FALSE) -> 9009.992016 | L89: =Eventograma!H123*'Desembolso-cronograma'!$I89 -> 0 | M89: =Eventograma!J123*'Desembolso-cronograma'!$I89 -> 0 | N89: =Eventograma!N123*'Desembolso-cronograma'!$I89 -> 1126.249002 | O89: =Eventograma!O123*'Desembolso-cronograma'!$I89 -> 1126.249002 | P89: =Eventograma!P123*'Desembolso-cronograma'!$I89 -> 1126.249002 | Q89: =Eventograma!Q123*'Desembolso-cronograma'!$I89 -> 1126.249002 | R89: =Eventograma!R123*'Desembolso-cronograma'!$I89 -> 1126.249002 | S89: =Eventograma!S123*'Desembolso-cronograma'!$I89 -> 1126.249002 | T89: =Eventograma!T123*'Desembolso-cronograma'!$I89 -> 1126.249002 | U89: =Eventograma!U123*'Desembolso-cronograma'!$I89 -> 1126.249002 | Y89: =Eventograma!V123*'Desembolso-cronograma'!$I89 -> 0
A90: 4.3.11 | B90: =VLOOKUP($A90,Orçamento!$A$3:$J$125,2,FALSE) -> SICRO | C90: =VLOOKUP($A90,Orçamento!$A$3:$J$125,3,FALSE) -> 1100657 | D90: =VLOOKUP($A90,Orçamento!$A$3:$J$125,4,FALSE) -> Adensamento de Concreto | E90: =VLOOKUP($A90,Orçamento!$A$3:$J$125,5,FALSE) -> m³ | F90: =VLOOKUP($A90,Orçamento!$A$3:$J$125,6,FALSE) -> 337.2003 | G90: =VLOOKUP($A90,Orçamento!$A$3:$J$125,7,FALSE) -> 2.45 | H90: =VLOOKUP($A90,Orçamento!$A$3:$J$125,8,FALSE) -> 826.140735 | I90: =VLOOKUP($A90,Orçamento!$A$3:$J$125,9,FALSE) -> 3.05 | J90: =VLOOKUP($A90,Orçamento!$A$3:$J$125,10,FALSE) -> 1028.460915 | L90: =Eventograma!H124*'Desembolso-cronograma'!$I90 -> 0 | M90: =Eventograma!J124*'Desembolso-cronograma'!$I90 -> 0 | N90: =Eventograma!N124*'Desembolso-cronograma'!$I90 -> 128.5576144 | O90: =Eventograma!O124*'Desembolso-cronograma'!$I90 -> 128.5576144 | P90: =Eventograma!P124*'Desembolso-cronograma'!$I90 -> 128.5576144 | Q90: =Eventograma!Q124*'Desembolso-cronograma'!$I90 -> 128.5576144 | R90: =Eventograma!R124*'Desembolso-cronograma'!$I90 -> 128.5576144 | S90: =Eventograma!S124*'Desembolso-cronograma'!$I90 -> 128.5576144 | T90: =Eventograma!T124*'Desembolso-cronograma'!$I90 -> 128.5576144 | U90: =Eventograma!U124*'Desembolso-cronograma'!$I90 -> 128.5576144 | Y90: =Eventograma!V124*'Desembolso-cronograma'!$I90 -> 0
F91: =Orçamento!F90 -> 0 | G91: =Orçamento!G90 -> 0
A92: 4.4 | D92: Jusante | F92: =Orçamento!F91 -> 0 | G92: =Orçamento!G91 -> 0 | H92: =SUBTOTAL(9,H93:H101) -> 316542.5507 | J92: =SUBTOTAL(9,J93:J104) -> 1012375.762 | L92: =SUBTOTAL(9,L93:L105) -> 0 | M92: 0 | N92: 0 | O92: 60624.03761 | P92: 56958.03761 | Q92: 71746.09719 | R92: 215188.2572 | S92: 215188.2572 | T92: 200400.1976 | U92: 192270.8776 | V92: 0 | W92: 0 | X92: 0 | Y92: 0 | Z92: 0
A93: 4.4.1 | B93: =VLOOKUP($A93,Orçamento!$A$3:$J$125,2,FALSE) -> SICRO | C93: =VLOOKUP($A93,Orçamento!$A$3:$J$125,3,FALSE) -> 5502985 | D93: =VLOOKUP($A93,Orçamento!$A$3:$J$125,4,FALSE) -> Limpeza da camada vegetal | E93: =VLOOKUP($A93,Orçamento!$A$3:$J$125,5,FALSE) -> m² | F93: =VLOOKUP($A93,Orçamento!$A$3:$J$125,6,FALSE) -> 65800 | G93: =VLOOKUP($A93,Orçamento!$A$3:$J$125,7,FALSE) -> 0.31 | H93: =VLOOKUP($A93,Orçamento!$A$3:$J$125,8,FALSE) -> 20398 | I93: =VLOOKUP($A93,Orçamento!$A$3:$J$125,9,FALSE) -> 0.39 | J93: =VLOOKUP($A93,Orçamento!$A$3:$J$125,10,FALSE) -> 25662 | L93: =Eventograma!H127*'Desembolso-cronograma'!$I93 -> 0 | M93: =Eventograma!I127*'Desembolso-cronograma'!$I93 -> 0 | O93: =Eventograma!K127*'Desembolso-cronograma'!$I93+3666 -> 7332 | P93: =Eventograma!L127*'Desembolso-cronograma'!$I93 -> 3666 | Q93: =Eventograma!M127*'Desembolso-cronograma'!$I93 -> 3666 | R93: =Eventograma!N127*'Desembolso-cronograma'!$I93 -> 3666 | S93: =Eventograma!O127*'Desembolso-cronograma'!$I93 -> 3666 | T93: =Eventograma!P127*'Desembolso-cronograma'!$I93 -> 3666 | U93: =Eventograma!Q127*'Desembolso-cronograma'!$I93 -> 0 | Z93: =Eventograma!V127*'Desembolso-cronograma'!$I93 -> 0
A94: 4.4.2 | B94: =VLOOKUP($A94,Orçamento!$A$3:$J$125,2,FALSE) -> SINAPI | C94: =VLOOKUP($A94,Orçamento!$A$3:$J$125,3,FALSE) -> 98527 | D94: =VLOOKUP($A94,Orçamento!$A$3:$J$125,4,FALSE) -> Remoção de raízes e cupinzeiros | E94: =VLOOKUP($A94,Orçamento!$A$3:$J$125,5,FALSE) -> und | F94: =VLOOKUP($A94,Orçamento!$A$3:$J$125,6,FALSE) -> 132 | G94: =VLOOKUP($A94,Orçamento!$A$3:$J$125,7,FALSE) -> 133.78 | H94: =VLOOKUP($A94,Orçamento!$A$3:$J$125,8,FALSE) -> 17658.96 | I94: =VLOOKUP($A94,Orçamento!$A$3:$J$125,9,FALSE) -> 166.5 | J94: =VLOOKUP($A94,Orçamento!$A$3:$J$125,10,FALSE) -> 21978 | L94: =Eventograma!H128*'Desembolso-cronograma'!$I94 -> 0 | M94: =Eventograma!I128*'Desembolso-cronograma'!$I94 -> 0 | O94: =$J$94/6 -> 3663 | P94: =$J$94/6 -> 3663 | Q94: 3663 | R94: 3663 | S94: 3663 | T94: 3663 | U94: =Eventograma!Q128*'Desembolso-cronograma'!$I94 -> 0 | Z94: =Eventograma!V128*'Desembolso-cronograma'!$I94 -> 0
A95: 4.4.3 | B95: =VLOOKUP($A95,Orçamento!$A$3:$J$125,2,FALSE) -> SICRO | C95: =VLOOKUP($A95,Orçamento!$A$3:$J$125,3,FALSE) -> 4915774 | D95: =VLOOKUP($A95,Orçamento!$A$3:$J$125,4,FALSE) -> Recomposição de erosão | E95: =VLOOKUP($A95,Orçamento!$A$3:$J$125,5,FALSE) -> m³ | F95: =VLOOKUP($A95,Orçamento!$A$3:$J$125,6,FALSE) -> 6712 | G95: =VLOOKUP($A95,Orçamento!$A$3:$J$125,7,FALSE) -> 11.95 | H95: =VLOOKUP($A95,Orçamento!$A$3:$J$125,8,FALSE) -> 80208.4 | I95: =VLOOKUP($A95,Orçamento!$A$3:$J$125,9,FALSE) -> 14.87 | J95: =VLOOKUP($A95,Orçamento!$A$3:$J$125,10,FALSE) -> 99807.44 | L95: =Eventograma!H129*'Desembolso-cronograma'!$I95 -> 0 | M95: =Eventograma!I129*'Desembolso-cronograma'!$I95 -> 0 | N95: =Eventograma!J129*'Desembolso-cronograma'!$I95 -> 0 | O95: =Eventograma!K129*'Desembolso-cronograma'!$I95 -> 14258.20571 | P95: =Eventograma!L129*'Desembolso-cronograma'!$I95 -> 14258.20571 | Q95: =Eventograma!M129*'Desembolso-cronograma'!$I95 -> 14258.20571 | R95: =Eventograma!N129*'Desembolso-cronograma'!$I95 -> 14258.20571 | S95: =Eventograma!O129*'Desembolso-cronograma'!$I95 -> 14258.20571 | T95: =Eventograma!P129*'Desembolso-cronograma'!$I95 -> 14258.20571 | U95: =Eventograma!Q129*'Desembolso-cronograma'!$I95 -> 14258.20571 | Z95: =Eventograma!V129*'Desembolso-cronograma'!$I95 -> 0
A96: 4.4.4 | B96: =VLOOKUP($A96,Orçamento!$A$3:$J$125,2,FALSE) -> SICRO | C96: =VLOOKUP($A96,Orçamento!$A$3:$J$125,3,FALSE) -> 4805757 | D96: =VLOOKUP($A96,Orçamento!$A$3:$J$125,4,FALSE) -> Escavação mecânica de vala | E96: =VLOOKUP($A96,Orçamento!$A$3:$J$125,5,FALSE) -> m³ | F96: =VLOOKUP($A96,Orçamento!$A$3:$J$125,6,FALSE) -> 976 | G96: =VLOOKUP($A96,Orçamento!$A$3:$J$125,7,FALSE) -> 3.95 | H96: =VLOOKUP($A96,Orçamento!$A$3:$J$125,8,FALSE) -> 3855.2 | I96: =VLOOKUP($A96,Orçamento!$A$3:$J$125,9,FALSE) -> 4.92 | J96: =VLOOKUP($A96,Orçamento!$A$3:$J$125,10,FALSE) -> 4801.92 | L96: =Eventograma!H130*'Desembolso-cronograma'!$I96 -> 0 | M96: =Eventograma!I130*'Desembolso-cronograma'!$I96 -> 0 | O96: =$J$96/6 -> 800.32 | P96: =$J$96/6 -> 800.32 | Q96: 800.32 | R96: 800.32 | S96: 800.32 | T96: 800.32 | U96: =Eventograma!Q130*'Desembolso-cronograma'!$I96 -> 0 | Z96: =Eventograma!V130*'Desembolso-cronograma'!$I96 -> 0
A97: 4.4.5 | B97: =VLOOKUP($A97,Orçamento!$A$3:$J$125,2,FALSE) -> SICRO | C97: =VLOOKUP($A97,Orçamento!$A$3:$J$125,3,FALSE) -> 1106109 | D97: =VLOOKUP($A97,Orçamento!$A$3:$J$125,4,FALSE) -> Concreto fck = 20 Mpa | E97: =VLOOKUP($A97,Orçamento!$A$3:$J$125,5,FALSE) -> m³ | F97: =VLOOKUP($A97,Orçamento!$A$3:$J$125,6,FALSE) -> 431.925 | G97: =VLOOKUP($A97,Orçamento!$A$3:$J$125,7,FALSE) -> 219.85 | H97: =VLOOKUP($A97,Orçamento!$A$3:$J$125,8,FALSE) -> 94958.71125 | I97: =VLOOKUP($A97,Orçamento!$A$3:$J$125,9,FALSE) -> 273.62 | J97: =VLOOKUP($A97,Orçamento!$A$3:$J$125,10,FALSE) -> 118183.3185 | L97: =Eventograma!H134*'Desembolso-cronograma'!$I97 -> 0 | M97: =Eventograma!I134*'Desembolso-cronograma'!$I97 -> 0 | N97: =Eventograma!J134*'Desembolso-cronograma'!$I97 -> 0 | O97: =$J$97/7 -> 16883.33121 | P97: =$J$97/7 -> 16883.33121 | Q97: =$J$97/7 -> 16883.33121 | R97: 16883.33121 | S97: 16883.33121 | T97: 16883.33121 | U97: 16883.33121 | Z97: =Eventograma!V134*'Desembolso-cronograma'!$I97 -> 0 | AB97: =O97+V97 -> 16883.33121
A98: 4.4.6 | B98: =VLOOKUP($A98,Orçamento!$A$3:$J$125,2,FALSE) -> SICRO | C98: =VLOOKUP($A98,Orçamento!$A$3:$J$125,3,FALSE) -> 1107860 | D98: =VLOOKUP($A98,Orçamento!$A$3:$J$125,4,FALSE) -> Bombeamento | E98: =VLOOKUP($A98,Orçamento!$A$3:$J$125,5,FALSE) -> m³ | F98: =VLOOKUP($A98,Orçamento!$A$3:$J$125,6,FALSE) -> 431.925 | G98: =VLOOKUP($A98,Orçamento!$A$3:$J$125,7,FALSE) -> 28.93 | H98: =VLOOKUP($A98,Orçamento!$A$3:$J$125,8,FALSE) -> 12495.59025 | I98: =VLOOKUP($A98,Orçamento!$A$3:$J$125,9,FALSE) -> 36 | J98: =VLOOKUP($A98,Orçamento!$A$3:$J$125,10,FALSE) -> 15549.3 | L98: =Eventograma!H135*'Desembolso-cronograma'!$I98 -> 0 | M98: =Eventograma!I135*'Desembolso-cronograma'!$I98 -> 0 | N98: =Eventograma!J135*'Desembolso-cronograma'!$I98 -> 0 | O98: =$J$98/7 -> 2221.328571 | P98: =$J$98/7 -> 2221.328571 | Q98: =$J$98/7 -> 2221.328571 | R98: 2221.328571 | S98: 2221.328571 | T98: 2221.328571 | U98: 2221.328571 | Z98: =Eventograma!V135*'Desembolso-cronograma'!$I98 -> 0 | AB98: =O98+V98 -> 2221.328571
A99: 4.4.7 | B99: =VLOOKUP($A99,Orçamento!$A$3:$J$125,2,FALSE) -> SICRO | C99: =VLOOKUP($A99,Orçamento!$A$3:$J$125,3,FALSE) -> 1100657 | D99: =VLOOKUP($A99,Orçamento!$A$3:$J$125,4,FALSE) -> Adensamento de Concreto | E99: =VLOOKUP($A99,Orçamento!$A$3:$J$125,5,FALSE) -> m³ | F99: =VLOOKUP($A99,Orçamento!$A$3:$J$125,6,FALSE) -> 431.925 | G99: =VLOOKUP($A99,Orçamento!$A$3:$J$125,7,FALSE) -> 2.45 | H99: =VLOOKUP($A99,Orçamento!$A$3:$J$125,8,FALSE) -> 1058.21625 | I99: =VLOOKUP($A99,Orçamento!$A$3:$J$125,9,FALSE) -> 3.05 | J99: =VLOOKUP($A99,Orçamento!$A$3:$J$125,10,FALSE) -> 1317.37125 | L99: =Eventograma!H136*'Desembolso-cronograma'!$I99 -> 0 | M99: =Eventograma!I136*'Desembolso-cronograma'!$I99 -> 0 | N99: =Eventograma!J136*'Desembolso-cronograma'!$I99 -> 0 | O99: =$J$99/7 -> 188.1958929 | P99: =$J$99/7 -> 188.1958929 | Q99: =$J$99/7 -> 188.1958929 | R99: 188.1958929 | S99: 188.1958929 | T99: 188.1958929 | U99: 188.1958929 | Z99: =Eventograma!V136*'Desembolso-cronograma'!$I99 -> 0 | AB99: =O99+V99 -> 188.1958929
A100: 4.4.8 | B100: =VLOOKUP($A100,Orçamento!$A$3:$J$125,2,FALSE) -> SICRO | C100: =VLOOKUP($A100,Orçamento!$A$3:$J$125,3,FALSE) -> 4915625 | D100: =VLOOKUP($A100,Orçamento!$A$3:$J$125,4,FALSE) -> Recomposição em Solo Cimento | E100: =VLOOKUP($A100,Orçamento!$A$3:$J$125,5,FALSE) -> m³ | F100: =VLOOKUP($A100,Orçamento!$A$3:$J$125,6,FALSE) -> 2686.35 | G100: =VLOOKUP($A100,Orçamento!$A$3:$J$125,7,FALSE) -> 27.05 | H100: =VLOOKUP($A100,Orçamento!$A$3:$J$125,8,FALSE) -> 72665.7675 | I100: =VLOOKUP($A100,Orçamento!$A$3:$J$125,9,FALSE) -> 33.67 | J100: =VLOOKUP($A100,Orçamento!$A$3:$J$125,10,FALSE) -> 90449.4045 | L100: =Eventograma!H137*'Desembolso-cronograma'!$I100 -> 0 | M100: =Eventograma!I137*'Desembolso-cronograma'!$I100 -> 0 | N100: =Eventograma!J137*'Desembolso-cronograma'!$I100 -> 0 | O100: =$J$100/7 -> 12921.3435 | P100: =$J$100/7 -> 12921.3435 | Q100: =$J$100/7 -> 12921.3435 | R100: 12921.3435 | S100: 12921.3435 | T100: 12921.3435 | U100: 12921.3435 | Z100: =Eventograma!V137*'Desembolso-cronograma'!$I100 -> 0 | AB100: =O100+V100 -> 12921.3435
A101: 4.4.10 | B101: =VLOOKUP($A101,Orçamento!$A$3:$J$125,2,FALSE) -> SICRO | C101: =VLOOKUP($A101,Orçamento!$A$3:$J$125,3,FALSE) -> 4805754 | D101: =VLOOKUP($A101,Orçamento!$A$3:$J$125,4,FALSE) -> Compactação Manual | E101: =VLOOKUP($A101,Orçamento!$A$3:$J$125,5,FALSE) -> m³ | F101: =VLOOKUP($A101,Orçamento!$A$3:$J$125,6,FALSE) -> 2686.35 | G101: =VLOOKUP($A101,Orçamento!$A$3:$J$125,7,FALSE) -> 4.93 | H101: =VLOOKUP($A101,Orçamento!$A$3:$J$125,8,FALSE) -> 13243.7055 | I101: =VLOOKUP($A101,Orçamento!$A$3:$J$125,9,FALSE) -> 6.14 | J101: =VLOOKUP($A101,Orçamento!$A$3:$J$125,10,FALSE) -> 16494.189 | L101: =Eventograma!H139*'Desembolso-cronograma'!$I101 -> 0 | M101: =Eventograma!I139*'Desembolso-cronograma'!$I101 -> 0 | N101: =Eventograma!J139*'Desembolso-cronograma'!$I101 -> 0 | O101: =$J$101/7 -> 2356.312714 | P101: =$J$101/7 -> 2356.312714 | Q101: =$J$101/7 -> 2356.312714 | R101: 2356.312714 | S101: 2356.312714 | T101: 2356.312714 | U101: 2356.312714 | Z101: =Eventograma!V139*'Desembolso-cronograma'!$I101 -> 0 | AB101: =O101+V101 -> 2356.312714
A102: 4.4.11 | B102: SICRO | C102: 2003850 | D102: Lastro de Brita | E102: m³ | F102: =1759*0.075 -> 131.925 | G102: 81.76 | H102: =VLOOKUP($A102,Orçamento!$A$3:$J$125,8,FALSE) -> 10786.188 | I102: =VLOOKUP($A102,Orçamento!$A$3:$J$125,9,FALSE) -> 101.75 | J102: =VLOOKUP($A102,Orçamento!$A$3:$J$125,10,FALSE) -> 13423.36875 | Q102: =$J$102/3 -> 4474.45625 | R102: =$J$102/3 -> 4474.45625 | S102: 4474.45625
A103: 4.4.12 | B103: SICRO | C103: 2003947 | D103: Meio fio de concreto | E103: m | F103: 1759 | G103: 14.13 | H103: =VLOOKUP($A103,Orçamento!$A$3:$J$125,8,FALSE) -> 24854.67 | I103: =VLOOKUP($A103,Orçamento!$A$3:$J$125,9,FALSE) -> 17.59 | J103: =VLOOKUP($A103,Orçamento!$A$3:$J$125,10,FALSE) -> 30940.81 | Q103: =$J$103/3 -> 10313.60333 | R103: =$J$103/3 -> 10313.60333 | S103: 10313.60333
A104: 4.4.13 | B104: SICRO | C104: 4915673 | D104: Revestimento vegetal com grama em mudas (superficies inclinadas) | E104: m² | F104: 43336 | G104: 10.64 | H104: =VLOOKUP($A104,Orçamento!$A$3:$J$125,8,FALSE) -> 461095.04 | I104: =VLOOKUP($A104,Orçamento!$A$3:$J$125,9,FALSE) -> 13.24 | J104: =VLOOKUP($A104,Orçamento!$A$3:$J$125,10,FALSE) -> 573768.64 | R104: =$J$104/4 -> 143442.16 | S104: =$J$104/4 -> 143442.16 | T104: 143442.16 | U104: 143442.16
F105: =Orçamento!F104 -> 0 | G105: =Orçamento!G104 -> 0
A106: 4.5 | D106: Drenagem Superficial | F106: =Orçamento!F105 -> 0 | G106: =Orçamento!G105 -> 0 | H106: =SUBTOTAL(9,H107:H115) -> 183162.34 | J106: =SUBTOTAL(9,J107:J115) -> 227957.28 | L106: =SUBTOTAL(9,L107:L116) -> 0 | M106: =SUBTOTAL(9,M107:M116) -> 0 | N106: =SUBTOTAL(9,N107:N116) -> 0 | O106: 22399.74 | P106: 22283.21 | Q106: 37424.64 | R106: 31960.06 | S106: 39367.3 | T106: =SUBTOTAL(9,T108:T117) -> 44752.35 | U106: =SUBTOTAL(9,U107:U116) -> 29690.45
A107: 4.5.1 | B107: =VLOOKUP($A107,Orçamento!$A$3:$J$125,2,FALSE) -> SICRO | C107: =VLOOKUP($A107,Orçamento!$A$3:$J$125,3,FALSE) -> 4915711 | D107: =VLOOKUP($A107,Orçamento!$A$3:$J$125,4,FALSE) -> Limpeza de Descida d'água | E107: =VLOOKUP($A107,Orçamento!$A$3:$J$125,5,FALSE) -> m | F107: =VLOOKUP($A107,Orçamento!$A$3:$J$125,6,FALSE) -> 482 | G107: =VLOOKUP($A107,Orçamento!$A$3:$J$125,7,FALSE) -> 1.06 | H107: =VLOOKUP($A107,Orçamento!$A$3:$J$125,8,FALSE) -> 510.92 | I107: =VLOOKUP($A107,Orçamento!$A$3:$J$125,9,FALSE) -> 1.32 | J107: =VLOOKUP($A107,Orçamento!$A$3:$J$125,10,FALSE) -> 636.24 | L107: =Eventograma!H144*'Desembolso-cronograma'!$I107 -> 0 | M107: =Eventograma!I144*'Desembolso-cronograma'!$I107 -> 0 | O107: =(Eventograma!P144*'Desembolso-cronograma'!$I107)*2 -> 159.06 | P107: =Eventograma!Q144*'Desembolso-cronograma'!$I107 -> 79.53 | Q107: =Eventograma!R144*'Desembolso-cronograma'!$I107 -> 79.53 | R107: =Eventograma!S144*'Desembolso-cronograma'!$I107 -> 79.53 | S107: =Eventograma!T144*'Desembolso-cronograma'!$I107 -> 79.53 | T107: =Eventograma!U144*'Desembolso-cronograma'!$I107 -> 79.53 | U107: =Eventograma!V144*'Desembolso-cronograma'!$I107 -> 79.53
A108: 4.5.2 | B108: =VLOOKUP($A108,Orçamento!$A$3:$J$125,2,FALSE) -> SICRO | C108: =VLOOKUP($A108,Orçamento!$A$3:$J$125,3,FALSE) -> 2003353 | D108: =VLOOKUP($A108,Orçamento!$A$3:$J$125,4,FALSE) -> Valeta trapezoidal de concreto | E108: =VLOOKUP($A108,Orçamento!$A$3:$J$125,5,FALSE) -> m | F108: =VLOOKUP($A108,Orçamento!$A$3:$J$125,6,FALSE) -> 1848 | G108: =VLOOKUP($A108,Orçamento!$A$3:$J$125,7,FALSE) -> 38.68 | H108: =VLOOKUP($A108,Orçamento!$A$3:$J$125,8,FALSE) -> 71480.64 | I108: =VLOOKUP($A108,Orçamento!$A$3:$J$125,9,FALSE) -> 48.14 | J108: =VLOOKUP($A108,Orçamento!$A$3:$J$125,10,FALSE) -> 88962.72 | L108: =Eventograma!H145*'Desembolso-cronograma'!$I108 -> 0 | M108: =Eventograma!I145*'Desembolso-cronograma'!$I108 -> 0 | O108: =(Eventograma!P145*'Desembolso-cronograma'!$I108)*2 -> 22240.68 | P108: =Eventograma!Q145*'Desembolso-cronograma'!$I108 -> 11120.34 | Q108: =Eventograma!R145*'Desembolso-cronograma'!$I108 -> 11120.34 | R108: =Eventograma!S145*'Desembolso-cronograma'!$I108 -> 11120.34 | S108: =Eventograma!T145*'Desembolso-cronograma'!$I108 -> 11120.34 | T108: =Eventograma!U145*'Desembolso-cronograma'!$I108 -> 11120.34 | U108: =Eventograma!V145*'Desembolso-cronograma'!$I108 -> 11120.34
A109: 4.5.3 | B109: =VLOOKUP($A109,Orçamento!$A$3:$J$125,2,FALSE) -> SICRO | C109: =VLOOKUP($A109,Orçamento!$A$3:$J$125,3,FALSE) -> 2003477 | D109: =VLOOKUP($A109,Orçamento!$A$3:$J$125,4,FALSE) -> Caixa Coletora | E109: =VLOOKUP($A109,Orçamento!$A$3:$J$125,5,FALSE) -> und | F109: =VLOOKUP($A109,Orçamento!$A$3:$J$125,6,FALSE) -> 18 | G109: =VLOOKUP($A109,Orçamento!$A$3:$J$125,7,FALSE) -> 2665.19 | H109: =VLOOKUP($A109,Orçamento!$A$3:$J$125,8,FALSE) -> 47973.42 | I109: =VLOOKUP($A109,Orçamento!$A$3:$J$125,9,FALSE) -> 3316.98 | J109: =VLOOKUP($A109,Orçamento!$A$3:$J$125,10,FALSE) -> 59705.64 | L109: =Eventograma!H146*'Desembolso-cronograma'!$I109 -> 0 | M109: =Eventograma!I146*'Desembolso-cronograma'!$I109 -> 0 | N109: =Eventograma!O146*'Desembolso-cronograma'!$I109 -> 0 | O109: =Eventograma!P146*'Desembolso-cronograma'!$I109 -> 0 | P109: =Eventograma!Q146*'Desembolso-cronograma'!$I109 -> 9950.94 | Q109: =Eventograma!R146*'Desembolso-cronograma'!$I109 -> 9950.94 | R109: =Eventograma!S146*'Desembolso-cronograma'!$I109 -> 9950.94 | S109: =Eventograma!T146*'Desembolso-cronograma'!$I109 -> 9950.94 | T109: =Eventograma!U146*'Desembolso-cronograma'!$I109 -> 9950.94 | U109: =Eventograma!V146*'Desembolso-cronograma'!$I109 -> 9950.94
A110: 4.5.4 | B110: =VLOOKUP($A110,Orçamento!$A$3:$J$125,2,FALSE) -> SICRO | C110: =VLOOKUP($A110,Orçamento!$A$3:$J$125,3,FALSE) -> 804021 | D110: =VLOOKUP($A110,Orçamento!$A$3:$J$125,4,FALSE) -> BSTC 600mm | E110: =VLOOKUP($A110,Orçamento!$A$3:$J$125,5,FALSE) -> m | F110: =VLOOKUP($A110,Orçamento!$A$3:$J$125,6,FALSE) -> 24 | G110: =VLOOKUP($A110,Orçamento!$A$3:$J$125,7,FALSE) -> 227.47 | H110: =VLOOKUP($A110,Orçamento!$A$3:$J$125,8,FALSE) -> 5459.28 | I110: =VLOOKUP($A110,Orçamento!$A$3:$J$125,9,FALSE) -> 283.1 | J110: =VLOOKUP($A110,Orçamento!$A$3:$J$125,10,FALSE) -> 6794.4 | L110: =Eventograma!H147*'Desembolso-cronograma'!$I110 -> 0 | M110: =Eventograma!I147*'Desembolso-cronograma'!$I110 -> 0 | N110: =Eventograma!O147*'Desembolso-cronograma'!$I110 -> 0 | O110: =Eventograma!P147*'Desembolso-cronograma'!$I110 -> 0 | P110: =Eventograma!Q147*'Desembolso-cronograma'!$I110 -> 1132.4 | Q110: =Eventograma!R147*'Desembolso-cronograma'!$I110 -> 1132.4 | R110: =Eventograma!S147*'Desembolso-cronograma'!$I110 -> 1132.4 | S110: =Eventograma!T147*'Desembolso-cronograma'!$I110 -> 1132.4 | T110: =Eventograma!U147*'Desembolso-cronograma'!$I110 -> 1132.4 | U110: =Eventograma!V147*'Desembolso-cronograma'!$I110 -> 1132.4
A111: 4.5.5 | B111: =VLOOKUP($A111,Orçamento!$A$3:$J$125,2,FALSE) -> SICRO | C111: =VLOOKUP($A111,Orçamento!$A$3:$J$125,3,FALSE) -> 804037 | D111: =VLOOKUP($A111,Orçamento!$A$3:$J$125,4,FALSE) -> Corpo BSTC 1000mm | E111: =VLOOKUP($A111,Orçamento!$A$3:$J$125,5,FALSE) -> m | F111: =VLOOKUP($A111,Orçamento!$A$3:$J$125,6,FALSE) -> 20 | G111: =VLOOKUP($A111,Orçamento!$A$3:$J$125,7,FALSE) -> 531.45 | H111: =VLOOKUP($A111,Orçamento!$A$3:$J$125,8,FALSE) -> 10629 | I111: =VLOOKUP($A111,Orçamento!$A$3:$J$125,9,FALSE) -> 661.42 | J111: =VLOOKUP($A111,Orçamento!$A$3:$J$125,10,FALSE) -> 13228.4 | L111: =Eventograma!H148*'Desembolso-cronograma'!$I111 -> 0 | M111: =Eventograma!I148*'Desembolso-cronograma'!$I111 -> 0 | N111: =Eventograma!O148*'Desembolso-cronograma'!$I111 -> 0 | O111: =Eventograma!P148*'Desembolso-cronograma'!$I111 -> 0 | P111: =Eventograma!Q148*'Desembolso-cronograma'!$I111 -> 0 | Q111: =Eventograma!R148*'Desembolso-cronograma'!$I111 -> 3307.1 | R111: =Eventograma!S148*'Desembolso-cronograma'!$I111 -> 3307.1 | S111: =Eventograma!T148*'Desembolso-cronograma'!$I111 -> 3307.1 | T111: =Eventograma!U148*'Desembolso-cronograma'!$I111 -> 3307.1 | U111: =Eventograma!V148*'Desembolso-cronograma'!$I111 -> 0
A112: 4.5.6 | B112: =VLOOKUP($A112,Orçamento!$A$3:$J$125,2,FALSE) -> SICRO | C112: =VLOOKUP($A112,Orçamento!$A$3:$J$125,3,FALSE) -> 804393 | D112: =VLOOKUP($A112,Orçamento!$A$3:$J$125,4,FALSE) -> Boca BSTC 1000mm | E112: =VLOOKUP($A112,Orçamento!$A$3:$J$125,5,FALSE) -> und | F112: =VLOOKUP($A112,Orçamento!$A$3:$J$125,6,FALSE) -> 2 | G112: =VLOOKUP($A112,Orçamento!$A$3:$J$125,7,FALSE) -> 1836.7 | H112: =VLOOKUP($A112,Orçamento!$A$3:$J$125,8,FALSE) -> 3673.4 | I112: =VLOOKUP($A112,Orçamento!$A$3:$J$125,9,FALSE) -> 2285.87 | J112: =VLOOKUP($A112,Orçamento!$A$3:$J$125,10,FALSE) -> 4571.74 | L112: =Eventograma!H149*'Desembolso-cronograma'!$I112 -> 0 | M112: =Eventograma!I149*'Desembolso-cronograma'!$I112 -> 0 | N112: =Eventograma!O149*'Desembolso-cronograma'!$I112 -> 0 | O112: =Eventograma!P149*'Desembolso-cronograma'!$I112 -> 0 | P112: =Eventograma!Q149*'Desembolso-cronograma'!$I112 -> 0 | Q112: =Eventograma!R149*'Desembolso-cronograma'!$I112 -> 2285.87 | R112: =Eventograma!S149*'Desembolso-cronograma'!$I112 -> 0 | S112: =Eventograma!T149*'Desembolso-cronograma'!$I112 -> 0 | T112: =Eventograma!U149*'Desembolso-cronograma'!$I112 -> 2285.87 | U112: =Eventograma!V149*'Desembolso-cronograma'!$I112 -> 0
A113: 4.5.7 | B113: =VLOOKUP($A113,Orçamento!$A$3:$J$125,2,FALSE) -> SICRO | C113: =VLOOKUP($A113,Orçamento!$A$3:$J$125,3,FALSE) -> 804189 | D113: =VLOOKUP($A113,Orçamento!$A$3:$J$125,4,FALSE) -> Corpo BDTC 1000mm | E113: =VLOOKUP($A113,Orçamento!$A$3:$J$125,5,FALSE) -> m | F113: =VLOOKUP($A113,Orçamento!$A$3:$J$125,6,FALSE) -> 20 | G113: =VLOOKUP($A113,Orçamento!$A$3:$J$125,7,FALSE) -> 1023.62 | H113: =VLOOKUP($A113,Orçamento!$A$3:$J$125,8,FALSE) -> 20472.4 | I113: =VLOOKUP($A113,Orçamento!$A$3:$J$125,9,FALSE) -> 1273.95 | J113: =VLOOKUP($A113,Orçamento!$A$3:$J$125,10,FALSE) -> 25479 | L113: =Eventograma!H150*'Desembolso-cronograma'!$I113 -> 0 | M113: =Eventograma!I150*'Desembolso-cronograma'!$I113 -> 0 | N113: =Eventograma!O150*'Desembolso-cronograma'!$I113 -> 0 | O113: =Eventograma!P150*'Desembolso-cronograma'!$I113 -> 0 | P113: =Eventograma!Q150*'Desembolso-cronograma'!$I113 -> 0 | Q113: =Eventograma!R150*'Desembolso-cronograma'!$I113 -> 6369.75 | R113: =Eventograma!S150*'Desembolso-cronograma'!$I113 -> 6369.75 | S113: =Eventograma!T150*'Desembolso-cronograma'!$I113 -> 6369.75 | T113: =Eventograma!U150*'Desembolso-cronograma'!$I113 -> 6369.75 | U113: =Eventograma!V150*'Desembolso-cronograma'!$I113 -> 0
A114: 4.5.8 | B114: =VLOOKUP($A114,Orçamento!$A$3:$J$125,2,FALSE) -> SICRO | C114: =VLOOKUP($A114,Orçamento!$A$3:$J$125,3,FALSE) -> 804417 | D114: =VLOOKUP($A114,Orçamento!$A$3:$J$125,4,FALSE) -> Boca BDTC 1000mm | E114: =VLOOKUP($A114,Orçamento!$A$3:$J$125,5,FALSE) -> und | F114: =VLOOKUP($A114,Orçamento!$A$3:$J$125,6,FALSE) -> 2 | G114: =VLOOKUP($A114,Orçamento!$A$3:$J$125,7,FALSE) -> 2554.09 | H114: =VLOOKUP($A114,Orçamento!$A$3:$J$125,8,FALSE) -> 5108.18 | I114: =VLOOKUP($A114,Orçamento!$A$3:$J$125,9,FALSE) -> 3178.71 | J114: =VLOOKUP($A114,Orçamento!$A$3:$J$125,10,FALSE) -> 6357.42 | L114: =Eventograma!H151*'Desembolso-cronograma'!$I114 -> 0 | M114: =Eventograma!I151*'Desembolso-cronograma'!$I114 -> 0 | N114: =Eventograma!O151*'Desembolso-cronograma'!$I114 -> 0 | O114: =Eventograma!P151*'Desembolso-cronograma'!$I114 -> 0 | P114: =Eventograma!Q151*'Desembolso-cronograma'!$I114 -> 0 | Q114: =Eventograma!R151*'Desembolso-cronograma'!$I114 -> 3178.71 | R114: =Eventograma!S151*'Desembolso-cronograma'!$I114 -> 0 | S114: =Eventograma!T151*'Desembolso-cronograma'!$I114 -> 0 | T114: =Eventograma!U151*'Desembolso-cronograma'!$I114 -> 3178.71 | U114: =Eventograma!V151*'Desembolso-cronograma'!$I114 -> 0
A115: 4.5.9 | B115: =VLOOKUP($A115,Orçamento!$A$3:$J$125,2,FALSE) -> SICRO | C115: =VLOOKUP($A115,Orçamento!$A$3:$J$125,3,FALSE) -> 2003453 | D115: =VLOOKUP($A115,Orçamento!$A$3:$J$125,4,FALSE) -> Dissipador de Energia | E115: =VLOOKUP($A115,Orçamento!$A$3:$J$125,5,FALSE) -> und | F115: =VLOOKUP($A115,Orçamento!$A$3:$J$125,6,FALSE) -> 18 | G115: =VLOOKUP($A115,Orçamento!$A$3:$J$125,7,FALSE) -> 991.95 | H115: =VLOOKUP($A115,Orçamento!$A$3:$J$125,8,FALSE) -> 17855.1 | I115: =VLOOKUP($A115,Orçamento!$A$3:$J$125,9,FALSE) -> 1234.54 | J115: =VLOOKUP($A115,Orçamento!$A$3:$J$125,10,FALSE) -> 22221.72 | L115: =Eventograma!H152*'Desembolso-cronograma'!$I115 -> 0 | M115: =Eventograma!I152*'Desembolso-cronograma'!$I115 -> 0 | N115: =Eventograma!O152*'Desembolso-cronograma'!$I115 -> 0 | O115: =Eventograma!P152*'Desembolso-cronograma'!$I115 -> 0 | P115: =Eventograma!Q152*'Desembolso-cronograma'!$I115 -> 0 | Q115: =Eventograma!R152*'Desembolso-cronograma'!$I115 -> 0 | R115: =Eventograma!S152*'Desembolso-cronograma'!$I115 -> 0 | S115: =Eventograma!T152*'Desembolso-cronograma'!$I115 -> 7407.24 | T115: =Eventograma!U152*'Desembolso-cronograma'!$I115 -> 7407.24 | U115: =Eventograma!V152*'Desembolso-cronograma'!$I115 -> 7407.24
F116: =Orçamento!F115 -> 0 | G116: =Orçamento!G115 -> 0
A117: 5 | D117: Momento de Transporte | F117: =Orçamento!F116 -> 0 | G117: =Orçamento!G116 -> 0 | H117: =SUBTOTAL(9,H118:H125) -> 978774.0839 | J117: =SUBTOTAL(9,J118:J125) -> 1218700.031 | L117: =SUBTOTAL(9,L118:L125) -> 5499.5648 | M117: =SUBTOTAL(9,M118:M125) -> 0 | N117: =SUBTOTAL(9,N118:N125) -> 566.1593 | O117: 2625.530499 | P117: 18093.78365 | Q117: 19548.97571 | R117: 240142.296 | S117: 266882.9518 | T117: 266560.6698 | U117: 266560.6698 | V117: 132219.4373 | W117: 0 | X117: 0 | Y117: 0 | Z117: 0
A118: 5.1 | B118: =VLOOKUP($A118,Orçamento!$A$3:$J$125,2,FALSE) -> SICRO | C118: =VLOOKUP($A118,Orçamento!$A$3:$J$125,3,FALSE) -> 5914329 | D118: =VLOOKUP($A118,Orçamento!$A$3:$J$125,4,FALSE) -> Transporte com caminhão basculante de 6 m³ | E118: =VLOOKUP($A118,Orçamento!$A$3:$J$125,5,FALSE) -> txkm | F118: =VLOOKUP($A118,Orçamento!$A$3:$J$125,6,FALSE) -> 429.709375 | G118: =VLOOKUP($A118,Orçamento!$A$3:$J$125,7,FALSE) -> 0.6 | H118: =VLOOKUP($A118,Orçamento!$A$3:$J$125,8,FALSE) -> 257.825625 | I118: =VLOOKUP($A118,Orçamento!$A$3:$J$125,9,FALSE) -> 0.75 | J118: =VLOOKUP($A118,Orçamento!$A$3:$J$125,10,FALSE) -> 322.2820313 | L118: =Eventograma!H186*'Desembolso-cronograma'!$I118 -> 0 | M118: =Eventograma!I186*'Desembolso-cronograma'!$I118 -> 0 | N118: =Eventograma!J186*'Desembolso-cronograma'!$I118 -> 0 | O118: =Eventograma!K186*'Desembolso-cronograma'!$I118 -> 0 | P118: =Eventograma!L186*'Desembolso-cronograma'!$I118 -> 0 | Q118: =Eventograma!M186*'Desembolso-cronograma'!$I118 -> 0 | R118: =Eventograma!N186*'Desembolso-cronograma'!$I118 -> 0 | S118: =J118 -> 322.2820313 | T118: =Eventograma!P186*'Desembolso-cronograma'!$I118 -> 0 | U118: =Eventograma!Q186*'Desembolso-cronograma'!$I118 -> 0 | V118: =Eventograma!R186*'Desembolso-cronograma'!$I118 -> 0 | W118: =Eventograma!S186*'Desembolso-cronograma'!$I118 -> 0 | X118: =Eventograma!T186*'Desembolso-cronograma'!$I118 -> 0 | Y118: =Eventograma!U186*'Desembolso-cronograma'!$I118 -> 0 | Z118: =Eventograma!V186*'Desembolso-cronograma'!$I118 -> 0
A119: 5.2 | B119: =VLOOKUP($A119,Orçamento!$A$3:$J$125,2,FALSE) -> SICRO | C119: =VLOOKUP($A119,Orçamento!$A$3:$J$125,3,FALSE) -> 5914365 | D119: =VLOOKUP($A119,Orçamento!$A$3:$J$125,4,FALSE) -> Transporte de cimento a granel com caminhão silo 30 m³ | E119: =VLOOKUP($A119,Orçamento!$A$3:$J$125,5,FALSE) -> txkm | F119: =VLOOKUP($A119,Orçamento!$A$3:$J$125,6,FALSE) -> 212313.3141 | G119: =VLOOKUP($A119,Orçamento!$A$3:$J$125,7,FALSE) -> 0.41 | H119: =VLOOKUP($A119,Orçamento!$A$3:$J$125,8,FALSE) -> 87048.45877 | I119: =VLOOKUP($A119,Orçamento!$A$3:$J$125,9,FALSE) -> 0.51 | J119: =VLOOKUP($A119,Orçamento!$A$3:$J$125,10,FALSE) -> 108279.7902 | L119: =Eventograma!H187*'Desembolso-cronograma'!$I119 -> 0 | M119: =Eventograma!I187*'Desembolso-cronograma'!$I119 -> 0 | N119: =Eventograma!J187*'Desembolso-cronograma'!$I119 -> 0 | O119: =Eventograma!K187*'Desembolso-cronograma'!$I119 -> 0 | P119: =Eventograma!L187*'Desembolso-cronograma'!$I119 -> 1347.690855 | Q119: =Eventograma!M187*'Desembolso-cronograma'!$I119 -> 1378.89282 | R119: =Eventograma!N187*'Desembolso-cronograma'!$I119 -> 22954.85119 | S119: =Eventograma!O187*'Desembolso-cronograma'!$I119 -> 22392.25393 | T119: =Eventograma!P187*'Desembolso-cronograma'!$I119 -> 22392.25393 | U119: =Eventograma!Q187*'Desembolso-cronograma'!$I119 -> 22392.25393 | V119: =Eventograma!R187*'Desembolso-cronograma'!$I119+AB119-3332.77 -> 15357.49397 | Z119: =Eventograma!V187*'Desembolso-cronograma'!$I119 -> 0 | AB119: =SUM(W119:Y119) -> 0
A120: 5.3 | B120: =VLOOKUP($A120,Orçamento!$A$3:$J$125,2,FALSE) -> SICRO | C120: =VLOOKUP($A120,Orçamento!$A$3:$J$125,3,FALSE) -> 5914374 | D120: =VLOOKUP($A120,Orçamento!$A$3:$J$125,4,FALSE) -> Transporte com caminhão basculante de 10 m³ | E120: =VLOOKUP($A120,Orçamento!$A$3:$J$125,5,FALSE) -> txkm | F120: =VLOOKUP($A120,Orçamento!$A$3:$J$125,6,FALSE) -> 1620483.799 | G120: =VLOOKUP($A120,Orçamento!$A$3:$J$125,7,FALSE) -> 0.49 | H120: =VLOOKUP($A120,Orçamento!$A$3:$J$125,8,FALSE) -> 794037.0615 | I120: =VLOOKUP($A120,Orçamento!$A$3:$J$125,9,FALSE) -> 0.61 | J120: =VLOOKUP($A120,Orçamento!$A$3:$J$125,10,FALSE) -> 988495.1174 | L120: =Eventograma!H188*'Desembolso-cronograma'!$I120 -> 5499.5648 | M120: =Eventograma!I188*'Desembolso-cronograma'!$I120 -> 0 | N120: =Eventograma!J188*'Desembolso-cronograma'!$I120 -> 566.1593 | O120: =Eventograma!K188*'Desembolso-cronograma'!$I120 -> 1423.9901 | P120: =Eventograma!L188*'Desembolso-cronograma'!$I120 -> 1536.81875 | Q120: =Eventograma!M188*'Desembolso-cronograma'!$I120 -> 2960.80885 | R120: =Eventograma!N188*'Desembolso-cronograma'!$I120 -> 203179.7112 | S120: =Eventograma!O188*'Desembolso-cronograma'!$I120 -> 230160.6822 | T120: =Eventograma!P188*'Desembolso-cronograma'!$I120 -> 230160.6822 | U120: =Eventograma!Q188*'Desembolso-cronograma'!$I120 -> 230160.6822 | V120: =Eventograma!R188*'Desembolso-cronograma'!$I120+AB120+37488.09 -> 83450.66966 | Z120: =Eventograma!V188*'Desembolso-cronograma'!$I120 -> 0 | AB120: =SUM(W120:Y120) -> 0
A121: 5.4 | B121: =VLOOKUP($A121,Orçamento!$A$3:$J$125,2,FALSE) -> SICRO | C121: =VLOOKUP($A121,Orçamento!$A$3:$J$125,3,FALSE) -> 5914464 | D121: =VLOOKUP($A121,Orçamento!$A$3:$J$125,4,FALSE) -> Transporte com caminhão carroceria de 15 t | E121: =VLOOKUP($A121,Orçamento!$A$3:$J$125,5,FALSE) -> txkm | F121: =VLOOKUP($A121,Orçamento!$A$3:$J$125,6,FALSE) -> 5909.215077 | G121: =VLOOKUP($A121,Orçamento!$A$3:$J$125,7,FALSE) -> 0.49 | H121: =VLOOKUP($A121,Orçamento!$A$3:$J$125,8,FALSE) -> 2895.515388 | I121: =VLOOKUP($A121,Orçamento!$A$3:$J$125,9,FALSE) -> 0.61 | J121: =VLOOKUP($A121,Orçamento!$A$3:$J$125,10,FALSE) -> 3604.621197 | L121: =Eventograma!H189*'Desembolso-cronograma'!$I121 -> 0 | M121: =Eventograma!I189*'Desembolso-cronograma'!$I121 -> 0 | N121: =Eventograma!J189*'Desembolso-cronograma'!$I121 -> 0 | O121: =$J$121/3 -> 1201.540399 | P121: =$J$121/3 -> 1201.540399 | Q121: 1201.540399 | R121: =Eventograma!N189*'Desembolso-cronograma'!$I121 -> 0 | S121: =Eventograma!O189*'Desembolso-cronograma'!$I121 -> 0 | T121: =Eventograma!P189*'Desembolso-cronograma'!$I121 -> 0 | U121: =Eventograma!Q189*'Desembolso-cronograma'!$I121 -> 0 | V121: =AB121 -> 0 | AB121: 0
A122: 5.5 | B122: =VLOOKUP($A122,Orçamento!$A$3:$J$125,2,FALSE) -> SICRO | C122: =VLOOKUP($A122,Orçamento!$A$3:$J$125,3,FALSE) -> 5915323 | D122: =VLOOKUP($A122,Orçamento!$A$3:$J$125,4,FALSE) -> Transporte com caminhão carroceria de 5 t | E122: =VLOOKUP($A122,Orçamento!$A$3:$J$125,5,FALSE) -> txkm | F122: =VLOOKUP($A122,Orçamento!$A$3:$J$125,6,FALSE) -> 85474.64835 | G122: =VLOOKUP($A122,Orçamento!$A$3:$J$125,7,FALSE) -> 0.84 | H122: =VLOOKUP($A122,Orçamento!$A$3:$J$125,8,FALSE) -> 71798.70461 | I122: =VLOOKUP($A122,Orçamento!$A$3:$J$125,9,FALSE) -> 1.05 | J122: =VLOOKUP($A122,Orçamento!$A$3:$J$125,10,FALSE) -> 89748.38077 | L122: =Eventograma!H190*'Desembolso-cronograma'!$I122 -> 0 | M122: =Eventograma!I190*'Desembolso-cronograma'!$I122 -> 0 | N122: =Eventograma!J190*'Desembolso-cronograma'!$I122 -> 0 | O122: =Eventograma!K190*'Desembolso-cronograma'!$I122 -> 0 | P122: =J122/9 -> 9972.042308 | Q122: =$J$122/9 -> 9972.042308 | R122: =$J$122/9 -> 9972.042308 | S122: =$J$122/9 -> 9972.042308 | T122: =$J$122/9 -> 9972.042308 | U122: =$J$122/9 -> 9972.042308 | V122: =($J$122/9)+AB122+20323.97-920.43 -> 29375.58231 | Z122: =Eventograma!V190*'Desembolso-cronograma'!$I122 -> 0 | AB122: 0
A123: 5.6 | B123: =VLOOKUP($A123,Orçamento!$A$3:$J$125,2,FALSE) -> SICRO | C123: =VLOOKUP($A123,Orçamento!$A$3:$J$125,3,FALSE) -> 5914554 | D123: =VLOOKUP($A123,Orçamento!$A$3:$J$125,4,FALSE) -> Transporte com caminhão betoneira | E123: =VLOOKUP($A123,Orçamento!$A$3:$J$125,5,FALSE) -> txkm | F123: =VLOOKUP($A123,Orçamento!$A$3:$J$125,6,FALSE) -> 1164.1113 | G123: =VLOOKUP($A123,Orçamento!$A$3:$J$125,7,FALSE) -> 0.43 | H123: =VLOOKUP($A123,Orçamento!$A$3:$J$125,8,FALSE) -> 500.567859 | I123: =VLOOKUP($A123,Orçamento!$A$3:$J$125,9,FALSE) -> 0.54 | J123: =VLOOKUP($A123,Orçamento!$A$3:$J$125,10,FALSE) -> 628.620102 | L123: =Eventograma!H191*'Desembolso-cronograma'!$I123 -> 0 | M123: =Eventograma!I191*'Desembolso-cronograma'!$I123 -> 0 | O123: =Eventograma!K191*'Desembolso-cronograma'!$I123 -> 0 | P123: =$J$123/7 -> 89.80287171 | Q123: =$J$123/7 -> 89.80287171 | R123: 89.80287171 | S123: 89.80287171 | T123: 89.80287171 | U123: 89.80287171 | V123: 89.80287171 | AB123: 0
A124: 5.7 | B124: =VLOOKUP($A124,Orçamento!$A$3:$J$125,2,FALSE) -> SICRO | C124: =VLOOKUP($A124,Orçamento!$A$3:$J$125,3,FALSE) -> 5914599 | D124: =VLOOKUP($A124,Orçamento!$A$3:$J$125,4,FALSE) -> Transporte com caminhão carroceria com guindauto de 20 t.m | E124: =VLOOKUP($A124,Orçamento!$A$3:$J$125,5,FALSE) -> txkm | F124: =VLOOKUP($A124,Orçamento!$A$3:$J$125,6,FALSE) -> 17371.836 | G124: =VLOOKUP($A124,Orçamento!$A$3:$J$125,7,FALSE) -> 1.28 | H124: =VLOOKUP($A124,Orçamento!$A$3:$J$125,8,FALSE) -> 22235.95008 | I124: =VLOOKUP($A124,Orçamento!$A$3:$J$125,9,FALSE) -> 1.59 | J124: =VLOOKUP($A124,Orçamento!$A$3:$J$125,10,FALSE) -> 27621.21924 | L124: =Eventograma!H192*'Desembolso-cronograma'!$I124 -> 0 | M124: =Eventograma!I192*'Desembolso-cronograma'!$I124 -> 0 | N124: =Eventograma!J192*'Desembolso-cronograma'!$I124 -> 0 | O124: =Eventograma!K192*'Desembolso-cronograma'!$I124 -> 0 | P124: =$J$124/7 -> 3945.888463 | Q124: =$J$124/7 -> 3945.888463 | R124: 3945.888463 | S124: 3945.888463 | T124: 3945.888463 | U124: 3945.888463 | V124: 3945.888463 | Z124: =Eventograma!V192*'Desembolso-cronograma'!$I124 -> 0 | AB124: 0
F125: =Orçamento!F124 -> 0 | G125: =Orçamento!G124 -> 0 | AB125: 0
D126: TOTAL | G126: TOTAL | H126: =SUBTOTAL(9,H3:H125) -> 5443861.388 | J126: =SUBTOTAL(9,J3:J125) -> 6776107.185 | L126: =SUBTOTAL(9,L3:L125) -> 194185.6548 | M126: 145854.14 | N126: 119107.4242 | O126: 214040.2877 | P126: 342614.8925 | Q126: 848985.6252 | R126: 1121077.116 | S126: 1376195.722 | T126: 1246563.346 | U126: 865119.9667 | V126: 189003.5773 | W126: 113359.44 | X126: 0 | Y126: 0 | Z126: 0
D127: TOTAL ACUMULADO | L127: =L126 -> 194185.6548 | M127: =L127+M126 -> 340039.7948 | N127: =M127+N126 -> 459147.219 | O127: 673187.5067 | P127: 1015802.399 | Q127: 1864788.024 | R127: 2985865.141 | S127: 4362060.863 | T127: 5608624.209 | U127: 6473744.175 | V127: 6662747.753 | W127: 6776107.193 | X127: 6776107.193 | Y127: 6776107.193 | Z127: 6776107.193

Sheet Transporte - memória
A1: Ítem | B1: Base | C1: Código | D1: Descrição | E1: und | F1: Volume Planilha | G1: Quantidade Composição | H1: Densidade | I1: Peso Total (t) | J1: Distância (km) | K1: Transporte (txkm)
A2: 1 | D2: Transporte (estimativa - Serviços medidos a preços unitários).
A3: 1.2 | B3: SICRO | C3: 5914374 | D3: Revestimento Acesso | E3: m³ | F3: =Orçamento!F13 -> 900 | G3: 1.1 | H3: =1.5*1.25 -> 1.875 | I3: =H3*G3*F3 -> 1856.25 | J3: 1 | K3: =I3*J3 -> 1856.25
A4: 1.3 | B4: SICRO | C4: 5914329 | D4: Recomposição Revestimento Acesso | E4: m³ | F4: =Orçamento!F14 -> 180 | G4: 1.1 | H4: =1.5*1.25 -> 1.875 | I4: 371.25 | J4: 1 | K4: 371.25
A5: 1.4 | B5: SICRO | C5: 5914329 | D5: Material Demolido | E5: m³ | F5: =Orçamento!F36 -> 23.38375 | G5: 1 | H5: 2.5 | I5: 58.459375 | J5: 1 | K5: 58.459375
A6: 1.5 | B6: SICRO | C6: 5914374 | D6: Valas de Montante | E6: m³ | F6: =Orçamento!F68-Orçamento!F69*1.1 -> 1283.6 | G6: 1 | H6: =1.5*1.25 -> 1.875 | I6: 2406.75 | J6: 1 | K6: 2406.75
A7: 1.6 | B7: SICRO | C7: 5914374 | D7: Pedra de mão enrocamento | E7: m³ | F7: =Orçamento!F77 -> 1029 | G7: 1.2 | H7: 1.5 | I7: 1852.2 | J7: 102 | K7: 188924.4
A8: 1.7 | B8: SICRO | C8: 5914374 | D8: Bica corrida | E8: m³ | F8: =Orçamento!F84 -> 1029 | G8: 1.05 | H8: 1.5 | I8: 1620.675 | J8: 102 | K8: 165308.85
A9: 1.8 | B9: SICRO | C9: 5914374 | D9: Valas de Jusante | E9: m³ | F9: =Orçamento!F95 -> 976 | G9: 1 | H9: =1.5*1.25 -> 1.875 | I9: 1830 | J9: 1 | K9: 1830
A10: 1.9 | B10: SICRO | C10: 5914374 | D10: Brita Geocélula | E10: m³ | F10: =Orçamento!F101 -> 131.925 | G10: 1.05 | H10: 1.5 | I10: 207.781875 | J10: 102 | K10: 21193.75125
A11: 1.10 | B11: SICRO | C11: 5914374 | D11: Pedra de mão dissipador | E11: m³ | F11: =Orçamento!F114*0.87 -> 15.66 | G11: 0.87 | H11: 1.5 | I11: 20.4363 | J11: 102 | K11: 2084.5026
A12: 1.11 | B12: SICRO | C12: 5914554 | D12: Concreto 25MPa | F12: 46.58375 | G12: 1 | H12: 2.4 | I12: 111.801 | J12: 0.1 | K12: 11.1801
A13: 1.11.1 | B13: SICRO | C13: 5914374 | D13: Areia | E13: m³ | F13: 46.58375 | G13: 0.62995 | H13: 1.5 | I13: =H13*G13*F13 -> 44.01814997 | J13: 150 | K13: =I13*J13 -> 6602.722495
A14: 1.11.2 | B14: SICRO | C14: 5914374 | D14: Brita | E14: m³ | F14: 46.58375 | G14: 0.68813 | H14: 1.5 | I14: 48.08351383 | J14: 102 | K14: 4904.518411
A15: 1.11.3 | B15: SICRO | C15: 5914365 | D15: Cimento | E15: kg | F15: 46.58375 | G15: 340.98454 | H15: 0.001 | I15: 15.88433857 | J15: 150 | K15: 2382.650785
A16: 1.11.4 | B16: SICRO | C16: 5914464 | D16: Aditivo | E16: kg | F16: 46.58375 | G16: 1.36394 | H16: 0.001 | I16: 0.06353743997 | J16: 150 | K16: 9.530615996
A17: 1.12 | B17: SICRO | C17: 5914554 | D17: Concreto 20MPa | E17: m³ | F17: 4803.88 | G17: 1 | H17: 2.4 | I17: 11529.312 | J17: 0.1 | K17: 1152.9312
A18: 1.12.1 | B18: SICRO | C18: 5914374 | D18: Areia | E18: m³ | F18: 4803.88 | G18: 0.62873 | H18: 1.5 | I18: 4530.515209 | J18: 150 | K18: 679577.2813
A19: 1.12.2 | B19: SICRO | C19: 5914374 | D19: Brita | E19: m³ | F19: =F18 -> 4803.88 | G19: =0.36754*2 -> 0.73508 | H19: 1.5 | I19: 5296.854166 | J19: 102 | K19: 540279.1249
A20: 1.12.3 | B20: SICRO | C20: 5914365 | D20: Cimento | E20: kg | F20: =F19 -> 4803.88 | G20: 291.33487 | H20: 0.001 | I20: 1399.537755 | J20: 150 | K20: 209930.6633
A21: 1.12.4 | B21: SICRO | C21: 5914464 | D21: Aditivo | E21: kg | F21: =F20 -> 4803.88 | G21: 0.874 | H21: 0.001 | I21: 4.19859112 | J21: 150 | K21: 629.788668
A22: 1.14 | D22: Armação em aço CA-50
A23: 1.14.1 | B23: SICRO | C23: 5914464 | D23: Aço CA 50 | E23: kg | F23: =Orçamento!F39 -> 477 | G23: 1.1 | H23: 0.001 | I23: =H23*G23*F23 -> 0.5247 | J23: 150 | K23: =I23*J23 -> 78.705
A24: 1.14.2 | B24: SICRO | C24: 5914464 | D24: Arame recozido 18 BWG | E24: kg | F24: =F23 -> 477 | G24: 0.015 | H24: 0.001 | I24: =H24*G24*F24 -> 0.007155 | J24: 150 | K24: =I24*J24 -> 1.07325
A25: 1.15 | D25: Armação em aço CA-60
A26: 1.15.2 | B26: SICRO | C26: 5914464 | D26: Arame recozido 18 BWG | E26: kg | F26: 10449.46485 | G26: 0.015 | H26: 0.001 | I26: =H26*G26*F26 -> 0.1567419728 | J26: 150 | K26: =I26*J26 -> 23.51129591
A27: 1.16 | D27: Dreno
A28: 1.16.1 | B28: SICRO | C28: 5914374 | D28: Brita 1 | E28: m³ | F28: 73.25 | G28: 0.24607 | H28: 1.5 | I28: =H28*G28*F28 -> 27.03694125 | J28: 102 | K28: =I28*J28 -> 2757.768008
A29: 1.16.2 | B29: SICRO | C29: 5914374 | D29: Brita 2 - Caminhão basculante 10 m³ | E29: m³ | F29: 73.25 | G29: 0.24608 | H29: 1.5 | I29: =H29*G29*F29 -> 27.03804 | J29: 102 | K29: =I29*J29 -> 2757.88008
A30: 1.16.3 | B30: SICRO | C30: 5914464 | D30: Geotêxtil não-tecido agulhado RT 14 | E30: m² | F30: 73.25 | G30: 3.5 | H30: 0.000251 | I30: =H30*G30*F30 -> 0.064350125 | J30: 210 | K30: =I30*J30 -> 13.51352625
A31: 1.16.4 | B31: SICRO | C31: 5914464 | D31: Tubo de PEAD corrugado perfurado - D = 100 mm | E31: m | F31: 73.25 | G31: 1 | H31: 0.00171 | I31: =H31*G31*F31 -> 0.1252575 | J31: 210 | K31: =I31*J31 -> 26.304075
A32: 1.17 | D32: Formas de compensado plastificado 10 mm - uso geral
A33: 1.17.1 | B33: SICRO | C33: 5914464 | D33: Caibro de pinho de 7,5 x 7,5 cm | E33: m | F33: 153.91 | G33: 1.222 | H33: 0.00562193126 | I33: =H33*G33*F33 -> 1.0573617 | J33: 102 | K33: =I33*J33 -> 107.8508934
A34: 1.17.2 | B34: SICRO | C34: 5914464 | D34: Compensado plastificado de 10 mm | E34: m² | F34: 153.91 | G34: 1.1 | H34: 0.01 | I34: 1.69301 | J34: 102 | K34: 172.68702
A35: 1.17.3 | B35: SICRO | C35: 5914464 | D35: Peça de madeira de 2,5 x 7,5 cm | E35: m | F35: 153.91 | G35: 3.53333 | H35: 0.001873586673 | I35: 1.0188842 | J35: 102 | K35: 103.9261884
A36: 1.17.4 | B36: SICRO | C36: 5914464 | D36: Prego de ferro | E36: kg | F36: 153.91 | G36: 0.15137 | H36: 0.0009909493295 | I36: 0.0230865 | J36: 102 | K36: 2.354823
A37: 1.17.5 | B37: SICRO | C37: 5914464 | D37: Tábua de 2,5 x 10 cm | E37: m | F37: 153.91 | G37: 4.50106 | H37: 0.00249941125 | I37: 1.7314875 | J37: 102 | K37: 176.611725
A38: 1.17.6 | B38: SICRO | C38: 5914464 | D38: Tábua de 2,5 x 30 cm | E38: m | F38: 153.91 | G38: 0.407 | H38: 0.007493857494 | I38: 0.4694255 | J38: 102 | K38: 47.881401
A39: 1.18 | D39: Solo Cimento
A40: 1.18.1 | B40: SICRO | C40: 5915323 | D40: Cimento Portland CP II - 32 | E40: kg | F40: =Orçamento!F66+Orçamento!F82+Orçamento!F99 -> 4419.35 | G40: 128.94 | H40: 0.001 | I40: =H40*G40*F40 -> 569.830989 | J40: 150 | K40: =I40*J40 -> 85474.64835
A41: 1.19 | D41: Geocélula
A42: 1.19.1 | B42: SICRO | C42: 5914464 | D42: Geotêxtil | E42: m² | F42: =Orçamento!F72 -> 14765 | G42: 1.05 | H42: 0.0004666666667 | I42: 7.23485 | J42: 210 | K42: =I42*J42 -> 1519.3185 | N42: =F42-43336 -> -28571
A43: 1.19.2 | B43: SICRO | C43: 5914464 | D43: Pead | E43: m² | F43: =F42 -> 14765 | G43: 1.03 | H43: 0.0005242718447 | I43: 7.9731 | J43: 210 | K43: 1674.351
A44: 1.19.3 | B44: SICRO | C44: 5914464 | D44: Grampo | E44: kg | F44: =F43 -> 14765 | G44: 0.4263 | H44: 0.001 | I44: 6.2943195 | J44: 210 | K44: 1321.807095
A45: 1.20 | D45: BSTC
A46: 1.20.1 | B46: SICRO | C46: 5914599 | D46: Tubo de Concreto Armado D=0,60 | E46: m | F46: =Orçamento!F109 -> 24 | G46: 1 | H46: 0.42726 | I46: 10.25424 | J46: 150 | K46: 1538.136
A47: 1.20.2 | B47: SICRO | C47: 5914599 | D47: Tubo de Concreto Armado D=1,00 | E47: m | F47: =Orçamento!F110 -> 20 | G47: 1 | H47: 1.05558 | I47: 21.1116 | J47: 150 | K47: 3166.74
A48: 1.21 | D48: BDTC
A49: 1.21.1 | B49: SICRO | C49: 5914599 | D49: Tubo de Concreto Armado D=1,00 | E49: m | F49: =Orçamento!F112 -> 20 | G49: 2 | H49: 2.11116 | I49: 84.4464 | J49: 150 | K49: 12666.96
